Workbook

Sheet Home
D2: Costs and Benefits Analysis Model | J2: Overall check: | K2: =IF(COUNTA(Check_Status_List)=COUNTIF(Check_Status_List,"Ok"),"Ok","Check") -> Ok
D4: =RIGHT(CELL("filename",D3),LEN(CELL("filename",D3))-FIND("]",CELL("filename",D3))) -> Home | E4: =RIGHT(CELL("filename",E3),LEN(CELL("filename",E3))-FIND("]",CELL("filename",E3))) -> Home | F4: =RIGHT(CELL("filename",F3),LEN(CELL("filename",F3))-FIND("]",CELL("filename",F3))) -> Home | G4: =RIGHT(CELL("filename",G3),LEN(CELL("filename",G3))-FIND("]",CELL("filename",G3))) -> Home | H4: =RIGHT(CELL("filename",H3),LEN(CELL("filename",H3))-FIND("]",CELL("filename",H3))) -> Home
E6: Copyright Jemena Limited. Jemena is not liable for any loss caused by reliance on this document.
B8: Project Details
C10: Project Name: | E10: Outage Preparedness and Community Response
C12: Project No: | E12: B
C14: Start Year: | E14: 2024
C16: Asset Type: | E16: JEN | I16: Description of each asset type ---> | L16: Click Link
C18: Number of Options: | E18: 3 | I18: <--- select from drop-down list
C20: Cashflow Type: | E20: Annual
C22: Dollar Unit: | E22: Thousands | I22: <--- select from drop-down list
J25: <--- Click button after completing the above Project Details section
B28: Table Of Contents & Checks
C30: Worksheet | E30: Ref | F30: Check | G30: Description
C32: =D4 -> Home | E32: 1 | F32: Ok | G32: Outlines project details, model checks and model structure
C33: ='Input|Costs&Benefits'!D2 -> Input|Costs&Benefits | E33: =E32+1 -> 2 | F33: ='Input|Costs&Benefits'!$K$1 -> Ok | G33: Inputs project cost and benefit information
C34: ='Calc|Option 1'!D2 -> Calc|Option 1 | E34: =E33+1 -> 3 | F34: ='Calc|Option 1'!$I$1 -> Ok | G34: Calculates financial and analysis for option 1
C35: ='Calc|Option 2'!D2 -> Calc|Option 2 | E35: 4 | F35: ='Calc|Option 2'!$I$1 -> Ok | G35: Calculates financial and analysis for option 2
C36: ='Calc|Option 3'!D2 -> Calc|Option 3 | E36: 5 | F36: ='Calc|Option 3'!$I$1 -> Ok | G36: Calculates financial and analysis for option 3
C37: ='Calc|Option 4'!D2 -> Calc|Option 4 | E37: 6 | F37: ='Calc|Option 4'!$I$1 -> Ok | G37: Calculates financial and analysis for option 4
C38: ='Calc|Option 5'!D2 -> Calc|Option 5 | E38: 7 | F38: ='Calc|Option 5'!$I$1 -> Ok | G38: Calculates financial and analysis for option 5
C39: ='Calc|Option 6'!D2 -> Calc|Option 6 | E39: 8 | F39: ='Calc|Option 6'!$I$1 -> Ok | G39: Calculates financial and analysis for option 6
C40: ='Calc|Option 7'!D2 -> Calc|Option 7 | E40: 9 | F40: ='Calc|Option 7'!$I$1 -> Ok | G40: Calculates financial and analysis for option 7
C41: ='Output|Options Summary (Annual)'!D2 -> Output|Options Summary (Annual) | E41: 10 | F41: ='Output|Options Summary (Annual)'!$J$1 -> Ok | G41: Outputs the summary of costs and benefits of each option
C42: ='Output|Tables'!D2 -> Output|Tables | E42: 11 | F42: ='Output|Tables'!$H$1 -> Ok | G42: Outputs the options analysis for the business case
C43: ='Model Assumptions'!D2 -> Model Assumptions | E43: 12 | F43: ='Model Assumptions'!$I$1 -> Ok | G43: Lists modelling assumptions (e.g. WACC, asset lives, etc.)
C44: =Checklist!D2 -> Checklist | E44: 13 | F44: =Checklist!$I$1 -> Ok | G44: Lists all checks in the model for users to navigate to the error cells
C45: =Lookup!D4 -> Lookup | E45: 14 | F45: =Lookup!$K$4 -> Ok | G45: Provides all lookup tables (name ranges) list
B47: Model Key Legend
C49: Model key | F49: Description
C51: Input | E51: ---------> | F51: Input assumption (hardcode)
C52: Internal link | E52: ---------> | F52: Internal link (different sheet within the model)
C53: Drop-down | E53: ---------> | F53: Choose from a drop-down list
C54: Calculation | E54: ---------> | F54: Calculation (general formula driven)
B56: Model Structure
C58: Inputs | G58: Calculations | J58: Outputs
B85: End

Sheet Input|Costs&Benefits
D1: =Model_Name -> Costs and Benefits Analysis Model | J1: Section Check: | K1: =IF(COUNTA($A$8:$A$446)=COUNTIF($A$8:$A$446,0),"Ok","Check") -> Ok | M1: Overall Check: | N1: =Overall_Check -> Ok | P1: Legend: | Q1: Input | R1: Internal | S1: Select | T1: Calculation
D2: =RIGHT(CELL("filename",D1),LEN(CELL("filename",D1))-FIND("]",CELL("filename",D1))) -> Input|Costs&Benefits
J3: Year | K3: =Start_Year -> 2024 | L3: =IF(CF_Type=Annually,K3+1,IF(L4=1,K3+1,K3)) -> 2025 | M3: 2026 | N3: 2027 | O3: 2028 | P3: 2029 | Q3: 2030 | R3: 2031 | S3: 2032 | T3: 2033 | U3: 2034 | V3: 2035 | W3: 2036 | X3: 2037 | Y3: 2038 | Z3: 2039 | AA3: 2040 | AB3: 2041 | AC3: 2042 | AD3: 2043 | AE3: 2044 | AF3: 2045 | AG3: 2046 | AH3: 2047 | AI3: 2048 | AJ3: 2049 | AK3: 2050 | AL3: 2051 | AM3: 2052 | AN3: 2053 | AO3: 2054 | AP3: 2055 | AQ3: 2056 | AR3: =IF(CF_Type=Annually,AQ3+1,IF(AR4=1,AQ3+1,AQ3)) -> 2057 | AS3: 2058 | AT3: 2059 | AU3: 2060 | AV3: 2061 | AW3: 2062 | AX3: 2063 | AY3: 2064 | AZ3: 2065 | BA3: 2066 | BB3: 2067 | BC3: 2068 | BD3: 2069 | BE3: 2070 | BF3: 2071 | BG3: 2072 | BH3: 2073 | BI3: 2074 | BJ3: 2075 | BK3: 2076 | BL3: 2077 | BM3: 2078 | BN3: 2079 | BO3: 2080 | BP3: 2081 | BQ3: 2082 | BR3: 2083
E4: Option | F4: Unit | G4: Basis | H4: Asset | J4: Month | K4: =IF(CF_Type=Annually,NA,Start_Month) -> n/a | L4: =IF(K4=NA,NA,IF(K4+1=Months_in_year,Months_in_year,MOD(K4+1,Months_in_year))) -> n/a | M4: n/a | N4: n/a | O4: n/a | P4: n/a | Q4: n/a | R4: n/a | S4: n/a | T4: n/a | U4: n/a | V4: n/a | W4: n/a | X4: n/a | Y4: n/a | Z4: n/a | AA4: n/a | AB4: n/a | AC4: n/a | AD4: n/a | AE4: n/a | AF4: n/a | AG4: n/a | AH4: n/a | AI4: n/a | AJ4: n/a | AK4: n/a | AL4: n/a | AM4: n/a | AN4: n/a | AO4: n/a | AP4: n/a | AQ4: n/a | AR4: =IF(AQ4=NA,NA,IF(AQ4+1=Months_in_year,Months_in_year,MOD(AQ4+1,Months_in_year))) -> n/a | AS4: n/a | AT4: n/a | AU4: n/a | AV4: n/a | AW4: n/a | AX4: n/a | AY4: n/a | AZ4: n/a | BA4: n/a | BB4: n/a | BC4: n/a | BD4: n/a | BE4: n/a | BF4: n/a | BG4: n/a | BH4: n/a | BI4: n/a | BJ4: n/a | BK4: n/a | BL4: n/a | BM4: n/a | BN4: n/a | BO4: n/a | BP4: n/a | BQ4: n/a | BR4: n/a
B6: Copyright Jemena Limited. All rights reserved. Jemena is not liable for any loss caused by reliance on this document.
B8: Navigation
D10: Inputs | G10: Link
D11: =B23 -> Input | Options | G11: Link
D12: =B42 -> Input | Costs | G12: Link
D13: =C44 -> Opex | G13: Link
D14: =C98 -> Capex | G14: Link
D15: =B227 -> Inputs | Economic Benefits | G15: Link
D16: =C229 -> Avoided cost at asset failure | G16: Link
D17: =C273 -> Improved energy reliability | G17: Link
D18: =C366 -> Reduced energy losses | G18: Link
D19: =C400 -> Other Economic Benefits | G19: Link
D20: =B438 -> Inputs | Sensitivity (Apply to all options) | G20: Link
D21: =C440 -> | Economic Benefits overestimate | G21: Link
B23: Input | Options
D25: Option | E25: =E$4 -> Option | F25: =F$4 -> Unit | G25: =G$4 -> Basis | I25: Short description | J25: Detailed Description / Objectives | O25: Benefits Delivered
D27: =E27&" - "&I27 -> Option 1 - Status Quo | E27: =Option_1 -> Option 1 | F27: =NA -> n/a | G27: n/a | I27: Status Quo | J27: Do Nothing | O27: =NA -> n/a
D28: Option 2 - Concurrent lifecycle upgrades and enhancement of outage notification systems | E28: =Option_2 -> Option 2 | F28: n/a | G28: n/a | I28: Concurrent lifecycle upgrades and enhancement of outage notification systems | J28: =I28 -> Concurrent lifecycle upgrades and enhancement of outage notification systems | O28: Compliance with regulations and lifecycle of assets
D29: Option 3 - Staggering enhancement of outage notification systems to meet new obligations and lifecycle upgrades | E29: =Option_3 -> Option 3 | F29: n/a | G29: n/a | I29: Staggering enhancement of outage notification systems to meet new obligations and lifecycle upgrades | J29: =I29 -> Staggering enhancement of outage notification systems to meet new obligations and lifecycle upgrades | O29: Compliance with regulations and lifecycle of assets
D30: n/a - Clarification: Is Option 3 the same scope as Option 2 except for the timeframe for implementation? If so, suggest this is called out in the first sentence in the description. | E30: =Option_4 -> n/a | F30: n/a | G30: n/a | I30: Clarification: Is Option 3 the same scope as Option 2 except for the timeframe for implementation? If so, suggest this is called out in the first sentence in the description. | J30: [Insert detailed option description or objectives] | O30: [Describe benefits delivered through this option]
D31: n/a - [Insert short option description] | E31: =Option_5 -> n/a | F31: n/a | G31: n/a | I31: [Insert short option description] | J31: [Insert detailed option description or objectives] | O31: [Describe benefits delivered through this option]
D32: n/a - [Insert short option description] | E32: =Option_6 -> n/a | F32: n/a | G32: n/a | I32: [Insert short option description] | J32: [Insert detailed option description or objectives] | O32: [Describe benefits delivered through this option]
D33: n/a - [Insert short option description] | E33: =Option_7 -> n/a | F33: n/a | G33: n/a | I33: [Insert short option description] | J33: [Insert detailed option description or objectives] | O33: [Describe benefits delivered through this option]
D35: Cost Allocation for Shared Projects | E35: =E$4 -> Option | F35: =F$4 -> Unit | G35: =G$4 -> Basis | I35: Allocation
D37: =Lookup!C78&" ("&Lookup!G78&")" -> Jemena Gas Networks (JGN) | E37: All | F37: =percent -> Per cent | G37: =NA -> n/a | I37: 0
D38: =Lookup!C79&" ("&Lookup!G79&")" -> Jemena Electricity Networks (JEN) | E38: All | F38: =percent -> Per cent | G38: =NA -> n/a | I38: 1
A40: =I40 -> 0 | D40: Check - no negative allocation rate | I40: =IF(MIN(I37:I38)<0,1,0) -> 0
B42: Input | Costs
C44: Opex
D46: Please note the following: | E46: Check | G46: Instructions: | N46: Dollar Basis:
D47: 1. Describe the driver of each cost item | E47: =SUM($BT$56:$BT$96) -> 0 | G47: 1. Select the column heading to see more instructions on the dropdown box. | N47: Nominal: The actual amount of money paid out each year. Change in nominal dollars include the effect of inflation.
D48: 2. Select appropriate dollar basis | E48: =SUM($BU$56:$BU$96) -> 0 | G48: 2. Avoided costs should NOT be captured here. It is captured in the "Economic Benefit" block below.
D49: 3. Select the asset of each cost item | E49: =SUM($BV$56:$BV$96) -> 0 | G49: 3. If opex spend for options 2 to 7 are within the total allocated opex budget, please provide evidence in the business case. | N49: Real: The amount of money paid out as of today. Change in real dollars exclude the effect of inflation. When "Real" is selected, the input amount will automatically be escalated by inflation in the following calculations.
D50: 4. Select the nature of cost of each cost item | E50: =SUM($BW$56:$BW$96) -> 0 | G50: 4. Please enter positive values
D51: 5. Enter positive values into the costs block | E51: =SUM($BX$56:$BX$96) -> 0 | G51: 5. Please enter the current level of costs in the 'Status Quo' option, then enter the standalone costs for each subsequent options.
D54: Opex | E54: =E$4 -> Option | F54: =F$4 -> Unit | G54: =G$4 -> Basis | H54: =H$4 -> Asset | I54: Nature of costs | K54: =IF(CF_Type=Annually,"FY"&RIGHT(K$3,2),TEXT(DATE(K$3,K$4,1),"mmm-yyyy")) -> FY24 | L54: FY25 | M54: FY26 | N54: FY27 | O54: FY28 | P54: FY29 | Q54: FY30 | R54: FY31 | S54: FY32 | T54: FY33 | U54: FY34 | V54: FY35 | W54: FY36 | X54: FY37 | Y54: FY38 | Z54: FY39 | AA54: FY40 | AB54: FY41 | AC54: FY42 | AD54: FY43 | AE54: FY44 | AF54: FY45 | AG54: FY46 | AH54: FY47 | AI54: FY48 | AJ54: FY49 | AK54: FY50 | AL54: FY51 | AM54: FY52 | AN54: FY53 | AO54: FY54 | AP54: FY55 | AQ54: =IF(CF_Type=Annually,"FY"&RIGHT(AQ$3,2),TEXT(DATE(AQ$3,AQ$4,1),"mmm-yyyy")) -> FY56 | AR54: FY57 | AS54: FY58 | AT54: FY59 | AU54: FY60 | AV54: FY61 | AW54: FY62 | AX54: FY63 | AY54: FY64 | AZ54: FY65 | BA54: FY66 | BB54: FY67 | BC54: FY68 | BD54: FY69 | BE54: FY70 | BF54: FY71 | BG54: FY72 | BH54: FY73 | BI54: FY74 | BJ54: FY75 | BK54: FY76 | BL54: FY77 | BM54: FY78 | BN54: FY79 | BO54: FY80 | BP54: FY81 | BQ54: FY82 | BR54: FY83 | BT54: Driver | BU54: Basis | BV54: Asset | BW54: Nature | BX54: Number
A56: =SUM(BT56:BX56) -> 0 | D56: [Insert description/driver of costs/savings] | E56: =Option_1 -> Option 1 | F56: =dollar_unit -> $000 | G56: Nominal | H56: =IF(Proj_Type=Shared,Lookup!$G$72,Proj_Type) -> JEN | I56: [Select from list] | K56: 0 | L56: 0 | M56: 0 | N56: 0 | O56: 0 | P56: 0 | Q56: 0 | R56: 0 | S56: 0 | T56: 0 | U56: 0 | V56: 0 | W56: 0 | X56: 0 | Y56: 0 | Z56: 0 | AA56: 0 | AB56: 0 | AC56: 0 | AD56: 0 | AE56: 0 | AF56: 0 | AG56: 0 | AH56: 0 | AI56: 0 | AJ56: 0 | AK56: 0 | AL56: 0 | AM56: 0 | AN56: 0 | AO56: 0 | AP56: 0 | AQ56: 0 | AR56: 0 | AS56: 0 | AT56: 0 | AU56: 0 | AV56: 0 | AW56: 0 | AX56: 0 | AY56: 0 | AZ56: 0 | BA56: 0 | BB56: 0 | BC56: 0 | BD56: 0 | BE56: 0 | BF56: 0 | BG56: 0 | BH56: 0 | BI56: 0 | BJ56: 0 | BK56: 0 | BL56: 0 | BM56: 0 | BN56: 0 | BO56: 0 | BP56: 0 | BQ56: 0 | BR56: 0 | BT56: =IF($E56=NA,0,IF(SUM(K56:BR56)=0,0,IF(OR(LEFT(D56,1)="[",D56=""),1,0))) -> 0 | BU56: =IF(OR($E56=NA,SUM(K56:BR56)=0),0,IF(G56="",1,0)) -> 0 | BV56: =IF(OR($E56=NA,SUM(K56:BR56)=0),0,IF(OR(LEFT(H56,1)="[",H56="",IF(Proj_Type<>Shared,H56<>Proj_Type)),1,0)) -> 0 | BW56: =IF(OR($E56=NA,SUM(K56:BR56)=0),0,IF(OR(LEFT(I56,1)="[",I56=""),1,0)) -> 0 | BX56: =IF(OR($E56=NA,SUM(K56:BR56)=0),0,IF(OR(ISTEXT(K56:BR56),MIN(K56:BR56)<0),1,0)) -> 0
A57: =SUM(BT57:BX57) -> 0 | D57: [Insert description/driver of costs/savings] | E57: =Option_1 -> Option 1 | F57: =dollar_unit -> $000 | G57: Nominal | H57: =IF(Proj_Type=Shared,Lookup!$G$72,Proj_Type) -> JEN | I57: [Select from list] | K57: 0 | L57: 0 | M57: 0 | N57: 0 | O57: 0 | P57: 0 | Q57: 0 | R57: 0 | S57: 0 | T57: 0 | U57: 0 | V57: 0 | W57: 0 | X57: 0 | Y57: 0 | Z57: 0 | AA57: 0 | AB57: 0 | AC57: 0 | AD57: 0 | AE57: 0 | AF57: 0 | AG57: 0 | AH57: 0 | AI57: 0 | AJ57: 0 | AK57: 0 | AL57: 0 | AM57: 0 | AN57: 0 | AO57: 0 | AP57: 0 | AQ57: 0 | AR57: 0 | AS57: 0 | AT57: 0 | AU57: 0 | AV57: 0 | AW57: 0 | AX57: 0 | AY57: 0 | AZ57: 0 | BA57: 0 | BB57: 0 | BC57: 0 | BD57: 0 | BE57: 0 | BF57: 0 | BG57: 0 | BH57: 0 | BI57: 0 | BJ57: 0 | BK57: 0 | BL57: 0 | BM57: 0 | BN57: 0 | BO57: 0 | BP57: 0 | BQ57: 0 | BR57: 0 | BT57: =IF($E57=NA,0,IF(SUM(K57:BR57)=0,0,IF(OR(LEFT(D57,1)="[",D57=""),1,0))) -> 0 | BU57: =IF(OR($E57=NA,SUM(K57:BR57)=0),0,IF(G57="",1,0)) -> 0 | BV57: =IF(OR($E57=NA,SUM(K57:BR57)=0),0,IF(OR(LEFT(H57,1)="[",H57="",IF(Proj_Type<>Shared,H57<>Proj_Type)),1,0)) -> 0 | BW57: =IF(OR($E57=NA,SUM(K57:BR57)=0),0,IF(OR(LEFT(I57,1)="[",I57=""),1,0)) -> 0 | BX57: =IF(OR($E57=NA,SUM(K57:BR57)=0),0,IF(OR(ISTEXT(K57:BR57),MIN(K57:BR57)<0),1,0)) -> 0
A58: =SUM(BT58:BX58) -> 0 | D58: [Insert description/driver of costs/savings] | E58: =Option_1 -> Option 1 | F58: =dollar_unit -> $000 | G58: Nominal | H58: =IF(Proj_Type=Shared,Lookup!$G$72,Proj_Type) -> JEN | I58: [Select from list] | K58: 0 | L58: 0 | M58: 0 | N58: 0 | O58: 0 | P58: 0 | Q58: 0 | R58: 0 | S58: 0 | T58: 0 | U58: 0 | V58: 0 | W58: 0 | X58: 0 | Y58: 0 | Z58: 0 | AA58: 0 | AB58: 0 | AC58: 0 | AD58: 0 | AE58: 0 | AF58: 0 | AG58: 0 | AH58: 0 | AI58: 0 | AJ58: 0 | AK58: 0 | AL58: 0 | AM58: 0 | AN58: 0 | AO58: 0 | AP58: 0 | AQ58: 0 | AR58: 0 | AS58: 0 | AT58: 0 | AU58: 0 | AV58: 0 | AW58: 0 | AX58: 0 | AY58: 0 | AZ58: 0 | BA58: 0 | BB58: 0 | BC58: 0 | BD58: 0 | BE58: 0 | BF58: 0 | BG58: 0 | BH58: 0 | BI58: 0 | BJ58: 0 | BK58: 0 | BL58: 0 | BM58: 0 | BN58: 0 | BO58: 0 | BP58: 0 | BQ58: 0 | BR58: 0 | BT58: =IF($E58=NA,0,IF(SUM(K58:BR58)=0,0,IF(OR(LEFT(D58,1)="[",D58=""),1,0))) -> 0 | BU58: =IF(OR($E58=NA,SUM(K58:BR58)=0),0,IF(G58="",1,0)) -> 0 | BV58: =IF(OR($E58=NA,SUM(K58:BR58)=0),0,IF(OR(LEFT(H58,1)="[",H58="",IF(Proj_Type<>Shared,H58<>Proj_Type)),1,0)) -> 0 | BW58: =IF(OR($E58=NA,SUM(K58:BR58)=0),0,IF(OR(LEFT(I58,1)="[",I58=""),1,0)) -> 0 | BX58: =IF(OR($E58=NA,SUM(K58:BR58)=0),0,IF(OR(ISTEXT(K58:BR58),MIN(K58:BR58)<0),1,0)) -> 0
A59: =SUM(BT59:BX59) -> 0 | D59: [Insert description/driver of costs/savings] | E59: =Option_1 -> Option 1 | F59: =dollar_unit -> $000 | G59: Nominal | H59: =IF(Proj_Type=Shared,Lookup!$G$72,Proj_Type) -> JEN | I59: [Select from list] | K59: 0 | L59: 0 | M59: 0 | N59: 0 | O59: 0 | P59: 0 | Q59: 0 | R59: 0 | S59: 0 | T59: 0 | U59: 0 | V59: 0 | W59: 0 | X59: 0 | Y59: 0 | Z59: 0 | AA59: 0 | AB59: 0 | AC59: 0 | AD59: 0 | AE59: 0 | AF59: 0 | AG59: 0 | AH59: 0 | AI59: 0 | AJ59: 0 | AK59: 0 | AL59: 0 | AM59: 0 | AN59: 0 | AO59: 0 | AP59: 0 | AQ59: 0 | AR59: 0 | AS59: 0 | AT59: 0 | AU59: 0 | AV59: 0 | AW59: 0 | AX59: 0 | AY59: 0 | AZ59: 0 | BA59: 0 | BB59: 0 | BC59: 0 | BD59: 0 | BE59: 0 | BF59: 0 | BG59: 0 | BH59: 0 | BI59: 0 | BJ59: 0 | BK59: 0 | BL59: 0 | BM59: 0 | BN59: 0 | BO59: 0 | BP59: 0 | BQ59: 0 | BR59: 0 | BT59: =IF($E59=NA,0,IF(SUM(K59:BR59)=0,0,IF(OR(LEFT(D59,1)="[",D59=""),1,0))) -> 0 | BU59: =IF(OR($E59=NA,SUM(K59:BR59)=0),0,IF(G59="",1,0)) -> 0 | BV59: =IF(OR($E59=NA,SUM(K59:BR59)=0),0,IF(OR(LEFT(H59,1)="[",H59="",IF(Proj_Type<>Shared,H59<>Proj_Type)),1,0)) -> 0 | BW59: =IF(OR($E59=NA,SUM(K59:BR59)=0),0,IF(OR(LEFT(I59,1)="[",I59=""),1,0)) -> 0 | BX59: =IF(OR($E59=NA,SUM(K59:BR59)=0),0,IF(OR(ISTEXT(K59:BR59),MIN(K59:BR59)<0),1,0)) -> 0
A60: =SUM(BT60:BX60) -> 0 | D60: [Insert description/driver of costs/savings] | E60: =Option_1 -> Option 1 | F60: =dollar_unit -> $000 | G60: Nominal | H60: =IF(Proj_Type=Shared,Lookup!$G$72,Proj_Type) -> JEN | I60: [Select from list] | K60: 0 | L60: 0 | M60: 0 | N60: 0 | O60: 0 | P60: 0 | Q60: 0 | R60: 0 | S60: 0 | T60: 0 | U60: 0 | V60: 0 | W60: 0 | X60: 0 | Y60: 0 | Z60: 0 | AA60: 0 | AB60: 0 | AC60: 0 | AD60: 0 | AE60: 0 | AF60: 0 | AG60: 0 | AH60: 0 | AI60: 0 | AJ60: 0 | AK60: 0 | AL60: 0 | AM60: 0 | AN60: 0 | AO60: 0 | AP60: 0 | AQ60: 0 | AR60: 0 | AS60: 0 | AT60: 0 | AU60: 0 | AV60: 0 | AW60: 0 | AX60: 0 | AY60: 0 | AZ60: 0 | BA60: 0 | BB60: 0 | BC60: 0 | BD60: 0 | BE60: 0 | BF60: 0 | BG60: 0 | BH60: 0 | BI60: 0 | BJ60: 0 | BK60: 0 | BL60: 0 | BM60: 0 | BN60: 0 | BO60: 0 | BP60: 0 | BQ60: 0 | BR60: 0 | BT60: =IF($E60=NA,0,IF(SUM(K60:BR60)=0,0,IF(OR(LEFT(D60,1)="[",D60=""),1,0))) -> 0 | BU60: =IF(OR($E60=NA,SUM(K60:BR60)=0),0,IF(G60="",1,0)) -> 0 | BV60: =IF(OR($E60=NA,SUM(K60:BR60)=0),0,IF(OR(LEFT(H60,1)="[",H60="",IF(Proj_Type<>Shared,H60<>Proj_Type)),1,0)) -> 0 | BW60: =IF(OR($E60=NA,SUM(K60:BR60)=0),0,IF(OR(LEFT(I60,1)="[",I60=""),1,0)) -> 0 | BX60: =IF(OR($E60=NA,SUM(K60:BR60)=0),0,IF(OR(ISTEXT(K60:BR60),MIN(K60:BR60)<0),1,0)) -> 0
A62: =SUM(BT62:BX62) -> 0 | D62: Customer comms - resilience support | E62: =Option_2 -> Option 2 | F62: =dollar_unit -> $000 | G62: Real 2024 | H62: =IF(Proj_Type=Shared,Lookup!$G$72,Proj_Type) -> JEN | I62: Ongoing | K62: 0 | L62: 0 | M62: 0 | N62: 197.5 | O62: 177.5 | P62: 178.75 | Q62: 177.5 | R62: 176.25 | S62: 0 | T62: 0 | U62: 0 | V62: 0 | W62: 0 | X62: 0 | Y62: 0 | Z62: 0 | AA62: 0 | AB62: 0 | AC62: 0 | AD62: 0 | AE62: 0 | AF62: 0 | AG62: 0 | AH62: 0 | AI62: 0 | AJ62: 0 | AK62: 0 | AL62: 0 | AM62: 0 | AN62: 0 | AO62: 0 | AP62: 0 | AQ62: 0 | AR62: 0 | AS62: 0 | AT62: 0 | AU62: 0 | AV62: 0 | AW62: 0 | AX62: 0 | AY62: 0 | AZ62: 0 | BA62: 0 | BB62: 0 | BC62: 0 | BD62: 0 | BE62: 0 | BF62: 0 | BG62: 0 | BH62: 0 | BI62: 0 | BJ62: 0 | BK62: 0 | BL62: 0 | BM62: 0 | BN62: 0 | BO62: 0 | BP62: 0 | BQ62: 0 | BR62: 0 | BT62: =IF($E62=NA,0,IF(SUM(K62:BR62)=0,0,IF(OR(LEFT(D62,1)="[",D62=""),1,0))) -> 0 | BU62: =IF(OR($E62=NA,SUM(K62:BR62)=0),0,IF(G62="",1,0)) -> 0 | BV62: =IF(OR($E62=NA,SUM(K62:BR62)=0),0,IF(OR(LEFT(H62,1)="[",H62="",IF(Proj_Type<>Shared,H62<>Proj_Type)),1,0)) -> 0 | BW62: =IF(OR($E62=NA,SUM(K62:BR62)=0),0,IF(OR(LEFT(I62,1)="[",I62=""),1,0)) -> 0 | BX62: =IF(OR($E62=NA,SUM(K62:BR62)=0),0,IF(OR(ISTEXT(K62:BR62),MIN(K62:BR62)<0),1,0)) -> 0
A63: =SUM(BT63:BX63) -> 0 | D63: Digital - Project opex | E63: =Option_2 -> Option 2 | F63: =dollar_unit -> $000 | G63: Real 2024 | H63: =IF(Proj_Type=Shared,Lookup!$G$72,Proj_Type) -> JEN | I63: Project cost (one-off) | K63: 0 | L63: 0 | M63: 0 | N63: 592 | O63: 180 | P63: 0 | Q63: 0 | R63: 0 | S63: 0 | T63: 0 | U63: 0 | V63: 0 | W63: 0 | X63: 0 | Y63: 0 | Z63: 0 | AA63: 0 | AB63: 0 | AC63: 0 | AD63: 0 | AE63: 0 | AF63: 0 | AG63: 0 | AH63: 0 | AI63: 0 | AJ63: 0 | AK63: 0 | AL63: 0 | AM63: 0 | AN63: 0 | AO63: 0 | AP63: 0 | AQ63: 0 | AR63: 0 | AS63: 0 | AT63: 0 | AU63: 0 | AV63: 0 | AW63: 0 | AX63: 0 | AY63: 0 | AZ63: 0 | BA63: 0 | BB63: 0 | BC63: 0 | BD63: 0 | BE63: 0 | BF63: 0 | BG63: 0 | BH63: 0 | BI63: 0 | BJ63: 0 | BK63: 0 | BL63: 0 | BM63: 0 | BN63: 0 | BO63: 0 | BP63: 0 | BQ63: 0 | BR63: 0 | BT63: =IF($E63=NA,0,IF(SUM(K63:BR63)=0,0,IF(OR(LEFT(D63,1)="[",D63=""),1,0))) -> 0 | BU63: =IF(OR($E63=NA,SUM(K63:BR63)=0),0,IF(G63="",1,0)) -> 0 | BV63: =IF(OR($E63=NA,SUM(K63:BR63)=0),0,IF(OR(LEFT(H63,1)="[",H63="",IF(Proj_Type<>Shared,H63<>Proj_Type)),1,0)) -> 0 | BW63: =IF(OR($E63=NA,SUM(K63:BR63)=0),0,IF(OR(LEFT(I63,1)="[",I63=""),1,0)) -> 0 | BX63: =IF(OR($E63=NA,SUM(K63:BR63)=0),0,IF(OR(ISTEXT(K63:BR63),MIN(K63:BR63)<0),1,0)) -> 0
A64: =SUM(BT64:BX64) -> 0 | D64: Digital - Ongoing opex (Incremental) | E64: =Option_2 -> Option 2 | F64: =dollar_unit -> $000 | G64: Real 2024 | H64: =IF(Proj_Type=Shared,Lookup!$G$72,Proj_Type) -> JEN | I64: Ongoing | K64: 0 | L64: 0 | M64: 0 | N64: 0 | O64: 150 | P64: 150 | Q64: 170 | R64: 170 | S64: 0 | T64: 0 | U64: 0 | V64: 0 | W64: 0 | X64: 0 | Y64: 0 | Z64: 0 | AA64: 0 | AB64: 0 | AC64: 0 | AD64: 0 | AE64: 0 | AF64: 0 | AG64: 0 | AH64: 0 | AI64: 0 | AJ64: 0 | AK64: 0 | AL64: 0 | AM64: 0 | AN64: 0 | AO64: 0 | AP64: 0 | AQ64: 0 | AR64: 0 | AS64: 0 | AT64: 0 | AU64: 0 | AV64: 0 | AW64: 0 | AX64: 0 | AY64: 0 | AZ64: 0 | BA64: 0 | BB64: 0 | BC64: 0 | BD64: 0 | BE64: 0 | BF64: 0 | BG64: 0 | BH64: 0 | BI64: 0 | BJ64: 0 | BK64: 0 | BL64: 0 | BM64: 0 | BN64: 0 | BO64: 0 | BP64: 0 | BQ64: 0 | BR64: 0 | BT64: =IF($E64=NA,0,IF(SUM(K64:BR64)=0,0,IF(OR(LEFT(D64,1)="[",D64=""),1,0))) -> 0 | BU64: =IF(OR($E64=NA,SUM(K64:BR64)=0),0,IF(G64="",1,0)) -> 0 | BV64: =IF(OR($E64=NA,SUM(K64:BR64)=0),0,IF(OR(LEFT(H64,1)="[",H64="",IF(Proj_Type<>Shared,H64<>Proj_Type)),1,0)) -> 0 | BW64: =IF(OR($E64=NA,SUM(K64:BR64)=0),0,IF(OR(LEFT(I64,1)="[",I64=""),1,0)) -> 0 | BX64: =IF(OR($E64=NA,SUM(K64:BR64)=0),0,IF(OR(ISTEXT(K64:BR64),MIN(K64:BR64)<0),1,0)) -> 0
A65: =SUM(BT65:BX65) -> 0 | D65: [Insert description/driver of costs/savings] | E65: =Option_2 -> Option 2 | F65: =dollar_unit -> $000 | G65: Nominal | H65: =IF(Proj_Type=Shared,Lookup!$G$72,Proj_Type) -> JEN | I65: [Select from list] | K65: 0 | L65: 0 | M65: 0 | N65: 0 | O65: 0 | P65: 0 | Q65: 0 | R65: 0 | S65: 0 | T65: 0 | U65: 0 | V65: 0 | W65: 0 | X65: 0 | Y65: 0 | Z65: 0 | AA65: 0 | AB65: 0 | AC65: 0 | AD65: 0 | AE65: 0 | AF65: 0 | AG65: 0 | AH65: 0 | AI65: 0 | AJ65: 0 | AK65: 0 | AL65: 0 | AM65: 0 | AN65: 0 | AO65: 0 | AP65: 0 | AQ65: 0 | AR65: 0 | AS65: 0 | AT65: 0 | AU65: 0 | AV65: 0 | AW65: 0 | AX65: 0 | AY65: 0 | AZ65: 0 | BA65: 0 | BB65: 0 | BC65: 0 | BD65: 0 | BE65: 0 | BF65: 0 | BG65: 0 | BH65: 0 | BI65: 0 | BJ65: 0 | BK65: 0 | BL65: 0 | BM65: 0 | BN65: 0 | BO65: 0 | BP65: 0 | BQ65: 0 | BR65: 0 | BT65: =IF($E65=NA,0,IF(SUM(K65:BR65)=0,0,IF(OR(LEFT(D65,1)="[",D65=""),1,0))) -> 0 | BU65: =IF(OR($E65=NA,SUM(K65:BR65)=0),0,IF(G65="",1,0)) -> 0 | BV65: =IF(OR($E65=NA,SUM(K65:BR65)=0),0,IF(OR(LEFT(H65,1)="[",H65="",IF(Proj_Type<>Shared,H65<>Proj_Type)),1,0)) -> 0 | BW65: =IF(OR($E65=NA,SUM(K65:BR65)=0),0,IF(OR(LEFT(I65,1)="[",I65=""),1,0)) -> 0 | BX65: =IF(OR($E65=NA,SUM(K65:BR65)=0),0,IF(OR(ISTEXT(K65:BR65),MIN(K65:BR65)<0),1,0)) -> 0
A66: =SUM(BT66:BX66) -> 0 | D66: [Insert description/driver of costs/savings] | E66: =Option_2 -> Option 2 | F66: =dollar_unit -> $000 | G66: Nominal | H66: =IF(Proj_Type=Shared,Lookup!$G$72,Proj_Type) -> JEN | I66: [Select from list] | K66: 0 | L66: 0 | M66: 0 | N66: 0 | O66: 0 | P66: 0 | Q66: 0 | R66: 0 | S66: 0 | T66: 0 | U66: 0 | V66: 0 | W66: 0 | X66: 0 | Y66: 0 | Z66: 0 | AA66: 0 | AB66: 0 | AC66: 0 | AD66: 0 | AE66: 0 | AF66: 0 | AG66: 0 | AH66: 0 | AI66: 0 | AJ66: 0 | AK66: 0 | AL66: 0 | AM66: 0 | AN66: 0 | AO66: 0 | AP66: 0 | AQ66: 0 | AR66: 0 | AS66: 0 | AT66: 0 | AU66: 0 | AV66: 0 | AW66: 0 | AX66: 0 | AY66: 0 | AZ66: 0 | BA66: 0 | BB66: 0 | BC66: 0 | BD66: 0 | BE66: 0 | BF66: 0 | BG66: 0 | BH66: 0 | BI66: 0 | BJ66: 0 | BK66: 0 | BL66: 0 | BM66: 0 | BN66: 0 | BO66: 0 | BP66: 0 | BQ66: 0 | BR66: 0 | BT66: =IF($E66=NA,0,IF(SUM(K66:BR66)=0,0,IF(OR(LEFT(D66,1)="[",D66=""),1,0))) -> 0 | BU66: =IF(OR($E66=NA,SUM(K66:BR66)=0),0,IF(G66="",1,0)) -> 0 | BV66: =IF(OR($E66=NA,SUM(K66:BR66)=0),0,IF(OR(LEFT(H66,1)="[",H66="",IF(Proj_Type<>Shared,H66<>Proj_Type)),1,0)) -> 0 | BW66: =IF(OR($E66=NA,SUM(K66:BR66)=0),0,IF(OR(LEFT(I66,1)="[",I66=""),1,0)) -> 0 | BX66: =IF(OR($E66=NA,SUM(K66:BR66)=0),0,IF(OR(ISTEXT(K66:BR66),MIN(K66:BR66)<0),1,0)) -> 0
A68: =SUM(BT68:BX68) -> 0 | D68: Customer comms - resilience support | E68: =Option_3 -> Option 3 | F68: =dollar_unit -> $000 | G68: Real 2024 | H68: =IF(Proj_Type=Shared,Lookup!$G$72,Proj_Type) -> JEN | I68: Ongoing | K68: 0 | L68: 0 | M68: 0 | N68: 197.5 | O68: 177.5 | P68: 178.75 | Q68: 177.5 | R68: 176.25 | S68: 0 | T68: 0 | U68: 0 | V68: 0 | W68: 0 | X68: 0 | Y68: 0 | Z68: 0 | AA68: 0 | AB68: 0 | AC68: 0 | AD68: 0 | AE68: 0 | AF68: 0 | AG68: 0 | AH68: 0 | AI68: 0 | AJ68: 0 | AK68: 0 | AL68: 0 | AM68: 0 | AN68: 0 | AO68: 0 | AP68: 0 | AQ68: 0 | AR68: 0 | AS68: 0 | AT68: 0 | AU68: 0 | AV68: 0 | AW68: 0 | AX68: 0 | AY68: 0 | AZ68: 0 | BA68: 0 | BB68: 0 | BC68: 0 | BD68: 0 | BE68: 0 | BF68: 0 | BG68: 0 | BH68: 0 | BI68: 0 | BJ68: 0 | BK68: 0 | BL68: 0 | BM68: 0 | BN68: 0 | BO68: 0 | BP68: 0 | BQ68: 0 | BR68: 0 | BT68: =IF($E68=NA,0,IF(SUM(K68:BR68)=0,0,IF(OR(LEFT(D68,1)="[",D68=""),1,0))) -> 0 | BU68: =IF(OR($E68=NA,SUM(K68:BR68)=0),0,IF(G68="",1,0)) -> 0 | BV68: =IF(OR($E68=NA,SUM(K68:BR68)=0),0,IF(OR(LEFT(H68,1)="[",H68="",IF(Proj_Type<>Shared,H68<>Proj_Type)),1,0)) -> 0 | BW68: =IF(OR($E68=NA,SUM(K68:BR68)=0),0,IF(OR(LEFT(I68,1)="[",I68=""),1,0)) -> 0 | BX68: =IF(OR($E68=NA,SUM(K68:BR68)=0),0,IF(OR(ISTEXT(K68:BR68),MIN(K68:BR68)<0),1,0)) -> 0
A69: =SUM(BT69:BX69) -> 0 | D69: Digital - Project opex | E69: =Option_3 -> Option 3 | F69: =dollar_unit -> $000 | G69: Real 2024 | H69: =IF(Proj_Type=Shared,Lookup!$G$72,Proj_Type) -> JEN | I69: Project cost (one-off) | K69: 0 | L69: 0 | M69: 0 | N69: 200 | O69: 0 | P69: 743.6 | Q69: 0 | R69: 0 | S69: 0 | T69: 0 | U69: 0 | V69: 0 | W69: 0 | X69: 0 | Y69: 0 | Z69: 0 | AA69: 0 | AB69: 0 | AC69: 0 | AD69: 0 | AE69: 0 | AF69: 0 | AG69: 0 | AH69: 0 | AI69: 0 | AJ69: 0 | AK69: 0 | AL69: 0 | AM69: 0 | AN69: 0 | AO69: 0 | AP69: 0 | AQ69: 0 | AR69: 0 | AS69: 0 | AT69: 0 | AU69: 0 | AV69: 0 | AW69: 0 | AX69: 0 | AY69: 0 | AZ69: 0 | BA69: 0 | BB69: 0 | BC69: 0 | BD69: 0 | BE69: 0 | BF69: 0 | BG69: 0 | BH69: 0 | BI69: 0 | BJ69: 0 | BK69: 0 | BL69: 0 | BM69: 0 | BN69: 0 | BO69: 0 | BP69: 0 | BQ69: 0 | BR69: 0 | BT69: =IF($E69=NA,0,IF(SUM(K69:BR69)=0,0,IF(OR(LEFT(D69,1)="[",D69=""),1,0))) -> 0 | BU69: =IF(OR($E69=NA,SUM(K69:BR69)=0),0,IF(G69="",1,0)) -> 0 | BV69: =IF(OR($E69=NA,SUM(K69:BR69)=0),0,IF(OR(LEFT(H69,1)="[",H69="",IF(Proj_Type<>Shared,H69<>Proj_Type)),1,0)) -> 0 | BW69: =IF(OR($E69=NA,SUM(K69:BR69)=0),0,IF(OR(LEFT(I69,1)="[",I69=""),1,0)) -> 0 | BX69: =IF(OR($E69=NA,SUM(K69:BR69)=0),0,IF(OR(ISTEXT(K69:BR69),MIN(K69:BR69)<0),1,0)) -> 0
A70: =SUM(BT70:BX70) -> 0 | D70: Digital - Ongoing opex (Incremental) | E70: =Option_3 -> Option 3 | F70: =dollar_unit -> $000 | G70: Real 2024 | H70: =IF(Proj_Type=Shared,Lookup!$G$72,Proj_Type) -> JEN | I70: Ongoing | K70: 0 | L70: 0 | M70: 0 | N70: 0 | O70: 150 | P70: 150 | Q70: 170 | R70: 170 | S70: 0 | T70: 0 | U70: 0 | V70: 0 | W70: 0 | X70: 0 | Y70: 0 | Z70: 0 | AA70: 0 | AB70: 0 | AC70: 0 | AD70: 0 | AE70: 0 | AF70: 0 | AG70: 0 | AH70: 0 | AI70: 0 | AJ70: 0 | AK70: 0 | AL70: 0 | AM70: 0 | AN70: 0 | AO70: 0 | AP70: 0 | AQ70: 0 | AR70: 0 | AS70: 0 | AT70: 0 | AU70: 0 | AV70: 0 | AW70: 0 | AX70: 0 | AY70: 0 | AZ70: 0 | BA70: 0 | BB70: 0 | BC70: 0 | BD70: 0 | BE70: 0 | BF70: 0 | BG70: 0 | BH70: 0 | BI70: 0 | BJ70: 0 | BK70: 0 | BL70: 0 | BM70: 0 | BN70: 0 | BO70: 0 | BP70: 0 | BQ70: 0 | BR70: 0 | BT70: =IF($E70=NA,0,IF(SUM(K70:BR70)=0,0,IF(OR(LEFT(D70,1)="[",D70=""),1,0))) -> 0 | BU70: =IF(OR($E70=NA,SUM(K70:BR70)=0),0,IF(G70="",1,0)) -> 0 | BV70: =IF(OR($E70=NA,SUM(K70:BR70)=0),0,IF(OR(LEFT(H70,1)="[",H70="",IF(Proj_Type<>Shared,H70<>Proj_Type)),1,0)) -> 0 | BW70: =IF(OR($E70=NA,SUM(K70:BR70)=0),0,IF(OR(LEFT(I70,1)="[",I70=""),1,0)) -> 0 | BX70: =IF(OR($E70=NA,SUM(K70:BR70)=0),0,IF(OR(ISTEXT(K70:BR70),MIN(K70:BR70)<0),1,0)) -> 0
A71: =SUM(BT71:BX71) -> 0 | D71: [Insert description/driver of costs/savings] | E71: =Option_3 -> Option 3 | F71: =dollar_unit -> $000 | G71: Nominal | H71: =IF(Proj_Type=Shared,Lookup!$G$72,Proj_Type) -> JEN | I71: [Select from list] | K71: 0 | L71: 0 | M71: 0 | N71: 0 | O71: 0 | P71: 0 | Q71: 0 | R71: 0 | S71: 0 | T71: 0 | U71: 0 | V71: 0 | W71: 0 | X71: 0 | Y71: 0 | Z71: 0 | AA71: 0 | AB71: 0 | AC71: 0 | AD71: 0 | AE71: 0 | AF71: 0 | AG71: 0 | AH71: 0 | AI71: 0 | AJ71: 0 | AK71: 0 | AL71: 0 | AM71: 0 | AN71: 0 | AO71: 0 | AP71: 0 | AQ71: 0 | AR71: 0 | AS71: 0 | AT71: 0 | AU71: 0 | AV71: 0 | AW71: 0 | AX71: 0 | AY71: 0 | AZ71: 0 | BA71: 0 | BB71: 0 | BC71: 0 | BD71: 0 | BE71: 0 | BF71: 0 | BG71: 0 | BH71: 0 | BI71: 0 | BJ71: 0 | BK71: 0 | BL71: 0 | BM71: 0 | BN71: 0 | BO71: 0 | BP71: 0 | BQ71: 0 | BR71: 0 | BT71: =IF($E71=NA,0,IF(SUM(K71:BR71)=0,0,IF(OR(LEFT(D71,1)="[",D71=""),1,0))) -> 0 | BU71: =IF(OR($E71=NA,SUM(K71:BR71)=0),0,IF(G71="",1,0)) -> 0 | BV71: =IF(OR($E71=NA,SUM(K71:BR71)=0),0,IF(OR(LEFT(H71,1)="[",H71="",IF(Proj_Type<>Shared,H71<>Proj_Type)),1,0)) -> 0 | BW71: =IF(OR($E71=NA,SUM(K71:BR71)=0),0,IF(OR(LEFT(I71,1)="[",I71=""),1,0)) -> 0 | BX71: =IF(OR($E71=NA,SUM(K71:BR71)=0),0,IF(OR(ISTEXT(K71:BR71),MIN(K71:BR71)<0),1,0)) -> 0
A72: =SUM(BT72:BX72) -> 0 | D72: [Insert description/driver of costs/savings] | E72: =Option_3 -> Option 3 | F72: =dollar_unit -> $000 | G72: Nominal | H72: =IF(Proj_Type=Shared,Lookup!$G$72,Proj_Type) -> JEN | I72: [Select from list] | K72: 0 | L72: 0 | M72: 0 | N72: 0 | O72: 0 | P72: 0 | Q72: 0 | R72: 0 | S72: 0 | T72: 0 | U72: 0 | V72: 0 | W72: 0 | X72: 0 | Y72: 0 | Z72: 0 | AA72: 0 | AB72: 0 | AC72: 0 | AD72: 0 | AE72: 0 | AF72: 0 | AG72: 0 | AH72: 0 | AI72: 0 | AJ72: 0 | AK72: 0 | AL72: 0 | AM72: 0 | AN72: 0 | AO72: 0 | AP72: 0 | AQ72: 0 | AR72: 0 | AS72: 0 | AT72: 0 | AU72: 0 | AV72: 0 | AW72: 0 | AX72: 0 | AY72: 0 | AZ72: 0 | BA72: 0 | BB72: 0 | BC72: 0 | BD72: 0 | BE72: 0 | BF72: 0 | BG72: 0 | BH72: 0 | BI72: 0 | BJ72: 0 | BK72: 0 | BL72: 0 | BM72: 0 | BN72: 0 | BO72: 0 | BP72: 0 | BQ72: 0 | BR72: 0 | BT72: =IF($E72=NA,0,IF(SUM(K72:BR72)=0,0,IF(OR(LEFT(D72,1)="[",D72=""),1,0))) -> 0 | BU72: =IF(OR($E72=NA,SUM(K72:BR72)=0),0,IF(G72="",1,0)) -> 0 | BV72: =IF(OR($E72=NA,SUM(K72:BR72)=0),0,IF(OR(LEFT(H72,1)="[",H72="",IF(Proj_Type<>Shared,H72<>Proj_Type)),1,0)) -> 0 | BW72: =IF(OR($E72=NA,SUM(K72:BR72)=0),0,IF(OR(LEFT(I72,1)="[",I72=""),1,0)) -> 0 | BX72: =IF(OR($E72=NA,SUM(K72:BR72)=0),0,IF(OR(ISTEXT(K72:BR72),MIN(K72:BR72)<0),1,0)) -> 0
A74: =SUM(BT74:BX74) -> 0 | D74: [Insert description/driver of costs/savings] | E74: =Option_4 -> n/a | F74: =dollar_unit -> $000 | G74: Nominal | H74: =IF(Proj_Type=Shared,Lookup!$G$72,Proj_Type) -> JEN | I74: [Select from list] | K74: 0 | L74: 0 | M74: 0 | N74: 0 | O74: 0 | P74: 0 | Q74: 0 | R74: 0 | S74: 0 | T74: 0 | U74: 0 | V74: 0 | W74: 0 | X74: 0 | Y74: 0 | Z74: 0 | AA74: 0 | AB74: 0 | AC74: 0 | AD74: 0 | AE74: 0 | AF74: 0 | AG74: 0 | AH74: 0 | AI74: 0 | AJ74: 0 | AK74: 0 | AL74: 0 | AM74: 0 | AN74: 0 | AO74: 0 | AP74: 0 | AQ74: 0 | AR74: 0 | AS74: 0 | AT74: 0 | AU74: 0 | AV74: 0 | AW74: 0 | AX74: 0 | AY74: 0 | AZ74: 0 | BA74: 0 | BB74: 0 | BC74: 0 | BD74: 0 | BE74: 0 | BF74: 0 | BG74: 0 | BH74: 0 | BI74: 0 | BJ74: 0 | BK74: 0 | BL74: 0 | BM74: 0 | BN74: 0 | BO74: 0 | BP74: 0 | BQ74: 0 | BR74: 0 | BT74: =IF($E74=NA,0,IF(SUM(K74:BR74)=0,0,IF(OR(LEFT(D74,1)="[",D74=""),1,0))) -> 0 | BU74: =IF(OR($E74=NA,SUM(K74:BR74)=0),0,IF(G74="",1,0)) -> 0 | BV74: =IF(OR($E74=NA,SUM(K74:BR74)=0),0,IF(OR(LEFT(H74,1)="[",H74="",IF(Proj_Type<>Shared,H74<>Proj_Type)),1,0)) -> 0 | BW74: =IF(OR($E74=NA,SUM(K74:BR74)=0),0,IF(OR(LEFT(I74,1)="[",I74=""),1,0)) -> 0 | BX74: =IF(OR($E74=NA,SUM(K74:BR74)=0),0,IF(OR(ISTEXT(K74:BR74),MIN(K74:BR74)<0),1,0)) -> 0
A75: =SUM(BT75:BX75) -> 0 | D75: [Insert description/driver of costs/savings] | E75: =Option_4 -> n/a | F75: =dollar_unit -> $000 | G75: Nominal | H75: =IF(Proj_Type=Shared,Lookup!$G$72,Proj_Type) -> JEN | I75: [Select from list] | K75: 0 | L75: 0 | M75: 0 | N75: 0 | O75: 0 | P75: 0 | Q75: 0 | R75: 0 | S75: 0 | T75: 0 | U75: 0 | V75: 0 | W75: 0 | X75: 0 | Y75: 0 | Z75: 0 | AA75: 0 | AB75: 0 | AC75: 0 | AD75: 0 | AE75: 0 | AF75: 0 | AG75: 0 | AH75: 0 | AI75: 0 | AJ75: 0 | AK75: 0 | AL75: 0 | AM75: 0 | AN75: 0 | AO75: 0 | AP75: 0 | AQ75: 0 | AR75: 0 | AS75: 0 | AT75: 0 | AU75: 0 | AV75: 0 | AW75: 0 | AX75: 0 | AY75: 0 | AZ75: 0 | BA75: 0 | BB75: 0 | BC75: 0 | BD75: 0 | BE75: 0 | BF75: 0 | BG75: 0 | BH75: 0 | BI75: 0 | BJ75: 0 | BK75: 0 | BL75: 0 | BM75: 0 | BN75: 0 | BO75: 0 | BP75: 0 | BQ75: 0 | BR75: 0 | BT75: =IF($E75=NA,0,IF(SUM(K75:BR75)=0,0,IF(OR(LEFT(D75,1)="[",D75=""),1,0))) -> 0 | BU75: =IF(OR($E75=NA,SUM(K75:BR75)=0),0,IF(G75="",1,0)) -> 0 | BV75: =IF(OR($E75=NA,SUM(K75:BR75)=0),0,IF(OR(LEFT(H75,1)="[",H75="",IF(Proj_Type<>Shared,H75<>Proj_Type)),1,0)) -> 0 | BW75: =IF(OR($E75=NA,SUM(K75:BR75)=0),0,IF(OR(LEFT(I75,1)="[",I75=""),1,0)) -> 0 | BX75: =IF(OR($E75=NA,SUM(K75:BR75)=0),0,IF(OR(ISTEXT(K75:BR75),MIN(K75:BR75)<0),1,0)) -> 0
A76: =SUM(BT76:BX76) -> 0 | D76: [Insert description/driver of costs/savings] | E76: =Option_4 -> n/a | F76: =dollar_unit -> $000 | G76: Nominal | H76: =IF(Proj_Type=Shared,Lookup!$G$72,Proj_Type) -> JEN | I76: [Select from list] | K76: 0 | L76: 0 | M76: 0 | N76: 0 | O76: 0 | P76: 0 | Q76: 0 | R76: 0 | S76: 0 | T76: 0 | U76: 0 | V76: 0 | W76: 0 | X76: 0 | Y76: 0 | Z76: 0 | AA76: 0 | AB76: 0 | AC76: 0 | AD76: 0 | AE76: 0 | AF76: 0 | AG76: 0 | AH76: 0 | AI76: 0 | AJ76: 0 | AK76: 0 | AL76: 0 | AM76: 0 | AN76: 0 | AO76: 0 | AP76: 0 | AQ76: 0 | AR76: 0 | AS76: 0 | AT76: 0 | AU76: 0 | AV76: 0 | AW76: 0 | AX76: 0 | AY76: 0 | AZ76: 0 | BA76: 0 | BB76: 0 | BC76: 0 | BD76: 0 | BE76: 0 | BF76: 0 | BG76: 0 | BH76: 0 | BI76: 0 | BJ76: 0 | BK76: 0 | BL76: 0 | BM76: 0 | BN76: 0 | BO76: 0 | BP76: 0 | BQ76: 0 | BR76: 0 | BT76: =IF($E76=NA,0,IF(SUM(K76:BR76)=0,0,IF(OR(LEFT(D76,1)="[",D76=""),1,0))) -> 0 | BU76: =IF(OR($E76=NA,SUM(K76:BR76)=0),0,IF(G76="",1,0)) -> 0 | BV76: =IF(OR($E76=NA,SUM(K76:BR76)=0),0,IF(OR(LEFT(H76,1)="[",H76="",IF(Proj_Type<>Shared,H76<>Proj_Type)),1,0)) -> 0 | BW76: =IF(OR($E76=NA,SUM(K76:BR76)=0),0,IF(OR(LEFT(I76,1)="[",I76=""),1,0)) -> 0 | BX76: =IF(OR($E76=NA,SUM(K76:BR76)=0),0,IF(OR(ISTEXT(K76:BR76),MIN(K76:BR76)<0),1,0)) -> 0
A77: =SUM(BT77:BX77) -> 0 | D77: [Insert description/driver of costs/savings] | E77: =Option_4 -> n/a | F77: =dollar_unit -> $000 | G77: Nominal | H77: =IF(Proj_Type=Shared,Lookup!$G$72,Proj_Type) -> JEN | I77: [Select from list] | K77: 0 | L77: 0 | M77: 0 | N77: 0 | O77: 0 | P77: 0 | Q77: 0 | R77: 0 | S77: 0 | T77: 0 | U77: 0 | V77: 0 | W77: 0 | X77: 0 | Y77: 0 | Z77: 0 | AA77: 0 | AB77: 0 | AC77: 0 | AD77: 0 | AE77: 0 | AF77: 0 | AG77: 0 | AH77: 0 | AI77: 0 | AJ77: 0 | AK77: 0 | AL77: 0 | AM77: 0 | AN77: 0 | AO77: 0 | AP77: 0 | AQ77: 0 | AR77: 0 | AS77: 0 | AT77: 0 | AU77: 0 | AV77: 0 | AW77: 0 | AX77: 0 | AY77: 0 | AZ77: 0 | BA77: 0 | BB77: 0 | BC77: 0 | BD77: 0 | BE77: 0 | BF77: 0 | BG77: 0 | BH77: 0 | BI77: 0 | BJ77: 0 | BK77: 0 | BL77: 0 | BM77: 0 | BN77: 0 | BO77: 0 | BP77: 0 | BQ77: 0 | BR77: 0 | BT77: =IF($E77=NA,0,IF(SUM(K77:BR77)=0,0,IF(OR(LEFT(D77,1)="[",D77=""),1,0))) -> 0 | BU77: =IF(OR($E77=NA,SUM(K77:BR77)=0),0,IF(G77="",1,0)) -> 0 | BV77: =IF(OR($E77=NA,SUM(K77:BR77)=0),0,IF(OR(LEFT(H77,1)="[",H77="",IF(Proj_Type<>Shared,H77<>Proj_Type)),1,0)) -> 0 | BW77: =IF(OR($E77=NA,SUM(K77:BR77)=0),0,IF(OR(LEFT(I77,1)="[",I77=""),1,0)) -> 0 | BX77: =IF(OR($E77=NA,SUM(K77:BR77)=0),0,IF(OR(ISTEXT(K77:BR77),MIN(K77:BR77)<0),1,0)) -> 0
A78: =SUM(BT78:BX78) -> 0 | D78: [Insert description/driver of costs/savings] | E78: =Option_4 -> n/a | F78: =dollar_unit -> $000 | G78: Nominal | H78: =IF(Proj_Type=Shared,Lookup!$G$72,Proj_Type) -> JEN | I78: [Select from list] | K78: 0 | L78: 0 | M78: 0 | N78: 0 | O78: 0 | P78: 0 | Q78: 0 | R78: 0 | S78: 0 | T78: 0 | U78: 0 | V78: 0 | W78: 0 | X78: 0 | Y78: 0 | Z78: 0 | AA78: 0 | AB78: 0 | AC78: 0 | AD78: 0 | AE78: 0 | AF78: 0 | AG78: 0 | AH78: 0 | AI78: 0 | AJ78: 0 | AK78: 0 | AL78: 0 | AM78: 0 | AN78: 0 | AO78: 0 | AP78: 0 | AQ78: 0 | AR78: 0 | AS78: 0 | AT78: 0 | AU78: 0 | AV78: 0 | AW78: 0 | AX78: 0 | AY78: 0 | AZ78: 0 | BA78: 0 | BB78: 0 | BC78: 0 | BD78: 0 | BE78: 0 | BF78: 0 | BG78: 0 | BH78: 0 | BI78: 0 | BJ78: 0 | BK78: 0 | BL78: 0 | BM78: 0 | BN78: 0 | BO78: 0 | BP78: 0 | BQ78: 0 | BR78: 0 | BT78: =IF($E78=NA,0,IF(SUM(K78:BR78)=0,0,IF(OR(LEFT(D78,1)="[",D78=""),1,0))) -> 0 | BU78: =IF(OR($E78=NA,SUM(K78:BR78)=0),0,IF(G78="",1,0)) -> 0 | BV78: =IF(OR($E78=NA,SUM(K78:BR78)=0),0,IF(OR(LEFT(H78,1)="[",H78="",IF(Proj_Type<>Shared,H78<>Proj_Type)),1,0)) -> 0 | BW78: =IF(OR($E78=NA,SUM(K78:BR78)=0),0,IF(OR(LEFT(I78,1)="[",I78=""),1,0)) -> 0 | BX78: =IF(OR($E78=NA,SUM(K78:BR78)=0),0,IF(OR(ISTEXT(K78:BR78),MIN(K78:BR78)<0),1,0)) -> 0
A80: =SUM(BT80:BX80) -> 0 | D80: [Insert description/driver of costs/savings] | E80: =Option_5 -> n/a | F80: =dollar_unit -> $000 | G80: Nominal | H80: =IF(Proj_Type=Shared,Lookup!$G$72,Proj_Type) -> JEN | I80: [Select from list] | K80: 0 | L80: 0 | M80: 0 | N80: 0 | O80: 0 | P80: 0 | Q80: 0 | R80: 0 | S80: 0 | T80: 0 | U80: 0 | V80: 0 | W80: 0 | X80: 0 | Y80: 0 | Z80: 0 | AA80: 0 | AB80: 0 | AC80: 0 | AD80: 0 | AE80: 0 | AF80: 0 | AG80: 0 | AH80: 0 | AI80: 0 | AJ80: 0 | AK80: 0 | AL80: 0 | AM80: 0 | AN80: 0 | AO80: 0 | AP80: 0 | AQ80: 0 | AR80: 0 | AS80: 0 | AT80: 0 | AU80: 0 | AV80: 0 | AW80: 0 | AX80: 0 | AY80: 0 | AZ80: 0 | BA80: 0 | BB80: 0 | BC80: 0 | BD80: 0 | BE80: 0 | BF80: 0 | BG80: 0 | BH80: 0 | BI80: 0 | BJ80: 0 | BK80: 0 | BL80: 0 | BM80: 0 | BN80: 0 | BO80: 0 | BP80: 0 | BQ80: 0 | BR80: 0 | BT80: =IF($E80=NA,0,IF(SUM(K80:BR80)=0,0,IF(OR(LEFT(D80,1)="[",D80=""),1,0))) -> 0 | BU80: =IF(OR($E80=NA,SUM(K80:BR80)=0),0,IF(G80="",1,0)) -> 0 | BV80: =IF(OR($E80=NA,SUM(K80:BR80)=0),0,IF(OR(LEFT(H80,1)="[",H80="",IF(Proj_Type<>Shared,H80<>Proj_Type)),1,0)) -> 0 | BW80: =IF(OR($E80=NA,SUM(K80:BR80)=0),0,IF(OR(LEFT(I80,1)="[",I80=""),1,0)) -> 0 | BX80: =IF(OR($E80=NA,SUM(K80:BR80)=0),0,IF(OR(ISTEXT(K80:BR80),MIN(K80:BR80)<0),1,0)) -> 0
A81: =SUM(BT81:BX81) -> 0 | D81: [Insert description/driver of costs/savings] | E81: =Option_5 -> n/a | F81: =dollar_unit -> $000 | G81: Nominal | H81: =IF(Proj_Type=Shared,Lookup!$G$72,Proj_Type) -> JEN | I81: [Select from list] | K81: 0 | L81: 0 | M81: 0 | N81: 0 | O81: 0 | P81: 0 | Q81: 0 | R81: 0 | S81: 0 | T81: 0 | U81: 0 | V81: 0 | W81: 0 | X81: 0 | Y81: 0 | Z81: 0 | AA81: 0 | AB81: 0 | AC81: 0 | AD81: 0 | AE81: 0 | AF81: 0 | AG81: 0 | AH81: 0 | AI81: 0 | AJ81: 0 | AK81: 0 | AL81: 0 | AM81: 0 | AN81: 0 | AO81: 0 | AP81: 0 | AQ81: 0 | AR81: 0 | AS81: 0 | AT81: 0 | AU81: 0 | AV81: 0 | AW81: 0 | AX81: 0 | AY81: 0 | AZ81: 0 | BA81: 0 | BB81: 0 | BC81: 0 | BD81: 0 | BE81: 0 | BF81: 0 | BG81: 0 | BH81: 0 | BI81: 0 | BJ81: 0 | BK81: 0 | BL81: 0 | BM81: 0 | BN81: 0 | BO81: 0 | BP81: 0 | BQ81: 0 | BR81: 0 | BT81: =IF($E81=NA,0,IF(SUM(K81:BR81)=0,0,IF(OR(LEFT(D81,1)="[",D81=""),1,0))) -> 0 | BU81: =IF(OR($E81=NA,SUM(K81:BR81)=0),0,IF(G81="",1,0)) -> 0 | BV81: =IF(OR($E81=NA,SUM(K81:BR81)=0),0,IF(OR(LEFT(H81,1)="[",H81="",IF(Proj_Type<>Shared,H81<>Proj_Type)),1,0)) -> 0 | BW81: =IF(OR($E81=NA,SUM(K81:BR81)=0),0,IF(OR(LEFT(I81,1)="[",I81=""),1,0)) -> 0 | BX81: =IF(OR($E81=NA,SUM(K81:BR81)=0),0,IF(OR(ISTEXT(K81:BR81),MIN(K81:BR81)<0),1,0)) -> 0
A82: =SUM(BT82:BX82) -> 0 | D82: [Insert description/driver of costs/savings] | E82: =Option_5 -> n/a | F82: =dollar_unit -> $000 | G82: Nominal | H82: =IF(Proj_Type=Shared,Lookup!$G$72,Proj_Type) -> JEN | I82: [Select from list] | K82: 0 | L82: 0 | M82: 0 | N82: 0 | O82: 0 | P82: 0 | Q82: 0 | R82: 0 | S82: 0 | T82: 0 | U82: 0 | V82: 0 | W82: 0 | X82: 0 | Y82: 0 | Z82: 0 | AA82: 0 | AB82: 0 | AC82: 0 | AD82: 0 | AE82: 0 | AF82: 0 | AG82: 0 | AH82: 0 | AI82: 0 | AJ82: 0 | AK82: 0 | AL82: 0 | AM82: 0 | AN82: 0 | AO82: 0 | AP82: 0 | AQ82: 0 | AR82: 0 | AS82: 0 | AT82: 0 | AU82: 0 | AV82: 0 | AW82: 0 | AX82: 0 | AY82: 0 | AZ82: 0 | BA82: 0 | BB82: 0 | BC82: 0 | BD82: 0 | BE82: 0 | BF82: 0 | BG82: 0 | BH82: 0 | BI82: 0 | BJ82: 0 | BK82: 0 | BL82: 0 | BM82: 0 | BN82: 0 | BO82: 0 | BP82: 0 | BQ82: 0 | BR82: 0 | BT82: =IF($E82=NA,0,IF(SUM(K82:BR82)=0,0,IF(OR(LEFT(D82,1)="[",D82=""),1,0))) -> 0 | BU82: =IF(OR($E82=NA,SUM(K82:BR82)=0),0,IF(G82="",1,0)) -> 0 | BV82: =IF(OR($E82=NA,SUM(K82:BR82)=0),0,IF(OR(LEFT(H82,1)="[",H82="",IF(Proj_Type<>Shared,H82<>Proj_Type)),1,0)) -> 0 | BW82: =IF(OR($E82=NA,SUM(K82:BR82)=0),0,IF(OR(LEFT(I82,1)="[",I82=""),1,0)) -> 0 | BX82: =IF(OR($E82=NA,SUM(K82:BR82)=0),0,IF(OR(ISTEXT(K82:BR82),MIN(K82:BR82)<0),1,0)) -> 0
A83: =SUM(BT83:BX83) -> 0 | D83: [Insert description/driver of costs/savings] | E83: =Option_5 -> n/a | F83: =dollar_unit -> $000 | G83: Nominal | H83: =IF(Proj_Type=Shared,Lookup!$G$72,Proj_Type) -> JEN | I83: [Select from list] | K83: 0 | L83: 0 | M83: 0 | N83: 0 | O83: 0 | P83: 0 | Q83: 0 | R83: 0 | S83: 0 | T83: 0 | U83: 0 | V83: 0 | W83: 0 | X83: 0 | Y83: 0 | Z83: 0 | AA83: 0 | AB83: 0 | AC83: 0 | AD83: 0 | AE83: 0 | AF83: 0 | AG83: 0 | AH83: 0 | AI83: 0 | AJ83: 0 | AK83: 0 | AL83: 0 | AM83: 0 | AN83: 0 | AO83: 0 | AP83: 0 | AQ83: 0 | AR83: 0 | AS83: 0 | AT83: 0 | AU83: 0 | AV83: 0 | AW83: 0 | AX83: 0 | AY83: 0 | AZ83: 0 | BA83: 0 | BB83: 0 | BC83: 0 | BD83: 0 | BE83: 0 | BF83: 0 | BG83: 0 | BH83: 0 | BI83: 0 | BJ83: 0 | BK83: 0 | BL83: 0 | BM83: 0 | BN83: 0 | BO83: 0 | BP83: 0 | BQ83: 0 | BR83: 0 | BT83: =IF($E83=NA,0,IF(SUM(K83:BR83)=0,0,IF(OR(LEFT(D83,1)="[",D83=""),1,0))) -> 0 | BU83: =IF(OR($E83=NA,SUM(K83:BR83)=0),0,IF(G83="",1,0)) -> 0 | BV83: =IF(OR($E83=NA,SUM(K83:BR83)=0),0,IF(OR(LEFT(H83,1)="[",H83="",IF(Proj_Type<>Shared,H83<>Proj_Type)),1,0)) -> 0 | BW83: =IF(OR($E83=NA,SUM(K83:BR83)=0),0,IF(OR(LEFT(I83,1)="[",I83=""),1,0)) -> 0 | BX83: =IF(OR($E83=NA,SUM(K83:BR83)=0),0,IF(OR(ISTEXT(K83:BR83),MIN(K83:BR83)<0),1,0)) -> 0
A84: =SUM(BT84:BX84) -> 0 | D84: [Insert description/driver of costs/savings] | E84: =Option_5 -> n/a | F84: =dollar_unit -> $000 | G84: Nominal | H84: =IF(Proj_Type=Shared,Lookup!$G$72,Proj_Type) -> JEN | I84: [Select from list] | K84: 0 | L84: 0 | M84: 0 | N84: 0 | O84: 0 | P84: 0 | Q84: 0 | R84: 0 | S84: 0 | T84: 0 | U84: 0 | V84: 0 | W84: 0 | X84: 0 | Y84: 0 | Z84: 0 | AA84: 0 | AB84: 0 | AC84: 0 | AD84: 0 | AE84: 0 | AF84: 0 | AG84: 0 | AH84: 0 | AI84: 0 | AJ84: 0 | AK84: 0 | AL84: 0 | AM84: 0 | AN84: 0 | AO84: 0 | AP84: 0 | AQ84: 0 | AR84: 0 | AS84: 0 | AT84: 0 | AU84: 0 | AV84: 0 | AW84: 0 | AX84: 0 | AY84: 0 | AZ84: 0 | BA84: 0 | BB84: 0 | BC84: 0 | BD84: 0 | BE84: 0 | BF84: 0 | BG84: 0 | BH84: 0 | BI84: 0 | BJ84: 0 | BK84: 0 | BL84: 0 | BM84: 0 | BN84: 0 | BO84: 0 | BP84: 0 | BQ84: 0 | BR84: 0 | BT84: =IF($E84=NA,0,IF(SUM(K84:BR84)=0,0,IF(OR(LEFT(D84,1)="[",D84=""),1,0))) -> 0 | BU84: =IF(OR($E84=NA,SUM(K84:BR84)=0),0,IF(G84="",1,0)) -> 0 | BV84: =IF(OR($E84=NA,SUM(K84:BR84)=0),0,IF(OR(LEFT(H84,1)="[",H84="",IF(Proj_Type<>Shared,H84<>Proj_Type)),1,0)) -> 0 | BW84: =IF(OR($E84=NA,SUM(K84:BR84)=0),0,IF(OR(LEFT(I84,1)="[",I84=""),1,0)) -> 0 | BX84: =IF(OR($E84=NA,SUM(K84:BR84)=0),0,IF(OR(ISTEXT(K84:BR84),MIN(K84:BR84)<0),1,0)) -> 0
A86: =SUM(BT86:BX86) -> 0 | D86: [Insert description/driver of costs/savings] | E86: =Option_6 -> n/a | F86: =dollar_unit -> $000 | G86: Nominal | H86: =IF(Proj_Type=Shared,Lookup!$G$72,Proj_Type) -> JEN | I86: [Select from list] | K86: 0 | L86: 0 | M86: 0 | N86: 0 | O86: 0 | P86: 0 | Q86: 0 | R86: 0 | S86: 0 | T86: 0 | U86: 0 | V86: 0 | W86: 0 | X86: 0 | Y86: 0 | Z86: 0 | AA86: 0 | AB86: 0 | AC86: 0 | AD86: 0 | AE86: 0 | AF86: 0 | AG86: 0 | AH86: 0 | AI86: 0 | AJ86: 0 | AK86: 0 | AL86: 0 | AM86: 0 | AN86: 0 | AO86: 0 | AP86: 0 | AQ86: 0 | AR86: 0 | AS86: 0 | AT86: 0 | AU86: 0 | AV86: 0 | AW86: 0 | AX86: 0 | AY86: 0 | AZ86: 0 | BA86: 0 | BB86: 0 | BC86: 0 | BD86: 0 | BE86: 0 | BF86: 0 | BG86: 0 | BH86: 0 | BI86: 0 | BJ86: 0 | BK86: 0 | BL86: 0 | BM86: 0 | BN86: 0 | BO86: 0 | BP86: 0 | BQ86: 0 | BR86: 0 | BT86: =IF($E86=NA,0,IF(SUM(K86:BR86)=0,0,IF(OR(LEFT(D86,1)="[",D86=""),1,0))) -> 0 | BU86: =IF(OR($E86=NA,SUM(K86:BR86)=0),0,IF(G86="",1,0)) -> 0 | BV86: =IF(OR($E86=NA,SUM(K86:BR86)=0),0,IF(OR(LEFT(H86,1)="[",H86="",IF(Proj_Type<>Shared,H86<>Proj_Type)),1,0)) -> 0 | BW86: =IF(OR($E86=NA,SUM(K86:BR86)=0),0,IF(OR(LEFT(I86,1)="[",I86=""),1,0)) -> 0 | BX86: =IF(OR($E86=NA,SUM(K86:BR86)=0),0,IF(OR(ISTEXT(K86:BR86),MIN(K86:BR86)<0),1,0)) -> 0
A87: =SUM(BT87:BX87) -> 0 | D87: [Insert description/driver of costs/savings] | E87: =Option_6 -> n/a | F87: =dollar_unit -> $000 | G87: Nominal | H87: =IF(Proj_Type=Shared,Lookup!$G$72,Proj_Type) -> JEN | I87: [Select from list] | K87: 0 | L87: 0 | M87: 0 | N87: 0 | O87: 0 | P87: 0 | Q87: 0 | R87: 0 | S87: 0 | T87: 0 | U87: 0 | V87: 0 | W87: 0 | X87: 0 | Y87: 0 | Z87: 0 | AA87: 0 | AB87: 0 | AC87: 0 | AD87: 0 | AE87: 0 | AF87: 0 | AG87: 0 | AH87: 0 | AI87: 0 | AJ87: 0 | AK87: 0 | AL87: 0 | AM87: 0 | AN87: 0 | AO87: 0 | AP87: 0 | AQ87: 0 | AR87: 0 | AS87: 0 | AT87: 0 | AU87: 0 | AV87: 0 | AW87: 0 | AX87: 0 | AY87: 0 | AZ87: 0 | BA87: 0 | BB87: 0 | BC87: 0 | BD87: 0 | BE87: 0 | BF87: 0 | BG87: 0 | BH87: 0 | BI87: 0 | BJ87: 0 | BK87: 0 | BL87: 0 | BM87: 0 | BN87: 0 | BO87: 0 | BP87: 0 | BQ87: 0 | BR87: 0 | BT87: =IF($E87=NA,0,IF(SUM(K87:BR87)=0,0,IF(OR(LEFT(D87,1)="[",D87=""),1,0))) -> 0 | BU87: =IF(OR($E87=NA,SUM(K87:BR87)=0),0,IF(G87="",1,0)) -> 0 | BV87: =IF(OR($E87=NA,SUM(K87:BR87)=0),0,IF(OR(LEFT(H87,1)="[",H87="",IF(Proj_Type<>Shared,H87<>Proj_Type)),1,0)) -> 0 | BW87: =IF(OR($E87=NA,SUM(K87:BR87)=0),0,IF(OR(LEFT(I87,1)="[",I87=""),1,0)) -> 0 | BX87: =IF(OR($E87=NA,SUM(K87:BR87)=0),0,IF(OR(ISTEXT(K87:BR87),MIN(K87:BR87)<0),1,0)) -> 0
A88: =SUM(BT88:BX88) -> 0 | D88: [Insert description/driver of costs/savings] | E88: =Option_6 -> n/a | F88: =dollar_unit -> $000 | G88: Nominal | H88: =IF(Proj_Type=Shared,Lookup!$G$72,Proj_Type) -> JEN | I88: [Select from list] | K88: 0 | L88: 0 | M88: 0 | N88: 0 | O88: 0 | P88: 0 | Q88: 0 | R88: 0 | S88: 0 | T88: 0 | U88: 0 | V88: 0 | W88: 0 | X88: 0 | Y88: 0 | Z88: 0 | AA88: 0 | AB88: 0 | AC88: 0 | AD88: 0 | AE88: 0 | AF88: 0 | AG88: 0 | AH88: 0 | AI88: 0 | AJ88: 0 | AK88: 0 | AL88: 0 | AM88: 0 | AN88: 0 | AO88: 0 | AP88: 0 | AQ88: 0 | AR88: 0 | AS88: 0 | AT88: 0 | AU88: 0 | AV88: 0 | AW88: 0 | AX88: 0 | AY88: 0 | AZ88: 0 | BA88: 0 | BB88: 0 | BC88: 0 | BD88: 0 | BE88: 0 | BF88: 0 | BG88: 0 | BH88: 0 | BI88: 0 | BJ88: 0 | BK88: 0 | BL88: 0 | BM88: 0 | BN88: 0 | BO88: 0 | BP88: 0 | BQ88: 0 | BR88: 0 | BT88: =IF($E88=NA,0,IF(SUM(K88:BR88)=0,0,IF(OR(LEFT(D88,1)="[",D88=""),1,0))) -> 0 | BU88: =IF(OR($E88=NA,SUM(K88:BR88)=0),0,IF(G88="",1,0)) -> 0 | BV88: =IF(OR($E88=NA,SUM(K88:BR88)=0),0,IF(OR(LEFT(H88,1)="[",H88="",IF(Proj_Type<>Shared,H88<>Proj_Type)),1,0)) -> 0 | BW88: =IF(OR($E88=NA,SUM(K88:BR88)=0),0,IF(OR(LEFT(I88,1)="[",I88=""),1,0)) -> 0 | BX88: =IF(OR($E88=NA,SUM(K88:BR88)=0),0,IF(OR(ISTEXT(K88:BR88),MIN(K88:BR88)<0),1,0)) -> 0
A89: =SUM(BT89:BX89) -> 0 | D89: [Insert description/driver of costs/savings] | E89: =Option_6 -> n/a | F89: =dollar_unit -> $000 | G89: Nominal | H89: =IF(Proj_Type=Shared,Lookup!$G$72,Proj_Type) -> JEN | I89: [Select from list] | K89: 0 | L89: 0 | M89: 0 | N89: 0 | O89: 0 | P89: 0 | Q89: 0 | R89: 0 | S89: 0 | T89: 0 | U89: 0 | V89: 0 | W89: 0 | X89: 0 | Y89: 0 | Z89: 0 | AA89: 0 | AB89: 0 | AC89: 0 | AD89: 0 | AE89: 0 | AF89: 0 | AG89: 0 | AH89: 0 | AI89: 0 | AJ89: 0 | AK89: 0 | AL89: 0 | AM89: 0 | AN89: 0 | AO89: 0 | AP89: 0 | AQ89: 0 | AR89: 0 | AS89: 0 | AT89: 0 | AU89: 0 | AV89: 0 | AW89: 0 | AX89: 0 | AY89: 0 | AZ89: 0 | BA89: 0 | BB89: 0 | BC89: 0 | BD89: 0 | BE89: 0 | BF89: 0 | BG89: 0 | BH89: 0 | BI89: 0 | BJ89: 0 | BK89: 0 | BL89: 0 | BM89: 0 | BN89: 0 | BO89: 0 | BP89: 0 | BQ89: 0 | BR89: 0 | BT89: =IF($E89=NA,0,IF(SUM(K89:BR89)=0,0,IF(OR(LEFT(D89,1)="[",D89=""),1,0))) -> 0 | BU89: =IF(OR($E89=NA,SUM(K89:BR89)=0),0,IF(G89="",1,0)) -> 0 | BV89: =IF(OR($E89=NA,SUM(K89:BR89)=0),0,IF(OR(LEFT(H89,1)="[",H89="",IF(Proj_Type<>Shared,H89<>Proj_Type)),1,0)) -> 0 | BW89: =IF(OR($E89=NA,SUM(K89:BR89)=0),0,IF(OR(LEFT(I89,1)="[",I89=""),1,0)) -> 0 | BX89: =IF(OR($E89=NA,SUM(K89:BR89)=0),0,IF(OR(ISTEXT(K89:BR89),MIN(K89:BR89)<0),1,0)) -> 0
A90: =SUM(BT90:BX90) -> 0 | D90: [Insert description/driver of costs/savings] | E90: =Option_6 -> n/a | F90: =dollar_unit -> $000 | G90: Nominal | H90: =IF(Proj_Type=Shared,Lookup!$G$72,Proj_Type) -> JEN | I90: [Select from list] | K90: 0 | L90: 0 | M90: 0 | N90: 0 | O90: 0 | P90: 0 | Q90: 0 | R90: 0 | S90: 0 | T90: 0 | U90: 0 | V90: 0 | W90: 0 | X90: 0 | Y90: 0 | Z90: 0 | AA90: 0 | AB90: 0 | AC90: 0 | AD90: 0 | AE90: 0 | AF90: 0 | AG90: 0 | AH90: 0 | AI90: 0 | AJ90: 0 | AK90: 0 | AL90: 0 | AM90: 0 | AN90: 0 | AO90: 0 | AP90: 0 | AQ90: 0 | AR90: 0 | AS90: 0 | AT90: 0 | AU90: 0 | AV90: 0 | AW90: 0 | AX90: 0 | AY90: 0 | AZ90: 0 | BA90: 0 | BB90: 0 | BC90: 0 | BD90: 0 | BE90: 0 | BF90: 0 | BG90: 0 | BH90: 0 | BI90: 0 | BJ90: 0 | BK90: 0 | BL90: 0 | BM90: 0 | BN90: 0 | BO90: 0 | BP90: 0 | BQ90: 0 | BR90: 0 | BT90: =IF($E90=NA,0,IF(SUM(K90:BR90)=0,0,IF(OR(LEFT(D90,1)="[",D90=""),1,0))) -> 0 | BU90: =IF(OR($E90=NA,SUM(K90:BR90)=0),0,IF(G90="",1,0)) -> 0 | BV90: =IF(OR($E90=NA,SUM(K90:BR90)=0),0,IF(OR(LEFT(H90,1)="[",H90="",IF(Proj_Type<>Shared,H90<>Proj_Type)),1,0)) -> 0 | BW90: =IF(OR($E90=NA,SUM(K90:BR90)=0),0,IF(OR(LEFT(I90,1)="[",I90=""),1,0)) -> 0 | BX90: =IF(OR($E90=NA,SUM(K90:BR90)=0),0,IF(OR(ISTEXT(K90:BR90),MIN(K90:BR90)<0),1,0)) -> 0
A92: =SUM(BT92:BX92) -> 0 | D92: [Insert description/driver of costs/savings] | E92: =Option_7 -> n/a | F92: =dollar_unit -> $000 | G92: Nominal | H92: =IF(Proj_Type=Shared,Lookup!$G$72,Proj_Type) -> JEN | I92: [Select from list] | K92: 0 | L92: 0 | M92: 0 | N92: 0 | O92: 0 | P92: 0 | Q92: 0 | R92: 0 | S92: 0 | T92: 0 | U92: 0 | V92: 0 | W92: 0 | X92: 0 | Y92: 0 | Z92: 0 | AA92: 0 | AB92: 0 | AC92: 0 | AD92: 0 | AE92: 0 | AF92: 0 | AG92: 0 | AH92: 0 | AI92: 0 | AJ92: 0 | AK92: 0 | AL92: 0 | AM92: 0 | AN92: 0 | AO92: 0 | AP92: 0 | AQ92: 0 | AR92: 0 | AS92: 0 | AT92: 0 | AU92: 0 | AV92: 0 | AW92: 0 | AX92: 0 | AY92: 0 | AZ92: 0 | BA92: 0 | BB92: 0 | BC92: 0 | BD92: 0 | BE92: 0 | BF92: 0 | BG92: 0 | BH92: 0 | BI92: 0 | BJ92: 0 | BK92: 0 | BL92: 0 | BM92: 0 | BN92: 0 | BO92: 0 | BP92: 0 | BQ92: 0 | BR92: 0 | BT92: =IF($E92=NA,0,IF(SUM(K92:BR92)=0,0,IF(OR(LEFT(D92,1)="[",D92=""),1,0))) -> 0 | BU92: =IF(OR($E92=NA,SUM(K92:BR92)=0),0,IF(G92="",1,0)) -> 0 | BV92: =IF(OR($E92=NA,SUM(K92:BR92)=0),0,IF(OR(LEFT(H92,1)="[",H92="",IF(Proj_Type<>Shared,H92<>Proj_Type)),1,0)) -> 0 | BW92: =IF(OR($E92=NA,SUM(K92:BR92)=0),0,IF(OR(LEFT(I92,1)="[",I92=""),1,0)) -> 0 | BX92: =IF(OR($E92=NA,SUM(K92:BR92)=0),0,IF(OR(ISTEXT(K92:BR92),MIN(K92:BR92)<0),1,0)) -> 0
A93: =SUM(BT93:BX93) -> 0 | D93: [Insert description/driver of costs/savings] | E93: =Option_7 -> n/a | F93: =dollar_unit -> $000 | G93: Nominal | H93: =IF(Proj_Type=Shared,Lookup!$G$72,Proj_Type) -> JEN | I93: [Select from list] | K93: 0 | L93: 0 | M93: 0 | N93: 0 | O93: 0 | P93: 0 | Q93: 0 | R93: 0 | S93: 0 | T93: 0 | U93: 0 | V93: 0 | W93: 0 | X93: 0 | Y93: 0 | Z93: 0 | AA93: 0 | AB93: 0 | AC93: 0 | AD93: 0 | AE93: 0 | AF93: 0 | AG93: 0 | AH93: 0 | AI93: 0 | AJ93: 0 | AK93: 0 | AL93: 0 | AM93: 0 | AN93: 0 | AO93: 0 | AP93: 0 | AQ93: 0 | AR93: 0 | AS93: 0 | AT93: 0 | AU93: 0 | AV93: 0 | AW93: 0 | AX93: 0 | AY93: 0 | AZ93: 0 | BA93: 0 | BB93: 0 | BC93: 0 | BD93: 0 | BE93: 0 | BF93: 0 | BG93: 0 | BH93: 0 | BI93: 0 | BJ93: 0 | BK93: 0 | BL93: 0 | BM93: 0 | BN93: 0 | BO93: 0 | BP93: 0 | BQ93: 0 | BR93: 0 | BT93: =IF($E93=NA,0,IF(SUM(K93:BR93)=0,0,IF(OR(LEFT(D93,1)="[",D93=""),1,0))) -> 0 | BU93: =IF(OR($E93=NA,SUM(K93:BR93)=0),0,IF(G93="",1,0)) -> 0 | BV93: =IF(OR($E93=NA,SUM(K93:BR93)=0),0,IF(OR(LEFT(H93,1)="[",H93="",IF(Proj_Type<>Shared,H93<>Proj_Type)),1,0)) -> 0 | BW93: =IF(OR($E93=NA,SUM(K93:BR93)=0),0,IF(OR(LEFT(I93,1)="[",I93=""),1,0)) -> 0 | BX93: =IF(OR($E93=NA,SUM(K93:BR93)=0),0,IF(OR(ISTEXT(K93:BR93),MIN(K93:BR93)<0),1,0)) -> 0
A94: =SUM(BT94:BX94) -> 0 | D94: [Insert description/driver of costs/savings] | E94: =Option_7 -> n/a | F94: =dollar_unit -> $000 | G94: Nominal | H94: =IF(Proj_Type=Shared,Lookup!$G$72,Proj_Type) -> JEN | I94: [Select from list] | K94: 0 | L94: 0 | M94: 0 | N94: 0 | O94: 0 | P94: 0 | Q94: 0 | R94: 0 | S94: 0 | T94: 0 | U94: 0 | V94: 0 | W94: 0 | X94: 0 | Y94: 0 | Z94: 0 | AA94: 0 | AB94: 0 | AC94: 0 | AD94: 0 | AE94: 0 | AF94: 0 | AG94: 0 | AH94: 0 | AI94: 0 | AJ94: 0 | AK94: 0 | AL94: 0 | AM94: 0 | AN94: 0 | AO94: 0 | AP94: 0 | AQ94: 0 | AR94: 0 | AS94: 0 | AT94: 0 | AU94: 0 | AV94: 0 | AW94: 0 | AX94: 0 | AY94: 0 | AZ94: 0 | BA94: 0 | BB94: 0 | BC94: 0 | BD94: 0 | BE94: 0 | BF94: 0 | BG94: 0 | BH94: 0 | BI94: 0 | BJ94: 0 | BK94: 0 | BL94: 0 | BM94: 0 | BN94: 0 | BO94: 0 | BP94: 0 | BQ94: 0 | BR94: 0 | BT94: =IF($E94=NA,0,IF(SUM(K94:BR94)=0,0,IF(OR(LEFT(D94,1)="[",D94=""),1,0))) -> 0 | BU94: =IF(OR($E94=NA,SUM(K94:BR94)=0),0,IF(G94="",1,0)) -> 0 | BV94: =IF(OR($E94=NA,SUM(K94:BR94)=0),0,IF(OR(LEFT(H94,1)="[",H94="",IF(Proj_Type<>Shared,H94<>Proj_Type)),1,0)) -> 0 | BW94: =IF(OR($E94=NA,SUM(K94:BR94)=0),0,IF(OR(LEFT(I94,1)="[",I94=""),1,0)) -> 0 | BX94: =IF(OR($E94=NA,SUM(K94:BR94)=0),0,IF(OR(ISTEXT(K94:BR94),MIN(K94:BR94)<0),1,0)) -> 0
A95: =SUM(BT95:BX95) -> 0 | D95: [Insert description/driver of costs/savings] | E95: =Option_7 -> n/a | F95: =dollar_unit -> $000 | G95: Nominal | H95: =IF(Proj_Type=Shared,Lookup!$G$72,Proj_Type) -> JEN | I95: [Select from list] | K95: 0 | L95: 0 | M95: 0 | N95: 0 | O95: 0 | P95: 0 | Q95: 0 | R95: 0 | S95: 0 | T95: 0 | U95: 0 | V95: 0 | W95: 0 | X95: 0 | Y95: 0 | Z95: 0 | AA95: 0 | AB95: 0 | AC95: 0 | AD95: 0 | AE95: 0 | AF95: 0 | AG95: 0 | AH95: 0 | AI95: 0 | AJ95: 0 | AK95: 0 | AL95: 0 | AM95: 0 | AN95: 0 | AO95: 0 | AP95: 0 | AQ95: 0 | AR95: 0 | AS95: 0 | AT95: 0 | AU95: 0 | AV95: 0 | AW95: 0 | AX95: 0 | AY95: 0 | AZ95: 0 | BA95: 0 | BB95: 0 | BC95: 0 | BD95: 0 | BE95: 0 | BF95: 0 | BG95: 0 | BH95: 0 | BI95: 0 | BJ95: 0 | BK95: 0 | BL95: 0 | BM95: 0 | BN95: 0 | BO95: 0 | BP95: 0 | BQ95: 0 | BR95: 0 | BT95: =IF($E95=NA,0,IF(SUM(K95:BR95)=0,0,IF(OR(LEFT(D95,1)="[",D95=""),1,0))) -> 0 | BU95: =IF(OR($E95=NA,SUM(K95:BR95)=0),0,IF(G95="",1,0)) -> 0 | BV95: =IF(OR($E95=NA,SUM(K95:BR95)=0),0,IF(OR(LEFT(H95,1)="[",H95="",IF(Proj_Type<>Shared,H95<>Proj_Type)),1,0)) -> 0 | BW95: =IF(OR($E95=NA,SUM(K95:BR95)=0),0,IF(OR(LEFT(I95,1)="[",I95=""),1,0)) -> 0 | BX95: =IF(OR($E95=NA,SUM(K95:BR95)=0),0,IF(OR(ISTEXT(K95:BR95),MIN(K95:BR95)<0),1,0)) -> 0
A96: =SUM(BT96:BX96) -> 0 | D96: [Insert description/driver of costs/savings] | E96: =Option_7 -> n/a | F96: =dollar_unit -> $000 | G96: Nominal | H96: =IF(Proj_Type=Shared,Lookup!$G$72,Proj_Type) -> JEN | I96: [Select from list] | K96: 0 | L96: 0 | M96: 0 | N96: 0 | O96: 0 | P96: 0 | Q96: 0 | R96: 0 | S96: 0 | T96: 0 | U96: 0 | V96: 0 | W96: 0 | X96: 0 | Y96: 0 | Z96: 0 | AA96: 0 | AB96: 0 | AC96: 0 | AD96: 0 | AE96: 0 | AF96: 0 | AG96: 0 | AH96: 0 | AI96: 0 | AJ96: 0 | AK96: 0 | AL96: 0 | AM96: 0 | AN96: 0 | AO96: 0 | AP96: 0 | AQ96: 0 | AR96: 0 | AS96: 0 | AT96: 0 | AU96: 0 | AV96: 0 | AW96: 0 | AX96: 0 | AY96: 0 | AZ96: 0 | BA96: 0 | BB96: 0 | BC96: 0 | BD96: 0 | BE96: 0 | BF96: 0 | BG96: 0 | BH96: 0 | BI96: 0 | BJ96: 0 | BK96: 0 | BL96: 0 | BM96: 0 | BN96: 0 | BO96: 0 | BP96: 0 | BQ96: 0 | BR96: 0 | BT96: =IF($E96=NA,0,IF(SUM(K96:BR96)=0,0,IF(OR(LEFT(D96,1)="[",D96=""),1,0))) -> 0 | BU96: =IF(OR($E96=NA,SUM(K96:BR96)=0),0,IF(G96="",1,0)) -> 0 | BV96: =IF(OR($E96=NA,SUM(K96:BR96)=0),0,IF(OR(LEFT(H96,1)="[",H96="",IF(Proj_Type<>Shared,H96<>Proj_Type)),1,0)) -> 0 | BW96: =IF(OR($E96=NA,SUM(K96:BR96)=0),0,IF(OR(LEFT(I96,1)="[",I96=""),1,0)) -> 0 | BX96: =IF(OR($E96=NA,SUM(K96:BR96)=0),0,IF(OR(ISTEXT(K96:BR96),MIN(K96:BR96)<0),1,0)) -> 0
C98: Capex
D100: Please note the following: | E100: Check | G100: Instructions: | M100: Dollar Basis:
D101: 1. Describe the driver of each cost item | E101: =SUM($BT$111:$BT$165) -> 0 | G101: 1. Select the column heading to see more instructions on the dropdown box | M101: Nominal: The actual amount of money paid out each year. Change in nominal dollars include the effect of inflation.
D102: 2. Select appropriate dollar basis | E102: =SUM($BU$111:$BU$165) -> 0 | G102: 2. Asset class must be selected. Description of each asset class is provided ---> | J102: Click this link
D103: 3. Select the asset of each cost item | E103: =SUM($BV$111:$BV$165) -> 0 | G103: 3. Please enter positive values for costs. | M103: Real: The amount of money paid out as of today. Change in real dollars exclude the effect of inflation. When "Real" is selected, the input amount will automatically be escalated by inflation in the following calculations.
D104: 4. Select asset class (matching asset selected) | E104: =SUM($BW$111:$BW$165) -> 0 | G104: 4. Please enter the current level of costs in the 'Status Quo' option, then enter the standalone costs for each subsequent options.
D105: 5. Enter positive values into the costs block | E105: =SUM($BX$111:$BX$165,$BX$171:$BX$225) -> 0
D107: Gross Capex
D109: Gross Capex | E109: =E$4 -> Option | F109: =F$4 -> Unit | G109: =G$4 -> Basis | H109: =H$4 -> Asset | I109: Asset class | K109: =K$54 -> FY24 | L109: FY25 | M109: FY26 | N109: FY27 | O109: FY28 | P109: FY29 | Q109: FY30 | R109: FY31 | S109: FY32 | T109: FY33 | U109: FY34 | V109: FY35 | W109: FY36 | X109: FY37 | Y109: FY38 | Z109: FY39 | AA109: FY40 | AB109: FY41 | AC109: FY42 | AD109: FY43 | AE109: FY44 | AF109: FY45 | AG109: FY46 | AH109: FY47 | AI109: FY48 | AJ109: FY49 | AK109: FY50 | AL109: FY51 | AM109: FY52 | AN109: FY53 | AO109: FY54 | AP109: FY55 | AQ109: =AQ$54 -> FY56 | AR109: FY57 | AS109: FY58 | AT109: FY59 | AU109: FY60 | AV109: FY61 | AW109: FY62 | AX109: FY63 | AY109: FY64 | AZ109: FY65 | BA109: FY66 | BB109: FY67 | BC109: FY68 | BD109: FY69 | BE109: FY70 | BF109: FY71 | BG109: FY72 | BH109: FY73 | BI109: FY74 | BJ109: FY75 | BK109: FY76 | BL109: FY77 | BM109: FY78 | BN109: FY79 | BO109: FY80 | BP109: FY81 | BQ109: FY82 | BR109: FY83 | BT109: Driver | BU109: Basis | BV109: Asset | BW109: Asset Class | BX109: Number
A111: =SUM(BT111:BX111) -> 0 | C111: =LEFT(I111,3) -> [Se | D111: [Insert description/driver of costs/savings] | E111: =Option_1 -> Option 1 | F111: =dollar_unit -> $000 | G111: Nominal | H111: =IF(Proj_Type=Shared,Lookup!$G$72,Proj_Type) -> JEN | I111: =IF(Proj_Type=Shared,Lookup!$C$82,IF(Proj_Type=JEN,Lookup!$C$96,Lookup!$C$83)) -> [Select JEN Asset Class] | K111: 0 | L111: 0 | M111: 0 | N111: 0 | O111: 0 | P111: 0 | Q111: 0 | R111: 0 | S111: 0 | T111: 0 | U111: 0 | V111: 0 | W111: 0 | X111: 0 | Y111: 0 | Z111: 0 | AA111: 0 | AB111: 0 | AC111: 0 | AD111: 0 | AE111: 0 | AF111: 0 | AG111: 0 | AH111: 0 | AI111: 0 | AJ111: 0 | AK111: 0 | AL111: 0 | AM111: 0 | AN111: 0 | AO111: 0 | AP111: 0 | AQ111: 0 | AR111: 0 | AS111: 0 | AT111: 0 | AU111: 0 | AV111: 0 | AW111: 0 | AX111: 0 | AY111: 0 | AZ111: 0 | BA111: 0 | BB111: 0 | BC111: 0 | BD111: 0 | BE111: 0 | BF111: 0 | BG111: 0 | BH111: 0 | BI111: 0 | BJ111: 0 | BK111: 0 | BL111: 0 | BM111: 0 | BN111: 0 | BO111: 0 | BP111: 0 | BQ111: 0 | BR111: 0 | BT111: =IF(OR($E111=NA,SUM(K111:BR111,K171:BR171)=0),0,IF(OR(LEFT(D111,1)="[",D111=""),1,0)) -> 0 | BU111: =IF(OR($E111=NA,SUM(K111:BR111,K171:BR171)=0),0,IF(G111="",1,0)) -> 0 | BV111: =IF(OR($E111=NA,SUM(K111:BR111,K171:BR171)=0),0,IF(OR(LEFT(H111,1)="[",H111="",IF(Proj_Type<>Shared,H111<>Proj_Type)),1,0)) -> 0 | BW111: =IF(OR($E111=NA,SUM(K111:BR111,K171:BR171)=0),0,IF(OR(LEFT(I111,1)="[",I111=""),1,IF(OR(H111=JEN,H111=JGN),IF(LEFT(I111,3)=H111,0,1),0))) -> 0 | BX111: =IF(OR($E111=NA,SUM(K111:BR111)=0),0,IF(OR(ISTEXT(K111:BR111),MIN(K111:BR111)<0),1,0)) -> 0
A112: 0 | C112: [Se | D112: [Insert description/driver of costs/savings] | E112: Option 1 | F112: $000 | G112: Nominal | H112: =IF(Proj_Type=Shared,Lookup!$G$72,Proj_Type) -> JEN | I112: =IF(Proj_Type=Shared,Lookup!$C$82,IF(Proj_Type=JEN,Lookup!$C$96,Lookup!$C$83)) -> [Select JEN Asset Class] | K112: 0 | L112: 0 | M112: 0 | N112: 0 | O112: 0 | P112: 0 | Q112: 0 | R112: 0 | S112: 0 | T112: 0 | U112: 0 | V112: 0 | W112: 0 | X112: 0 | Y112: 0 | Z112: 0 | AA112: 0 | AB112: 0 | AC112: 0 | AD112: 0 | AE112: 0 | AF112: 0 | AG112: 0 | AH112: 0 | AI112: 0 | AJ112: 0 | AK112: 0 | AL112: 0 | AM112: 0 | AN112: 0 | AO112: 0 | AP112: 0 | AQ112: 0 | AR112: 0 | AS112: 0 | AT112: 0 | AU112: 0 | AV112: 0 | AW112: 0 | AX112: 0 | AY112: 0 | AZ112: 0 | BA112: 0 | BB112: 0 | BC112: 0 | BD112: 0 | BE112: 0 | BF112: 0 | BG112: 0 | BH112: 0 | BI112: 0 | BJ112: 0 | BK112: 0 | BL112: 0 | BM112: 0 | BN112: 0 | BO112: 0 | BP112: 0 | BQ112: 0 | BR112: 0 | BT112: 0 | BU112: 0 | BV112: 0 | BW112: 0 | BX112: 0
A113: 0 | C113: [Se | D113: [Insert description/driver of costs/savings] | E113: Option 1 | F113: $000 | G113: Nominal | H113: =IF(Proj_Type=Shared,Lookup!$G$72,Proj_Type) -> JEN | I113: =IF(Proj_Type=Shared,Lookup!$C$82,IF(Proj_Type=JEN,Lookup!$C$96,Lookup!$C$83)) -> [Select JEN Asset Class] | K113: 0 | L113: 0 | M113: 0 | N113: 0 | O113: 0 | P113: 0 | Q113: 0 | R113: 0 | S113: 0 | T113: 0 | U113: 0 | V113: 0 | W113: 0 | X113: 0 | Y113: 0 | Z113: 0 | AA113: 0 | AB113: 0 | AC113: 0 | AD113: 0 | AE113: 0 | AF113: 0 | AG113: 0 | AH113: 0 | AI113: 0 | AJ113: 0 | AK113: 0 | AL113: 0 | AM113: 0 | AN113: 0 | AO113: 0 | AP113: 0 | AQ113: 0 | AR113: 0 | AS113: 0 | AT113: 0 | AU113: 0 | AV113: 0 | AW113: 0 | AX113: 0 | AY113: 0 | AZ113: 0 | BA113: 0 | BB113: 0 | BC113: 0 | BD113: 0 | BE113: 0 | BF113: 0 | BG113: 0 | BH113: 0 | BI113: 0 | BJ113: 0 | BK113: 0 | BL113: 0 | BM113: 0 | BN113: 0 | BO113: 0 | BP113: 0 | BQ113: 0 | BR113: 0 | BT113: 0 | BU113: 0 | BV113: 0 | BW113: 0 | BX113: 0
A114: 0 | C114: [Se | D114: [Insert description/driver of costs/savings] | E114: Option 1 | F114: $000 | G114: Nominal | H114: =IF(Proj_Type=Shared,Lookup!$G$72,Proj_Type) -> JEN | I114: =IF(Proj_Type=Shared,Lookup!$C$82,IF(Proj_Type=JEN,Lookup!$C$96,Lookup!$C$83)) -> [Select JEN Asset Class] | K114: 0 | L114: 0 | M114: 0 | N114: 0 | O114: 0 | P114: 0 | Q114: 0 | R114: 0 | S114: 0 | T114: 0 | U114: 0 | V114: 0 | W114: 0 | X114: 0 | Y114: 0 | Z114: 0 | AA114: 0 | AB114: 0 | AC114: 0 | AD114: 0 | AE114: 0 | AF114: 0 | AG114: 0 | AH114: 0 | AI114: 0 | AJ114: 0 | AK114: 0 | AL114: 0 | AM114: 0 | AN114: 0 | AO114: 0 | AP114: 0 | AQ114: 0 | AR114: 0 | AS114: 0 | AT114: 0 | AU114: 0 | AV114: 0 | AW114: 0 | AX114: 0 | AY114: 0 | AZ114: 0 | BA114: 0 | BB114: 0 | BC114: 0 | BD114: 0 | BE114: 0 | BF114: 0 | BG114: 0 | BH114: 0 | BI114: 0 | BJ114: 0 | BK114: 0 | BL114: 0 | BM114: 0 | BN114: 0 | BO114: 0 | BP114: 0 | BQ114: 0 | BR114: 0 | BT114: 0 | BU114: 0 | BV114: 0 | BW114: 0 | BX114: 0
A115: 0 | C115: [Se | D115: [Insert description/driver of costs/savings] | E115: Option 1 | F115: $000 | G115: Nominal | H115: =IF(Proj_Type=Shared,Lookup!$G$72,Proj_Type) -> JEN | I115: =IF(Proj_Type=Shared,Lookup!$C$82,IF(Proj_Type=JEN,Lookup!$C$96,Lookup!$C$83)) -> [Select JEN Asset Class] | K115: 0 | L115: 0 | M115: 0 | N115: 0 | O115: 0 | P115: 0 | Q115: 0 | R115: 0 | S115: 0 | T115: 0 | U115: 0 | V115: 0 | W115: 0 | X115: 0 | Y115: 0 | Z115: 0 | AA115: 0 | AB115: 0 | AC115: 0 | AD115: 0 | AE115: 0 | AF115: 0 | AG115: 0 | AH115: 0 | AI115: 0 | AJ115: 0 | AK115: 0 | AL115: 0 | AM115: 0 | AN115: 0 | AO115: 0 | AP115: 0 | AQ115: 0 | AR115: 0 | AS115: 0 | AT115: 0 | AU115: 0 | AV115: 0 | AW115: 0 | AX115: 0 | AY115: 0 | AZ115: 0 | BA115: 0 | BB115: 0 | BC115: 0 | BD115: 0 | BE115: 0 | BF115: 0 | BG115: 0 | BH115: 0 | BI115: 0 | BJ115: 0 | BK115: 0 | BL115: 0 | BM115: 0 | BN115: 0 | BO115: 0 | BP115: 0 | BQ115: 0 | BR115: 0 | BT115: 0 | BU115: 0 | BV115: 0 | BW115: 0 | BX115: 0
A116: 0 | C116: [Se | D116: [Insert description/driver of costs/savings] | E116: Option 1 | F116: $000 | G116: Nominal | H116: =IF(Proj_Type=Shared,Lookup!$G$72,Proj_Type) -> JEN | I116: =IF(Proj_Type=Shared,Lookup!$C$82,IF(Proj_Type=JEN,Lookup!$C$96,Lookup!$C$83)) -> [Select JEN Asset Class] | K116: 0 | L116: 0 | M116: 0 | N116: 0 | O116: 0 | P116: 0 | Q116: 0 | R116: 0 | S116: 0 | T116: 0 | U116: 0 | V116: 0 | W116: 0 | X116: 0 | Y116: 0 | Z116: 0 | AA116: 0 | AB116: 0 | AC116: 0 | AD116: 0 | AE116: 0 | AF116: 0 | AG116: 0 | AH116: 0 | AI116: 0 | AJ116: 0 | AK116: 0 | AL116: 0 | AM116: 0 | AN116: 0 | AO116: 0 | AP116: 0 | AQ116: 0 | AR116: 0 | AS116: 0 | AT116: 0 | AU116: 0 | AV116: 0 | AW116: 0 | AX116: 0 | AY116: 0 | AZ116: 0 | BA116: 0 | BB116: 0 | BC116: 0 | BD116: 0 | BE116: 0 | BF116: 0 | BG116: 0 | BH116: 0 | BI116: 0 | BJ116: 0 | BK116: 0 | BL116: 0 | BM116: 0 | BN116: 0 | BO116: 0 | BP116: 0 | BQ116: 0 | BR116: 0 | BT116: 0 | BU116: 0 | BV116: 0 | BW116: 0 | BX116: 0
A117: 0 | C117: [Se | D117: [Insert description/driver of costs/savings] | E117: Option 1 | F117: $000 | G117: Nominal | H117: =IF(Proj_Type=Shared,Lookup!$G$72,Proj_Type) -> JEN | I117: =IF(Proj_Type=Shared,Lookup!$C$82,IF(Proj_Type=JEN,Lookup!$C$96,Lookup!$C$83)) -> [Select JEN Asset Class] | K117: 0 | L117: 0 | M117: 0 | N117: 0 | O117: 0 | P117: 0 | Q117: 0 | R117: 0 | S117: 0 | T117: 0 | U117: 0 | V117: 0 | W117: 0 | X117: 0 | Y117: 0 | Z117: 0 | AA117: 0 | AB117: 0 | AC117: 0 | AD117: 0 | AE117: 0 | AF117: 0 | AG117: 0 | AH117: 0 | AI117: 0 | AJ117: 0 | AK117: 0 | AL117: 0 | AM117: 0 | AN117: 0 | AO117: 0 | AP117: 0 | AQ117: 0 | AR117: 0 | AS117: 0 | AT117: 0 | AU117: 0 | AV117: 0 | AW117: 0 | AX117: 0 | AY117: 0 | AZ117: 0 | BA117: 0 | BB117: 0 | BC117: 0 | BD117: 0 | BE117: 0 | BF117: 0 | BG117: 0 | BH117: 0 | BI117: 0 | BJ117: 0 | BK117: 0 | BL117: 0 | BM117: 0 | BN117: 0 | BO117: 0 | BP117: 0 | BQ117: 0 | BR117: 0 | BT117: 0 | BU117: 0 | BV117: 0 | BW117: 0 | BX117: 0
A119: =SUM(BT119:BX119) -> 0 | C119: JEN | D119: Digital capex | E119: =Option_2 -> Option 2 | F119: =dollar_unit -> $000 | G119: Real 2024 | H119: =IF(Proj_Type=Shared,Lookup!$G$72,Proj_Type) -> JEN | I119: JEN SCS - Non network - IT (Infrastructure) | K119: 0 | L119: 0 | M119: 0 | N119: 1688 | O119: 270 | P119: 0 | Q119: 0 | R119: 0 | S119: 0 | T119: 0 | U119: 0 | V119: 0 | W119: 0 | X119: 0 | Y119: 0 | Z119: 0 | AA119: 0 | AB119: 0 | AC119: 0 | AD119: 0 | AE119: 0 | AF119: 0 | AG119: 0 | AH119: 0 | AI119: 0 | AJ119: 0 | AK119: 0 | AL119: 0 | AM119: 0 | AN119: 0 | AO119: 0 | AP119: 0 | AQ119: 0 | AR119: 0 | AS119: 0 | AT119: 0 | AU119: 0 | AV119: 0 | AW119: 0 | AX119: 0 | AY119: 0 | AZ119: 0 | BA119: 0 | BB119: 0 | BC119: 0 | BD119: 0 | BE119: 0 | BF119: 0 | BG119: 0 | BH119: 0 | BI119: 0 | BJ119: 0 | BK119: 0 | BL119: 0 | BM119: 0 | BN119: 0 | BO119: 0 | BP119: 0 | BQ119: 0 | BR119: 0 | BT119: =IF(OR($E119=NA,SUM(K119:BR119,K179:BR179)=0),0,IF(OR(LEFT(D119,1)="[",D119=""),1,0)) -> 0 | BU119: =IF(OR($E119=NA,SUM(K119:BR119,K179:BR179)=0),0,IF(G119="",1,0)) -> 0 | BV119: =IF(OR($E119=NA,SUM(K119:BR119,K179:BR179)=0),0,IF(OR(LEFT(H119,1)="[",H119="",IF(Proj_Type<>Shared,H119<>Proj_Type)),1,0)) -> 0 | BW119: =IF(OR($E119=NA,SUM(K119:BR119,K179:BR179)=0),0,IF(OR(LEFT(I119,1)="[",I119=""),1,IF(OR(H119=JEN,H119=JGN),IF(LEFT(I119,3)=H119,0,1),0))) -> 0 | BX119: =IF(OR($E119=NA,SUM(K119:BR119)=0),0,IF(OR(ISTEXT(K119:BR119),MIN(K119:BR119)<0),1,0)) -> 0
A120: 0 | C120: [Se | D120: [Insert description/driver of costs/savings] | E120: Option 2 | F120: $000 | G120: Nominal | H120: =IF(Proj_Type=Shared,Lookup!$G$72,Proj_Type) -> JEN | I120: =IF(Proj_Type=Shared,Lookup!$C$82,IF(Proj_Type=JEN,Lookup!$C$96,Lookup!$C$83)) -> [Select JEN Asset Class] | K120: 0 | L120: 0 | M120: 0 | R120: 0 | S120: 0 | T120: 0 | U120: 0 | V120: 0 | W120: 0 | X120: 0 | Y120: 0 | Z120: 0 | AA120: 0 | AB120: 0 | AC120: 0 | AD120: 0 | AE120: 0 | AF120: 0 | AG120: 0 | AH120: 0 | AI120: 0 | AJ120: 0 | AK120: 0 | AL120: 0 | AM120: 0 | AN120: 0 | AO120: 0 | AP120: 0 | AQ120: 0 | AR120: 0 | AS120: 0 | AT120: 0 | AU120: 0 | AV120: 0 | AW120: 0 | AX120: 0 | AY120: 0 | AZ120: 0 | BA120: 0 | BB120: 0 | BC120: 0 | BD120: 0 | BE120: 0 | BF120: 0 | BG120: 0 | BH120: 0 | BI120: 0 | BJ120: 0 | BK120: 0 | BL120: 0 | BM120: 0 | BN120: 0 | BO120: 0 | BP120: 0 | BQ120: 0 | BR120: 0 | BT120: 0 | BU120: 0 | BV120: 0 | BW120: 0 | BX120: 0
A121: 0 | C121: [Se | D121: [Insert description/driver of costs/savings] | E121: Option 2 | F121: $000 | G121: Nominal | H121: =IF(Proj_Type=Shared,Lookup!$G$72,Proj_Type) -> JEN | I121: =IF(Proj_Type=Shared,Lookup!$C$82,IF(Proj_Type=JEN,Lookup!$C$96,Lookup!$C$83)) -> [Select JEN Asset Class] | K121: 0 | L121: 0 | M121: 0 | N121: 0 | O121: 0 | P121: 0 | Q121: 0 | R121: 0 | S121: 0 | T121: 0 | U121: 0 | V121: 0 | W121: 0 | X121: 0 | Y121: 0 | Z121: 0 | AA121: 0 | AB121: 0 | AC121: 0 | AD121: 0 | AE121: 0 | AF121: 0 | AG121: 0 | AH121: 0 | AI121: 0 | AJ121: 0 | AK121: 0 | AL121: 0 | AM121: 0 | AN121: 0 | AO121: 0 | AP121: 0 | AQ121: 0 | AR121: 0 | AS121: 0 | AT121: 0 | AU121: 0 | AV121: 0 | AW121: 0 | AX121: 0 | AY121: 0 | AZ121: 0 | BA121: 0 | BB121: 0 | BC121: 0 | BD121: 0 | BE121: 0 | BF121: 0 | BG121: 0 | BH121: 0 | BI121: 0 | BJ121: 0 | BK121: 0 | BL121: 0 | BM121: 0 | BN121: 0 | BO121: 0 | BP121: 0 | BQ121: 0 | BR121: 0 | BT121: 0 | BU121: 0 | BV121: 0 | BW121: 0 | BX121: 0
A122: 0 | C122: [Se | D122: [Insert description/driver of costs/savings] | E122: Option 2 | F122: $000 | G122: Nominal | H122: =IF(Proj_Type=Shared,Lookup!$G$72,Proj_Type) -> JEN | I122: =IF(Proj_Type=Shared,Lookup!$C$82,IF(Proj_Type=JEN,Lookup!$C$96,Lookup!$C$83)) -> [Select JEN Asset Class] | K122: 0 | L122: 0 | M122: 0 | N122: 0 | O122: 0 | P122: 0 | Q122: 0 | R122: 0 | S122: 0 | T122: 0 | U122: 0 | V122: 0 | W122: 0 | X122: 0 | Y122: 0 | Z122: 0 | AA122: 0 | AB122: 0 | AC122: 0 | AD122: 0 | AE122: 0 | AF122: 0 | AG122: 0 | AH122: 0 | AI122: 0 | AJ122: 0 | AK122: 0 | AL122: 0 | AM122: 0 | AN122: 0 | AO122: 0 | AP122: 0 | AQ122: 0 | AR122: 0 | AS122: 0 | AT122: 0 | AU122: 0 | AV122: 0 | AW122: 0 | AX122: 0 | AY122: 0 | AZ122: 0 | BA122: 0 | BB122: 0 | BC122: 0 | BD122: 0 | BE122: 0 | BF122: 0 | BG122: 0 | BH122: 0 | BI122: 0 | BJ122: 0 | BK122: 0 | BL122: 0 | BM122: 0 | BN122: 0 | BO122: 0 | BP122: 0 | BQ122: 0 | BR122: 0 | BT122: 0 | BU122: 0 | BV122: 0 | BW122: 0 | BX122: 0
A123: 0 | C123: [Se | D123: [Insert description/driver of costs/savings] | E123: Option 2 | F123: $000 | G123: Nominal | H123: =IF(Proj_Type=Shared,Lookup!$G$72,Proj_Type) -> JEN | I123: =IF(Proj_Type=Shared,Lookup!$C$82,IF(Proj_Type=JEN,Lookup!$C$96,Lookup!$C$83)) -> [Select JEN Asset Class] | K123: 0 | L123: 0 | M123: 0 | N123: 0 | O123: 0 | P123: 0 | Q123: 0 | R123: 0 | S123: 0 | T123: 0 | U123: 0 | V123: 0 | W123: 0 | X123: 0 | Y123: 0 | Z123: 0 | AA123: 0 | AB123: 0 | AC123: 0 | AD123: 0 | AE123: 0 | AF123: 0 | AG123: 0 | AH123: 0 | AI123: 0 | AJ123: 0 | AK123: 0 | AL123: 0 | AM123: 0 | AN123: 0 | AO123: 0 | AP123: 0 | AQ123: 0 | AR123: 0 | AS123: 0 | AT123: 0 | AU123: 0 | AV123: 0 | AW123: 0 | AX123: 0 | AY123: 0 | AZ123: 0 | BA123: 0 | BB123: 0 | BC123: 0 | BD123: 0 | BE123: 0 | BF123: 0 | BG123: 0 | BH123: 0 | BI123: 0 | BJ123: 0 | BK123: 0 | BL123: 0 | BM123: 0 | BN123: 0 | BO123: 0 | BP123: 0 | BQ123: 0 | BR123: 0 | BT123: 0 | BU123: 0 | BV123: 0 | BW123: 0 | BX123: 0
A124: 0 | C124: [Se | D124: [Insert description/driver of costs/savings] | E124: Option 2 | F124: $000 | G124: Nominal | H124: =IF(Proj_Type=Shared,Lookup!$G$72,Proj_Type) -> JEN | I124: =IF(Proj_Type=Shared,Lookup!$C$82,IF(Proj_Type=JEN,Lookup!$C$96,Lookup!$C$83)) -> [Select JEN Asset Class] | K124: 0 | L124: 0 | M124: 0 | N124: 0 | O124: 0 | P124: 0 | Q124: 0 | R124: 0 | S124: 0 | T124: 0 | U124: 0 | V124: 0 | W124: 0 | X124: 0 | Y124: 0 | Z124: 0 | AA124: 0 | AB124: 0 | AC124: 0 | AD124: 0 | AE124: 0 | AF124: 0 | AG124: 0 | AH124: 0 | AI124: 0 | AJ124: 0 | AK124: 0 | AL124: 0 | AM124: 0 | AN124: 0 | AO124: 0 | AP124: 0 | AQ124: 0 | AR124: 0 | AS124: 0 | AT124: 0 | AU124: 0 | AV124: 0 | AW124: 0 | AX124: 0 | AY124: 0 | AZ124: 0 | BA124: 0 | BB124: 0 | BC124: 0 | BD124: 0 | BE124: 0 | BF124: 0 | BG124: 0 | BH124: 0 | BI124: 0 | BJ124: 0 | BK124: 0 | BL124: 0 | BM124: 0 | BN124: 0 | BO124: 0 | BP124: 0 | BQ124: 0 | BR124: 0 | BT124: 0 | BU124: 0 | BV124: 0 | BW124: 0 | BX124: 0
A125: 0 | C125: [Se | D125: [Insert description/driver of costs/savings] | E125: Option 2 | F125: $000 | G125: Nominal | H125: =IF(Proj_Type=Shared,Lookup!$G$72,Proj_Type) -> JEN | I125: =IF(Proj_Type=Shared,Lookup!$C$82,IF(Proj_Type=JEN,Lookup!$C$96,Lookup!$C$83)) -> [Select JEN Asset Class] | K125: 0 | L125: 0 | M125: 0 | N125: 0 | O125: 0 | P125: 0 | Q125: 0 | R125: 0 | S125: 0 | T125: 0 | U125: 0 | V125: 0 | W125: 0 | X125: 0 | Y125: 0 | Z125: 0 | AA125: 0 | AB125: 0 | AC125: 0 | AD125: 0 | AE125: 0 | AF125: 0 | AG125: 0 | AH125: 0 | AI125: 0 | AJ125: 0 | AK125: 0 | AL125: 0 | AM125: 0 | AN125: 0 | AO125: 0 | AP125: 0 | AQ125: 0 | AR125: 0 | AS125: 0 | AT125: 0 | AU125: 0 | AV125: 0 | AW125: 0 | AX125: 0 | AY125: 0 | AZ125: 0 | BA125: 0 | BB125: 0 | BC125: 0 | BD125: 0 | BE125: 0 | BF125: 0 | BG125: 0 | BH125: 0 | BI125: 0 | BJ125: 0 | BK125: 0 | BL125: 0 | BM125: 0 | BN125: 0 | BO125: 0 | BP125: 0 | BQ125: 0 | BR125: 0 | BT125: 0 | BU125: 0 | BV125: 0 | BW125: 0 | BX125: 0
A127: =SUM(BT127:BX127) -> 0 | C127: JEN | D127: Digital capex | E127: =Option_3 -> Option 3 | F127: =dollar_unit -> $000 | G127: Real 2024 | H127: =IF(Proj_Type=Shared,Lookup!$G$72,Proj_Type) -> JEN | I127: JEN SCS - Non network - IT (Infrastructure) | K127: 0 | L127: 0 | M127: 0 | N127: 800 | O127: 0 | P127: 1505.4 | Q127: 0 | R127: 0 | S127: 0 | T127: 0 | U127: 0 | V127: 0 | W127: 0 | X127: 0 | Y127: 0 | Z127: 0 | AA127: 0 | AB127: 0 | AC127: 0 | AD127: 0 | AE127: 0 | AF127: 0 | AG127: 0 | AH127: 0 | AI127: 0 | AJ127: 0 | AK127: 0 | AL127: 0 | AM127: 0 | AN127: 0 | AO127: 0 | AP127: 0 | AQ127: 0 | AR127: 0 | AS127: 0 | AT127: 0 | AU127: 0 | AV127: 0 | AW127: 0 | AX127: 0 | AY127: 0 | AZ127: 0 | BA127: 0 | BB127: 0 | BC127: 0 | BD127: 0 | BE127: 0 | BF127: 0 | BG127: 0 | BH127: 0 | BI127: 0 | BJ127: 0 | BK127: 0 | BL127: 0 | BM127: 0 | BN127: 0 | BO127: 0 | BP127: 0 | BQ127: 0 | BR127: 0 | BT127: =IF(OR($E127=NA,SUM(K127:BR127,K187:BR187)=0),0,IF(OR(LEFT(D127,1)="[",D127=""),1,0)) -> 0 | BU127: =IF(OR($E127=NA,SUM(K127:BR127,K187:BR187)=0),0,IF(G127="",1,0)) -> 0 | BV127: =IF(OR($E127=NA,SUM(K127:BR127,K187:BR187)=0),0,IF(OR(LEFT(H127,1)="[",H127="",IF(Proj_Type<>Shared,H127<>Proj_Type)),1,0)) -> 0 | BW127: =IF(OR($E127=NA,SUM(K127:BR127,K187:BR187)=0),0,IF(OR(LEFT(I127,1)="[",I127=""),1,IF(OR(H127=JEN,H127=JGN),IF(LEFT(I127,3)=H127,0,1),0))) -> 0 | BX127: =IF(OR($E127=NA,SUM(K127:BR127)=0),0,IF(OR(ISTEXT(K127:BR127),MIN(K127:BR127)<0),1,0)) -> 0
A128: 0 | C128: [Se | D128: [Insert description/driver of costs/savings] | E128: Option 3 | F128: $000 | G128: Nominal | H128: =IF(Proj_Type=Shared,Lookup!$G$72,Proj_Type) -> JEN | I128: =IF(Proj_Type=Shared,Lookup!$C$82,IF(Proj_Type=JEN,Lookup!$C$96,Lookup!$C$83)) -> [Select JEN Asset Class] | K128: 0 | L128: 0 | M128: 0 | N128: 0 | O128: 0 | P128: 0 | Q128: 0 | R128: 0 | S128: 0 | T128: 0 | U128: 0 | V128: 0 | W128: 0 | X128: 0 | Y128: 0 | Z128: 0 | AA128: 0 | AB128: 0 | AC128: 0 | AD128: 0 | AE128: 0 | AF128: 0 | AG128: 0 | AH128: 0 | AI128: 0 | AJ128: 0 | AK128: 0 | AL128: 0 | AM128: 0 | AN128: 0 | AO128: 0 | AP128: 0 | AQ128: 0 | AR128: 0 | AS128: 0 | AT128: 0 | AU128: 0 | AV128: 0 | AW128: 0 | AX128: 0 | AY128: 0 | AZ128: 0 | BA128: 0 | BB128: 0 | BC128: 0 | BD128: 0 | BE128: 0 | BF128: 0 | BG128: 0 | BH128: 0 | BI128: 0 | BJ128: 0 | BK128: 0 | BL128: 0 | BM128: 0 | BN128: 0 | BO128: 0 | BP128: 0 | BQ128: 0 | BR128: 0 | BT128: 0 | BU128: 0 | BV128: 0 | BW128: 0 | BX128: 0
A129: 0 | C129: [Se | D129: [Insert description/driver of costs/savings] | E129: Option 3 | F129: $000 | G129: Nominal | H129: =IF(Proj_Type=Shared,Lookup!$G$72,Proj_Type) -> JEN | I129: =IF(Proj_Type=Shared,Lookup!$C$82,IF(Proj_Type=JEN,Lookup!$C$96,Lookup!$C$83)) -> [Select JEN Asset Class] | K129: 0 | L129: 0 | M129: 0 | N129: 0 | O129: 0 | P129: 0 | Q129: 0 | R129: 0 | S129: 0 | T129: 0 | U129: 0 | V129: 0 | W129: 0 | X129: 0 | Y129: 0 | Z129: 0 | AA129: 0 | AB129: 0 | AC129: 0 | AD129: 0 | AE129: 0 | AF129: 0 | AG129: 0 | AH129: 0 | AI129: 0 | AJ129: 0 | AK129: 0 | AL129: 0 | AM129: 0 | AN129: 0 | AO129: 0 | AP129: 0 | AQ129: 0 | AR129: 0 | AS129: 0 | AT129: 0 | AU129: 0 | AV129: 0 | AW129: 0 | AX129: 0 | AY129: 0 | AZ129: 0 | BA129: 0 | BB129: 0 | BC129: 0 | BD129: 0 | BE129: 0 | BF129: 0 | BG129: 0 | BH129: 0 | BI129: 0 | BJ129: 0 | BK129: 0 | BL129: 0 | BM129: 0 | BN129: 0 | BO129: 0 | BP129: 0 | BQ129: 0 | BR129: 0 | BT129: 0 | BU129: 0 | BV129: 0 | BW129: 0 | BX129: 0
A130: 0 | C130: [Se | D130: [Insert description/driver of costs/savings] | E130: Option 3 | F130: $000 | G130: Nominal | H130: =IF(Proj_Type=Shared,Lookup!$G$72,Proj_Type) -> JEN | I130: =IF(Proj_Type=Shared,Lookup!$C$82,IF(Proj_Type=JEN,Lookup!$C$96,Lookup!$C$83)) -> [Select JEN Asset Class] | K130: 0 | L130: 0 | M130: 0 | N130: 0 | O130: 0 | P130: 0 | Q130: 0 | R130: 0 | S130: 0 | T130: 0 | U130: 0 | V130: 0 | W130: 0 | X130: 0 | Y130: 0 | Z130: 0 | AA130: 0 | AB130: 0 | AC130: 0 | AD130: 0 | AE130: 0 | AF130: 0 | AG130: 0 | AH130: 0 | AI130: 0 | AJ130: 0 | AK130: 0 | AL130: 0 | AM130: 0 | AN130: 0 | AO130: 0 | AP130: 0 | AQ130: 0 | AR130: 0 | AS130: 0 | AT130: 0 | AU130: 0 | AV130: 0 | AW130: 0 | AX130: 0 | AY130: 0 | AZ130: 0 | BA130: 0 | BB130: 0 | BC130: 0 | BD130: 0 | BE130: 0 | BF130: 0 | BG130: 0 | BH130: 0 | BI130: 0 | BJ130: 0 | BK130: 0 | BL130: 0 | BM130: 0 | BN130: 0 | BO130: 0 | BP130: 0 | BQ130: 0 | BR130: 0 | BT130: 0 | BU130: 0 | BV130: 0 | BW130: 0 | BX130: 0
A131: 0 | C131: [Se | D131: [Insert description/driver of costs/savings] | E131: Option 3 | F131: $000 | G131: Nominal | H131: =IF(Proj_Type=Shared,Lookup!$G$72,Proj_Type) -> JEN | I131: =IF(Proj_Type=Shared,Lookup!$C$82,IF(Proj_Type=JEN,Lookup!$C$96,Lookup!$C$83)) -> [Select JEN Asset Class] | K131: 0 | L131: 0 | M131: 0 | N131: 0 | O131: 0 | P131: 0 | Q131: 0 | R131: 0 | S131: 0 | T131: 0 | U131: 0 | V131: 0 | W131: 0 | X131: 0 | Y131: 0 | Z131: 0 | AA131: 0 | AB131: 0 | AC131: 0 | AD131: 0 | AE131: 0 | AF131: 0 | AG131: 0 | AH131: 0 | AI131: 0 | AJ131: 0 | AK131: 0 | AL131: 0 | AM131: 0 | AN131: 0 | AO131: 0 | AP131: 0 | AQ131: 0 | AR131: 0 | AS131: 0 | AT131: 0 | AU131: 0 | AV131: 0 | AW131: 0 | AX131: 0 | AY131: 0 | AZ131: 0 | BA131: 0 | BB131: 0 | BC131: 0 | BD131: 0 | BE131: 0 | BF131: 0 | BG131: 0 | BH131: 0 | BI131: 0 | BJ131: 0 | BK131: 0 | BL131: 0 | BM131: 0 | BN131: 0 | BO131: 0 | BP131: 0 | BQ131: 0 | BR131: 0 | BT131: 0 | BU131: 0 | BV131: 0 | BW131: 0 | BX131: 0
A132: 0 | C132: [Se | D132: [Insert description/driver of costs/savings] | E132: Option 3 | F132: $000 | G132: Nominal | H132: =IF(Proj_Type=Shared,Lookup!$G$72,Proj_Type) -> JEN | I132: =IF(Proj_Type=Shared,Lookup!$C$82,IF(Proj_Type=JEN,Lookup!$C$96,Lookup!$C$83)) -> [Select JEN Asset Class] | K132: 0 | L132: 0 | M132: 0 | N132: 0 | O132: 0 | P132: 0 | Q132: 0 | R132: 0 | S132: 0 | T132: 0 | U132: 0 | V132: 0 | W132: 0 | X132: 0 | Y132: 0 | Z132: 0 | AA132: 0 | AB132: 0 | AC132: 0 | AD132: 0 | AE132: 0 | AF132: 0 | AG132: 0 | AH132: 0 | AI132: 0 | AJ132: 0 | AK132: 0 | AL132: 0 | AM132: 0 | AN132: 0 | AO132: 0 | AP132: 0 | AQ132: 0 | AR132: 0 | AS132: 0 | AT132: 0 | AU132: 0 | AV132: 0 | AW132: 0 | AX132: 0 | AY132: 0 | AZ132: 0 | BA132: 0 | BB132: 0 | BC132: 0 | BD132: 0 | BE132: 0 | BF132: 0 | BG132: 0 | BH132: 0 | BI132: 0 | BJ132: 0 | BK132: 0 | BL132: 0 | BM132: 0 | BN132: 0 | BO132: 0 | BP132: 0 | BQ132: 0 | BR132: 0 | BT132: 0 | BU132: 0 | BV132: 0 | BW132: 0 | BX132: 0
A133: 0 | C133: [Se | D133: [Insert description/driver of costs/savings] | E133: Option 3 | F133: $000 | G133: Nominal | H133: =IF(Proj_Type=Shared,Lookup!$G$72,Proj_Type) -> JEN | I133: =IF(Proj_Type=Shared,Lookup!$C$82,IF(Proj_Type=JEN,Lookup!$C$96,Lookup!$C$83)) -> [Select JEN Asset Class] | K133: 0 | L133: 0 | M133: 0 | N133: 0 | O133: 0 | P133: 0 | Q133: 0 | R133: 0 | S133: 0 | T133: 0 | U133: 0 | V133: 0 | W133: 0 | X133: 0 | Y133: 0 | Z133: 0 | AA133: 0 | AB133: 0 | AC133: 0 | AD133: 0 | AE133: 0 | AF133: 0 | AG133: 0 | AH133: 0 | AI133: 0 | AJ133: 0 | AK133: 0 | AL133: 0 | AM133: 0 | AN133: 0 | AO133: 0 | AP133: 0 | AQ133: 0 | AR133: 0 | AS133: 0 | AT133: 0 | AU133: 0 | AV133: 0 | AW133: 0 | AX133: 0 | AY133: 0 | AZ133: 0 | BA133: 0 | BB133: 0 | BC133: 0 | BD133: 0 | BE133: 0 | BF133: 0 | BG133: 0 | BH133: 0 | BI133: 0 | BJ133: 0 | BK133: 0 | BL133: 0 | BM133: 0 | BN133: 0 | BO133: 0 | BP133: 0 | BQ133: 0 | BR133: 0 | BT133: 0 | BU133: 0 | BV133: 0 | BW133: 0 | BX133: 0
A135: =SUM(BT135:BX135) -> 0 | C135: [Se | D135: [Insert description/driver of costs/savings] | E135: =Option_4 -> n/a | F135: =dollar_unit -> $000 | G135: Nominal | H135: =IF(Proj_Type=Shared,Lookup!$G$72,Proj_Type) -> JEN | I135: =IF(Proj_Type=Shared,Lookup!$C$82,IF(Proj_Type=JEN,Lookup!$C$96,Lookup!$C$83)) -> [Select JEN Asset Class] | K135: 0 | L135: 0 | M135: 0 | N135: 0 | O135: 0 | P135: 0 | Q135: 0 | R135: 0 | S135: 0 | T135: 0 | U135: 0 | V135: 0 | W135: 0 | X135: 0 | Y135: 0 | Z135: 0 | AA135: 0 | AB135: 0 | AC135: 0 | AD135: 0 | AE135: 0 | AF135: 0 | AG135: 0 | AH135: 0 | AI135: 0 | AJ135: 0 | AK135: 0 | AL135: 0 | AM135: 0 | AN135: 0 | AO135: 0 | AP135: 0 | AQ135: 0 | AR135: 0 | AS135: 0 | AT135: 0 | AU135: 0 | AV135: 0 | AW135: 0 | AX135: 0 | AY135: 0 | AZ135: 0 | BA135: 0 | BB135: 0 | BC135: 0 | BD135: 0 | BE135: 0 | BF135: 0 | BG135: 0 | BH135: 0 | BI135: 0 | BJ135: 0 | BK135: 0 | BL135: 0 | BM135: 0 | BN135: 0 | BO135: 0 | BP135: 0 | BQ135: 0 | BR135: 0 | BT135: =IF(OR($E135=NA,SUM(K135:BR135,K195:BR195)=0),0,IF(OR(LEFT(D135,1)="[",D135=""),1,0)) -> 0 | BU135: =IF(OR($E135=NA,SUM(K135:BR135,K195:BR195)=0),0,IF(G135="",1,0)) -> 0 | BV135: =IF(OR($E135=NA,SUM(K135:BR135,K195:BR195)=0),0,IF(OR(LEFT(H135,1)="[",H135="",IF(Proj_Type<>Shared,H135<>Proj_Type)),1,0)) -> 0 | BW135: =IF(OR($E135=NA,SUM(K135:BR135,K195:BR195)=0),0,IF(OR(LEFT(I135,1)="[",I135=""),1,IF(OR(H135=JEN,H135=JGN),IF(LEFT(I135,3)=H135,0,1),0))) -> 0 | BX135: =IF(OR($E135=NA,SUM(K135:BR135)=0),0,IF(OR(ISTEXT(K135:BR135),MIN(K135:BR135)<0),1,0)) -> 0
A136: 0 | C136: [Se | D136: [Insert description/driver of costs/savings] | E136: n/a | F136: $000 | G136: Nominal | H136: =IF(Proj_Type=Shared,Lookup!$G$72,Proj_Type) -> JEN | I136: =IF(Proj_Type=Shared,Lookup!$C$82,IF(Proj_Type=JEN,Lookup!$C$96,Lookup!$C$83)) -> [Select JEN Asset Class] | K136: 0 | L136: 0 | M136: 0 | N136: 0 | O136: 0 | P136: 0 | Q136: 0 | R136: 0 | S136: 0 | T136: 0 | U136: 0 | V136: 0 | W136: 0 | X136: 0 | Y136: 0 | Z136: 0 | AA136: 0 | AB136: 0 | AC136: 0 | AD136: 0 | AE136: 0 | AF136: 0 | AG136: 0 | AH136: 0 | AI136: 0 | AJ136: 0 | AK136: 0 | AL136: 0 | AM136: 0 | AN136: 0 | AO136: 0 | AP136: 0 | AQ136: 0 | AR136: 0 | AS136: 0 | AT136: 0 | AU136: 0 | AV136: 0 | AW136: 0 | AX136: 0 | AY136: 0 | AZ136: 0 | BA136: 0 | BB136: 0 | BC136: 0 | BD136: 0 | BE136: 0 | BF136: 0 | BG136: 0 | BH136: 0 | BI136: 0 | BJ136: 0 | BK136: 0 | BL136: 0 | BM136: 0 | BN136: 0 | BO136: 0 | BP136: 0 | BQ136: 0 | BR136: 0 | BT136: 0 | BU136: 0 | BV136: 0 | BW136: 0 | BX136: 0
A137: 0 | C137: [Se | D137: [Insert description/driver of costs/savings] | E137: n/a | F137: $000 | G137: Nominal | H137: =IF(Proj_Type=Shared,Lookup!$G$72,Proj_Type) -> JEN | I137: =IF(Proj_Type=Shared,Lookup!$C$82,IF(Proj_Type=JEN,Lookup!$C$96,Lookup!$C$83)) -> [Select JEN Asset Class] | K137: 0 | L137: 0 | M137: 0 | N137: 0 | O137: 0 | P137: 0 | Q137: 0 | R137: 0 | S137: 0 | T137: 0 | U137: 0 | V137: 0 | W137: 0 | X137: 0 | Y137: 0 | Z137: 0 | AA137: 0 | AB137: 0 | AC137: 0 | AD137: 0 | AE137: 0 | AF137: 0 | AG137: 0 | AH137: 0 | AI137: 0 | AJ137: 0 | AK137: 0 | AL137: 0 | AM137: 0 | AN137: 0 | AO137: 0 | AP137: 0 | AQ137: 0 | AR137: 0 | AS137: 0 | AT137: 0 | AU137: 0 | AV137: 0 | AW137: 0 | AX137: 0 | AY137: 0 | AZ137: 0 | BA137: 0 | BB137: 0 | BC137: 0 | BD137: 0 | BE137: 0 | BF137: 0 | BG137: 0 | BH137: 0 | BI137: 0 | BJ137: 0 | BK137: 0 | BL137: 0 | BM137: 0 | BN137: 0 | BO137: 0 | BP137: 0 | BQ137: 0 | BR137: 0 | BT137: 0 | BU137: 0 | BV137: 0 | BW137: 0 | BX137: 0
A138: 0 | C138: [Se | D138: [Insert description/driver of costs/savings] | E138: n/a | F138: $000 | G138: Nominal | H138: =IF(Proj_Type=Shared,Lookup!$G$72,Proj_Type) -> JEN | I138: =IF(Proj_Type=Shared,Lookup!$C$82,IF(Proj_Type=JEN,Lookup!$C$96,Lookup!$C$83)) -> [Select JEN Asset Class] | K138: 0 | L138: 0 | M138: 0 | N138: 0 | O138: 0 | P138: 0 | Q138: 0 | R138: 0 | S138: 0 | T138: 0 | U138: 0 | V138: 0 | W138: 0 | X138: 0 | Y138: 0 | Z138: 0 | AA138: 0 | AB138: 0 | AC138: 0 | AD138: 0 | AE138: 0 | AF138: 0 | AG138: 0 | AH138: 0 | AI138: 0 | AJ138: 0 | AK138: 0 | AL138: 0 | AM138: 0 | AN138: 0 | AO138: 0 | AP138: 0 | AQ138: 0 | AR138: 0 | AS138: 0 | AT138: 0 | AU138: 0 | AV138: 0 | AW138: 0 | AX138: 0 | AY138: 0 | AZ138: 0 | BA138: 0 | BB138: 0 | BC138: 0 | BD138: 0 | BE138: 0 | BF138: 0 | BG138: 0 | BH138: 0 | BI138: 0 | BJ138: 0 | BK138: 0 | BL138: 0 | BM138: 0 | BN138: 0 | BO138: 0 | BP138: 0 | BQ138: 0 | BR138: 0 | BT138: 0 | BU138: 0 | BV138: 0 | BW138: 0 | BX138: 0
A139: 0 | C139: [Se | D139: [Insert description/driver of costs/savings] | E139: n/a | F139: $000 | G139: Nominal | H139: =IF(Proj_Type=Shared,Lookup!$G$72,Proj_Type) -> JEN | I139: =IF(Proj_Type=Shared,Lookup!$C$82,IF(Proj_Type=JEN,Lookup!$C$96,Lookup!$C$83)) -> [Select JEN Asset Class] | K139: 0 | L139: 0 | M139: 0 | N139: 0 | O139: 0 | P139: 0 | Q139: 0 | R139: 0 | S139: 0 | T139: 0 | U139: 0 | V139: 0 | W139: 0 | X139: 0 | Y139: 0 | Z139: 0 | AA139: 0 | AB139: 0 | AC139: 0 | AD139: 0 | AE139: 0 | AF139: 0 | AG139: 0 | AH139: 0 | AI139: 0 | AJ139: 0 | AK139: 0 | AL139: 0 | AM139: 0 | AN139: 0 | AO139: 0 | AP139: 0 | AQ139: 0 | AR139: 0 | AS139: 0 | AT139: 0 | AU139: 0 | AV139: 0 | AW139: 0 | AX139: 0 | AY139: 0 | AZ139: 0 | BA139: 0 | BB139: 0 | BC139: 0 | BD139: 0 | BE139: 0 | BF139: 0 | BG139: 0 | BH139: 0 | BI139: 0 | BJ139: 0 | BK139: 0 | BL139: 0 | BM139: 0 | BN139: 0 | BO139: 0 | BP139: 0 | BQ139: 0 | BR139: 0 | BT139: 0 | BU139: 0 | BV139: 0 | BW139: 0 | BX139: 0
A140: 0 | C140: [Se | D140: [Insert description/driver of costs/savings] | E140: n/a | F140: $000 | G140: Nominal | H140: =IF(Proj_Type=Shared,Lookup!$G$72,Proj_Type) -> JEN | I140: =IF(Proj_Type=Shared,Lookup!$C$82,IF(Proj_Type=JEN,Lookup!$C$96,Lookup!$C$83)) -> [Select JEN Asset Class] | K140: 0 | L140: 0 | M140: 0 | N140: 0 | O140: 0 | P140: 0 | Q140: 0 | R140: 0 | S140: 0 | T140: 0 | U140: 0 | V140: 0 | W140: 0 | X140: 0 | Y140: 0 | Z140: 0 | AA140: 0 | AB140: 0 | AC140: 0 | AD140: 0 | AE140: 0 | AF140: 0 | AG140: 0 | AH140: 0 | AI140: 0 | AJ140: 0 | AK140: 0 | AL140: 0 | AM140: 0 | AN140: 0 | AO140: 0 | AP140: 0 | AQ140: 0 | AR140: 0 | AS140: 0 | AT140: 0 | AU140: 0 | AV140: 0 | AW140: 0 | AX140: 0 | AY140: 0 | AZ140: 0 | BA140: 0 | BB140: 0 | BC140: 0 | BD140: 0 | BE140: 0 | BF140: 0 | BG140: 0 | BH140: 0 | BI140: 0 | BJ140: 0 | BK140: 0 | BL140: 0 | BM140: 0 | BN140: 0 | BO140: 0 | BP140: 0 | BQ140: 0 | BR140: 0 | BT140: 0 | BU140: 0 | BV140: 0 | BW140: 0 | BX140: 0
A141: 0 | C141: [Se | D141: [Insert description/driver of costs/savings] | E141: n/a | F141: $000 | G141: Nominal | H141: =IF(Proj_Type=Shared,Lookup!$G$72,Proj_Type) -> JEN | I141: =IF(Proj_Type=Shared,Lookup!$C$82,IF(Proj_Type=JEN,Lookup!$C$96,Lookup!$C$83)) -> [Select JEN Asset Class] | K141: 0 | L141: 0 | M141: 0 | N141: 0 | O141: 0 | P141: 0 | Q141: 0 | R141: 0 | S141: 0 | T141: 0 | U141: 0 | V141: 0 | W141: 0 | X141: 0 | Y141: 0 | Z141: 0 | AA141: 0 | AB141: 0 | AC141: 0 | AD141: 0 | AE141: 0 | AF141: 0 | AG141: 0 | AH141: 0 | AI141: 0 | AJ141: 0 | AK141: 0 | AL141: 0 | AM141: 0 | AN141: 0 | AO141: 0 | AP141: 0 | AQ141: 0 | AR141: 0 | AS141: 0 | AT141: 0 | AU141: 0 | AV141: 0 | AW141: 0 | AX141: 0 | AY141: 0 | AZ141: 0 | BA141: 0 | BB141: 0 | BC141: 0 | BD141: 0 | BE141: 0 | BF141: 0 | BG141: 0 | BH141: 0 | BI141: 0 | BJ141: 0 | BK141: 0 | BL141: 0 | BM141: 0 | BN141: 0 | BO141: 0 | BP141: 0 | BQ141: 0 | BR141: 0 | BT141: 0 | BU141: 0 | BV141: 0 | BW141: 0 | BX141: 0
A143: =SUM(BT143:BX143) -> 0 | C143: [Se | D143: [Insert description/driver of costs/savings] | E143: =Option_5 -> n/a | F143: =dollar_unit -> $000 | G143: Nominal | H143: =IF(Proj_Type=Shared,Lookup!$G$72,Proj_Type) -> JEN | I143: =IF(Proj_Type=Shared,Lookup!$C$82,IF(Proj_Type=JEN,Lookup!$C$96,Lookup!$C$83)) -> [Select JEN Asset Class] | K143: 0 | L143: 0 | M143: 0 | N143: 0 | O143: 0 | P143: 0 | Q143: 0 | R143: 0 | S143: 0 | T143: 0 | U143: 0 | V143: 0 | W143: 0 | X143: 0 | Y143: 0 | Z143: 0 | AA143: 0 | AB143: 0 | AC143: 0 | AD143: 0 | AE143: 0 | AF143: 0 | AG143: 0 | AH143: 0 | AI143: 0 | AJ143: 0 | AK143: 0 | AL143: 0 | AM143: 0 | AN143: 0 | AO143: 0 | AP143: 0 | AQ143: 0 | AR143: 0 | AS143: 0 | AT143: 0 | AU143: 0 | AV143: 0 | AW143: 0 | AX143: 0 | AY143: 0 | AZ143: 0 | BA143: 0 | BB143: 0 | BC143: 0 | BD143: 0 | BE143: 0 | BF143: 0 | BG143: 0 | BH143: 0 | BI143: 0 | BJ143: 0 | BK143: 0 | BL143: 0 | BM143: 0 | BN143: 0 | BO143: 0 | BP143: 0 | BQ143: 0 | BR143: 0 | BT143: =IF(OR($E143=NA,SUM(K143:BR143,K219:BR219)=0),0,IF(OR(LEFT(D143,1)="[",D143=""),1,0)) -> 0 | BU143: =IF(OR($E143=NA,SUM(K143:BR143,K219:BR219)=0),0,IF(G143="",1,0)) -> 0 | BV143: =IF(OR($E143=NA,SUM(K143:BR143,K203:BR203)=0),0,IF(OR(LEFT(H143,1)="[",H143="",IF(Proj_Type<>Shared,H143<>Proj_Type)),1,0)) -> 0 | BW143: =IF(OR($E143=NA,SUM(K143:BR143,K203:BR203)=0),0,IF(OR(LEFT(I143,1)="[",I143=""),1,IF(OR(H143=JEN,H143=JGN),IF(LEFT(I143,3)=H143,0,1),0))) -> 0 | BX143: =IF(OR($E143=NA,SUM(K143:BR143)=0),0,IF(OR(ISTEXT(K143:BR143),MIN(K143:BR143)<0),1,0)) -> 0
A144: 0 | C144: [Se | D144: [Insert description/driver of costs/savings] | E144: n/a | F144: $000 | G144: Nominal | H144: =IF(Proj_Type=Shared,Lookup!$G$72,Proj_Type) -> JEN | I144: =IF(Proj_Type=Shared,Lookup!$C$82,IF(Proj_Type=JEN,Lookup!$C$96,Lookup!$C$83)) -> [Select JEN Asset Class] | K144: 0 | L144: 0 | M144: 0 | N144: 0 | O144: 0 | P144: 0 | Q144: 0 | R144: 0 | S144: 0 | T144: 0 | U144: 0 | V144: 0 | W144: 0 | X144: 0 | Y144: 0 | Z144: 0 | AA144: 0 | AB144: 0 | AC144: 0 | AD144: 0 | AE144: 0 | AF144: 0 | AG144: 0 | AH144: 0 | AI144: 0 | AJ144: 0 | AK144: 0 | AL144: 0 | AM144: 0 | AN144: 0 | AO144: 0 | AP144: 0 | AQ144: 0 | AR144: 0 | AS144: 0 | AT144: 0 | AU144: 0 | AV144: 0 | AW144: 0 | AX144: 0 | AY144: 0 | AZ144: 0 | BA144: 0 | BB144: 0 | BC144: 0 | BD144: 0 | BE144: 0 | BF144: 0 | BG144: 0 | BH144: 0 | BI144: 0 | BJ144: 0 | BK144: 0 | BL144: 0 | BM144: 0 | BN144: 0 | BO144: 0 | BP144: 0 | BQ144: 0 | BR144: 0 | BT144: 0 | BU144: 0 | BV144: 0 | BW144: 0 | BX144: 0
A145: 0 | C145: [Se | D145: [Insert description/driver of costs/savings] | E145: n/a | F145: $000 | G145: Nominal | H145: =IF(Proj_Type=Shared,Lookup!$G$72,Proj_Type) -> JEN | I145: =IF(Proj_Type=Shared,Lookup!$C$82,IF(Proj_Type=JEN,Lookup!$C$96,Lookup!$C$83)) -> [Select JEN Asset Class] | K145: 0 | L145: 0 | M145: 0 | N145: 0 | O145: 0 | P145: 0 | Q145: 0 | R145: 0 | S145: 0 | T145: 0 | U145: 0 | V145: 0 | W145: 0 | X145: 0 | Y145: 0 | Z145: 0 | AA145: 0 | AB145: 0 | AC145: 0 | AD145: 0 | AE145: 0 | AF145: 0 | AG145: 0 | AH145: 0 | AI145: 0 | AJ145: 0 | AK145: 0 | AL145: 0 | AM145: 0 | AN145: 0 | AO145: 0 | AP145: 0 | AQ145: 0 | AR145: 0 | AS145: 0 | AT145: 0 | AU145: 0 | AV145: 0 | AW145: 0 | AX145: 0 | AY145: 0 | AZ145: 0 | BA145: 0 | BB145: 0 | BC145: 0 | BD145: 0 | BE145: 0 | BF145: 0 | BG145: 0 | BH145: 0 | BI145: 0 | BJ145: 0 | BK145: 0 | BL145: 0 | BM145: 0 | BN145: 0 | BO145: 0 | BP145: 0 | BQ145: 0 | BR145: 0 | BT145: 0 | BU145: 0 | BV145: 0 | BW145: 0 | BX145: 0
A146: 0 | C146: [Se | D146: [Insert description/driver of costs/savings] | E146: n/a | F146: $000 | G146: Nominal | H146: =IF(Proj_Type=Shared,Lookup!$G$72,Proj_Type) -> JEN | I146: =IF(Proj_Type=Shared,Lookup!$C$82,IF(Proj_Type=JEN,Lookup!$C$96,Lookup!$C$83)) -> [Select JEN Asset Class] | K146: 0 | L146: 0 | M146: 0 | N146: 0 | O146: 0 | P146: 0 | Q146: 0 | R146: 0 | S146: 0 | T146: 0 | U146: 0 | V146: 0 | W146: 0 | X146: 0 | Y146: 0 | Z146: 0 | AA146: 0 | AB146: 0 | AC146: 0 | AD146: 0 | AE146: 0 | AF146: 0 | AG146: 0 | AH146: 0 | AI146: 0 | AJ146: 0 | AK146: 0 | AL146: 0 | AM146: 0 | AN146: 0 | AO146: 0 | AP146: 0 | AQ146: 0 | AR146: 0 | AS146: 0 | AT146: 0 | AU146: 0 | AV146: 0 | AW146: 0 | AX146: 0 | AY146: 0 | AZ146: 0 | BA146: 0 | BB146: 0 | BC146: 0 | BD146: 0 | BE146: 0 | BF146: 0 | BG146: 0 | BH146: 0 | BI146: 0 | BJ146: 0 | BK146: 0 | BL146: 0 | BM146: 0 | BN146: 0 | BO146: 0 | BP146: 0 | BQ146: 0 | BR146: 0 | BT146: 0 | BU146: 0 | BV146: 0 | BW146: 0 | BX146: 0
A147: 0 | C147: [Se | D147: [Insert description/driver of costs/savings] | E147: n/a | F147: $000 | G147: Nominal | H147: =IF(Proj_Type=Shared,Lookup!$G$72,Proj_Type) -> JEN | I147: =IF(Proj_Type=Shared,Lookup!$C$82,IF(Proj_Type=JEN,Lookup!$C$96,Lookup!$C$83)) -> [Select JEN Asset Class] | K147: 0 | L147: 0 | M147: 0 | N147: 0 | O147: 0 | P147: 0 | Q147: 0 | R147: 0 | S147: 0 | T147: 0 | U147: 0 | V147: 0 | W147: 0 | X147: 0 | Y147: 0 | Z147: 0 | AA147: 0 | AB147: 0 | AC147: 0 | AD147: 0 | AE147: 0 | AF147: 0 | AG147: 0 | AH147: 0 | AI147: 0 | AJ147: 0 | AK147: 0 | AL147: 0 | AM147: 0 | AN147: 0 | AO147: 0 | AP147: 0 | AQ147: 0 | AR147: 0 | AS147: 0 | AT147: 0 | AU147: 0 | AV147: 0 | AW147: 0 | AX147: 0 | AY147: 0 | AZ147: 0 | BA147: 0 | BB147: 0 | BC147: 0 | BD147: 0 | BE147: 0 | BF147: 0 | BG147: 0 | BH147: 0 | BI147: 0 | BJ147: 0 | BK147: 0 | BL147: 0 | BM147: 0 | BN147: 0 | BO147: 0 | BP147: 0 | BQ147: 0 | BR147: 0 | BT147: 0 | BU147: 0 | BV147: 0 | BW147: 0 | BX147: 0
A148: 0 | C148: [Se | D148: [Insert description/driver of costs/savings] | E148: n/a | F148: $000 | G148: Nominal | H148: =IF(Proj_Type=Shared,Lookup!$G$72,Proj_Type) -> JEN | I148: =IF(Proj_Type=Shared,Lookup!$C$82,IF(Proj_Type=JEN,Lookup!$C$96,Lookup!$C$83)) -> [Select JEN Asset Class] | K148: 0 | L148: 0 | M148: 0 | N148: 0 | O148: 0 | P148: 0 | Q148: 0 | R148: 0 | S148: 0 | T148: 0 | U148: 0 | V148: 0 | W148: 0 | X148: 0 | Y148: 0 | Z148: 0 | AA148: 0 | AB148: 0 | AC148: 0 | AD148: 0 | AE148: 0 | AF148: 0 | AG148: 0 | AH148: 0 | AI148: 0 | AJ148: 0 | AK148: 0 | AL148: 0 | AM148: 0 | AN148: 0 | AO148: 0 | AP148: 0 | AQ148: 0 | AR148: 0 | AS148: 0 | AT148: 0 | AU148: 0 | AV148: 0 | AW148: 0 | AX148: 0 | AY148: 0 | AZ148: 0 | BA148: 0 | BB148: 0 | BC148: 0 | BD148: 0 | BE148: 0 | BF148: 0 | BG148: 0 | BH148: 0 | BI148: 0 | BJ148: 0 | BK148: 0 | BL148: 0 | BM148: 0 | BN148: 0 | BO148: 0 | BP148: 0 | BQ148: 0 | BR148: 0 | BT148: 0 | BU148: 0 | BV148: 0 | BW148: 0 | BX148: 0
A149: 0 | C149: [Se | D149: [Insert description/driver of costs/savings] | E149: n/a | F149: $000 | G149: Nominal | H149: =IF(Proj_Type=Shared,Lookup!$G$72,Proj_Type) -> JEN | I149: =IF(Proj_Type=Shared,Lookup!$C$82,IF(Proj_Type=JEN,Lookup!$C$96,Lookup!$C$83)) -> [Select JEN Asset Class] | K149: 0 | L149: 0 | M149: 0 | N149: 0 | O149: 0 | P149: 0 | Q149: 0 | R149: 0 | S149: 0 | T149: 0 | U149: 0 | V149: 0 | W149: 0 | X149: 0 | Y149: 0 | Z149: 0 | AA149: 0 | AB149: 0 | AC149: 0 | AD149: 0 | AE149: 0 | AF149: 0 | AG149: 0 | AH149: 0 | AI149: 0 | AJ149: 0 | AK149: 0 | AL149: 0 | AM149: 0 | AN149: 0 | AO149: 0 | AP149: 0 | AQ149: 0 | AR149: 0 | AS149: 0 | AT149: 0 | AU149: 0 | AV149: 0 | AW149: 0 | AX149: 0 | AY149: 0 | AZ149: 0 | BA149: 0 | BB149: 0 | BC149: 0 | BD149: 0 | BE149: 0 | BF149: 0 | BG149: 0 | BH149: 0 | BI149: 0 | BJ149: 0 | BK149: 0 | BL149: 0 | BM149: 0 | BN149: 0 | BO149: 0 | BP149: 0 | BQ149: 0 | BR149: 0 | BT149: 0 | BU149: 0 | BV149: 0 | BW149: 0 | BX149: 0
A151: =SUM(BT151:BX151) -> 0 | C151: =LEFT(I151,3) -> [Se | D151: [Insert description/driver of costs/savings] | E151: =Option_6 -> n/a | F151: =dollar_unit -> $000 | G151: Nominal | H151: =IF(Proj_Type=Shared,Lookup!$G$72,Proj_Type) -> JEN | I151: =IF(Proj_Type=Shared,Lookup!$C$82,IF(Proj_Type=JEN,Lookup!$C$96,Lookup!$C$83)) -> [Select JEN Asset Class] | K151: 0 | L151: 0 | M151: 0 | N151: 0 | O151: 0 | P151: 0 | Q151: 0 | R151: 0 | S151: 0 | T151: 0 | U151: 0 | V151: 0 | W151: 0 | X151: 0 | Y151: 0 | Z151: 0 | AA151: 0 | AB151: 0 | AC151: 0 | AD151: 0 | AE151: 0 | AF151: 0 | AG151: 0 | AH151: 0 | AI151: 0 | AJ151: 0 | AK151: 0 | AL151: 0 | AM151: 0 | AN151: 0 | AO151: 0 | AP151: 0 | AQ151: 0 | AR151: 0 | AS151: 0 | AT151: 0 | AU151: 0 | AV151: 0 | AW151: 0 | AX151: 0 | AY151: 0 | AZ151: 0 | BA151: 0 | BB151: 0 | BC151: 0 | BD151: 0 | BE151: 0 | BF151: 0 | BG151: 0 | BH151: 0 | BI151: 0 | BJ151: 0 | BK151: 0 | BL151: 0 | BM151: 0 | BN151: 0 | BO151: 0 | BP151: 0 | BQ151: 0 | BR151: 0 | BT151: =IF(OR($E151=NA,SUM(K151:BR151,K227:BR227)=0),0,IF(OR(LEFT(D151,1)="[",D151=""),1,0)) -> 0 | BU151: =IF(OR($E151=NA,SUM(K151:BR151,K227:BR227)=0),0,IF(G151="",1,0)) -> 0 | BV151: =IF(OR($E151=NA,SUM(K151:BR151,K211:BR211)=0),0,IF(OR(LEFT(H151,1)="[",H151="",IF(Proj_Type<>Shared,H151<>Proj_Type)),1,0)) -> 0 | BW151: =IF(OR($E151=NA,SUM(K151:BR151,K211:BR211)=0),0,IF(OR(LEFT(I151,1)="[",I151=""),1,IF(OR(H151=JEN,H151=JGN),IF(LEFT(I151,3)=H151,0,1),0))) -> 0 | BX151: =IF(OR($E151=NA,SUM(K151:BR151)=0),0,IF(OR(ISTEXT(K151:BR151),MIN(K151:BR151)<0),1,0)) -> 0
A152: 0 | C152: [Se | D152: [Insert description/driver of costs/savings] | E152: n/a | F152: $000 | G152: Nominal | H152: =IF(Proj_Type=Shared,Lookup!$G$72,Proj_Type) -> JEN | I152: =IF(Proj_Type=Shared,Lookup!$C$82,IF(Proj_Type=JEN,Lookup!$C$96,Lookup!$C$83)) -> [Select JEN Asset Class] | K152: 0 | L152: 0 | M152: 0 | N152: 0 | O152: 0 | P152: 0 | Q152: 0 | R152: 0 | S152: 0 | T152: 0 | U152: 0 | V152: 0 | W152: 0 | X152: 0 | Y152: 0 | Z152: 0 | AA152: 0 | AB152: 0 | AC152: 0 | AD152: 0 | AE152: 0 | AF152: 0 | AG152: 0 | AH152: 0 | AI152: 0 | AJ152: 0 | AK152: 0 | AL152: 0 | AM152: 0 | AN152: 0 | AO152: 0 | AP152: 0 | AQ152: 0 | AR152: 0 | AS152: 0 | AT152: 0 | AU152: 0 | AV152: 0 | AW152: 0 | AX152: 0 | AY152: 0 | AZ152: 0 | BA152: 0 | BB152: 0 | BC152: 0 | BD152: 0 | BE152: 0 | BF152: 0 | BG152: 0 | BH152: 0 | BI152: 0 | BJ152: 0 | BK152: 0 | BL152: 0 | BM152: 0 | BN152: 0 | BO152: 0 | BP152: 0 | BQ152: 0 | BR152: 0 | BT152: 0 | BU152: 0 | BV152: 0 | BW152: 0 | BX152: 0
A153: 0 | C153: [Se | D153: [Insert description/driver of costs/savings] | E153: n/a | F153: $000 | G153: Nominal | H153: =IF(Proj_Type=Shared,Lookup!$G$72,Proj_Type) -> JEN | I153: =IF(Proj_Type=Shared,Lookup!$C$82,IF(Proj_Type=JEN,Lookup!$C$96,Lookup!$C$83)) -> [Select JEN Asset Class] | K153: 0 | L153: 0 | M153: 0 | N153: 0 | O153: 0 | P153: 0 | Q153: 0 | R153: 0 | S153: 0 | T153: 0 | U153: 0 | V153: 0 | W153: 0 | X153: 0 | Y153: 0 | Z153: 0 | AA153: 0 | AB153: 0 | AC153: 0 | AD153: 0 | AE153: 0 | AF153: 0 | AG153: 0 | AH153: 0 | AI153: 0 | AJ153: 0 | AK153: 0 | AL153: 0 | AM153: 0 | AN153: 0 | AO153: 0 | AP153: 0 | AQ153: 0 | AR153: 0 | AS153: 0 | AT153: 0 | AU153: 0 | AV153: 0 | AW153: 0 | AX153: 0 | AY153: 0 | AZ153: 0 | BA153: 0 | BB153: 0 | BC153: 0 | BD153: 0 | BE153: 0 | BF153: 0 | BG153: 0 | BH153: 0 | BI153: 0 | BJ153: 0 | BK153: 0 | BL153: 0 | BM153: 0 | BN153: 0 | BO153: 0 | BP153: 0 | BQ153: 0 | BR153: 0 | BT153: 0 | BU153: 0 | BV153: 0 | BW153: 0 | BX153: 0
A154: 0 | C154: [Se | D154: [Insert description/driver of costs/savings] | E154: n/a | F154: $000 | G154: Nominal | H154: =IF(Proj_Type=Shared,Lookup!$G$72,Proj_Type) -> JEN | I154: =IF(Proj_Type=Shared,Lookup!$C$82,IF(Proj_Type=JEN,Lookup!$C$96,Lookup!$C$83)) -> [Select JEN Asset Class] | K154: 0 | L154: 0 | M154: 0 | N154: 0 | O154: 0 | P154: 0 | Q154: 0 | R154: 0 | S154: 0 | T154: 0 | U154: 0 | V154: 0 | W154: 0 | X154: 0 | Y154: 0 | Z154: 0 | AA154: 0 | AB154: 0 | AC154: 0 | AD154: 0 | AE154: 0 | AF154: 0 | AG154: 0 | AH154: 0 | AI154: 0 | AJ154: 0 | AK154: 0 | AL154: 0 | AM154: 0 | AN154: 0 | AO154: 0 | AP154: 0 | AQ154: 0 | AR154: 0 | AS154: 0 | AT154: 0 | AU154: 0 | AV154: 0 | AW154: 0 | AX154: 0 | AY154: 0 | AZ154: 0 | BA154: 0 | BB154: 0 | BC154: 0 | BD154: 0 | BE154: 0 | BF154: 0 | BG154: 0 | BH154: 0 | BI154: 0 | BJ154: 0 | BK154: 0 | BL154: 0 | BM154: 0 | BN154: 0 | BO154: 0 | BP154: 0 | BQ154: 0 | BR154: 0 | BT154: 0 | BU154: 0 | BV154: 0 | BW154: 0 | BX154: 0
A155: 0 | C155: [Se | D155: [Insert description/driver of costs/savings] | E155: n/a | F155: $000 | G155: Nominal | H155: =IF(Proj_Type=Shared,Lookup!$G$72,Proj_Type) -> JEN | I155: =IF(Proj_Type=Shared,Lookup!$C$82,IF(Proj_Type=JEN,Lookup!$C$96,Lookup!$C$83)) -> [Select JEN Asset Class] | K155: 0 | L155: 0 | M155: 0 | N155: 0 | O155: 0 | P155: 0 | Q155: 0 | R155: 0 | S155: 0 | T155: 0 | U155: 0 | V155: 0 | W155: 0 | X155: 0 | Y155: 0 | Z155: 0 | AA155: 0 | AB155: 0 | AC155: 0 | AD155: 0 | AE155: 0 | AF155: 0 | AG155: 0 | AH155: 0 | AI155: 0 | AJ155: 0 | AK155: 0 | AL155: 0 | AM155: 0 | AN155: 0 | AO155: 0 | AP155: 0 | AQ155: 0 | AR155: 0 | AS155: 0 | AT155: 0 | AU155: 0 | AV155: 0 | AW155: 0 | AX155: 0 | AY155: 0 | AZ155: 0 | BA155: 0 | BB155: 0 | BC155: 0 | BD155: 0 | BE155: 0 | BF155: 0 | BG155: 0 | BH155: 0 | BI155: 0 | BJ155: 0 | BK155: 0 | BL155: 0 | BM155: 0 | BN155: 0 | BO155: 0 | BP155: 0 | BQ155: 0 | BR155: 0 | BT155: 0 | BU155: 0 | BV155: 0 | BW155: 0 | BX155: 0
A156: 0 | C156: [Se | D156: [Insert description/driver of costs/savings] | E156: n/a | F156: $000 | G156: Nominal | H156: =IF(Proj_Type=Shared,Lookup!$G$72,Proj_Type) -> JEN | I156: =IF(Proj_Type=Shared,Lookup!$C$82,IF(Proj_Type=JEN,Lookup!$C$96,Lookup!$C$83)) -> [Select JEN Asset Class] | K156: 0 | L156: 0 | M156: 0 | N156: 0 | O156: 0 | P156: 0 | Q156: 0 | R156: 0 | S156: 0 | T156: 0 | U156: 0 | V156: 0 | W156: 0 | X156: 0 | Y156: 0 | Z156: 0 | AA156: 0 | AB156: 0 | AC156: 0 | AD156: 0 | AE156: 0 | AF156: 0 | AG156: 0 | AH156: 0 | AI156: 0 | AJ156: 0 | AK156: 0 | AL156: 0 | AM156: 0 | AN156: 0 | AO156: 0 | AP156: 0 | AQ156: 0 | AR156: 0 | AS156: 0 | AT156: 0 | AU156: 0 | AV156: 0 | AW156: 0 | AX156: 0 | AY156: 0 | AZ156: 0 | BA156: 0 | BB156: 0 | BC156: 0 | BD156: 0 | BE156: 0 | BF156: 0 | BG156: 0 | BH156: 0 | BI156: 0 | BJ156: 0 | BK156: 0 | BL156: 0 | BM156: 0 | BN156: 0 | BO156: 0 | BP156: 0 | BQ156: 0 | BR156: 0 | BT156: 0 | BU156: 0 | BV156: 0 | BW156: 0 | BX156: 0
A157: 0 | C157: [Se | D157: [Insert description/driver of costs/savings] | E157: n/a | F157: $000 | G157: Nominal | H157: =IF(Proj_Type=Shared,Lookup!$G$72,Proj_Type) -> JEN | I157: =IF(Proj_Type=Shared,Lookup!$C$82,IF(Proj_Type=JEN,Lookup!$C$96,Lookup!$C$83)) -> [Select JEN Asset Class] | K157: 0 | L157: 0 | M157: 0 | N157: 0 | O157: 0 | P157: 0 | Q157: 0 | R157: 0 | S157: 0 | T157: 0 | U157: 0 | V157: 0 | W157: 0 | X157: 0 | Y157: 0 | Z157: 0 | AA157: 0 | AB157: 0 | AC157: 0 | AD157: 0 | AE157: 0 | AF157: 0 | AG157: 0 | AH157: 0 | AI157: 0 | AJ157: 0 | AK157: 0 | AL157: 0 | AM157: 0 | AN157: 0 | AO157: 0 | AP157: 0 | AQ157: 0 | AR157: 0 | AS157: 0 | AT157: 0 | AU157: 0 | AV157: 0 | AW157: 0 | AX157: 0 | AY157: 0 | AZ157: 0 | BA157: 0 | BB157: 0 | BC157: 0 | BD157: 0 | BE157: 0 | BF157: 0 | BG157: 0 | BH157: 0 | BI157: 0 | BJ157: 0 | BK157: 0 | BL157: 0 | BM157: 0 | BN157: 0 | BO157: 0 | BP157: 0 | BQ157: 0 | BR157: 0 | BT157: 0 | BU157: 0 | BV157: 0 | BW157: 0 | BX157: 0
A159: =SUM(BT159:BX159) -> 0 | C159: =LEFT(I159,3) -> [Se | D159: [Insert description/driver of costs/savings] | E159: =Option_7 -> n/a | F159: =dollar_unit -> $000 | G159: Nominal | H159: =IF(Proj_Type=Shared,Lookup!$G$72,Proj_Type) -> JEN | I159: =IF(Proj_Type=Shared,Lookup!$C$82,IF(Proj_Type=JEN,Lookup!$C$96,Lookup!$C$83)) -> [Select JEN Asset Class] | K159: 0 | L159: 0 | M159: 0 | N159: 0 | O159: 0 | P159: 0 | Q159: 0 | R159: 0 | S159: 0 | T159: 0 | U159: 0 | V159: 0 | W159: 0 | X159: 0 | Y159: 0 | Z159: 0 | AA159: 0 | AB159: 0 | AC159: 0 | AD159: 0 | AE159: 0 | AF159: 0 | AG159: 0 | AH159: 0 | AI159: 0 | AJ159: 0 | AK159: 0 | AL159: 0 | AM159: 0 | AN159: 0 | AO159: 0 | AP159: 0 | AQ159: 0 | AR159: 0 | AS159: 0 | AT159: 0 | AU159: 0 | AV159: 0 | AW159: 0 | AX159: 0 | AY159: 0 | AZ159: 0 | BA159: 0 | BB159: 0 | BC159: 0 | BD159: 0 | BE159: 0 | BF159: 0 | BG159: 0 | BH159: 0 | BI159: 0 | BJ159: 0 | BK159: 0 | BL159: 0 | BM159: 0 | BN159: 0 | BO159: 0 | BP159: 0 | BQ159: 0 | BR159: 0 | BT159: =IF(OR($E159=NA,SUM(K159:BR159,K219:BR219)=0),0,IF(OR(LEFT(D159,1)="[",D159=""),1,0)) -> 0 | BU159: =IF(OR($E159=NA,SUM(K159:BR159,K219:BR219)=0),0,IF(G159="",1,0)) -> 0 | BV159: =IF(OR($E159=NA,SUM(K159:BR159,K219:BR219)=0),0,IF(OR(LEFT(H159,1)="[",H159="",IF(Proj_Type<>Shared,H159<>Proj_Type)),1,0)) -> 0 | BW159: =IF(OR($E159=NA,SUM(K159:BR159,K219:BR219)=0),0,IF(OR(LEFT(I159,1)="[",I159=""),1,IF(OR(H159=JEN,H159=JGN),IF(LEFT(I159,3)=H159,0,1),0))) -> 0 | BX159: =IF(OR($E159=NA,SUM(K159:BR159)=0),0,IF(OR(ISTEXT(K159:BR159),MIN(K159:BR159)<0),1,0)) -> 0
A160: 0 | C160: [Se | D160: [Insert description/driver of costs/savings] | E160: n/a | F160: $000 | G160: Nominal | H160: =IF(Proj_Type=Shared,Lookup!$G$72,Proj_Type) -> JEN | I160: =IF(Proj_Type=Shared,Lookup!$C$82,IF(Proj_Type=JEN,Lookup!$C$96,Lookup!$C$83)) -> [Select JEN Asset Class] | K160: 0 | L160: 0 | M160: 0 | N160: 0 | O160: 0 | P160: 0 | Q160: 0 | R160: 0 | S160: 0 | T160: 0 | U160: 0 | V160: 0 | W160: 0 | X160: 0 | Y160: 0 | Z160: 0 | AA160: 0 | AB160: 0 | AC160: 0 | AD160: 0 | AE160: 0 | AF160: 0 | AG160: 0 | AH160: 0 | AI160: 0 | AJ160: 0 | AK160: 0 | AL160: 0 | AM160: 0 | AN160: 0 | AO160: 0 | AP160: 0 | AQ160: 0 | AR160: 0 | AS160: 0 | AT160: 0 | AU160: 0 | AV160: 0 | AW160: 0 | AX160: 0 | AY160: 0 | AZ160: 0 | BA160: 0 | BB160: 0 | BC160: 0 | BD160: 0 | BE160: 0 | BF160: 0 | BG160: 0 | BH160: 0 | BI160: 0 | BJ160: 0 | BK160: 0 | BL160: 0 | BM160: 0 | BN160: 0 | BO160: 0 | BP160: 0 | BQ160: 0 | BR160: 0 | BT160: 0 | BU160: 0 | BV160: 0 | BW160: 0 | BX160: 0
A161: 0 | C161: [Se | D161: [Insert description/driver of costs/savings] | E161: n/a | F161: $000 | G161: Nominal | H161: =IF(Proj_Type=Shared,Lookup!$G$72,Proj_Type) -> JEN | I161: =IF(Proj_Type=Shared,Lookup!$C$82,IF(Proj_Type=JEN,Lookup!$C$96,Lookup!$C$83)) -> [Select JEN Asset Class] | K161: 0 | L161: 0 | M161: 0 | N161: 0 | O161: 0 | P161: 0 | Q161: 0 | R161: 0 | S161: 0 | T161: 0 | U161: 0 | V161: 0 | W161: 0 | X161: 0 | Y161: 0 | Z161: 0 | AA161: 0 | AB161: 0 | AC161: 0 | AD161: 0 | AE161: 0 | AF161: 0 | AG161: 0 | AH161: 0 | AI161: 0 | AJ161: 0 | AK161: 0 | AL161: 0 | AM161: 0 | AN161: 0 | AO161: 0 | AP161: 0 | AQ161: 0 | AR161: 0 | AS161: 0 | AT161: 0 | AU161: 0 | AV161: 0 | AW161: 0 | AX161: 0 | AY161: 0 | AZ161: 0 | BA161: 0 | BB161: 0 | BC161: 0 | BD161: 0 | BE161: 0 | BF161: 0 | BG161: 0 | BH161: 0 | BI161: 0 | BJ161: 0 | BK161: 0 | BL161: 0 | BM161: 0 | BN161: 0 | BO161: 0 | BP161: 0 | BQ161: 0 | BR161: 0 | BT161: 0 | BU161: 0 | BV161: 0 | BW161: 0 | BX161: 0
A162: 0 | C162: [Se | D162: [Insert description/driver of costs/savings] | E162: n/a | F162: $000 | G162: Nominal | H162: =IF(Proj_Type=Shared,Lookup!$G$72,Proj_Type) -> JEN | I162: =IF(Proj_Type=Shared,Lookup!$C$82,IF(Proj_Type=JEN,Lookup!$C$96,Lookup!$C$83)) -> [Select JEN Asset Class] | K162: 0 | L162: 0 | M162: 0 | N162: 0 | O162: 0 | P162: 0 | Q162: 0 | R162: 0 | S162: 0 | T162: 0 | U162: 0 | V162: 0 | W162: 0 | X162: 0 | Y162: 0 | Z162: 0 | AA162: 0 | AB162: 0 | AC162: 0 | AD162: 0 | AE162: 0 | AF162: 0 | AG162: 0 | AH162: 0 | AI162: 0 | AJ162: 0 | AK162: 0 | AL162: 0 | AM162: 0 | AN162: 0 | AO162: 0 | AP162: 0 | AQ162: 0 | AR162: 0 | AS162: 0 | AT162: 0 | AU162: 0 | AV162: 0 | AW162: 0 | AX162: 0 | AY162: 0 | AZ162: 0 | BA162: 0 | BB162: 0 | BC162: 0 | BD162: 0 | BE162: 0 | BF162: 0 | BG162: 0 | BH162: 0 | BI162: 0 | BJ162: 0 | BK162: 0 | BL162: 0 | BM162: 0 | BN162: 0 | BO162: 0 | BP162: 0 | BQ162: 0 | BR162: 0 | BT162: 0 | BU162: 0 | BV162: 0 | BW162: 0 | BX162: 0
A163: 0 | C163: [Se | D163: [Insert description/driver of costs/savings] | E163: n/a | F163: $000 | G163: Nominal | H163: =IF(Proj_Type=Shared,Lookup!$G$72,Proj_Type) -> JEN | I163: =IF(Proj_Type=Shared,Lookup!$C$82,IF(Proj_Type=JEN,Lookup!$C$96,Lookup!$C$83)) -> [Select JEN Asset Class] | K163: 0 | L163: 0 | M163: 0 | N163: 0 | O163: 0 | P163: 0 | Q163: 0 | R163: 0 | S163: 0 | T163: 0 | U163: 0 | V163: 0 | W163: 0 | X163: 0 | Y163: 0 | Z163: 0 | AA163: 0 | AB163: 0 | AC163: 0 | AD163: 0 | AE163: 0 | AF163: 0 | AG163: 0 | AH163: 0 | AI163: 0 | AJ163: 0 | AK163: 0 | AL163: 0 | AM163: 0 | AN163: 0 | AO163: 0 | AP163: 0 | AQ163: 0 | AR163: 0 | AS163: 0 | AT163: 0 | AU163: 0 | AV163: 0 | AW163: 0 | AX163: 0 | AY163: 0 | AZ163: 0 | BA163: 0 | BB163: 0 | BC163: 0 | BD163: 0 | BE163: 0 | BF163: 0 | BG163: 0 | BH163: 0 | BI163: 0 | BJ163: 0 | BK163: 0 | BL163: 0 | BM163: 0 | BN163: 0 | BO163: 0 | BP163: 0 | BQ163: 0 | BR163: 0 | BT163: 0 | BU163: 0 | BV163: 0 | BW163: 0 | BX163: 0
A164: 0 | C164: [Se | D164: [Insert description/driver of costs/savings] | E164: n/a | F164: $000 | G164: Nominal | H164: =IF(Proj_Type=Shared,Lookup!$G$72,Proj_Type) -> JEN | I164: =IF(Proj_Type=Shared,Lookup!$C$82,IF(Proj_Type=JEN,Lookup!$C$96,Lookup!$C$83)) -> [Select JEN Asset Class] | K164: 0 | L164: 0 | M164: 0 | N164: 0 | O164: 0 | P164: 0 | Q164: 0 | R164: 0 | S164: 0 | T164: 0 | U164: 0 | V164: 0 | W164: 0 | X164: 0 | Y164: 0 | Z164: 0 | AA164: 0 | AB164: 0 | AC164: 0 | AD164: 0 | AE164: 0 | AF164: 0 | AG164: 0 | AH164: 0 | AI164: 0 | AJ164: 0 | AK164: 0 | AL164: 0 | AM164: 0 | AN164: 0 | AO164: 0 | AP164: 0 | AQ164: 0 | AR164: 0 | AS164: 0 | AT164: 0 | AU164: 0 | AV164: 0 | AW164: 0 | AX164: 0 | AY164: 0 | AZ164: 0 | BA164: 0 | BB164: 0 | BC164: 0 | BD164: 0 | BE164: 0 | BF164: 0 | BG164: 0 | BH164: 0 | BI164: 0 | BJ164: 0 | BK164: 0 | BL164: 0 | BM164: 0 | BN164: 0 | BO164: 0 | BP164: 0 | BQ164: 0 | BR164: 0 | BT164: 0 | BU164: 0 | BV164: 0 | BW164: 0 | BX164: 0
A165: 0 | C165: [Se | D165: [Insert description/driver of costs/savings] | E165: n/a | F165: $000 | G165: Nominal | H165: =IF(Proj_Type=Shared,Lookup!$G$72,Proj_Type) -> JEN | I165: =IF(Proj_Type=Shared,Lookup!$C$82,IF(Proj_Type=JEN,Lookup!$C$96,Lookup!$C$83)) -> [Select JEN Asset Class] | K165: 0 | L165: 0 | M165: 0 | N165: 0 | O165: 0 | P165: 0 | Q165: 0 | R165: 0 | S165: 0 | T165: 0 | U165: 0 | V165: 0 | W165: 0 | X165: 0 | Y165: 0 | Z165: 0 | AA165: 0 | AB165: 0 | AC165: 0 | AD165: 0 | AE165: 0 | AF165: 0 | AG165: 0 | AH165: 0 | AI165: 0 | AJ165: 0 | AK165: 0 | AL165: 0 | AM165: 0 | AN165: 0 | AO165: 0 | AP165: 0 | AQ165: 0 | AR165: 0 | AS165: 0 | AT165: 0 | AU165: 0 | AV165: 0 | AW165: 0 | AX165: 0 | AY165: 0 | AZ165: 0 | BA165: 0 | BB165: 0 | BC165: 0 | BD165: 0 | BE165: 0 | BF165: 0 | BG165: 0 | BH165: 0 | BI165: 0 | BJ165: 0 | BK165: 0 | BL165: 0 | BM165: 0 | BN165: 0 | BO165: 0 | BP165: 0 | BQ165: 0 | BR165: 0 | BT165: 0 | BU165: 0 | BV165: 0 | BW165: 0 | BX165: 0
D167: Capital contribution and gifted assets included in the above gross capex
D169: Capital Contribution and Gifted Assets | E169: =E$4 -> Option | F169: =F$4 -> Unit | G169: =G$4 -> Basis | H169: =H$4 -> Asset | I169: Asset class | K169: =K$54 -> FY24 | L169: FY25 | M169: FY26 | N169: FY27 | O169: FY28 | P169: FY29 | Q169: FY30 | R169: FY31 | S169: FY32 | T169: FY33 | U169: FY34 | V169: FY35 | W169: FY36 | X169: FY37 | Y169: FY38 | Z169: FY39 | AA169: FY40 | AB169: FY41 | AC169: FY42 | AD169: FY43 | AE169: FY44 | AF169: FY45 | AG169: FY46 | AH169: FY47 | AI169: FY48 | AJ169: FY49 | AK169: FY50 | AL169: FY51 | AM169: FY52 | AN169: FY53 | AO169: FY54 | AP169: FY55 | AQ169: =AQ$54 -> FY56 | AR169: FY57 | AS169: FY58 | AT169: FY59 | AU169: FY60 | AV169: FY61 | AW169: FY62 | AX169: FY63 | AY169: FY64 | AZ169: FY65 | BA169: FY66 | BB169: FY67 | BC169: FY68 | BD169: FY69 | BE169: FY70 | BF169: FY71 | BG169: FY72 | BH169: FY73 | BI169: FY74 | BJ169: FY75 | BK169: FY76 | BL169: FY77 | BM169: FY78 | BN169: FY79 | BO169: FY80 | BP169: FY81 | BQ169: FY82 | BR169: FY83 | BX169: Number
A171: =SUM(BT171:BX171) -> 0 | D171: =D111 -> [Insert description/driver of costs/savings] | E171: Option 1 | F171: $000 | G171: Nominal | H171: JEN | I171: [Select JEN Asset Class] | K171: 0 | L171: 0 | M171: 0 | N171: 0 | O171: 0 | P171: 0 | Q171: 0 | R171: 0 | S171: 0 | T171: 0 | U171: 0 | V171: 0 | W171: 0 | X171: 0 | Y171: 0 | Z171: 0 | AA171: 0 | AB171: 0 | AC171: 0 | AD171: 0 | AE171: 0 | AF171: 0 | AG171: 0 | AH171: 0 | AI171: 0 | AJ171: 0 | AK171: 0 | AL171: 0 | AM171: 0 | AN171: 0 | AO171: 0 | AP171: 0 | AQ171: 0 | AR171: 0 | AS171: 0 | AT171: 0 | AU171: 0 | AV171: 0 | AW171: 0 | AX171: 0 | AY171: 0 | AZ171: 0 | BA171: 0 | BB171: 0 | BC171: 0 | BD171: 0 | BE171: 0 | BF171: 0 | BG171: 0 | BH171: 0 | BI171: 0 | BJ171: 0 | BK171: 0 | BL171: 0 | BM171: 0 | BN171: 0 | BO171: 0 | BP171: 0 | BQ171: 0 | BR171: 0 | BX171: =IF(OR($E171=NA,SUM(K171:BR171)=0),0,IF(OR(ISTEXT(K171:BR171),MIN(K171:BR171)<0),1,0)) -> 0
A172: 0 | D172: [Insert description/driver of costs/savings] | E172: Option 1 | F172: $000 | G172: Nominal | H172: JEN | I172: [Select JEN Asset Class] | K172: 0 | L172: 0 | M172: 0 | N172: 0 | O172: 0 | P172: 0 | Q172: 0 | R172: 0 | S172: 0 | T172: 0 | U172: 0 | V172: 0 | W172: 0 | X172: 0 | Y172: 0 | Z172: 0 | AA172: 0 | AB172: 0 | AC172: 0 | AD172: 0 | AE172: 0 | AF172: 0 | AG172: 0 | AH172: 0 | AI172: 0 | AJ172: 0 | AK172: 0 | AL172: 0 | AM172: 0 | AN172: 0 | AO172: 0 | AP172: 0 | AQ172: 0 | AR172: 0 | AS172: 0 | AT172: 0 | AU172: 0 | AV172: 0 | AW172: 0 | AX172: 0 | AY172: 0 | AZ172: 0 | BA172: 0 | BB172: 0 | BC172: 0 | BD172: 0 | BE172: 0 | BF172: 0 | BG172: 0 | BH172: 0 | BI172: 0 | BJ172: 0 | BK172: 0 | BL172: 0 | BM172: 0 | BN172: 0 | BO172: 0 | BP172: 0 | BQ172: 0 | BR172: 0 | BX172: 0
A173: 0 | D173: [Insert description/driver of costs/savings] | E173: Option 1 | F173: $000 | G173: Nominal | H173: JEN | I173: [Select JEN Asset Class] | K173: 0 | L173: 0 | M173: 0 | N173: 0 | O173: 0 | P173: 0 | Q173: 0 | R173: 0 | S173: 0 | T173: 0 | U173: 0 | V173: 0 | W173: 0 | X173: 0 | Y173: 0 | Z173: 0 | AA173: 0 | AB173: 0 | AC173: 0 | AD173: 0 | AE173: 0 | AF173: 0 | AG173: 0 | AH173: 0 | AI173: 0 | AJ173: 0 | AK173: 0 | AL173: 0 | AM173: 0 | AN173: 0 | AO173: 0 | AP173: 0 | AQ173: 0 | AR173: 0 | AS173: 0 | AT173: 0 | AU173: 0 | AV173: 0 | AW173: 0 | AX173: 0 | AY173: 0 | AZ173: 0 | BA173: 0 | BB173: 0 | BC173: 0 | BD173: 0 | BE173: 0 | BF173: 0 | BG173: 0 | BH173: 0 | BI173: 0 | BJ173: 0 | BK173: 0 | BL173: 0 | BM173: 0 | BN173: 0 | BO173: 0 | BP173: 0 | BQ173: 0 | BR173: 0 | BX173: 0
A174: 0 | D174: [Insert description/driver of costs/savings] | E174: Option 1 | F174: $000 | G174: Nominal | H174: JEN | I174: [Select JEN Asset Class] | K174: 0 | L174: 0 | M174: 0 | N174: 0 | O174: 0 | P174: 0 | Q174: 0 | R174: 0 | S174: 0 | T174: 0 | U174: 0 | V174: 0 | W174: 0 | X174: 0 | Y174: 0 | Z174: 0 | AA174: 0 | AB174: 0 | AC174: 0 | AD174: 0 | AE174: 0 | AF174: 0 | AG174: 0 | AH174: 0 | AI174: 0 | AJ174: 0 | AK174: 0 | AL174: 0 | AM174: 0 | AN174: 0 | AO174: 0 | AP174: 0 | AQ174: 0 | AR174: 0 | AS174: 0 | AT174: 0 | AU174: 0 | AV174: 0 | AW174: 0 | AX174: 0 | AY174: 0 | AZ174: 0 | BA174: 0 | BB174: 0 | BC174: 0 | BD174: 0 | BE174: 0 | BF174: 0 | BG174: 0 | BH174: 0 | BI174: 0 | BJ174: 0 | BK174: 0 | BL174: 0 | BM174: 0 | BN174: 0 | BO174: 0 | BP174: 0 | BQ174: 0 | BR174: 0 | BX174: 0
A175: 0 | D175: [Insert description/driver of costs/savings] | E175: Option 1 | F175: $000 | G175: Nominal | H175: JEN | I175: [Select JEN Asset Class] | K175: 0 | L175: 0 | M175: 0 | N175: 0 | O175: 0 | P175: 0 | Q175: 0 | R175: 0 | S175: 0 | T175: 0 | U175: 0 | V175: 0 | W175: 0 | X175: 0 | Y175: 0 | Z175: 0 | AA175: 0 | AB175: 0 | AC175: 0 | AD175: 0 | AE175: 0 | AF175: 0 | AG175: 0 | AH175: 0 | AI175: 0 | AJ175: 0 | AK175: 0 | AL175: 0 | AM175: 0 | AN175: 0 | AO175: 0 | AP175: 0 | AQ175: 0 | AR175: 0 | AS175: 0 | AT175: 0 | AU175: 0 | AV175: 0 | AW175: 0 | AX175: 0 | AY175: 0 | AZ175: 0 | BA175: 0 | BB175: 0 | BC175: 0 | BD175: 0 | BE175: 0 | BF175: 0 | BG175: 0 | BH175: 0 | BI175: 0 | BJ175: 0 | BK175: 0 | BL175: 0 | BM175: 0 | BN175: 0 | BO175: 0 | BP175: 0 | BQ175: 0 | BR175: 0 | BX175: 0
A176: 0 | D176: [Insert description/driver of costs/savings] | E176: Option 1 | F176: $000 | G176: Nominal | H176: JEN | I176: [Select JEN Asset Class] | K176: 0 | L176: 0 | M176: 0 | N176: 0 | O176: 0 | P176: 0 | Q176: 0 | R176: 0 | S176: 0 | T176: 0 | U176: 0 | V176: 0 | W176: 0 | X176: 0 | Y176: 0 | Z176: 0 | AA176: 0 | AB176: 0 | AC176: 0 | AD176: 0 | AE176: 0 | AF176: 0 | AG176: 0 | AH176: 0 | AI176: 0 | AJ176: 0 | AK176: 0 | AL176: 0 | AM176: 0 | AN176: 0 | AO176: 0 | AP176: 0 | AQ176: 0 | AR176: 0 | AS176: 0 | AT176: 0 | AU176: 0 | AV176: 0 | AW176: 0 | AX176: 0 | AY176: 0 | AZ176: 0 | BA176: 0 | BB176: 0 | BC176: 0 | BD176: 0 | BE176: 0 | BF176: 0 | BG176: 0 | BH176: 0 | BI176: 0 | BJ176: 0 | BK176: 0 | BL176: 0 | BM176: 0 | BN176: 0 | BO176: 0 | BP176: 0 | BQ176: 0 | BR176: 0 | BX176: 0
A177: 0 | D177: [Insert description/driver of costs/savings] | E177: Option 1 | F177: $000 | G177: Nominal | H177: JEN | I177: [Select JEN Asset Class] | K177: 0 | L177: 0 | M177: 0 | N177: 0 | O177: 0 | P177: 0 | Q177: 0 | R177: 0 | S177: 0 | T177: 0 | U177: 0 | V177: 0 | W177: 0 | X177: 0 | Y177: 0 | Z177: 0 | AA177: 0 | AB177: 0 | AC177: 0 | AD177: 0 | AE177: 0 | AF177: 0 | AG177: 0 | AH177: 0 | AI177: 0 | AJ177: 0 | AK177: 0 | AL177: 0 | AM177: 0 | AN177: 0 | AO177: 0 | AP177: 0 | AQ177: 0 | AR177: 0 | AS177: 0 | AT177: 0 | AU177: 0 | AV177: 0 | AW177: 0 | AX177: 0 | AY177: 0 | AZ177: 0 | BA177: 0 | BB177: 0 | BC177: 0 | BD177: 0 | BE177: 0 | BF177: 0 | BG177: 0 | BH177: 0 | BI177: 0 | BJ177: 0 | BK177: 0 | BL177: 0 | BM177: 0 | BN177: 0 | BO177: 0 | BP177: 0 | BQ177: 0 | BR177: 0 | BX177: 0
A179: =SUM(BT179:BX179) -> 0 | D179: =D119 -> Digital capex | E179: Option 2 | F179: $000 | G179: Real 2024 | H179: JEN | I179: JEN SCS - Non network - IT (Infrastructure) | K179: 0 | L179: 0 | M179: 0 | N179: 0 | O179: 0 | P179: 0 | Q179: 0 | R179: 0 | S179: 0 | T179: 0 | U179: 0 | V179: 0 | W179: 0 | X179: 0 | Y179: 0 | Z179: 0 | AA179: 0 | AB179: 0 | AC179: 0 | AD179: 0 | AE179: 0 | AF179: 0 | AG179: 0 | AH179: 0 | AI179: 0 | AJ179: 0 | AK179: 0 | AL179: 0 | AM179: 0 | AN179: 0 | AO179: 0 | AP179: 0 | AQ179: 0 | AR179: 0 | AS179: 0 | AT179: 0 | AU179: 0 | AV179: 0 | AW179: 0 | AX179: 0 | AY179: 0 | AZ179: 0 | BA179: 0 | BB179: 0 | BC179: 0 | BD179: 0 | BE179: 0 | BF179: 0 | BG179: 0 | BH179: 0 | BI179: 0 | BJ179: 0 | BK179: 0 | BL179: 0 | BM179: 0 | BN179: 0 | BO179: 0 | BP179: 0 | BQ179: 0 | BR179: 0 | BX179: =IF(OR($E179=NA,SUM(K179:BR179)=0),0,IF(OR(ISTEXT(K179:BR179),MIN(K179:BR179)<0),1,0)) -> 0
A180: 0 | D180: [Insert description/driver of costs/savings] | E180: Option 2 | F180: $000 | G180: Nominal | H180: JEN | I180: [Select JEN Asset Class] | K180: 0 | L180: 0 | M180: 0 | N180: 0 | O180: 0 | P180: 0 | Q180: 0 | R180: 0 | S180: 0 | T180: 0 | U180: 0 | V180: 0 | W180: 0 | X180: 0 | Y180: 0 | Z180: 0 | AA180: 0 | AB180: 0 | AC180: 0 | AD180: 0 | AE180: 0 | AF180: 0 | AG180: 0 | AH180: 0 | AI180: 0 | AJ180: 0 | AK180: 0 | AL180: 0 | AM180: 0 | AN180: 0 | AO180: 0 | AP180: 0 | AQ180: 0 | AR180: 0 | AS180: 0 | AT180: 0 | AU180: 0 | AV180: 0 | AW180: 0 | AX180: 0 | AY180: 0 | AZ180: 0 | BA180: 0 | BB180: 0 | BC180: 0 | BD180: 0 | BE180: 0 | BF180: 0 | BG180: 0 | BH180: 0 | BI180: 0 | BJ180: 0 | BK180: 0 | BL180: 0 | BM180: 0 | BN180: 0 | BO180: 0 | BP180: 0 | BQ180: 0 | BR180: 0 | BX180: 0
A181: 0 | D181: [Insert description/driver of costs/savings] | E181: Option 2 | F181: $000 | G181: Nominal | H181: JEN | I181: [Select JEN Asset Class] | K181: 0 | L181: 0 | M181: 0 | N181: 0 | O181: 0 | P181: 0 | Q181: 0 | R181: 0 | S181: 0 | T181: 0 | U181: 0 | V181: 0 | W181: 0 | X181: 0 | Y181: 0 | Z181: 0 | AA181: 0 | AB181: 0 | AC181: 0 | AD181: 0 | AE181: 0 | AF181: 0 | AG181: 0 | AH181: 0 | AI181: 0 | AJ181: 0 | AK181: 0 | AL181: 0 | AM181: 0 | AN181: 0 | AO181: 0 | AP181: 0 | AQ181: 0 | AR181: 0 | AS181: 0 | AT181: 0 | AU181: 0 | AV181: 0 | AW181: 0 | AX181: 0 | AY181: 0 | AZ181: 0 | BA181: 0 | BB181: 0 | BC181: 0 | BD181: 0 | BE181: 0 | BF181: 0 | BG181: 0 | BH181: 0 | BI181: 0 | BJ181: 0 | BK181: 0 | BL181: 0 | BM181: 0 | BN181: 0 | BO181: 0 | BP181: 0 | BQ181: 0 | BR181: 0 | BX181: 0
A182: 0 | D182: [Insert description/driver of costs/savings] | E182: Option 2 | F182: $000 | G182: Nominal | H182: JEN | I182: [Select JEN Asset Class] | K182: 0 | L182: 0 | M182: 0 | N182: 0 | O182: 0 | P182: 0 | Q182: 0 | R182: 0 | S182: 0 | T182: 0 | U182: 0 | V182: 0 | W182: 0 | X182: 0 | Y182: 0 | Z182: 0 | AA182: 0 | AB182: 0 | AC182: 0 | AD182: 0 | AE182: 0 | AF182: 0 | AG182: 0 | AH182: 0 | AI182: 0 | AJ182: 0 | AK182: 0 | AL182: 0 | AM182: 0 | AN182: 0 | AO182: 0 | AP182: 0 | AQ182: 0 | AR182: 0 | AS182: 0 | AT182: 0 | AU182: 0 | AV182: 0 | AW182: 0 | AX182: 0 | AY182: 0 | AZ182: 0 | BA182: 0 | BB182: 0 | BC182: 0 | BD182: 0 | BE182: 0 | BF182: 0 | BG182: 0 | BH182: 0 | BI182: 0 | BJ182: 0 | BK182: 0 | BL182: 0 | BM182: 0 | BN182: 0 | BO182: 0 | BP182: 0 | BQ182: 0 | BR182: 0 | BX182: 0
A183: 0 | D183: [Insert description/driver of costs/savings] | E183: Option 2 | F183: $000 | G183: Nominal | H183: JEN | I183: [Select JEN Asset Class] | K183: 0 | L183: 0 | M183: 0 | N183: 0 | O183: 0 | P183: 0 | Q183: 0 | R183: 0 | S183: 0 | T183: 0 | U183: 0 | V183: 0 | W183: 0 | X183: 0 | Y183: 0 | Z183: 0 | AA183: 0 | AB183: 0 | AC183: 0 | AD183: 0 | AE183: 0 | AF183: 0 | AG183: 0 | AH183: 0 | AI183: 0 | AJ183: 0 | AK183: 0 | AL183: 0 | AM183: 0 | AN183: 0 | AO183: 0 | AP183: 0 | AQ183: 0 | AR183: 0 | AS183: 0 | AT183: 0 | AU183: 0 | AV183: 0 | AW183: 0 | AX183: 0 | AY183: 0 | AZ183: 0 | BA183: 0 | BB183: 0 | BC183: 0 | BD183: 0 | BE183: 0 | BF183: 0 | BG183: 0 | BH183: 0 | BI183: 0 | BJ183: 0 | BK183: 0 | BL183: 0 | BM183: 0 | BN183: 0 | BO183: 0 | BP183: 0 | BQ183: 0 | BR183: 0 | BX183: 0
A184: 0 | D184: [Insert description/driver of costs/savings] | E184: Option 2 | F184: $000 | G184: Nominal | H184: JEN | I184: [Select JEN Asset Class] | K184: 0 | L184: 0 | M184: 0 | N184: 0 | O184: 0 | P184: 0 | Q184: 0 | R184: 0 | S184: 0 | T184: 0 | U184: 0 | V184: 0 | W184: 0 | X184: 0 | Y184: 0 | Z184: 0 | AA184: 0 | AB184: 0 | AC184: 0 | AD184: 0 | AE184: 0 | AF184: 0 | AG184: 0 | AH184: 0 | AI184: 0 | AJ184: 0 | AK184: 0 | AL184: 0 | AM184: 0 | AN184: 0 | AO184: 0 | AP184: 0 | AQ184: 0 | AR184: 0 | AS184: 0 | AT184: 0 | AU184: 0 | AV184: 0 | AW184: 0 | AX184: 0 | AY184: 0 | AZ184: 0 | BA184: 0 | BB184: 0 | BC184: 0 | BD184: 0 | BE184: 0 | BF184: 0 | BG184: 0 | BH184: 0 | BI184: 0 | BJ184: 0 | BK184: 0 | BL184: 0 | BM184: 0 | BN184: 0 | BO184: 0 | BP184: 0 | BQ184: 0 | BR184: 0 | BX184: 0
A185: 0 | D185: [Insert description/driver of costs/savings] | E185: Option 2 | F185: $000 | G185: Nominal | H185: JEN | I185: [Select JEN Asset Class] | K185: 0 | L185: 0 | M185: 0 | N185: 0 | O185: 0 | P185: 0 | Q185: 0 | R185: 0 | S185: 0 | T185: 0 | U185: 0 | V185: 0 | W185: 0 | X185: 0 | Y185: 0 | Z185: 0 | AA185: 0 | AB185: 0 | AC185: 0 | AD185: 0 | AE185: 0 | AF185: 0 | AG185: 0 | AH185: 0 | AI185: 0 | AJ185: 0 | AK185: 0 | AL185: 0 | AM185: 0 | AN185: 0 | AO185: 0 | AP185: 0 | AQ185: 0 | AR185: 0 | AS185: 0 | AT185: 0 | AU185: 0 | AV185: 0 | AW185: 0 | AX185: 0 | AY185: 0 | AZ185: 0 | BA185: 0 | BB185: 0 | BC185: 0 | BD185: 0 | BE185: 0 | BF185: 0 | BG185: 0 | BH185: 0 | BI185: 0 | BJ185: 0 | BK185: 0 | BL185: 0 | BM185: 0 | BN185: 0 | BO185: 0 | BP185: 0 | BQ185: 0 | BR185: 0 | BX185: 0
A187: =SUM(BT187:BX187) -> 0 | D187: =D127 -> Digital capex | E187: Option 3 | F187: $000 | G187: Real 2024 | H187: JEN | I187: JEN SCS - Non network - IT (Infrastructure) | K187: 0 | L187: 0 | M187: 0 | N187: 0 | O187: 0 | P187: 0 | Q187: 0 | R187: 0 | S187: 0 | T187: 0 | U187: 0 | V187: 0 | W187: 0 | X187: 0 | Y187: 0 | Z187: 0 | AA187: 0 | AB187: 0 | AC187: 0 | AD187: 0 | AE187: 0 | AF187: 0 | AG187: 0 | AH187: 0 | AI187: 0 | AJ187: 0 | AK187: 0 | AL187: 0 | AM187: 0 | AN187: 0 | AO187: 0 | AP187: 0 | AQ187: 0 | AR187: 0 | AS187: 0 | AT187: 0 | AU187: 0 | AV187: 0 | AW187: 0 | AX187: 0 | AY187: 0 | AZ187: 0 | BA187: 0 | BB187: 0 | BC187: 0 | BD187: 0 | BE187: 0 | BF187: 0 | BG187: 0 | BH187: 0 | BI187: 0 | BJ187: 0 | BK187: 0 | BL187: 0 | BM187: 0 | BN187: 0 | BO187: 0 | BP187: 0 | BQ187: 0 | BR187: 0 | BX187: =IF(OR($E187=NA,SUM(K187:BR187)=0),0,IF(OR(ISTEXT(K187:BR187),MIN(K187:BR187)<0),1,0)) -> 0
A188: 0 | D188: [Insert description/driver of costs/savings] | E188: Option 3 | F188: $000 | G188: Nominal | H188: JEN | I188: [Select JEN Asset Class] | K188: 0 | L188: 0 | M188: 0 | N188: 0 | O188: 0 | P188: 0 | Q188: 0 | R188: 0 | S188: 0 | T188: 0 | U188: 0 | V188: 0 | W188: 0 | X188: 0 | Y188: 0 | Z188: 0 | AA188: 0 | AB188: 0 | AC188: 0 | AD188: 0 | AE188: 0 | AF188: 0 | AG188: 0 | AH188: 0 | AI188: 0 | AJ188: 0 | AK188: 0 | AL188: 0 | AM188: 0 | AN188: 0 | AO188: 0 | AP188: 0 | AQ188: 0 | AR188: 0 | AS188: 0 | AT188: 0 | AU188: 0 | AV188: 0 | AW188: 0 | AX188: 0 | AY188: 0 | AZ188: 0 | BA188: 0 | BB188: 0 | BC188: 0 | BD188: 0 | BE188: 0 | BF188: 0 | BG188: 0 | BH188: 0 | BI188: 0 | BJ188: 0 | BK188: 0 | BL188: 0 | BM188: 0 | BN188: 0 | BO188: 0 | BP188: 0 | BQ188: 0 | BR188: 0 | BX188: 0
A189: 0 | D189: [Insert description/driver of costs/savings] | E189: Option 3 | F189: $000 | G189: Nominal | H189: JEN | I189: [Select JEN Asset Class] | K189: 0 | L189: 0 | M189: 0 | N189: 0 | O189: 0 | P189: 0 | Q189: 0 | R189: 0 | S189: 0 | T189: 0 | U189: 0 | V189: 0 | W189: 0 | X189: 0 | Y189: 0 | Z189: 0 | AA189: 0 | AB189: 0 | AC189: 0 | AD189: 0 | AE189: 0 | AF189: 0 | AG189: 0 | AH189: 0 | AI189: 0 | AJ189: 0 | AK189: 0 | AL189: 0 | AM189: 0 | AN189: 0 | AO189: 0 | AP189: 0 | AQ189: 0 | AR189: 0 | AS189: 0 | AT189: 0 | AU189: 0 | AV189: 0 | AW189: 0 | AX189: 0 | AY189: 0 | AZ189: 0 | BA189: 0 | BB189: 0 | BC189: 0 | BD189: 0 | BE189: 0 | BF189: 0 | BG189: 0 | BH189: 0 | BI189: 0 | BJ189: 0 | BK189: 0 | BL189: 0 | BM189: 0 | BN189: 0 | BO189: 0 | BP189: 0 | BQ189: 0 | BR189: 0 | BX189: 0
A190: 0 | D190: [Insert description/driver of costs/savings] | E190: Option 3 | F190: $000 | G190: Nominal | H190: JEN | I190: [Select JEN Asset Class] | K190: 0 | L190: 0 | M190: 0 | N190: 0 | O190: 0 | P190: 0 | Q190: 0 | R190: 0 | S190: 0 | T190: 0 | U190: 0 | V190: 0 | W190: 0 | X190: 0 | Y190: 0 | Z190: 0 | AA190: 0 | AB190: 0 | AC190: 0 | AD190: 0 | AE190: 0 | AF190: 0 | AG190: 0 | AH190: 0 | AI190: 0 | AJ190: 0 | AK190: 0 | AL190: 0 | AM190: 0 | AN190: 0 | AO190: 0 | AP190: 0 | AQ190: 0 | AR190: 0 | AS190: 0 | AT190: 0 | AU190: 0 | AV190: 0 | AW190: 0 | AX190: 0 | AY190: 0 | AZ190: 0 | BA190: 0 | BB190: 0 | BC190: 0 | BD190: 0 | BE190: 0 | BF190: 0 | BG190: 0 | BH190: 0 | BI190: 0 | BJ190: 0 | BK190: 0 | BL190: 0 | BM190: 0 | BN190: 0 | BO190: 0 | BP190: 0 | BQ190: 0 | BR190: 0 | BX190: 0
A191: 0 | D191: [Insert description/driver of costs/savings] | E191: Option 3 | F191: $000 | G191: Nominal | H191: JEN | I191: [Select JEN Asset Class] | K191: 0 | L191: 0 | M191: 0 | N191: 0 | O191: 0 | P191: 0 | Q191: 0 | R191: 0 | S191: 0 | T191: 0 | U191: 0 | V191: 0 | W191: 0 | X191: 0 | Y191: 0 | Z191: 0 | AA191: 0 | AB191: 0 | AC191: 0 | AD191: 0 | AE191: 0 | AF191: 0 | AG191: 0 | AH191: 0 | AI191: 0 | AJ191: 0 | AK191: 0 | AL191: 0 | AM191: 0 | AN191: 0 | AO191: 0 | AP191: 0 | AQ191: 0 | AR191: 0 | AS191: 0 | AT191: 0 | AU191: 0 | AV191: 0 | AW191: 0 | AX191: 0 | AY191: 0 | AZ191: 0 | BA191: 0 | BB191: 0 | BC191: 0 | BD191: 0 | BE191: 0 | BF191: 0 | BG191: 0 | BH191: 0 | BI191: 0 | BJ191: 0 | BK191: 0 | BL191: 0 | BM191: 0 | BN191: 0 | BO191: 0 | BP191: 0 | BQ191: 0 | BR191: 0 | BX191: 0
A192: 0 | D192: [Insert description/driver of costs/savings] | E192: Option 3 | F192: $000 | G192: Nominal | H192: JEN | I192: [Select JEN Asset Class] | K192: 0 | L192: 0 | M192: 0 | N192: 0 | O192: 0 | P192: 0 | Q192: 0 | R192: 0 | S192: 0 | T192: 0 | U192: 0 | V192: 0 | W192: 0 | X192: 0 | Y192: 0 | Z192: 0 | AA192: 0 | AB192: 0 | AC192: 0 | AD192: 0 | AE192: 0 | AF192: 0 | AG192: 0 | AH192: 0 | AI192: 0 | AJ192: 0 | AK192: 0 | AL192: 0 | AM192: 0 | AN192: 0 | AO192: 0 | AP192: 0 | AQ192: 0 | AR192: 0 | AS192: 0 | AT192: 0 | AU192: 0 | AV192: 0 | AW192: 0 | AX192: 0 | AY192: 0 | AZ192: 0 | BA192: 0 | BB192: 0 | BC192: 0 | BD192: 0 | BE192: 0 | BF192: 0 | BG192: 0 | BH192: 0 | BI192: 0 | BJ192: 0 | BK192: 0 | BL192: 0 | BM192: 0 | BN192: 0 | BO192: 0 | BP192: 0 | BQ192: 0 | BR192: 0 | BX192: 0
A193: 0 | D193: [Insert description/driver of costs/savings] | E193: Option 3 | F193: $000 | G193: Nominal | H193: JEN | I193: [Select JEN Asset Class] | K193: 0 | L193: 0 | M193: 0 | N193: 0 | O193: 0 | P193: 0 | Q193: 0 | R193: 0 | S193: 0 | T193: 0 | U193: 0 | V193: 0 | W193: 0 | X193: 0 | Y193: 0 | Z193: 0 | AA193: 0 | AB193: 0 | AC193: 0 | AD193: 0 | AE193: 0 | AF193: 0 | AG193: 0 | AH193: 0 | AI193: 0 | AJ193: 0 | AK193: 0 | AL193: 0 | AM193: 0 | AN193: 0 | AO193: 0 | AP193: 0 | AQ193: 0 | AR193: 0 | AS193: 0 | AT193: 0 | AU193: 0 | AV193: 0 | AW193: 0 | AX193: 0 | AY193: 0 | AZ193: 0 | BA193: 0 | BB193: 0 | BC193: 0 | BD193: 0 | BE193: 0 | BF193: 0 | BG193: 0 | BH193: 0 | BI193: 0 | BJ193: 0 | BK193: 0 | BL193: 0 | BM193: 0 | BN193: 0 | BO193: 0 | BP193: 0 | BQ193: 0 | BR193: 0 | BX193: 0
A195: =SUM(BT195:BX195) -> 0 | D195: =D135 -> [Insert description/driver of costs/savings] | E195: n/a | F195: $000 | G195: Nominal | H195: JEN | I195: [Select JEN Asset Class] | K195: 0 | L195: 0 | M195: 0 | N195: 0 | O195: 0 | P195: 0 | Q195: 0 | R195: 0 | S195: 0 | T195: 0 | U195: 0 | V195: 0 | W195: 0 | X195: 0 | Y195: 0 | Z195: 0 | AA195: 0 | AB195: 0 | AC195: 0 | AD195: 0 | AE195: 0 | AF195: 0 | AG195: 0 | AH195: 0 | AI195: 0 | AJ195: 0 | AK195: 0 | AL195: 0 | AM195: 0 | AN195: 0 | AO195: 0 | AP195: 0 | AQ195: 0 | AR195: 0 | AS195: 0 | AT195: 0 | AU195: 0 | AV195: 0 | AW195: 0 | AX195: 0 | AY195: 0 | AZ195: 0 | BA195: 0 | BB195: 0 | BC195: 0 | BD195: 0 | BE195: 0 | BF195: 0 | BG195: 0 | BH195: 0 | BI195: 0 | BJ195: 0 | BK195: 0 | BL195: 0 | BM195: 0 | BN195: 0 | BO195: 0 | BP195: 0 | BQ195: 0 | BR195: 0 | BX195: =IF(OR($E195=NA,SUM(K195:BR195)=0),0,IF(OR(ISTEXT(K195:BR195),MIN(K195:BR195)<0),1,0)) -> 0
A196: 0 | D196: [Insert description/driver of costs/savings] | E196: n/a | F196: $000 | G196: Nominal | H196: JEN | I196: [Select JEN Asset Class] | K196: 0 | L196: 0 | M196: 0 | N196: 0 | O196: 0 | P196: 0 | Q196: 0 | R196: 0 | S196: 0 | T196: 0 | U196: 0 | V196: 0 | W196: 0 | X196: 0 | Y196: 0 | Z196: 0 | AA196: 0 | AB196: 0 | AC196: 0 | AD196: 0 | AE196: 0 | AF196: 0 | AG196: 0 | AH196: 0 | AI196: 0 | AJ196: 0 | AK196: 0 | AL196: 0 | AM196: 0 | AN196: 0 | AO196: 0 | AP196: 0 | AQ196: 0 | AR196: 0 | AS196: 0 | AT196: 0 | AU196: 0 | AV196: 0 | AW196: 0 | AX196: 0 | AY196: 0 | AZ196: 0 | BA196: 0 | BB196: 0 | BC196: 0 | BD196: 0 | BE196: 0 | BF196: 0 | BG196: 0 | BH196: 0 | BI196: 0 | BJ196: 0 | BK196: 0 | BL196: 0 | BM196: 0 | BN196: 0 | BO196: 0 | BP196: 0 | BQ196: 0 | BR196: 0 | BX196: 0
A197: 0 | D197: [Insert description/driver of costs/savings] | E197: n/a | F197: $000 | G197: Nominal | H197: JEN | I197: [Select JEN Asset Class] | K197: 0 | L197: 0 | M197: 0 | N197: 0 | O197: 0 | P197: 0 | Q197: 0 | R197: 0 | S197: 0 | T197: 0 | U197: 0 | V197: 0 | W197: 0 | X197: 0 | Y197: 0 | Z197: 0 | AA197: 0 | AB197: 0 | AC197: 0 | AD197: 0 | AE197: 0 | AF197: 0 | AG197: 0 | AH197: 0 | AI197: 0 | AJ197: 0 | AK197: 0 | AL197: 0 | AM197: 0 | AN197: 0 | AO197: 0 | AP197: 0 | AQ197: 0 | AR197: 0 | AS197: 0 | AT197: 0 | AU197: 0 | AV197: 0 | AW197: 0 | AX197: 0 | AY197: 0 | AZ197: 0 | BA197: 0 | BB197: 0 | BC197: 0 | BD197: 0 | BE197: 0 | BF197: 0 | BG197: 0 | BH197: 0 | BI197: 0 | BJ197: 0 | BK197: 0 | BL197: 0 | BM197: 0 | BN197: 0 | BO197: 0 | BP197: 0 | BQ197: 0 | BR197: 0 | BX197: 0
A198: 0 | D198: [Insert description/driver of costs/savings] | E198: n/a | F198: $000 | G198: Nominal | H198: JEN | I198: [Select JEN Asset Class] | K198: 0 | L198: 0 | M198: 0 | N198: 0 | O198: 0 | P198: 0 | Q198: 0 | R198: 0 | S198: 0 | T198: 0 | U198: 0 | V198: 0 | W198: 0 | X198: 0 | Y198: 0 | Z198: 0 | AA198: 0 | AB198: 0 | AC198: 0 | AD198: 0 | AE198: 0 | AF198: 0 | AG198: 0 | AH198: 0 | AI198: 0 | AJ198: 0 | AK198: 0 | AL198: 0 | AM198: 0 | AN198: 0 | AO198: 0 | AP198: 0 | AQ198: 0 | AR198: 0 | AS198: 0 | AT198: 0 | AU198: 0 | AV198: 0 | AW198: 0 | AX198: 0 | AY198: 0 | AZ198: 0 | BA198: 0 | BB198: 0 | BC198: 0 | BD198: 0 | BE198: 0 | BF198: 0 | BG198: 0 | BH198: 0 | BI198: 0 | BJ198: 0 | BK198: 0 | BL198: 0 | BM198: 0 | BN198: 0 | BO198: 0 | BP198: 0 | BQ198: 0 | BR198: 0 | BX198: 0
A199: 0 | D199: [Insert description/driver of costs/savings] | E199: n/a | F199: $000 | G199: Nominal | H199: JEN | I199: [Select JEN Asset Class] | K199: 0 | L199: 0 | M199: 0 | N199: 0 | O199: 0 | P199: 0 | Q199: 0 | R199: 0 | S199: 0 | T199: 0 | U199: 0 | V199: 0 | W199: 0 | X199: 0 | Y199: 0 | Z199: 0 | AA199: 0 | AB199: 0 | AC199: 0 | AD199: 0 | AE199: 0 | AF199: 0 | AG199: 0 | AH199: 0 | AI199: 0 | AJ199: 0 | AK199: 0 | AL199: 0 | AM199: 0 | AN199: 0 | AO199: 0 | AP199: 0 | AQ199: 0 | AR199: 0 | AS199: 0 | AT199: 0 | AU199: 0 | AV199: 0 | AW199: 0 | AX199: 0 | AY199: 0 | AZ199: 0 | BA199: 0 | BB199: 0 | BC199: 0 | BD199: 0 | BE199: 0 | BF199: 0 | BG199: 0 | BH199: 0 | BI199: 0 | BJ199: 0 | BK199: 0 | BL199: 0 | BM199: 0 | BN199: 0 | BO199: 0 | BP199: 0 | BQ199: 0 | BR199: 0 | BX199: 0
A200: 0 | D200: [Insert description/driver of costs/savings] | E200: n/a | F200: $000 | G200: Nominal | H200: JEN | I200: [Select JEN Asset Class] | K200: 0 | L200: 0 | M200: 0 | N200: 0 | O200: 0 | P200: 0 | Q200: 0 | R200: 0 | S200: 0 | T200: 0 | U200: 0 | V200: 0 | W200: 0 | X200: 0 | Y200: 0 | Z200: 0 | AA200: 0 | AB200: 0 | AC200: 0 | AD200: 0 | AE200: 0 | AF200: 0 | AG200: 0 | AH200: 0 | AI200: 0 | AJ200: 0 | AK200: 0 | AL200: 0 | AM200: 0 | AN200: 0 | AO200: 0 | AP200: 0 | AQ200: 0 | AR200: 0 | AS200: 0 | AT200: 0 | AU200: 0 | AV200: 0 | AW200: 0 | AX200: 0 | AY200: 0 | AZ200: 0 | BA200: 0 | BB200: 0 | BC200: 0 | BD200: 0 | BE200: 0 | BF200: 0 | BG200: 0 | BH200: 0 | BI200: 0 | BJ200: 0 | BK200: 0 | BL200: 0 | BM200: 0 | BN200: 0 | BO200: 0 | BP200: 0 | BQ200: 0 | BR200: 0 | BX200: 0
A201: 0 | D201: [Insert description/driver of costs/savings] | E201: n/a | F201: $000 | G201: Nominal | H201: JEN | I201: [Select JEN Asset Class] | K201: 0 | L201: 0 | M201: 0 | N201: 0 | O201: 0 | P201: 0 | Q201: 0 | R201: 0 | S201: 0 | T201: 0 | U201: 0 | V201: 0 | W201: 0 | X201: 0 | Y201: 0 | Z201: 0 | AA201: 0 | AB201: 0 | AC201: 0 | AD201: 0 | AE201: 0 | AF201: 0 | AG201: 0 | AH201: 0 | AI201: 0 | AJ201: 0 | AK201: 0 | AL201: 0 | AM201: 0 | AN201: 0 | AO201: 0 | AP201: 0 | AQ201: 0 | AR201: 0 | AS201: 0 | AT201: 0 | AU201: 0 | AV201: 0 | AW201: 0 | AX201: 0 | AY201: 0 | AZ201: 0 | BA201: 0 | BB201: 0 | BC201: 0 | BD201: 0 | BE201: 0 | BF201: 0 | BG201: 0 | BH201: 0 | BI201: 0 | BJ201: 0 | BK201: 0 | BL201: 0 | BM201: 0 | BN201: 0 | BO201: 0 | BP201: 0 | BQ201: 0 | BR201: 0 | BX201: 0
A203: =SUM(BT203:BX203) -> 0 | D203: =D143 -> [Insert description/driver of costs/savings] | E203: n/a | F203: $000 | G203: Nominal | H203: JEN | I203: [Select JEN Asset Class] | K203: 0 | L203: 0 | M203: 0 | N203: 0 | O203: 0 | P203: 0 | Q203: 0 | R203: 0 | S203: 0 | T203: 0 | U203: 0 | V203: 0 | W203: 0 | X203: 0 | Y203: 0 | Z203: 0 | AA203: 0 | AB203: 0 | AC203: 0 | AD203: 0 | AE203: 0 | AF203: 0 | AG203: 0 | AH203: 0 | AI203: 0 | AJ203: 0 | AK203: 0 | AL203: 0 | AM203: 0 | AN203: 0 | AO203: 0 | AP203: 0 | AQ203: 0 | AR203: 0 | AS203: 0 | AT203: 0 | AU203: 0 | AV203: 0 | AW203: 0 | AX203: 0 | AY203: 0 | AZ203: 0 | BA203: 0 | BB203: 0 | BC203: 0 | BD203: 0 | BE203: 0 | BF203: 0 | BG203: 0 | BH203: 0 | BI203: 0 | BJ203: 0 | BK203: 0 | BL203: 0 | BM203: 0 | BN203: 0 | BO203: 0 | BP203: 0 | BQ203: 0 | BR203: 0 | BX203: =IF(OR($E203=NA,SUM(K203:BR203)=0),0,IF(OR(ISTEXT(K203:BR203),MIN(K203:BR203)<0),1,0)) -> 0
A204: 0 | D204: [Insert description/driver of costs/savings] | E204: n/a | F204: $000 | G204: Nominal | H204: JEN | I204: [Select JEN Asset Class] | K204: 0 | L204: 0 | M204: 0 | N204: 0 | O204: 0 | P204: 0 | Q204: 0 | R204: 0 | S204: 0 | T204: 0 | U204: 0 | V204: 0 | W204: 0 | X204: 0 | Y204: 0 | Z204: 0 | AA204: 0 | AB204: 0 | AC204: 0 | AD204: 0 | AE204: 0 | AF204: 0 | AG204: 0 | AH204: 0 | AI204: 0 | AJ204: 0 | AK204: 0 | AL204: 0 | AM204: 0 | AN204: 0 | AO204: 0 | AP204: 0 | AQ204: 0 | AR204: 0 | AS204: 0 | AT204: 0 | AU204: 0 | AV204: 0 | AW204: 0 | AX204: 0 | AY204: 0 | AZ204: 0 | BA204: 0 | BB204: 0 | BC204: 0 | BD204: 0 | BE204: 0 | BF204: 0 | BG204: 0 | BH204: 0 | BI204: 0 | BJ204: 0 | BK204: 0 | BL204: 0 | BM204: 0 | BN204: 0 | BO204: 0 | BP204: 0 | BQ204: 0 | BR204: 0 | BX204: 0
A205: 0 | D205: [Insert description/driver of costs/savings] | E205: n/a | F205: $000 | G205: Nominal | H205: JEN | I205: [Select JEN Asset Class] | K205: 0 | L205: 0 | M205: 0 | N205: 0 | O205: 0 | P205: 0 | Q205: 0 | R205: 0 | S205: 0 | T205: 0 | U205: 0 | V205: 0 | W205: 0 | X205: 0 | Y205: 0 | Z205: 0 | AA205: 0 | AB205: 0 | AC205: 0 | AD205: 0 | AE205: 0 | AF205: 0 | AG205: 0 | AH205: 0 | AI205: 0 | AJ205: 0 | AK205: 0 | AL205: 0 | AM205: 0 | AN205: 0 | AO205: 0 | AP205: 0 | AQ205: 0 | AR205: 0 | AS205: 0 | AT205: 0 | AU205: 0 | AV205: 0 | AW205: 0 | AX205: 0 | AY205: 0 | AZ205: 0 | BA205: 0 | BB205: 0 | BC205: 0 | BD205: 0 | BE205: 0 | BF205: 0 | BG205: 0 | BH205: 0 | BI205: 0 | BJ205: 0 | BK205: 0 | BL205: 0 | BM205: 0 | BN205: 0 | BO205: 0 | BP205: 0 | BQ205: 0 | BR205: 0 | BX205: 0
A206: 0 | D206: [Insert description/driver of costs/savings] | E206: n/a | F206: $000 | G206: Nominal | H206: JEN | I206: [Select JEN Asset Class] | K206: 0 | L206: 0 | M206: 0 | N206: 0 | O206: 0 | P206: 0 | Q206: 0 | R206: 0 | S206: 0 | T206: 0 | U206: 0 | V206: 0 | W206: 0 | X206: 0 | Y206: 0 | Z206: 0 | AA206: 0 | AB206: 0 | AC206: 0 | AD206: 0 | AE206: 0 | AF206: 0 | AG206: 0 | AH206: 0 | AI206: 0 | AJ206: 0 | AK206: 0 | AL206: 0 | AM206: 0 | AN206: 0 | AO206: 0 | AP206: 0 | AQ206: 0 | AR206: 0 | AS206: 0 | AT206: 0 | AU206: 0 | AV206: 0 | AW206: 0 | AX206: 0 | AY206: 0 | AZ206: 0 | BA206: 0 | BB206: 0 | BC206: 0 | BD206: 0 | BE206: 0 | BF206: 0 | BG206: 0 | BH206: 0 | BI206: 0 | BJ206: 0 | BK206: 0 | BL206: 0 | BM206: 0 | BN206: 0 | BO206: 0 | BP206: 0 | BQ206: 0 | BR206: 0 | BX206: 0
A207: 0 | D207: [Insert description/driver of costs/savings] | E207: n/a | F207: $000 | G207: Nominal | H207: JEN | I207: [Select JEN Asset Class] | K207: 0 | L207: 0 | M207: 0 | N207: 0 | O207: 0 | P207: 0 | Q207: 0 | R207: 0 | S207: 0 | T207: 0 | U207: 0 | V207: 0 | W207: 0 | X207: 0 | Y207: 0 | Z207: 0 | AA207: 0 | AB207: 0 | AC207: 0 | AD207: 0 | AE207: 0 | AF207: 0 | AG207: 0 | AH207: 0 | AI207: 0 | AJ207: 0 | AK207: 0 | AL207: 0 | AM207: 0 | AN207: 0 | AO207: 0 | AP207: 0 | AQ207: 0 | AR207: 0 | AS207: 0 | AT207: 0 | AU207: 0 | AV207: 0 | AW207: 0 | AX207: 0 | AY207: 0 | AZ207: 0 | BA207: 0 | BB207: 0 | BC207: 0 | BD207: 0 | BE207: 0 | BF207: 0 | BG207: 0 | BH207: 0 | BI207: 0 | BJ207: 0 | BK207: 0 | BL207: 0 | BM207: 0 | BN207: 0 | BO207: 0 | BP207: 0 | BQ207: 0 | BR207: 0 | BX207: 0
A208: 0 | D208: [Insert description/driver of costs/savings] | E208: n/a | F208: $000 | G208: Nominal | H208: JEN | I208: [Select JEN Asset Class] | K208: 0 | L208: 0 | M208: 0 | N208: 0 | O208: 0 | P208: 0 | Q208: 0 | R208: 0 | S208: 0 | T208: 0 | U208: 0 | V208: 0 | W208: 0 | X208: 0 | Y208: 0 | Z208: 0 | AA208: 0 | AB208: 0 | AC208: 0 | AD208: 0 | AE208: 0 | AF208: 0 | AG208: 0 | AH208: 0 | AI208: 0 | AJ208: 0 | AK208: 0 | AL208: 0 | AM208: 0 | AN208: 0 | AO208: 0 | AP208: 0 | AQ208: 0 | AR208: 0 | AS208: 0 | AT208: 0 | AU208: 0 | AV208: 0 | AW208: 0 | AX208: 0 | AY208: 0 | AZ208: 0 | BA208: 0 | BB208: 0 | BC208: 0 | BD208: 0 | BE208: 0 | BF208: 0 | BG208: 0 | BH208: 0 | BI208: 0 | BJ208: 0 | BK208: 0 | BL208: 0 | BM208: 0 | BN208: 0 | BO208: 0 | BP208: 0 | BQ208: 0 | BR208: 0 | BX208: 0
A209: 0 | D209: [Insert description/driver of costs/savings] | E209: n/a | F209: $000 | G209: Nominal | H209: JEN | I209: [Select JEN Asset Class] | K209: 0 | L209: 0 | M209: 0 | N209: 0 | O209: 0 | P209: 0 | Q209: 0 | R209: 0 | S209: 0 | T209: 0 | U209: 0 | V209: 0 | W209: 0 | X209: 0 | Y209: 0 | Z209: 0 | AA209: 0 | AB209: 0 | AC209: 0 | AD209: 0 | AE209: 0 | AF209: 0 | AG209: 0 | AH209: 0 | AI209: 0 | AJ209: 0 | AK209: 0 | AL209: 0 | AM209: 0 | AN209: 0 | AO209: 0 | AP209: 0 | AQ209: 0 | AR209: 0 | AS209: 0 | AT209: 0 | AU209: 0 | AV209: 0 | AW209: 0 | AX209: 0 | AY209: 0 | AZ209: 0 | BA209: 0 | BB209: 0 | BC209: 0 | BD209: 0 | BE209: 0 | BF209: 0 | BG209: 0 | BH209: 0 | BI209: 0 | BJ209: 0 | BK209: 0 | BL209: 0 | BM209: 0 | BN209: 0 | BO209: 0 | BP209: 0 | BQ209: 0 | BR209: 0 | BX209: 0
A211: =SUM(BT211:BX211) -> 0 | D211: =D151 -> [Insert description/driver of costs/savings] | E211: n/a | F211: $000 | G211: Nominal | H211: JEN | I211: [Select JEN Asset Class] | K211: 0 | L211: 0 | M211: 0 | N211: 0 | O211: 0 | P211: 0 | Q211: 0 | R211: 0 | S211: 0 | T211: 0 | U211: 0 | V211: 0 | W211: 0 | X211: 0 | Y211: 0 | Z211: 0 | AA211: 0 | AB211: 0 | AC211: 0 | AD211: 0 | AE211: 0 | AF211: 0 | AG211: 0 | AH211: 0 | AI211: 0 | AJ211: 0 | AK211: 0 | AL211: 0 | AM211: 0 | AN211: 0 | AO211: 0 | AP211: 0 | AQ211: 0 | AR211: 0 | AS211: 0 | AT211: 0 | AU211: 0 | AV211: 0 | AW211: 0 | AX211: 0 | AY211: 0 | AZ211: 0 | BA211: 0 | BB211: 0 | BC211: 0 | BD211: 0 | BE211: 0 | BF211: 0 | BG211: 0 | BH211: 0 | BI211: 0 | BJ211: 0 | BK211: 0 | BL211: 0 | BM211: 0 | BN211: 0 | BO211: 0 | BP211: 0 | BQ211: 0 | BR211: 0 | BX211: =IF(OR($E211=NA,SUM(K211:BR211)=0),0,IF(OR(ISTEXT(K211:BR211),MIN(K211:BR211)<0),1,0)) -> 0
A212: 0 | D212: [Insert description/driver of costs/savings] | E212: n/a | F212: $000 | G212: Nominal | H212: JEN | I212: [Select JEN Asset Class] | K212: 0 | L212: 0 | M212: 0 | N212: 0 | O212: 0 | P212: 0 | Q212: 0 | R212: 0 | S212: 0 | T212: 0 | U212: 0 | V212: 0 | W212: 0 | X212: 0 | Y212: 0 | Z212: 0 | AA212: 0 | AB212: 0 | AC212: 0 | AD212: 0 | AE212: 0 | AF212: 0 | AG212: 0 | AH212: 0 | AI212: 0 | AJ212: 0 | AK212: 0 | AL212: 0 | AM212: 0 | AN212: 0 | AO212: 0 | AP212: 0 | AQ212: 0 | AR212: 0 | AS212: 0 | AT212: 0 | AU212: 0 | AV212: 0 | AW212: 0 | AX212: 0 | AY212: 0 | AZ212: 0 | BA212: 0 | BB212: 0 | BC212: 0 | BD212: 0 | BE212: 0 | BF212: 0 | BG212: 0 | BH212: 0 | BI212: 0 | BJ212: 0 | BK212: 0 | BL212: 0 | BM212: 0 | BN212: 0 | BO212: 0 | BP212: 0 | BQ212: 0 | BR212: 0 | BX212: 0
A213: 0 | D213: [Insert description/driver of costs/savings] | E213: n/a | F213: $000 | G213: Nominal | H213: JEN | I213: [Select JEN Asset Class] | K213: 0 | L213: 0 | M213: 0 | N213: 0 | O213: 0 | P213: 0 | Q213: 0 | R213: 0 | S213: 0 | T213: 0 | U213: 0 | V213: 0 | W213: 0 | X213: 0 | Y213: 0 | Z213: 0 | AA213: 0 | AB213: 0 | AC213: 0 | AD213: 0 | AE213: 0 | AF213: 0 | AG213: 0 | AH213: 0 | AI213: 0 | AJ213: 0 | AK213: 0 | AL213: 0 | AM213: 0 | AN213: 0 | AO213: 0 | AP213: 0 | AQ213: 0 | AR213: 0 | AS213: 0 | AT213: 0 | AU213: 0 | AV213: 0 | AW213: 0 | AX213: 0 | AY213: 0 | AZ213: 0 | BA213: 0 | BB213: 0 | BC213: 0 | BD213: 0 | BE213: 0 | BF213: 0 | BG213: 0 | BH213: 0 | BI213: 0 | BJ213: 0 | BK213: 0 | BL213: 0 | BM213: 0 | BN213: 0 | BO213: 0 | BP213: 0 | BQ213: 0 | BR213: 0 | BX213: 0
A214: 0 | D214: [Insert description/driver of costs/savings] | E214: n/a | F214: $000 | G214: Nominal | H214: JEN | I214: [Select JEN Asset Class] | K214: 0 | L214: 0 | M214: 0 | N214: 0 | O214: 0 | P214: 0 | Q214: 0 | R214: 0 | S214: 0 | T214: 0 | U214: 0 | V214: 0 | W214: 0 | X214: 0 | Y214: 0 | Z214: 0 | AA214: 0 | AB214: 0 | AC214: 0 | AD214: 0 | AE214: 0 | AF214: 0 | AG214: 0 | AH214: 0 | AI214: 0 | AJ214: 0 | AK214: 0 | AL214: 0 | AM214: 0 | AN214: 0 | AO214: 0 | AP214: 0 | AQ214: 0 | AR214: 0 | AS214: 0 | AT214: 0 | AU214: 0 | AV214: 0 | AW214: 0 | AX214: 0 | AY214: 0 | AZ214: 0 | BA214: 0 | BB214: 0 | BC214: 0 | BD214: 0 | BE214: 0 | BF214: 0 | BG214: 0 | BH214: 0 | BI214: 0 | BJ214: 0 | BK214: 0 | BL214: 0 | BM214: 0 | BN214: 0 | BO214: 0 | BP214: 0 | BQ214: 0 | BR214: 0 | BX214: 0
A215: 0 | D215: [Insert description/driver of costs/savings] | E215: n/a | F215: $000 | G215: Nominal | H215: JEN | I215: [Select JEN Asset Class] | K215: 0 | L215: 0 | M215: 0 | N215: 0 | O215: 0 | P215: 0 | Q215: 0 | R215: 0 | S215: 0 | T215: 0 | U215: 0 | V215: 0 | W215: 0 | X215: 0 | Y215: 0 | Z215: 0 | AA215: 0 | AB215: 0 | AC215: 0 | AD215: 0 | AE215: 0 | AF215: 0 | AG215: 0 | AH215: 0 | AI215: 0 | AJ215: 0 | AK215: 0 | AL215: 0 | AM215: 0 | AN215: 0 | AO215: 0 | AP215: 0 | AQ215: 0 | AR215: 0 | AS215: 0 | AT215: 0 | AU215: 0 | AV215: 0 | AW215: 0 | AX215: 0 | AY215: 0 | AZ215: 0 | BA215: 0 | BB215: 0 | BC215: 0 | BD215: 0 | BE215: 0 | BF215: 0 | BG215: 0 | BH215: 0 | BI215: 0 | BJ215: 0 | BK215: 0 | BL215: 0 | BM215: 0 | BN215: 0 | BO215: 0 | BP215: 0 | BQ215: 0 | BR215: 0 | BX215: 0
A216: 0 | D216: [Insert description/driver of costs/savings] | E216: n/a | F216: $000 | G216: Nominal | H216: JEN | I216: [Select JEN Asset Class] | K216: 0 | L216: 0 | M216: 0 | N216: 0 | O216: 0 | P216: 0 | Q216: 0 | R216: 0 | S216: 0 | T216: 0 | U216: 0 | V216: 0 | W216: 0 | X216: 0 | Y216: 0 | Z216: 0 | AA216: 0 | AB216: 0 | AC216: 0 | AD216: 0 | AE216: 0 | AF216: 0 | AG216: 0 | AH216: 0 | AI216: 0 | AJ216: 0 | AK216: 0 | AL216: 0 | AM216: 0 | AN216: 0 | AO216: 0 | AP216: 0 | AQ216: 0 | AR216: 0 | AS216: 0 | AT216: 0 | AU216: 0 | AV216: 0 | AW216: 0 | AX216: 0 | AY216: 0 | AZ216: 0 | BA216: 0 | BB216: 0 | BC216: 0 | BD216: 0 | BE216: 0 | BF216: 0 | BG216: 0 | BH216: 0 | BI216: 0 | BJ216: 0 | BK216: 0 | BL216: 0 | BM216: 0 | BN216: 0 | BO216: 0 | BP216: 0 | BQ216: 0 | BR216: 0 | BX216: 0
A217: 0 | D217: [Insert description/driver of costs/savings] | E217: n/a | F217: $000 | G217: Nominal | H217: JEN | I217: [Select JEN Asset Class] | K217: 0 | L217: 0 | M217: 0 | N217: 0 | O217: 0 | P217: 0 | Q217: 0 | R217: 0 | S217: 0 | T217: 0 | U217: 0 | V217: 0 | W217: 0 | X217: 0 | Y217: 0 | Z217: 0 | AA217: 0 | AB217: 0 | AC217: 0 | AD217: 0 | AE217: 0 | AF217: 0 | AG217: 0 | AH217: 0 | AI217: 0 | AJ217: 0 | AK217: 0 | AL217: 0 | AM217: 0 | AN217: 0 | AO217: 0 | AP217: 0 | AQ217: 0 | AR217: 0 | AS217: 0 | AT217: 0 | AU217: 0 | AV217: 0 | AW217: 0 | AX217: 0 | AY217: 0 | AZ217: 0 | BA217: 0 | BB217: 0 | BC217: 0 | BD217: 0 | BE217: 0 | BF217: 0 | BG217: 0 | BH217: 0 | BI217: 0 | BJ217: 0 | BK217: 0 | BL217: 0 | BM217: 0 | BN217: 0 | BO217: 0 | BP217: 0 | BQ217: 0 | BR217: 0 | BX217: 0
A219: =SUM(BT219:BX219) -> 0 | D219: =D159 -> [Insert description/driver of costs/savings] | E219: n/a | F219: $000 | G219: Nominal | H219: JEN | I219: [Select JEN Asset Class] | K219: 0 | L219: 0 | M219: 0 | N219: 0 | O219: 0 | P219: 0 | Q219: 0 | R219: 0 | S219: 0 | T219: 0 | U219: 0 | V219: 0 | W219: 0 | X219: 0 | Y219: 0 | Z219: 0 | AA219: 0 | AB219: 0 | AC219: 0 | AD219: 0 | AE219: 0 | AF219: 0 | AG219: 0 | AH219: 0 | AI219: 0 | AJ219: 0 | AK219: 0 | AL219: 0 | AM219: 0 | AN219: 0 | AO219: 0 | AP219: 0 | AQ219: 0 | AR219: 0 | AS219: 0 | AT219: 0 | AU219: 0 | AV219: 0 | AW219: 0 | AX219: 0 | AY219: 0 | AZ219: 0 | BA219: 0 | BB219: 0 | BC219: 0 | BD219: 0 | BE219: 0 | BF219: 0 | BG219: 0 | BH219: 0 | BI219: 0 | BJ219: 0 | BK219: 0 | BL219: 0 | BM219: 0 | BN219: 0 | BO219: 0 | BP219: 0 | BQ219: 0 | BR219: 0 | BX219: =IF(OR($E219=NA,SUM(K219:BR219)=0),0,IF(OR(ISTEXT(K219:BR219),MIN(K219:BR219)<0),1,0)) -> 0
A220: 0 | D220: [Insert description/driver of costs/savings] | E220: n/a | F220: $000 | G220: Nominal | H220: JEN | I220: [Select JEN Asset Class] | K220: 0 | L220: 0 | M220: 0 | N220: 0 | O220: 0 | P220: 0 | Q220: 0 | R220: 0 | S220: 0 | T220: 0 | U220: 0 | V220: 0 | W220: 0 | X220: 0 | Y220: 0 | Z220: 0 | AA220: 0 | AB220: 0 | AC220: 0 | AD220: 0 | AE220: 0 | AF220: 0 | AG220: 0 | AH220: 0 | AI220: 0 | AJ220: 0 | AK220: 0 | AL220: 0 | AM220: 0 | AN220: 0 | AO220: 0 | AP220: 0 | AQ220: 0 | AR220: 0 | AS220: 0 | AT220: 0 | AU220: 0 | AV220: 0 | AW220: 0 | AX220: 0 | AY220: 0 | AZ220: 0 | BA220: 0 | BB220: 0 | BC220: 0 | BD220: 0 | BE220: 0 | BF220: 0 | BG220: 0 | BH220: 0 | BI220: 0 | BJ220: 0 | BK220: 0 | BL220: 0 | BM220: 0 | BN220: 0 | BO220: 0 | BP220: 0 | BQ220: 0 | BR220: 0 | BX220: 0
A221: 0 | D221: [Insert description/driver of costs/savings] | E221: n/a | F221: $000 | G221: Nominal | H221: JEN | I221: [Select JEN Asset Class] | K221: 0 | L221: 0 | M221: 0 | N221: 0 | O221: 0 | P221: 0 | Q221: 0 | R221: 0 | S221: 0 | T221: 0 | U221: 0 | V221: 0 | W221: 0 | X221: 0 | Y221: 0 | Z221: 0 | AA221: 0 | AB221: 0 | AC221: 0 | AD221: 0 | AE221: 0 | AF221: 0 | AG221: 0 | AH221: 0 | AI221: 0 | AJ221: 0 | AK221: 0 | AL221: 0 | AM221: 0 | AN221: 0 | AO221: 0 | AP221: 0 | AQ221: 0 | AR221: 0 | AS221: 0 | AT221: 0 | AU221: 0 | AV221: 0 | AW221: 0 | AX221: 0 | AY221: 0 | AZ221: 0 | BA221: 0 | BB221: 0 | BC221: 0 | BD221: 0 | BE221: 0 | BF221: 0 | BG221: 0 | BH221: 0 | BI221: 0 | BJ221: 0 | BK221: 0 | BL221: 0 | BM221: 0 | BN221: 0 | BO221: 0 | BP221: 0 | BQ221: 0 | BR221: 0 | BX221: 0
A222: 0 | D222: [Insert description/driver of costs/savings] | E222: n/a | F222: $000 | G222: Nominal | H222: JEN | I222: [Select JEN Asset Class] | K222: 0 | L222: 0 | M222: 0 | N222: 0 | O222: 0 | P222: 0 | Q222: 0 | R222: 0 | S222: 0 | T222: 0 | U222: 0 | V222: 0 | W222: 0 | X222: 0 | Y222: 0 | Z222: 0 | AA222: 0 | AB222: 0 | AC222: 0 | AD222: 0 | AE222: 0 | AF222: 0 | AG222: 0 | AH222: 0 | AI222: 0 | AJ222: 0 | AK222: 0 | AL222: 0 | AM222: 0 | AN222: 0 | AO222: 0 | AP222: 0 | AQ222: 0 | AR222: 0 | AS222: 0 | AT222: 0 | AU222: 0 | AV222: 0 | AW222: 0 | AX222: 0 | AY222: 0 | AZ222: 0 | BA222: 0 | BB222: 0 | BC222: 0 | BD222: 0 | BE222: 0 | BF222: 0 | BG222: 0 | BH222: 0 | BI222: 0 | BJ222: 0 | BK222: 0 | BL222: 0 | BM222: 0 | BN222: 0 | BO222: 0 | BP222: 0 | BQ222: 0 | BR222: 0 | BX222: 0
A223: 0 | D223: [Insert description/driver of costs/savings] | E223: n/a | F223: $000 | G223: Nominal | H223: JEN | I223: [Select JEN Asset Class] | K223: 0 | L223: 0 | M223: 0 | N223: 0 | O223: 0 | P223: 0 | Q223: 0 | R223: 0 | S223: 0 | T223: 0 | U223: 0 | V223: 0 | W223: 0 | X223: 0 | Y223: 0 | Z223: 0 | AA223: 0 | AB223: 0 | AC223: 0 | AD223: 0 | AE223: 0 | AF223: 0 | AG223: 0 | AH223: 0 | AI223: 0 | AJ223: 0 | AK223: 0 | AL223: 0 | AM223: 0 | AN223: 0 | AO223: 0 | AP223: 0 | AQ223: 0 | AR223: 0 | AS223: 0 | AT223: 0 | AU223: 0 | AV223: 0 | AW223: 0 | AX223: 0 | AY223: 0 | AZ223: 0 | BA223: 0 | BB223: 0 | BC223: 0 | BD223: 0 | BE223: 0 | BF223: 0 | BG223: 0 | BH223: 0 | BI223: 0 | BJ223: 0 | BK223: 0 | BL223: 0 | BM223: 0 | BN223: 0 | BO223: 0 | BP223: 0 | BQ223: 0 | BR223: 0 | BX223: 0
A224: 0 | D224: [Insert description/driver of costs/savings] | E224: n/a | F224: $000 | G224: Nominal | H224: JEN | I224: [Select JEN Asset Class] | K224: 0 | L224: 0 | M224: 0 | N224: 0 | O224: 0 | P224: 0 | Q224: 0 | R224: 0 | S224: 0 | T224: 0 | U224: 0 | V224: 0 | W224: 0 | X224: 0 | Y224: 0 | Z224: 0 | AA224: 0 | AB224: 0 | AC224: 0 | AD224: 0 | AE224: 0 | AF224: 0 | AG224: 0 | AH224: 0 | AI224: 0 | AJ224: 0 | AK224: 0 | AL224: 0 | AM224: 0 | AN224: 0 | AO224: 0 | AP224: 0 | AQ224: 0 | AR224: 0 | AS224: 0 | AT224: 0 | AU224: 0 | AV224: 0 | AW224: 0 | AX224: 0 | AY224: 0 | AZ224: 0 | BA224: 0 | BB224: 0 | BC224: 0 | BD224: 0 | BE224: 0 | BF224: 0 | BG224: 0 | BH224: 0 | BI224: 0 | BJ224: 0 | BK224: 0 | BL224: 0 | BM224: 0 | BN224: 0 | BO224: 0 | BP224: 0 | BQ224: 0 | BR224: 0 | BX224: 0
A225: 0 | D225: [Insert description/driver of costs/savings] | E225: n/a | F225: $000 | G225: Nominal | H225: JEN | I225: [Select JEN Asset Class] | K225: 0 | L225: 0 | M225: 0 | N225: 0 | O225: 0 | P225: 0 | Q225: 0 | R225: 0 | S225: 0 | T225: 0 | U225: 0 | V225: 0 | W225: 0 | X225: 0 | Y225: 0 | Z225: 0 | AA225: 0 | AB225: 0 | AC225: 0 | AD225: 0 | AE225: 0 | AF225: 0 | AG225: 0 | AH225: 0 | AI225: 0 | AJ225: 0 | AK225: 0 | AL225: 0 | AM225: 0 | AN225: 0 | AO225: 0 | AP225: 0 | AQ225: 0 | AR225: 0 | AS225: 0 | AT225: 0 | AU225: 0 | AV225: 0 | AW225: 0 | AX225: 0 | AY225: 0 | AZ225: 0 | BA225: 0 | BB225: 0 | BC225: 0 | BD225: 0 | BE225: 0 | BF225: 0 | BG225: 0 | BH225: 0 | BI225: 0 | BJ225: 0 | BK225: 0 | BL225: 0 | BM225: 0 | BN225: 0 | BO225: 0 | BP225: 0 | BQ225: 0 | BR225: 0 | BX225: 0
B227: Inputs | Economic Benefits
C229: =Lookup!$C$137 -> Avoided cost at asset failure
D231: Please note the following: | E231: Check | G231: Instructions:
D232: 1. Provide description of each item | E232: =SUM($BT$239:$BT$271) -> 0 | G232: 1. Cost at Asset Failure: The total expenditure which would be incurred in the event of an asset failure in any each year. Should include clean-up costs and procuring and installing any replacement equipment which would be necessary in order to continue to meet expected demand.
D233: 2. Select appropriate dollar basis | E233: =SUM($BU$239:$BU$271) -> 0
D234: 3. Enter cost for applicable options | E234: =SUM($BV$239:$BV$271) -> 0 | G234: 2. Probability of Asset Failure: The probability (%) of an asset failure event occurring in any year, which would result in the costs referred to above being incurred.
D235: 4. Enter probability for applicable options | E235: =SUM($BW$239:$BW$271) -> 0 | G235: 3. If user selected the monthly cashflow option, please enter annualised values here. Only the first value of each calendar year will be used in the calculations.
D237: JGN | E237: =E$4 -> Option | F237: =F$4 -> Unit | G237: =G$4 -> Basis | H237: =H$4 -> Asset | I237: Description of input | K237: =K$54 -> FY24 | L237: FY25 | M237: FY26 | N237: FY27 | O237: FY28 | P237: FY29 | Q237: FY30 | R237: FY31 | S237: FY32 | T237: FY33 | U237: FY34 | V237: FY35 | W237: FY36 | X237: FY37 | Y237: FY38 | Z237: FY39 | AA237: FY40 | AB237: FY41 | AC237: FY42 | AD237: FY43 | AE237: FY44 | AF237: FY45 | AG237: FY46 | AH237: FY47 | AI237: FY48 | AJ237: FY49 | AK237: FY50 | AL237: FY51 | AM237: FY52 | AN237: FY53 | AO237: FY54 | AP237: FY55 | AQ237: =AQ$54 -> FY56 | AR237: FY57 | AS237: FY58 | AT237: FY59 | AU237: FY60 | AV237: FY61 | AW237: FY62 | AX237: FY63 | AY237: FY64 | AZ237: FY65 | BA237: FY66 | BB237: FY67 | BC237: FY68 | BD237: FY69 | BE237: FY70 | BF237: FY71 | BG237: FY72 | BH237: FY73 | BI237: FY74 | BJ237: FY75 | BK237: FY76 | BL237: FY77 | BM237: FY78 | BN237: FY79 | BO237: FY80 | BP237: FY81 | BQ237: FY82 | BR237: FY83 | BT237: Driver | BU237: Basis | BV237: Cost | BW237: Probability
A239: =SUM(BT239:BW239) -> 0 | D239: Cost at Asset Failure | E239: =Option_1 -> Option 1 | F239: =thousands -> $000 | G239: Nominal | H239: =JGN -> JGN | I239: [Insert description/driver/assumption] | K239: 0 | L239: 0 | M239: 0 | N239: 0 | O239: 0 | P239: 0 | Q239: 0 | R239: 0 | S239: 0 | T239: 0 | U239: 0 | V239: 0 | W239: 0 | X239: 0 | Y239: 0 | Z239: 0 | AA239: 0 | AB239: 0 | AC239: 0 | AD239: 0 | AE239: 0 | AF239: 0 | AG239: 0 | AH239: 0 | AI239: 0 | AJ239: 0 | AK239: 0 | AL239: 0 | AM239: 0 | AN239: 0 | AO239: 0 | AP239: 0 | AQ239: 0 | AR239: 0 | AS239: 0 | AT239: 0 | AU239: 0 | AV239: 0 | AW239: 0 | AX239: 0 | AY239: 0 | AZ239: 0 | BA239: 0 | BB239: 0 | BC239: 0 | BD239: 0 | BE239: 0 | BF239: 0 | BG239: 0 | BH239: 0 | BI239: 0 | BJ239: 0 | BK239: 0 | BL239: 0 | BM239: 0 | BN239: 0 | BO239: 0 | BP239: 0 | BQ239: 0 | BR239: 0 | BT239: =IF(OR($E239=NA,SUM(K239:BR239)=0),0,IF(OR(LEFT(I239,1)="[",I239=""),1,0)) -> 0 | BU239: =IF(OR($E239=NA,SUM(K239:BR239)=0),0,IF(G239="",1,0)) -> 0 | BV239: =IF($E239=NA,0,IF(AND(SUM(K247:BR247)<>0,SUM(K239:BR239)=0),1,0)) -> 0
A240: 0 | D240: =D239 -> Cost at Asset Failure | E240: =Option_2 -> Option 2 | F240: $000 | G240: Nominal | H240: JGN | I240: [Insert description/driver/assumption] | K240: 0 | L240: 0 | M240: 0 | N240: 0 | O240: 0 | P240: 0 | Q240: 0 | R240: 0 | S240: 0 | T240: 0 | U240: 0 | V240: 0 | W240: 0 | X240: 0 | Y240: 0 | Z240: 0 | AA240: 0 | AB240: 0 | AC240: 0 | AD240: 0 | AE240: 0 | AF240: 0 | AG240: 0 | AH240: 0 | AI240: 0 | AJ240: 0 | AK240: 0 | AL240: 0 | AM240: 0 | AN240: 0 | AO240: 0 | AP240: 0 | AQ240: 0 | AR240: 0 | AS240: 0 | AT240: 0 | AU240: 0 | AV240: 0 | AW240: 0 | AX240: 0 | AY240: 0 | AZ240: 0 | BA240: 0 | BB240: 0 | BC240: 0 | BD240: 0 | BE240: 0 | BF240: 0 | BG240: 0 | BH240: 0 | BI240: 0 | BJ240: 0 | BK240: 0 | BL240: 0 | BM240: 0 | BN240: 0 | BO240: 0 | BP240: 0 | BQ240: 0 | BR240: 0 | BT240: 0 | BU240: 0 | BV240: 0
A241: 0 | D241: =D240 -> Cost at Asset Failure | E241: =Option_3 -> Option 3 | F241: $000 | G241: Nominal | H241: JGN | I241: [Insert description/driver/assumption] | K241: 0 | L241: 0 | M241: 0 | N241: 0 | O241: 0 | P241: 0 | Q241: 0 | R241: 0 | S241: 0 | T241: 0 | U241: 0 | V241: 0 | W241: 0 | X241: 0 | Y241: 0 | Z241: 0 | AA241: 0 | AB241: 0 | AC241: 0 | AD241: 0 | AE241: 0 | AF241: 0 | AG241: 0 | AH241: 0 | AI241: 0 | AJ241: 0 | AK241: 0 | AL241: 0 | AM241: 0 | AN241: 0 | AO241: 0 | AP241: 0 | AQ241: 0 | AR241: 0 | AS241: 0 | AT241: 0 | AU241: 0 | AV241: 0 | AW241: 0 | AX241: 0 | AY241: 0 | AZ241: 0 | BA241: 0 | BB241: 0 | BC241: 0 | BD241: 0 | BE241: 0 | BF241: 0 | BG241: 0 | BH241: 0 | BI241: 0 | BJ241: 0 | BK241: 0 | BL241: 0 | BM241: 0 | BN241: 0 | BO241: 0 | BP241: 0 | BQ241: 0 | BR241: 0 | BT241: 0 | BU241: 0 | BV241: 0
A242: 0 | D242: =D241 -> Cost at Asset Failure | E242: =Option_4 -> n/a | F242: $000 | G242: Nominal | H242: JGN | I242: [Insert description/driver/assumption] | K242: 0 | L242: 0 | M242: 0 | N242: 0 | O242: 0 | P242: 0 | Q242: 0 | R242: 0 | S242: 0 | T242: 0 | U242: 0 | V242: 0 | W242: 0 | X242: 0 | Y242: 0 | Z242: 0 | AA242: 0 | AB242: 0 | AC242: 0 | AD242: 0 | AE242: 0 | AF242: 0 | AG242: 0 | AH242: 0 | AI242: 0 | AJ242: 0 | AK242: 0 | AL242: 0 | AM242: 0 | AN242: 0 | AO242: 0 | AP242: 0 | AQ242: 0 | AR242: 0 | AS242: 0 | AT242: 0 | AU242: 0 | AV242: 0 | AW242: 0 | AX242: 0 | AY242: 0 | AZ242: 0 | BA242: 0 | BB242: 0 | BC242: 0 | BD242: 0 | BE242: 0 | BF242: 0 | BG242: 0 | BH242: 0 | BI242: 0 | BJ242: 0 | BK242: 0 | BL242: 0 | BM242: 0 | BN242: 0 | BO242: 0 | BP242: 0 | BQ242: 0 | BR242: 0 | BT242: 0 | BU242: 0 | BV242: 0
A243: 0 | D243: =D242 -> Cost at Asset Failure | E243: =Option_5 -> n/a | F243: $000 | G243: Nominal | H243: JGN | I243: [Insert description/driver/assumption] | K243: 0 | L243: 0 | M243: 0 | N243: 0 | O243: 0 | P243: 0 | Q243: 0 | R243: 0 | S243: 0 | T243: 0 | U243: 0 | V243: 0 | W243: 0 | X243: 0 | Y243: 0 | Z243: 0 | AA243: 0 | AB243: 0 | AC243: 0 | AD243: 0 | AE243: 0 | AF243: 0 | AG243: 0 | AH243: 0 | AI243: 0 | AJ243: 0 | AK243: 0 | AL243: 0 | AM243: 0 | AN243: 0 | AO243: 0 | AP243: 0 | AQ243: 0 | AR243: 0 | AS243: 0 | AT243: 0 | AU243: 0 | AV243: 0 | AW243: 0 | AX243: 0 | AY243: 0 | AZ243: 0 | BA243: 0 | BB243: 0 | BC243: 0 | BD243: 0 | BE243: 0 | BF243: 0 | BG243: 0 | BH243: 0 | BI243: 0 | BJ243: 0 | BK243: 0 | BL243: 0 | BM243: 0 | BN243: 0 | BO243: 0 | BP243: 0 | BQ243: 0 | BR243: 0 | BT243: 0 | BU243: 0 | BV243: 0
A244: 0 | D244: =D243 -> Cost at Asset Failure | E244: =Option_6 -> n/a | F244: $000 | G244: Nominal | H244: JGN | I244: [Insert description/driver/assumption] | K244: 0 | L244: 0 | M244: 0 | N244: 0 | O244: 0 | P244: 0 | Q244: 0 | R244: 0 | S244: 0 | T244: 0 | U244: 0 | V244: 0 | W244: 0 | X244: 0 | Y244: 0 | Z244: 0 | AA244: 0 | AB244: 0 | AC244: 0 | AD244: 0 | AE244: 0 | AF244: 0 | AG244: 0 | AH244: 0 | AI244: 0 | AJ244: 0 | AK244: 0 | AL244: 0 | AM244: 0 | AN244: 0 | AO244: 0 | AP244: 0 | AQ244: 0 | AR244: 0 | AS244: 0 | AT244: 0 | AU244: 0 | AV244: 0 | AW244: 0 | AX244: 0 | AY244: 0 | AZ244: 0 | BA244: 0 | BB244: 0 | BC244: 0 | BD244: 0 | BE244: 0 | BF244: 0 | BG244: 0 | BH244: 0 | BI244: 0 | BJ244: 0 | BK244: 0 | BL244: 0 | BM244: 0 | BN244: 0 | BO244: 0 | BP244: 0 | BQ244: 0 | BR244: 0 | BT244: 0 | BU244: 0 | BV244: 0
A245: 0 | D245: =D242 -> Cost at Asset Failure | E245: =Option_7 -> n/a | F245: $000 | G245: Nominal | H245: JGN | I245: [Insert description/driver/assumption] | K245: 0 | L245: 0 | M245: 0 | N245: 0 | O245: 0 | P245: 0 | Q245: 0 | R245: 0 | S245: 0 | T245: 0 | U245: 0 | V245: 0 | W245: 0 | X245: 0 | Y245: 0 | Z245: 0 | AA245: 0 | AB245: 0 | AC245: 0 | AD245: 0 | AE245: 0 | AF245: 0 | AG245: 0 | AH245: 0 | AI245: 0 | AJ245: 0 | AK245: 0 | AL245: 0 | AM245: 0 | AN245: 0 | AO245: 0 | AP245: 0 | AQ245: 0 | AR245: 0 | AS245: 0 | AT245: 0 | AU245: 0 | AV245: 0 | AW245: 0 | AX245: 0 | AY245: 0 | AZ245: 0 | BA245: 0 | BB245: 0 | BC245: 0 | BD245: 0 | BE245: 0 | BF245: 0 | BG245: 0 | BH245: 0 | BI245: 0 | BJ245: 0 | BK245: 0 | BL245: 0 | BM245: 0 | BN245: 0 | BO245: 0 | BP245: 0 | BQ245: 0 | BR245: 0 | BT245: 0 | BU245: 0 | BV245: 0
A247: =SUM(BT247:BW247) -> 0 | D247: Probability of Asset Failure (Annual) | E247: =Option_1 -> Option 1 | F247: =percent -> Per cent | G247: =NA -> n/a | H247: =JGN -> JGN | I247: [Insert description/driver/assumption] | K247: 0 | L247: 0 | M247: 0 | N247: 0 | O247: 0 | P247: 0 | Q247: 0 | R247: 0 | S247: 0 | T247: 0 | U247: 0 | V247: 0 | W247: 0 | X247: 0 | Y247: 0 | Z247: 0 | AA247: 0 | AB247: 0 | AC247: 0 | AD247: 0 | AE247: 0 | AF247: 0 | AG247: 0 | AH247: 0 | AI247: 0 | AJ247: 0 | AK247: 0 | AL247: 0 | AM247: 0 | AN247: 0 | AO247: 0 | AP247: 0 | AQ247: 0 | AR247: 0 | AS247: 0 | AT247: 0 | AU247: 0 | AV247: 0 | AW247: 0 | AX247: 0 | AY247: 0 | AZ247: 0 | BA247: 0 | BB247: 0 | BC247: 0 | BD247: 0 | BE247: 0 | BF247: 0 | BG247: 0 | BH247: 0 | BI247: 0 | BJ247: 0 | BK247: 0 | BL247: 0 | BM247: 0 | BN247: 0 | BO247: 0 | BP247: 0 | BQ247: 0 | BR247: 0 | BT247: =IF(OR($E247=NA,SUM(K247:BR247)=0),0,IF(OR(LEFT(I247,1)="[",I247=""),1,0)) -> 0 | BW247: =IF($E247=NA,0,IF(AND(SUM(K239:BR239)<>0,SUM(K247:BR247)=0),1,0)) -> 0
... 153 more rows

Sheet Calc|Option 1
D1: =Model_Name -> Costs and Benefits Analysis Model | H1: Section Check: | I1: =IF(COUNTA($A$8:$A$309)=COUNTIF($A$8:$A$309,0),"Ok","Check") -> Ok | L1: Overall Check: | M1: =Overall_Check -> Ok | O1: Legend: | P1: Input | Q1: Internal | R1: Select | S1: Calculation
D2: =RIGHT(CELL("filename",D1),LEN(CELL("filename",D1))-FIND("]",CELL("filename",D1))) -> Calc|Option 1
D3: ='Output|Options Summary (Annual)'!D13 -> Option 1 - Status Quo | J3: Count | K3: 1 | L3: =K3+1 -> 2 | M3: =L3+1 -> 3 | N3: 4 | O3: 5 | P3: 6 | Q3: 7 | R3: 8 | S3: 9 | T3: 10 | U3: 11 | V3: 12 | W3: 13 | X3: 14 | Y3: 15 | Z3: 16 | AA3: 17 | AB3: 18 | AC3: 19 | AD3: 20 | AE3: 21 | AF3: 22 | AG3: 23 | AH3: 24 | AI3: 25 | AJ3: 26 | AK3: 27 | AL3: 28 | AM3: 29 | AN3: 30 | AO3: 31 | AP3: 32 | AQ3: 33 | AR3: 34 | AS3: 35 | AT3: 36 | AU3: 37 | AV3: 38 | AW3: 39 | AX3: 40 | AY3: 41 | AZ3: 42 | BA3: 43 | BB3: 44 | BC3: 45 | BD3: 46 | BE3: 47 | BF3: 48 | BG3: 49 | BH3: 50 | BI3: 51 | BJ3: 52 | BK3: 53 | BL3: 54 | BM3: 55 | BN3: 56 | BO3: 57 | BP3: 58 | BQ3: 59 | BR3: 60
D4: =Option_1 -> Option 1 | E4: Source | F4: Unit | G4: Basis | H4: Timing | J4: Year | K4: =Start_Year -> 2024 | L4: =K4+1 -> 2025 | M4: =L4+1 -> 2026 | N4: 2027 | O4: 2028 | P4: 2029 | Q4: 2030 | R4: 2031 | S4: 2032 | T4: 2033 | U4: 2034 | V4: 2035 | W4: 2036 | X4: 2037 | Y4: 2038 | Z4: 2039 | AA4: 2040 | AB4: 2041 | AC4: 2042 | AD4: 2043 | AE4: 2044 | AF4: 2045 | AG4: 2046 | AH4: 2047 | AI4: 2048 | AJ4: 2049 | AK4: 2050 | AL4: 2051 | AM4: 2052 | AN4: 2053 | AO4: 2054 | AP4: 2055 | AQ4: 2056 | AR4: 2057 | AS4: 2058 | AT4: 2059 | AU4: 2060 | AV4: 2061 | AW4: 2062 | AX4: 2063 | AY4: 2064 | AZ4: 2065 | BA4: 2066 | BB4: 2067 | BC4: 2068 | BD4: 2069 | BE4: 2070 | BF4: 2071 | BG4: 2072 | BH4: 2073 | BI4: 2074 | BJ4: 2075 | BK4: 2076 | BL4: 2077 | BM4: 2078 | BN4: 2079 | BO4: 2080 | BP4: 2081 | BQ4: 2082 | BR4: 2083
B6: Copyright Jemena Limited. All rights reserved. Jemena is not liable for any loss caused by reliance on this document.
B8: Calc | Economic Assumptions
D10: Escalation | E10: =E$4 -> Source | F10: =F$4 -> Unit | G10: =G$4 -> Basis | H10: =H$4 -> Timing | K10: ="FY"&RIGHT(K$4,2) -> FY24 | L10: FY25 | M10: FY26 | N10: FY27 | O10: FY28 | P10: FY29 | Q10: FY30 | R10: FY31 | S10: FY32 | T10: FY33 | U10: FY34 | V10: FY35 | W10: FY36 | X10: FY37 | Y10: FY38 | Z10: FY39 | AA10: FY40 | AB10: FY41 | AC10: FY42 | AD10: FY43 | AE10: FY44 | AF10: FY45 | AG10: FY46 | AH10: FY47 | AI10: FY48 | AJ10: FY49 | AK10: FY50 | AL10: FY51 | AM10: FY52 | AN10: FY53 | AO10: FY54 | AP10: FY55 | AQ10: ="FY"&RIGHT(AQ$4,2) -> FY56 | AR10: FY57 | AS10: FY58 | AT10: FY59 | AU10: FY60 | AV10: FY61 | AW10: FY62 | AX10: FY63 | AY10: FY64 | AZ10: FY65 | BA10: FY66 | BB10: FY67 | BC10: FY68 | BD10: FY69 | BE10: FY70 | BF10: FY71 | BG10: FY72 | BH10: FY73 | BI10: FY74 | BJ10: FY75 | BK10: FY76 | BL10: FY77 | BM10: FY78 | BN10: FY79 | BO10: FY80 | BP10: FY81 | BQ10: FY82 | BR10: FY83
D12: Inflation Rate | E12: Model Assumptions | F12: =percent -> Per cent | G12: =NA -> n/a | H12: n/a | K12: =INDEX('Model Assumptions'!$K$16:$AE$16,MATCH(MIN(K$4,Start_Year+'Model Assumptions'!$E$10-1),'Model Assumptions'!$K$4:$AD$4)) -> 0.03814510097 | L12: =INDEX('Model Assumptions'!$K$16:$AE$16,MATCH(MIN(L$4,Start_Year+'Model Assumptions'!$E$10-1),'Model Assumptions'!$K$4:$AD$4)) -> 0.028 | M12: =INDEX('Model Assumptions'!$K$16:$AE$16,MATCH(MIN(M$4,Start_Year+'Model Assumptions'!$E$10-1),'Model Assumptions'!$K$4:$AD$4)) -> 0.032 | N12: =INDEX('Model Assumptions'!$K$16:$AE$16,MATCH(MIN(N$4,Start_Year+'Model Assumptions'!$E$10-1),'Model Assumptions'!$K$4:$AD$4)) -> 0.025 | O12: =INDEX('Model Assumptions'!$K$16:$AE$16,MATCH(MIN(O$4,Start_Year+'Model Assumptions'!$E$10-1),'Model Assumptions'!$K$4:$AD$4)) -> 0.025 | P12: =INDEX('Model Assumptions'!$K$16:$AE$16,MATCH(MIN(P$4,Start_Year+'Model Assumptions'!$E$10-1),'Model Assumptions'!$K$4:$AD$4)) -> 0.025 | Q12: =INDEX('Model Assumptions'!$K$16:$AE$16,MATCH(MIN(Q$4,Start_Year+'Model Assumptions'!$E$10-1),'Model Assumptions'!$K$4:$AD$4)) -> 0.025 | R12: =INDEX('Model Assumptions'!$K$16:$AE$16,MATCH(MIN(R$4,Start_Year+'Model Assumptions'!$E$10-1),'Model Assumptions'!$K$4:$AD$4)) -> 0.025 | S12: =INDEX('Model Assumptions'!$K$16:$AE$16,MATCH(MIN(S$4,Start_Year+'Model Assumptions'!$E$10-1),'Model Assumptions'!$K$4:$AD$4)) -> 0.025 | T12: =INDEX('Model Assumptions'!$K$16:$AE$16,MATCH(MIN(T$4,Start_Year+'Model Assumptions'!$E$10-1),'Model Assumptions'!$K$4:$AD$4)) -> 0.025 | U12: =INDEX('Model Assumptions'!$K$16:$AE$16,MATCH(MIN(U$4,Start_Year+'Model Assumptions'!$E$10-1),'Model Assumptions'!$K$4:$AD$4)) -> 0.025 | V12: =INDEX('Model Assumptions'!$K$16:$AE$16,MATCH(MIN(V$4,Start_Year+'Model Assumptions'!$E$10-1),'Model Assumptions'!$K$4:$AD$4)) -> 0.025 | W12: =INDEX('Model Assumptions'!$K$16:$AE$16,MATCH(MIN(W$4,Start_Year+'Model Assumptions'!$E$10-1),'Model Assumptions'!$K$4:$AD$4)) -> 0.025 | X12: =INDEX('Model Assumptions'!$K$16:$AE$16,MATCH(MIN(X$4,Start_Year+'Model Assumptions'!$E$10-1),'Model Assumptions'!$K$4:$AD$4)) -> 0.025 | Y12: =INDEX('Model Assumptions'!$K$16:$AE$16,MATCH(MIN(Y$4,Start_Year+'Model Assumptions'!$E$10-1),'Model Assumptions'!$K$4:$AD$4)) -> 0.025 | Z12: =INDEX('Model Assumptions'!$K$16:$AE$16,MATCH(MIN(Z$4,Start_Year+'Model Assumptions'!$E$10-1),'Model Assumptions'!$K$4:$AD$4)) -> 0.025 | AA12: =INDEX('Model Assumptions'!$K$16:$AE$16,MATCH(MIN(AA$4,Start_Year+'Model Assumptions'!$E$10-1),'Model Assumptions'!$K$4:$AD$4)) -> 0.025 | AB12: =INDEX('Model Assumptions'!$K$16:$AE$16,MATCH(MIN(AB$4,Start_Year+'Model Assumptions'!$E$10-1),'Model Assumptions'!$K$4:$AD$4)) -> 0.025 | AC12: =INDEX('Model Assumptions'!$K$16:$AE$16,MATCH(MIN(AC$4,Start_Year+'Model Assumptions'!$E$10-1),'Model Assumptions'!$K$4:$AD$4)) -> 0.025 | AD12: =INDEX('Model Assumptions'!$K$16:$AE$16,MATCH(MIN(AD$4,Start_Year+'Model Assumptions'!$E$10-1),'Model Assumptions'!$K$4:$AD$4)) -> 0.025 | AE12: =INDEX('Model Assumptions'!$K$16:$AE$16,MATCH(MIN(AE$4,Start_Year+'Model Assumptions'!$E$10-1),'Model Assumptions'!$K$4:$AD$4)) -> 0.025 | AF12: =INDEX('Model Assumptions'!$K$16:$AE$16,MATCH(MIN(AF$4,Start_Year+'Model Assumptions'!$E$10-1),'Model Assumptions'!$K$4:$AD$4)) -> 0.025 | AG12: =INDEX('Model Assumptions'!$K$16:$AE$16,MATCH(MIN(AG$4,Start_Year+'Model Assumptions'!$E$10-1),'Model Assumptions'!$K$4:$AD$4)) -> 0.025 | AH12: =INDEX('Model Assumptions'!$K$16:$AE$16,MATCH(MIN(AH$4,Start_Year+'Model Assumptions'!$E$10-1),'Model Assumptions'!$K$4:$AD$4)) -> 0.025 | AI12: =INDEX('Model Assumptions'!$K$16:$AE$16,MATCH(MIN(AI$4,Start_Year+'Model Assumptions'!$E$10-1),'Model Assumptions'!$K$4:$AD$4)) -> 0.025 | AJ12: =INDEX('Model Assumptions'!$K$16:$AE$16,MATCH(MIN(AJ$4,Start_Year+'Model Assumptions'!$E$10-1),'Model Assumptions'!$K$4:$AD$4)) -> 0.025 | AK12: =INDEX('Model Assumptions'!$K$16:$AE$16,MATCH(MIN(AK$4,Start_Year+'Model Assumptions'!$E$10-1),'Model Assumptions'!$K$4:$AD$4)) -> 0.025 | AL12: =INDEX('Model Assumptions'!$K$16:$AE$16,MATCH(MIN(AL$4,Start_Year+'Model Assumptions'!$E$10-1),'Model Assumptions'!$K$4:$AD$4)) -> 0.025 | AM12: =INDEX('Model Assumptions'!$K$16:$AE$16,MATCH(MIN(AM$4,Start_Year+'Model Assumptions'!$E$10-1),'Model Assumptions'!$K$4:$AD$4)) -> 0.025 | AN12: =INDEX('Model Assumptions'!$K$16:$AE$16,MATCH(MIN(AN$4,Start_Year+'Model Assumptions'!$E$10-1),'Model Assumptions'!$K$4:$AD$4)) -> 0.025 | AO12: =INDEX('Model Assumptions'!$K$16:$AE$16,MATCH(MIN(AO$4,Start_Year+'Model Assumptions'!$E$10-1),'Model Assumptions'!$K$4:$AD$4)) -> 0.025 | AP12: =INDEX('Model Assumptions'!$K$16:$AE$16,MATCH(MIN(AP$4,Start_Year+'Model Assumptions'!$E$10-1),'Model Assumptions'!$K$4:$AD$4)) -> 0.025 | AQ12: =INDEX('Model Assumptions'!$K$16:$AE$16,MATCH(MIN(AQ$4,Start_Year+'Model Assumptions'!$E$10-1),'Model Assumptions'!$K$4:$AD$4)) -> 0.025 | AR12: =INDEX('Model Assumptions'!$K$16:$AE$16,MATCH(MIN(AR$4,Start_Year+'Model Assumptions'!$E$10-1),'Model Assumptions'!$K$4:$AD$4)) -> 0.025 | AS12: =INDEX('Model Assumptions'!$K$16:$AE$16,MATCH(MIN(AS$4,Start_Year+'Model Assumptions'!$E$10-1),'Model Assumptions'!$K$4:$AD$4)) -> 0.025 | AT12: =INDEX('Model Assumptions'!$K$16:$AE$16,MATCH(MIN(AT$4,Start_Year+'Model Assumptions'!$E$10-1),'Model Assumptions'!$K$4:$AD$4)) -> 0.025 | AU12: =INDEX('Model Assumptions'!$K$16:$AE$16,MATCH(MIN(AU$4,Start_Year+'Model Assumptions'!$E$10-1),'Model Assumptions'!$K$4:$AD$4)) -> 0.025 | AV12: =INDEX('Model Assumptions'!$K$16:$AE$16,MATCH(MIN(AV$4,Start_Year+'Model Assumptions'!$E$10-1),'Model Assumptions'!$K$4:$AD$4)) -> 0.025 | AW12: =INDEX('Model Assumptions'!$K$16:$AE$16,MATCH(MIN(AW$4,Start_Year+'Model Assumptions'!$E$10-1),'Model Assumptions'!$K$4:$AD$4)) -> 0.025 | AX12: =INDEX('Model Assumptions'!$K$16:$AE$16,MATCH(MIN(AX$4,Start_Year+'Model Assumptions'!$E$10-1),'Model Assumptions'!$K$4:$AD$4)) -> 0.025 | AY12: =INDEX('Model Assumptions'!$K$16:$AE$16,MATCH(MIN(AY$4,Start_Year+'Model Assumptions'!$E$10-1),'Model Assumptions'!$K$4:$AD$4)) -> 0.025 | AZ12: =INDEX('Model Assumptions'!$K$16:$AE$16,MATCH(MIN(AZ$4,Start_Year+'Model Assumptions'!$E$10-1),'Model Assumptions'!$K$4:$AD$4)) -> 0.025 | BA12: =INDEX('Model Assumptions'!$K$16:$AE$16,MATCH(MIN(BA$4,Start_Year+'Model Assumptions'!$E$10-1),'Model Assumptions'!$K$4:$AD$4)) -> 0.025 | BB12: =INDEX('Model Assumptions'!$K$16:$AE$16,MATCH(MIN(BB$4,Start_Year+'Model Assumptions'!$E$10-1),'Model Assumptions'!$K$4:$AD$4)) -> 0.025 | BC12: =INDEX('Model Assumptions'!$K$16:$AE$16,MATCH(MIN(BC$4,Start_Year+'Model Assumptions'!$E$10-1),'Model Assumptions'!$K$4:$AD$4)) -> 0.025 | BD12: =INDEX('Model Assumptions'!$K$16:$AE$16,MATCH(MIN(BD$4,Start_Year+'Model Assumptions'!$E$10-1),'Model Assumptions'!$K$4:$AD$4)) -> 0.025 | BE12: =INDEX('Model Assumptions'!$K$16:$AE$16,MATCH(MIN(BE$4,Start_Year+'Model Assumptions'!$E$10-1),'Model Assumptions'!$K$4:$AD$4)) -> 0.025 | BF12: =INDEX('Model Assumptions'!$K$16:$AE$16,MATCH(MIN(BF$4,Start_Year+'Model Assumptions'!$E$10-1),'Model Assumptions'!$K$4:$AD$4)) -> 0.025 | BG12: =INDEX('Model Assumptions'!$K$16:$AE$16,MATCH(MIN(BG$4,Start_Year+'Model Assumptions'!$E$10-1),'Model Assumptions'!$K$4:$AD$4)) -> 0.025 | BH12: =INDEX('Model Assumptions'!$K$16:$AE$16,MATCH(MIN(BH$4,Start_Year+'Model Assumptions'!$E$10-1),'Model Assumptions'!$K$4:$AD$4)) -> 0.025 | BI12: =INDEX('Model Assumptions'!$K$16:$AE$16,MATCH(MIN(BI$4,Start_Year+'Model Assumptions'!$E$10-1),'Model Assumptions'!$K$4:$AD$4)) -> 0.025 | BJ12: =INDEX('Model Assumptions'!$K$16:$AE$16,MATCH(MIN(BJ$4,Start_Year+'Model Assumptions'!$E$10-1),'Model Assumptions'!$K$4:$AD$4)) -> 0.025 | BK12: =INDEX('Model Assumptions'!$K$16:$AE$16,MATCH(MIN(BK$4,Start_Year+'Model Assumptions'!$E$10-1),'Model Assumptions'!$K$4:$AD$4)) -> 0.025 | BL12: =INDEX('Model Assumptions'!$K$16:$AE$16,MATCH(MIN(BL$4,Start_Year+'Model Assumptions'!$E$10-1),'Model Assumptions'!$K$4:$AD$4)) -> 0.025 | BM12: =INDEX('Model Assumptions'!$K$16:$AE$16,MATCH(MIN(BM$4,Start_Year+'Model Assumptions'!$E$10-1),'Model Assumptions'!$K$4:$AD$4)) -> 0.025 | BN12: =INDEX('Model Assumptions'!$K$16:$AE$16,MATCH(MIN(BN$4,Start_Year+'Model Assumptions'!$E$10-1),'Model Assumptions'!$K$4:$AD$4)) -> 0.025 | BO12: =INDEX('Model Assumptions'!$K$16:$AE$16,MATCH(MIN(BO$4,Start_Year+'Model Assumptions'!$E$10-1),'Model Assumptions'!$K$4:$AD$4)) -> 0.025 | BP12: =INDEX('Model Assumptions'!$K$16:$AE$16,MATCH(MIN(BP$4,Start_Year+'Model Assumptions'!$E$10-1),'Model Assumptions'!$K$4:$AD$4)) -> 0.025 | BQ12: =INDEX('Model Assumptions'!$K$16:$AE$16,MATCH(MIN(BQ$4,Start_Year+'Model Assumptions'!$E$10-1),'Model Assumptions'!$K$4:$AD$4)) -> 0.025 | BR12: =INDEX('Model Assumptions'!$K$16:$AE$16,MATCH(MIN(BR$4,Start_Year+'Model Assumptions'!$E$10-1),'Model Assumptions'!$K$4:$AD$4)) -> 0.025
D13: ="Inflation Index (Real "&Start_Year&" to Nominal Mid-year)" -> Inflation Index (Real 2024 to Nominal Mid-year) | E13: Calculated | F13: =index -> Index | G13: n/a | H13: n/a | K13: =1/(1+K12)^CF_End_Yr -> 0.9814563078 | L13: =K13*(1+K12)^CF_End_Yr*(1+L12)^CF_End_Yr -> 1.013903348 | M13: 1.04431848 | N13: 1.074075338 | O13: 1.100927221 | P13: 1.128450402 | Q13: 1.156661662 | R13: 1.185578203 | S13: 1.215217658 | T13: 1.2455981 | U13: 1.276738052 | V13: 1.308656504 | W13: 1.341372916 | X13: 1.374907239 | Y13: 1.40927992 | Z13: 1.444511918 | AA13: 1.480624716 | AB13: 1.517640334 | AC13: 1.555581342 | AD13: 1.594470876 | AE13: 1.634332648 | AF13: 1.675190964 | AG13: 1.717070738 | AH13: 1.759997506 | AI13: 1.803997444 | AJ13: 1.84909738 | AK13: 1.895324815 | AL13: 1.942707935 | AM13: 1.991275633 | AN13: 2.041057524 | AO13: 2.092083962 | AP13: 2.144386061 | AQ13: 2.197995713 | AR13: =AQ13*(1+AQ12)^CF_End_Yr*(1+AR12)^CF_End_Yr -> 2.252945606 | AS13: 2.309269246 | AT13: 2.367000977 | AU13: 2.426176001 | AV13: 2.486830401 | AW13: 2.549001161 | AX13: 2.612726191 | AY13: 2.678044345 | AZ13: 2.744995454 | BA13: 2.81362034 | BB13: 2.883960849 | BC13: 2.95605987 | BD13: 3.029961367 | BE13: 3.105710401 | BF13: 3.183353161 | BG13: 3.26293699 | BH13: 3.344510415 | BI13: 3.428123175 | BJ13: 3.513826254 | BK13: 3.601671911 | BL13: 3.691713709 | BM13: 3.784006551 | BN13: 3.878606715 | BO13: 3.975571883 | BP13: 4.07496118 | BQ13: 4.17683521 | BR13: 4.28125609
D14: ="Inflation Index (Nominal Mid-year to Real "&Start_Year&" )" -> Inflation Index (Nominal Mid-year to Real 2024 ) | E14: Calculated | F14: =index -> Index | G14: n/a | H14: n/a | K14: =1/K13 -> 1.018894058 | L14: =1/L13 -> 0.9862873039 | M14: =1/M13 -> 0.9575622945 | N14: =1/N13 -> 0.9310333875 | O14: 0.9083252561 | P14: 0.8861709815 | Q14: 0.8645570552 | R14: 0.8434702977 | S14: 0.8228978514 | T14: 0.8028271721 | U14: 0.7832460216 | V14: 0.7641424601 | W14: 0.7455048391 | X14: 0.7273217943 | Y14: 0.7095822383 | Z14: 0.6922753544 | AA14: 0.6753905897 | AB14: 0.6589176485 | AC14: 0.6428464863 | AD14: 0.6271673037 | AE14: 0.6118705402 | AF14: 0.5969468685 | AG14: 0.5823871888 | AH14: 0.5681826232 | AI14: 0.5543245105 | AJ14: 0.5408044004 | AK14: 0.5276140492 | AL14: 0.5147454139 | AM14: 0.5021906477 | AN14: 0.4899420953 | AO14: 0.4779922881 | AP14: 0.4663339396 | AQ14: 0.4549599411 | AR14: 0.4438633571 | AS14: 0.4330374216 | AT14: 0.4224755333 | AU14: 0.412171252 | AV14: 0.4021182946 | AW14: 0.3923105313 | AX14: 0.3827419818 | AY14: 0.3734068115 | AZ14: 0.3642993283 | BA14: 0.3554139788 | BB14: 0.3467453452 | BC14: 0.3382881416 | BD14: 0.3300372114 | BE14: 0.3219875233 | BF14: 0.3141341691 | BG14: 0.3064723601 | BH14: 0.2989974244 | BI14: 0.2917048043 | BJ14: 0.284590053 | BK14: 0.2776488322 | BL14: 0.2708769095 | BM14: 0.2642701556 | BN14: 0.257824542 | BO14: 0.2515361386 | BP14: 0.2454011108 | BQ14: 0.2394157178 | BR14: 0.2335763101
D16: Discount Rate Assumptions | E16: =E$4 -> Source | F16: =F$4 -> Unit | G16: =G$4 -> Basis | H16: =H$4 -> Timing | K16: =K$10 -> FY24 | L16: =L$10 -> FY25 | M16: FY26 | N16: FY27 | O16: FY28 | P16: FY29 | Q16: FY30 | R16: FY31 | S16: FY32 | T16: FY33 | U16: FY34 | V16: FY35 | W16: FY36 | X16: FY37 | Y16: FY38 | Z16: FY39 | AA16: FY40 | AB16: FY41 | AC16: FY42 | AD16: FY43 | AE16: FY44 | AF16: FY45 | AG16: FY46 | AH16: FY47 | AI16: FY48 | AJ16: FY49 | AK16: FY50 | AL16: FY51 | AM16: FY52 | AN16: FY53 | AO16: FY54 | AP16: FY55 | AQ16: FY56 | AR16: FY57 | AS16: FY58 | AT16: FY59 | AU16: FY60 | AV16: FY61 | AW16: FY62 | AX16: FY63 | AY16: FY64 | AZ16: FY65 | BA16: FY66 | BB16: FY67 | BC16: FY68 | BD16: FY69 | BE16: FY70 | BF16: FY71 | BG16: FY72 | BH16: FY73 | BI16: FY74 | BJ16: FY75 | BK16: FY76 | BL16: FY77 | BM16: FY78 | BN16: FY79 | BO16: FY80 | BP16: FY81 | BQ16: FY82 | BR16: FY83
D18: JGN - Pre-tax discount rate (NPV) | E18: Model Assumptions | F18: =percent -> Per cent | G18: =Nominal -> Nominal | H18: =NA -> n/a | K18: =INDEX('Model Assumptions'!$K$30:$AD$30,MATCH(MIN(K$4,Start_Year+'Model Assumptions'!$E$10-1),'Model Assumptions'!$K$4:$AD$4)) -> 0.04722827928 | L18: =INDEX('Model Assumptions'!$K$30:$AD$30,MATCH(MIN(L$4,Start_Year+'Model Assumptions'!$E$10-1),'Model Assumptions'!$K$4:$AD$4)) -> 0.04816446918 | M18: =INDEX('Model Assumptions'!$K$30:$AD$30,MATCH(MIN(M$4,Start_Year+'Model Assumptions'!$E$10-1),'Model Assumptions'!$K$4:$AD$4)) -> 0.04816446918 | N18: =INDEX('Model Assumptions'!$K$30:$AD$30,MATCH(MIN(N$4,Start_Year+'Model Assumptions'!$E$10-1),'Model Assumptions'!$K$4:$AD$4)) -> 0.04816446918 | O18: =INDEX('Model Assumptions'!$K$30:$AD$30,MATCH(MIN(O$4,Start_Year+'Model Assumptions'!$E$10-1),'Model Assumptions'!$K$4:$AD$4)) -> 0.04816446918 | P18: =INDEX('Model Assumptions'!$K$30:$AD$30,MATCH(MIN(P$4,Start_Year+'Model Assumptions'!$E$10-1),'Model Assumptions'!$K$4:$AD$4)) -> 0.04816446918 | Q18: =INDEX('Model Assumptions'!$K$30:$AD$30,MATCH(MIN(Q$4,Start_Year+'Model Assumptions'!$E$10-1),'Model Assumptions'!$K$4:$AD$4)) -> 0.04816446918 | R18: =INDEX('Model Assumptions'!$K$30:$AD$30,MATCH(MIN(R$4,Start_Year+'Model Assumptions'!$E$10-1),'Model Assumptions'!$K$4:$AD$4)) -> 0.04816446918 | S18: =INDEX('Model Assumptions'!$K$30:$AD$30,MATCH(MIN(S$4,Start_Year+'Model Assumptions'!$E$10-1),'Model Assumptions'!$K$4:$AD$4)) -> 0.04816446918 | T18: =INDEX('Model Assumptions'!$K$30:$AD$30,MATCH(MIN(T$4,Start_Year+'Model Assumptions'!$E$10-1),'Model Assumptions'!$K$4:$AD$4)) -> 0.04816446918 | U18: =INDEX('Model Assumptions'!$K$30:$AD$30,MATCH(MIN(U$4,Start_Year+'Model Assumptions'!$E$10-1),'Model Assumptions'!$K$4:$AD$4)) -> 0.04816446918 | V18: =INDEX('Model Assumptions'!$K$30:$AD$30,MATCH(MIN(V$4,Start_Year+'Model Assumptions'!$E$10-1),'Model Assumptions'!$K$4:$AD$4)) -> 0.04816446918 | W18: =INDEX('Model Assumptions'!$K$30:$AD$30,MATCH(MIN(W$4,Start_Year+'Model Assumptions'!$E$10-1),'Model Assumptions'!$K$4:$AD$4)) -> 0.04816446918 | X18: =INDEX('Model Assumptions'!$K$30:$AD$30,MATCH(MIN(X$4,Start_Year+'Model Assumptions'!$E$10-1),'Model Assumptions'!$K$4:$AD$4)) -> 0.04816446918 | Y18: =INDEX('Model Assumptions'!$K$30:$AD$30,MATCH(MIN(Y$4,Start_Year+'Model Assumptions'!$E$10-1),'Model Assumptions'!$K$4:$AD$4)) -> 0.04816446918 | Z18: =INDEX('Model Assumptions'!$K$30:$AD$30,MATCH(MIN(Z$4,Start_Year+'Model Assumptions'!$E$10-1),'Model Assumptions'!$K$4:$AD$4)) -> 0.04816446918 | AA18: =INDEX('Model Assumptions'!$K$30:$AD$30,MATCH(MIN(AA$4,Start_Year+'Model Assumptions'!$E$10-1),'Model Assumptions'!$K$4:$AD$4)) -> 0.04816446918 | AB18: =INDEX('Model Assumptions'!$K$30:$AD$30,MATCH(MIN(AB$4,Start_Year+'Model Assumptions'!$E$10-1),'Model Assumptions'!$K$4:$AD$4)) -> 0.04816446918 | AC18: =INDEX('Model Assumptions'!$K$30:$AD$30,MATCH(MIN(AC$4,Start_Year+'Model Assumptions'!$E$10-1),'Model Assumptions'!$K$4:$AD$4)) -> 0.04816446918 | AD18: =INDEX('Model Assumptions'!$K$30:$AD$30,MATCH(MIN(AD$4,Start_Year+'Model Assumptions'!$E$10-1),'Model Assumptions'!$K$4:$AD$4)) -> 0.04816446918 | AE18: =INDEX('Model Assumptions'!$K$30:$AD$30,MATCH(MIN(AE$4,Start_Year+'Model Assumptions'!$E$10-1),'Model Assumptions'!$K$4:$AD$4)) -> 0.04816446918 | AF18: =INDEX('Model Assumptions'!$K$30:$AD$30,MATCH(MIN(AF$4,Start_Year+'Model Assumptions'!$E$10-1),'Model Assumptions'!$K$4:$AD$4)) -> 0.04816446918 | AG18: =INDEX('Model Assumptions'!$K$30:$AD$30,MATCH(MIN(AG$4,Start_Year+'Model Assumptions'!$E$10-1),'Model Assumptions'!$K$4:$AD$4)) -> 0.04816446918 | AH18: =INDEX('Model Assumptions'!$K$30:$AD$30,MATCH(MIN(AH$4,Start_Year+'Model Assumptions'!$E$10-1),'Model Assumptions'!$K$4:$AD$4)) -> 0.04816446918 | AI18: =INDEX('Model Assumptions'!$K$30:$AD$30,MATCH(MIN(AI$4,Start_Year+'Model Assumptions'!$E$10-1),'Model Assumptions'!$K$4:$AD$4)) -> 0.04816446918 | AJ18: =INDEX('Model Assumptions'!$K$30:$AD$30,MATCH(MIN(AJ$4,Start_Year+'Model Assumptions'!$E$10-1),'Model Assumptions'!$K$4:$AD$4)) -> 0.04816446918 | AK18: =INDEX('Model Assumptions'!$K$30:$AD$30,MATCH(MIN(AK$4,Start_Year+'Model Assumptions'!$E$10-1),'Model Assumptions'!$K$4:$AD$4)) -> 0.04816446918 | AL18: =INDEX('Model Assumptions'!$K$30:$AD$30,MATCH(MIN(AL$4,Start_Year+'Model Assumptions'!$E$10-1),'Model Assumptions'!$K$4:$AD$4)) -> 0.04816446918 | AM18: =INDEX('Model Assumptions'!$K$30:$AD$30,MATCH(MIN(AM$4,Start_Year+'Model Assumptions'!$E$10-1),'Model Assumptions'!$K$4:$AD$4)) -> 0.04816446918 | AN18: =INDEX('Model Assumptions'!$K$30:$AD$30,MATCH(MIN(AN$4,Start_Year+'Model Assumptions'!$E$10-1),'Model Assumptions'!$K$4:$AD$4)) -> 0.04816446918 | AO18: =INDEX('Model Assumptions'!$K$30:$AD$30,MATCH(MIN(AO$4,Start_Year+'Model Assumptions'!$E$10-1),'Model Assumptions'!$K$4:$AD$4)) -> 0.04816446918 | AP18: =INDEX('Model Assumptions'!$K$30:$AD$30,MATCH(MIN(AP$4,Start_Year+'Model Assumptions'!$E$10-1),'Model Assumptions'!$K$4:$AD$4)) -> 0.04816446918 | AQ18: =INDEX('Model Assumptions'!$K$30:$AD$30,MATCH(MIN(AQ$4,Start_Year+'Model Assumptions'!$E$10-1),'Model Assumptions'!$K$4:$AD$4)) -> 0.04816446918 | AR18: =INDEX('Model Assumptions'!$K$30:$AD$30,MATCH(MIN(AR$4,Start_Year+'Model Assumptions'!$E$10-1),'Model Assumptions'!$K$4:$AD$4)) -> 0.04816446918 | AS18: =INDEX('Model Assumptions'!$K$30:$AD$30,MATCH(MIN(AS$4,Start_Year+'Model Assumptions'!$E$10-1),'Model Assumptions'!$K$4:$AD$4)) -> 0.04816446918 | AT18: =INDEX('Model Assumptions'!$K$30:$AD$30,MATCH(MIN(AT$4,Start_Year+'Model Assumptions'!$E$10-1),'Model Assumptions'!$K$4:$AD$4)) -> 0.04816446918 | AU18: =INDEX('Model Assumptions'!$K$30:$AD$30,MATCH(MIN(AU$4,Start_Year+'Model Assumptions'!$E$10-1),'Model Assumptions'!$K$4:$AD$4)) -> 0.04816446918 | AV18: =INDEX('Model Assumptions'!$K$30:$AD$30,MATCH(MIN(AV$4,Start_Year+'Model Assumptions'!$E$10-1),'Model Assumptions'!$K$4:$AD$4)) -> 0.04816446918 | AW18: =INDEX('Model Assumptions'!$K$30:$AD$30,MATCH(MIN(AW$4,Start_Year+'Model Assumptions'!$E$10-1),'Model Assumptions'!$K$4:$AD$4)) -> 0.04816446918 | AX18: =INDEX('Model Assumptions'!$K$30:$AD$30,MATCH(MIN(AX$4,Start_Year+'Model Assumptions'!$E$10-1),'Model Assumptions'!$K$4:$AD$4)) -> 0.04816446918 | AY18: =INDEX('Model Assumptions'!$K$30:$AD$30,MATCH(MIN(AY$4,Start_Year+'Model Assumptions'!$E$10-1),'Model Assumptions'!$K$4:$AD$4)) -> 0.04816446918 | AZ18: =INDEX('Model Assumptions'!$K$30:$AD$30,MATCH(MIN(AZ$4,Start_Year+'Model Assumptions'!$E$10-1),'Model Assumptions'!$K$4:$AD$4)) -> 0.04816446918 | BA18: =INDEX('Model Assumptions'!$K$30:$AD$30,MATCH(MIN(BA$4,Start_Year+'Model Assumptions'!$E$10-1),'Model Assumptions'!$K$4:$AD$4)) -> 0.04816446918 | BB18: =INDEX('Model Assumptions'!$K$30:$AD$30,MATCH(MIN(BB$4,Start_Year+'Model Assumptions'!$E$10-1),'Model Assumptions'!$K$4:$AD$4)) -> 0.04816446918 | BC18: =INDEX('Model Assumptions'!$K$30:$AD$30,MATCH(MIN(BC$4,Start_Year+'Model Assumptions'!$E$10-1),'Model Assumptions'!$K$4:$AD$4)) -> 0.04816446918 | BD18: =INDEX('Model Assumptions'!$K$30:$AD$30,MATCH(MIN(BD$4,Start_Year+'Model Assumptions'!$E$10-1),'Model Assumptions'!$K$4:$AD$4)) -> 0.04816446918 | BE18: =INDEX('Model Assumptions'!$K$30:$AD$30,MATCH(MIN(BE$4,Start_Year+'Model Assumptions'!$E$10-1),'Model Assumptions'!$K$4:$AD$4)) -> 0.04816446918 | BF18: =INDEX('Model Assumptions'!$K$30:$AD$30,MATCH(MIN(BF$4,Start_Year+'Model Assumptions'!$E$10-1),'Model Assumptions'!$K$4:$AD$4)) -> 0.04816446918 | BG18: =INDEX('Model Assumptions'!$K$30:$AD$30,MATCH(MIN(BG$4,Start_Year+'Model Assumptions'!$E$10-1),'Model Assumptions'!$K$4:$AD$4)) -> 0.04816446918 | BH18: =INDEX('Model Assumptions'!$K$30:$AD$30,MATCH(MIN(BH$4,Start_Year+'Model Assumptions'!$E$10-1),'Model Assumptions'!$K$4:$AD$4)) -> 0.04816446918 | BI18: =INDEX('Model Assumptions'!$K$30:$AD$30,MATCH(MIN(BI$4,Start_Year+'Model Assumptions'!$E$10-1),'Model Assumptions'!$K$4:$AD$4)) -> 0.04816446918 | BJ18: =INDEX('Model Assumptions'!$K$30:$AD$30,MATCH(MIN(BJ$4,Start_Year+'Model Assumptions'!$E$10-1),'Model Assumptions'!$K$4:$AD$4)) -> 0.04816446918 | BK18: =INDEX('Model Assumptions'!$K$30:$AD$30,MATCH(MIN(BK$4,Start_Year+'Model Assumptions'!$E$10-1),'Model Assumptions'!$K$4:$AD$4)) -> 0.04816446918 | BL18: =INDEX('Model Assumptions'!$K$30:$AD$30,MATCH(MIN(BL$4,Start_Year+'Model Assumptions'!$E$10-1),'Model Assumptions'!$K$4:$AD$4)) -> 0.04816446918 | BM18: =INDEX('Model Assumptions'!$K$30:$AD$30,MATCH(MIN(BM$4,Start_Year+'Model Assumptions'!$E$10-1),'Model Assumptions'!$K$4:$AD$4)) -> 0.04816446918 | BN18: =INDEX('Model Assumptions'!$K$30:$AD$30,MATCH(MIN(BN$4,Start_Year+'Model Assumptions'!$E$10-1),'Model Assumptions'!$K$4:$AD$4)) -> 0.04816446918 | BO18: =INDEX('Model Assumptions'!$K$30:$AD$30,MATCH(MIN(BO$4,Start_Year+'Model Assumptions'!$E$10-1),'Model Assumptions'!$K$4:$AD$4)) -> 0.04816446918 | BP18: =INDEX('Model Assumptions'!$K$30:$AD$30,MATCH(MIN(BP$4,Start_Year+'Model Assumptions'!$E$10-1),'Model Assumptions'!$K$4:$AD$4)) -> 0.04816446918 | BQ18: =INDEX('Model Assumptions'!$K$30:$AD$30,MATCH(MIN(BQ$4,Start_Year+'Model Assumptions'!$E$10-1),'Model Assumptions'!$K$4:$AD$4)) -> 0.04816446918 | BR18: =INDEX('Model Assumptions'!$K$30:$AD$30,MATCH(MIN(BR$4,Start_Year+'Model Assumptions'!$E$10-1),'Model Assumptions'!$K$4:$AD$4)) -> 0.04816446918
D19: JGN - Discount factor (NPV) | E19: Calculated | F19: =factor -> Factor | G19: =NA -> n/a | H19: =NA -> n/a | K19: =1/(1+K18) -> 0.9549016387 | L19: =K19/(1+L18) -> 0.9110227133 | M19: =L19/(1+M18) -> 0.8691600795 | N19: 0.829221086 | O19: 0.7911173393 | P19: 0.7547645075 | Q19: 0.7200821337 | R19: 0.6869934585 | S19: 0.6554252493 | T19: 0.6253076388 | U19: 0.5965739702 | V19: 0.5691606496 | W19: 0.5430070054 | X19: 0.5180551539 | Y19: 0.4942498712 | Z19: 0.4715384711 | AA19: 0.4498706882 | AB19: 0.429198567 | AC19: 0.4094763557 | AD19: 0.3906604047 | AE19: 0.3727090702 | AF19: 0.355582622 | AG19: 0.3392431554 | AH19: 0.3236545079 | AI19: 0.3087821782 | AJ19: 0.2945932506 | AK19: 0.2810563221 | AL19: 0.2681414323 | AM19: 0.2558199979 | AN19: 0.2440647488 | AO19: 0.2328496682 | AP19: 0.2221499345 | AQ19: 0.211941867 | AR19: 0.2022028729 | AS19: 0.1929113979 | AT19: 0.1840468777 | AU19: 0.1755896933 | AV19: 0.1675211272 | AW19: 0.1598233217 | AX19: 0.1524792401 | AY19: 0.1454726281 | AZ19: 0.1387879788 | BA19: 0.1324104975 | BB19: 0.1263260694 | BC19: 0.1205212284 | BD19: 0.1149831271 | BE19: 0.1096995085 | BF19: 0.1046586788 | BG19: 0.09984948155 | BH19: 0.09526127291 | BI19: 0.09088389819 | BJ19: 0.08670766933 | BK19: 0.0827233434 | BL19: 0.07892210224 | BM19: 0.07529553287 | BN19: 0.0718356089 | BO19: 0.06853467277 | BP19: 0.06538541878 | BQ19: 0.06238087695 | BR19: 0.05951439759
H20: =NA -> n/a
D22: JEN - Pre-tax discount rate (NPV) | E22: Model Assumptions | F22: =percent -> Per cent | G22: =Nominal -> Nominal | H22: =NA -> n/a | K22: =INDEX('Model Assumptions'!$K$41:$AE$41,MATCH(MIN(K$4,Start_Year+'Model Assumptions'!$E$10-1),'Model Assumptions'!$K$4:$AD$4)) -> 0.05147103182 | L22: =INDEX('Model Assumptions'!$K$41:$AE$41,MATCH(MIN(L$4,Start_Year+'Model Assumptions'!$E$10-1),'Model Assumptions'!$K$4:$AD$4)) -> 0.05205804107 | M22: =INDEX('Model Assumptions'!$K$41:$AE$41,MATCH(MIN(M$4,Start_Year+'Model Assumptions'!$E$10-1),'Model Assumptions'!$K$4:$AD$4)) -> 0.05205804107 | N22: =INDEX('Model Assumptions'!$K$41:$AE$41,MATCH(MIN(N$4,Start_Year+'Model Assumptions'!$E$10-1),'Model Assumptions'!$K$4:$AD$4)) -> 0.05205804107 | O22: =INDEX('Model Assumptions'!$K$41:$AE$41,MATCH(MIN(O$4,Start_Year+'Model Assumptions'!$E$10-1),'Model Assumptions'!$K$4:$AD$4)) -> 0.05205804107 | P22: =INDEX('Model Assumptions'!$K$41:$AE$41,MATCH(MIN(P$4,Start_Year+'Model Assumptions'!$E$10-1),'Model Assumptions'!$K$4:$AD$4)) -> 0.05205804107 | Q22: =INDEX('Model Assumptions'!$K$41:$AE$41,MATCH(MIN(Q$4,Start_Year+'Model Assumptions'!$E$10-1),'Model Assumptions'!$K$4:$AD$4)) -> 0.05205804107 | R22: =INDEX('Model Assumptions'!$K$41:$AE$41,MATCH(MIN(R$4,Start_Year+'Model Assumptions'!$E$10-1),'Model Assumptions'!$K$4:$AD$4)) -> 0.05205804107 | S22: =INDEX('Model Assumptions'!$K$41:$AE$41,MATCH(MIN(S$4,Start_Year+'Model Assumptions'!$E$10-1),'Model Assumptions'!$K$4:$AD$4)) -> 0.05205804107 | T22: =INDEX('Model Assumptions'!$K$41:$AE$41,MATCH(MIN(T$4,Start_Year+'Model Assumptions'!$E$10-1),'Model Assumptions'!$K$4:$AD$4)) -> 0.05205804107 | U22: =INDEX('Model Assumptions'!$K$41:$AE$41,MATCH(MIN(U$4,Start_Year+'Model Assumptions'!$E$10-1),'Model Assumptions'!$K$4:$AD$4)) -> 0.05205804107 | V22: =INDEX('Model Assumptions'!$K$41:$AE$41,MATCH(MIN(V$4,Start_Year+'Model Assumptions'!$E$10-1),'Model Assumptions'!$K$4:$AD$4)) -> 0.05205804107 | W22: =INDEX('Model Assumptions'!$K$41:$AE$41,MATCH(MIN(W$4,Start_Year+'Model Assumptions'!$E$10-1),'Model Assumptions'!$K$4:$AD$4)) -> 0.05205804107 | X22: =INDEX('Model Assumptions'!$K$41:$AE$41,MATCH(MIN(X$4,Start_Year+'Model Assumptions'!$E$10-1),'Model Assumptions'!$K$4:$AD$4)) -> 0.05205804107 | Y22: =INDEX('Model Assumptions'!$K$41:$AE$41,MATCH(MIN(Y$4,Start_Year+'Model Assumptions'!$E$10-1),'Model Assumptions'!$K$4:$AD$4)) -> 0.05205804107 | Z22: =INDEX('Model Assumptions'!$K$41:$AE$41,MATCH(MIN(Z$4,Start_Year+'Model Assumptions'!$E$10-1),'Model Assumptions'!$K$4:$AD$4)) -> 0.05205804107 | AA22: =INDEX('Model Assumptions'!$K$41:$AE$41,MATCH(MIN(AA$4,Start_Year+'Model Assumptions'!$E$10-1),'Model Assumptions'!$K$4:$AD$4)) -> 0.05205804107 | AB22: =INDEX('Model Assumptions'!$K$41:$AE$41,MATCH(MIN(AB$4,Start_Year+'Model Assumptions'!$E$10-1),'Model Assumptions'!$K$4:$AD$4)) -> 0.05205804107 | AC22: =INDEX('Model Assumptions'!$K$41:$AE$41,MATCH(MIN(AC$4,Start_Year+'Model Assumptions'!$E$10-1),'Model Assumptions'!$K$4:$AD$4)) -> 0.05205804107 | AD22: =INDEX('Model Assumptions'!$K$41:$AE$41,MATCH(MIN(AD$4,Start_Year+'Model Assumptions'!$E$10-1),'Model Assumptions'!$K$4:$AD$4)) -> 0.05205804107 | AE22: =INDEX('Model Assumptions'!$K$41:$AE$41,MATCH(MIN(AE$4,Start_Year+'Model Assumptions'!$E$10-1),'Model Assumptions'!$K$4:$AD$4)) -> 0.05205804107 | AF22: =INDEX('Model Assumptions'!$K$41:$AE$41,MATCH(MIN(AF$4,Start_Year+'Model Assumptions'!$E$10-1),'Model Assumptions'!$K$4:$AD$4)) -> 0.05205804107 | AG22: =INDEX('Model Assumptions'!$K$41:$AE$41,MATCH(MIN(AG$4,Start_Year+'Model Assumptions'!$E$10-1),'Model Assumptions'!$K$4:$AD$4)) -> 0.05205804107 | AH22: =INDEX('Model Assumptions'!$K$41:$AE$41,MATCH(MIN(AH$4,Start_Year+'Model Assumptions'!$E$10-1),'Model Assumptions'!$K$4:$AD$4)) -> 0.05205804107 | AI22: =INDEX('Model Assumptions'!$K$41:$AE$41,MATCH(MIN(AI$4,Start_Year+'Model Assumptions'!$E$10-1),'Model Assumptions'!$K$4:$AD$4)) -> 0.05205804107 | AJ22: =INDEX('Model Assumptions'!$K$41:$AE$41,MATCH(MIN(AJ$4,Start_Year+'Model Assumptions'!$E$10-1),'Model Assumptions'!$K$4:$AD$4)) -> 0.05205804107 | AK22: =INDEX('Model Assumptions'!$K$41:$AE$41,MATCH(MIN(AK$4,Start_Year+'Model Assumptions'!$E$10-1),'Model Assumptions'!$K$4:$AD$4)) -> 0.05205804107 | AL22: =INDEX('Model Assumptions'!$K$41:$AE$41,MATCH(MIN(AL$4,Start_Year+'Model Assumptions'!$E$10-1),'Model Assumptions'!$K$4:$AD$4)) -> 0.05205804107 | AM22: =INDEX('Model Assumptions'!$K$41:$AE$41,MATCH(MIN(AM$4,Start_Year+'Model Assumptions'!$E$10-1),'Model Assumptions'!$K$4:$AD$4)) -> 0.05205804107 | AN22: =INDEX('Model Assumptions'!$K$41:$AE$41,MATCH(MIN(AN$4,Start_Year+'Model Assumptions'!$E$10-1),'Model Assumptions'!$K$4:$AD$4)) -> 0.05205804107 | AO22: =INDEX('Model Assumptions'!$K$41:$AE$41,MATCH(MIN(AO$4,Start_Year+'Model Assumptions'!$E$10-1),'Model Assumptions'!$K$4:$AD$4)) -> 0.05205804107 | AP22: =INDEX('Model Assumptions'!$K$41:$AE$41,MATCH(MIN(AP$4,Start_Year+'Model Assumptions'!$E$10-1),'Model Assumptions'!$K$4:$AD$4)) -> 0.05205804107 | AQ22: =INDEX('Model Assumptions'!$K$41:$AE$41,MATCH(MIN(AQ$4,Start_Year+'Model Assumptions'!$E$10-1),'Model Assumptions'!$K$4:$AD$4)) -> 0.05205804107 | AR22: =INDEX('Model Assumptions'!$K$41:$AE$41,MATCH(MIN(AR$4,Start_Year+'Model Assumptions'!$E$10-1),'Model Assumptions'!$K$4:$AD$4)) -> 0.05205804107 | AS22: =INDEX('Model Assumptions'!$K$41:$AE$41,MATCH(MIN(AS$4,Start_Year+'Model Assumptions'!$E$10-1),'Model Assumptions'!$K$4:$AD$4)) -> 0.05205804107 | AT22: =INDEX('Model Assumptions'!$K$41:$AE$41,MATCH(MIN(AT$4,Start_Year+'Model Assumptions'!$E$10-1),'Model Assumptions'!$K$4:$AD$4)) -> 0.05205804107 | AU22: =INDEX('Model Assumptions'!$K$41:$AE$41,MATCH(MIN(AU$4,Start_Year+'Model Assumptions'!$E$10-1),'Model Assumptions'!$K$4:$AD$4)) -> 0.05205804107 | AV22: =INDEX('Model Assumptions'!$K$41:$AE$41,MATCH(MIN(AV$4,Start_Year+'Model Assumptions'!$E$10-1),'Model Assumptions'!$K$4:$AD$4)) -> 0.05205804107 | AW22: =INDEX('Model Assumptions'!$K$41:$AE$41,MATCH(MIN(AW$4,Start_Year+'Model Assumptions'!$E$10-1),'Model Assumptions'!$K$4:$AD$4)) -> 0.05205804107 | AX22: =INDEX('Model Assumptions'!$K$41:$AE$41,MATCH(MIN(AX$4,Start_Year+'Model Assumptions'!$E$10-1),'Model Assumptions'!$K$4:$AD$4)) -> 0.05205804107 | AY22: =INDEX('Model Assumptions'!$K$41:$AE$41,MATCH(MIN(AY$4,Start_Year+'Model Assumptions'!$E$10-1),'Model Assumptions'!$K$4:$AD$4)) -> 0.05205804107 | AZ22: =INDEX('Model Assumptions'!$K$41:$AE$41,MATCH(MIN(AZ$4,Start_Year+'Model Assumptions'!$E$10-1),'Model Assumptions'!$K$4:$AD$4)) -> 0.05205804107 | BA22: =INDEX('Model Assumptions'!$K$41:$AE$41,MATCH(MIN(BA$4,Start_Year+'Model Assumptions'!$E$10-1),'Model Assumptions'!$K$4:$AD$4)) -> 0.05205804107 | BB22: =INDEX('Model Assumptions'!$K$41:$AE$41,MATCH(MIN(BB$4,Start_Year+'Model Assumptions'!$E$10-1),'Model Assumptions'!$K$4:$AD$4)) -> 0.05205804107 | BC22: =INDEX('Model Assumptions'!$K$41:$AE$41,MATCH(MIN(BC$4,Start_Year+'Model Assumptions'!$E$10-1),'Model Assumptions'!$K$4:$AD$4)) -> 0.05205804107 | BD22: =INDEX('Model Assumptions'!$K$41:$AE$41,MATCH(MIN(BD$4,Start_Year+'Model Assumptions'!$E$10-1),'Model Assumptions'!$K$4:$AD$4)) -> 0.05205804107 | BE22: =INDEX('Model Assumptions'!$K$41:$AE$41,MATCH(MIN(BE$4,Start_Year+'Model Assumptions'!$E$10-1),'Model Assumptions'!$K$4:$AD$4)) -> 0.05205804107 | BF22: =INDEX('Model Assumptions'!$K$41:$AE$41,MATCH(MIN(BF$4,Start_Year+'Model Assumptions'!$E$10-1),'Model Assumptions'!$K$4:$AD$4)) -> 0.05205804107 | BG22: =INDEX('Model Assumptions'!$K$41:$AE$41,MATCH(MIN(BG$4,Start_Year+'Model Assumptions'!$E$10-1),'Model Assumptions'!$K$4:$AD$4)) -> 0.05205804107 | BH22: =INDEX('Model Assumptions'!$K$41:$AE$41,MATCH(MIN(BH$4,Start_Year+'Model Assumptions'!$E$10-1),'Model Assumptions'!$K$4:$AD$4)) -> 0.05205804107 | BI22: =INDEX('Model Assumptions'!$K$41:$AE$41,MATCH(MIN(BI$4,Start_Year+'Model Assumptions'!$E$10-1),'Model Assumptions'!$K$4:$AD$4)) -> 0.05205804107 | BJ22: =INDEX('Model Assumptions'!$K$41:$AE$41,MATCH(MIN(BJ$4,Start_Year+'Model Assumptions'!$E$10-1),'Model Assumptions'!$K$4:$AD$4)) -> 0.05205804107 | BK22: =INDEX('Model Assumptions'!$K$41:$AE$41,MATCH(MIN(BK$4,Start_Year+'Model Assumptions'!$E$10-1),'Model Assumptions'!$K$4:$AD$4)) -> 0.05205804107 | BL22: =INDEX('Model Assumptions'!$K$41:$AE$41,MATCH(MIN(BL$4,Start_Year+'Model Assumptions'!$E$10-1),'Model Assumptions'!$K$4:$AD$4)) -> 0.05205804107 | BM22: =INDEX('Model Assumptions'!$K$41:$AE$41,MATCH(MIN(BM$4,Start_Year+'Model Assumptions'!$E$10-1),'Model Assumptions'!$K$4:$AD$4)) -> 0.05205804107 | BN22: =INDEX('Model Assumptions'!$K$41:$AE$41,MATCH(MIN(BN$4,Start_Year+'Model Assumptions'!$E$10-1),'Model Assumptions'!$K$4:$AD$4)) -> 0.05205804107 | BO22: =INDEX('Model Assumptions'!$K$41:$AE$41,MATCH(MIN(BO$4,Start_Year+'Model Assumptions'!$E$10-1),'Model Assumptions'!$K$4:$AD$4)) -> 0.05205804107 | BP22: =INDEX('Model Assumptions'!$K$41:$AE$41,MATCH(MIN(BP$4,Start_Year+'Model Assumptions'!$E$10-1),'Model Assumptions'!$K$4:$AD$4)) -> 0.05205804107 | BQ22: =INDEX('Model Assumptions'!$K$41:$AE$41,MATCH(MIN(BQ$4,Start_Year+'Model Assumptions'!$E$10-1),'Model Assumptions'!$K$4:$AD$4)) -> 0.05205804107 | BR22: =INDEX('Model Assumptions'!$K$41:$AE$41,MATCH(MIN(BR$4,Start_Year+'Model Assumptions'!$E$10-1),'Model Assumptions'!$K$4:$AD$4)) -> 0.05205804107
D23: JEN - Discount factor (NPV) | E23: Calculated | F23: =factor -> Factor | G23: =NA -> n/a | H23: =NA -> n/a | K23: =1/(1+K22) -> 0.9510485498 | L23: =K23/(1+L22) -> 0.9039886705 | M23: 0.8592574128 | N23: 0.8167395517 | O23: 0.7763255636 | P23: 0.7379113445 | Q23: 0.7013979417 | R23: 0.6666912986 | S23: 0.6337020132 | T23: 0.6023451069 | U23: 0.5725398062 | V23: 0.5442093343 | W23: 0.5172807136 | X23: 0.4916845777 | Y23: 0.4673549923 | Z23: 0.4442292859 | AA23: 0.422247888 | AB23: 0.4013541758 | AC23: 0.3814943284 | AD23: 0.3626171879 | AE23: 0.344674128 | AF23: 0.3276189284 | AG23: 0.3114076559 | AH23: 0.2959985511 | AI23: 0.2813519213 | AJ23: 0.2674300374 | AK23: 0.2541970376 | AL23: 0.2416188344 | AM23: 0.2296630271 | AN23: 0.2182988182 | AO23: 0.2074969343 | AP23: 0.1972295503 | AQ23: 0.187470218 | AR23: =AQ23/(1+AR22) -> 0.1781937979 | AS23: 0.1693763946 | AT23: 0.1609952949 | AU23: 0.1530289097 | AV23: 0.1454567179 | AW23: 0.138259214 | AX23: 0.1314178578 | AY23: 0.1249150262 | AZ23: 0.1187339684 | BA23: 0.1128587623 | BB23: 0.1072742738 | BC23: 0.1019661174 | BD23: 0.09692061984 | BE23: 0.09212478405 | BF23: 0.08756625628 | BG23: 0.08323329404 | BH23: 0.07911473587 | BI23: 0.07519997261 | BJ23: 0.07147892005 | BK23: 0.06794199299 | BL23: 0.06458008051 | BM23: 0.06138452251 | BN23: 0.05834708744 | BO23: 0.05545995103 | BP23: 0.05271567619 | BQ23: 0.05010719384 | BR23: 0.04762778467
H24: =NA -> n/a
B26: Calc | JGN
C28: Forecast costs - JGN
D30: Opex | E30: =E$4 -> Source | F30: =F$4 -> Unit | G30: =G$4 -> Basis | H30: =H$4 -> Timing | I30: Nature | K30: =K$10 -> FY24 | L30: =L$10 -> FY25 | M30: FY26 | N30: FY27 | O30: FY28 | P30: FY29 | Q30: FY30 | R30: FY31 | S30: FY32 | T30: FY33 | U30: FY34 | V30: FY35 | W30: FY36 | X30: FY37 | Y30: FY38 | Z30: FY39 | AA30: FY40 | AB30: FY41 | AC30: FY42 | AD30: FY43 | AE30: FY44 | AF30: FY45 | AG30: FY46 | AH30: FY47 | AI30: FY48 | AJ30: FY49 | AK30: FY50 | AL30: FY51 | AM30: FY52 | AN30: FY53 | AO30: FY54 | AP30: FY55 | AQ30: FY56 | AR30: FY57 | AS30: FY58 | AT30: FY59 | AU30: FY60 | AV30: FY61 | AW30: FY62 | AX30: FY63 | AY30: FY64 | AZ30: FY65 | BA30: FY66 | BB30: FY67 | BC30: FY68 | BD30: FY69 | BE30: FY70 | BF30: FY71 | BG30: FY72 | BH30: FY73 | BI30: FY74 | BJ30: FY75 | BK30: FY76 | BL30: FY77 | BM30: FY78 | BN30: FY79 | BO30: FY80 | BP30: FY81 | BQ30: FY82 | BR30: FY83
D32: =IF(AND('Input|Costs&Benefits'!H56=JGN,OR(Proj_Type=JGN,Proj_Type=Shared)),JGN,IF('Input|Costs&Benefits'!H56=Shared,Shared,NA)) -> n/a | E32: Input|Costs&Benefits | F32: =dollar_unit -> $000 | G32: =Lookup!$G$147 -> Nominal | H32: =Mid_year -> Mid-year | I32: ='Input|Costs&Benefits'!I56 -> [Select from list] | K32: =IF($D32=NA,0,SUMIFS('Input|Costs&Benefits'!$K56:$BR56,'Input|Costs&Benefits'!$K$3:$BR$3,K$4)*IF('Input|Costs&Benefits'!$G56=Nominal,1,K$13)*IF($D32=Shared,JGN_share,1)) -> 0 | L32: =IF($D32=NA,0,SUMIFS('Input|Costs&Benefits'!$K56:$BR56,'Input|Costs&Benefits'!$K$3:$BR$3,L$4)*IF('Input|Costs&Benefits'!$G56=Nominal,1,L$13)*IF($D32=Shared,JGN_share,1)) -> 0 | M32: =IF($D32=NA,0,SUMIFS('Input|Costs&Benefits'!$K56:$BR56,'Input|Costs&Benefits'!$K$3:$BR$3,M$4)*IF('Input|Costs&Benefits'!$G56=Nominal,1,M$13)*IF($D32=Shared,JGN_share,1)) -> 0 | N32: =IF($D32=NA,0,SUMIFS('Input|Costs&Benefits'!$K56:$BR56,'Input|Costs&Benefits'!$K$3:$BR$3,N$4)*IF('Input|Costs&Benefits'!$G56=Nominal,1,N$13)*IF($D32=Shared,JGN_share,1)) -> 0 | O32: =IF($D32=NA,0,SUMIFS('Input|Costs&Benefits'!$K56:$BR56,'Input|Costs&Benefits'!$K$3:$BR$3,O$4)*IF('Input|Costs&Benefits'!$G56=Nominal,1,O$13)*IF($D32=Shared,JGN_share,1)) -> 0 | P32: =IF($D32=NA,0,SUMIFS('Input|Costs&Benefits'!$K56:$BR56,'Input|Costs&Benefits'!$K$3:$BR$3,P$4)*IF('Input|Costs&Benefits'!$G56=Nominal,1,P$13)*IF($D32=Shared,JGN_share,1)) -> 0 | Q32: =IF($D32=NA,0,SUMIFS('Input|Costs&Benefits'!$K56:$BR56,'Input|Costs&Benefits'!$K$3:$BR$3,Q$4)*IF('Input|Costs&Benefits'!$G56=Nominal,1,Q$13)*IF($D32=Shared,JGN_share,1)) -> 0 | R32: =IF($D32=NA,0,SUMIFS('Input|Costs&Benefits'!$K56:$BR56,'Input|Costs&Benefits'!$K$3:$BR$3,R$4)*IF('Input|Costs&Benefits'!$G56=Nominal,1,R$13)*IF($D32=Shared,JGN_share,1)) -> 0 | S32: =IF($D32=NA,0,SUMIFS('Input|Costs&Benefits'!$K56:$BR56,'Input|Costs&Benefits'!$K$3:$BR$3,S$4)*IF('Input|Costs&Benefits'!$G56=Nominal,1,S$13)*IF($D32=Shared,JGN_share,1)) -> 0 | T32: =IF($D32=NA,0,SUMIFS('Input|Costs&Benefits'!$K56:$BR56,'Input|Costs&Benefits'!$K$3:$BR$3,T$4)*IF('Input|Costs&Benefits'!$G56=Nominal,1,T$13)*IF($D32=Shared,JGN_share,1)) -> 0 | U32: =IF($D32=NA,0,SUMIFS('Input|Costs&Benefits'!$K56:$BR56,'Input|Costs&Benefits'!$K$3:$BR$3,U$4)*IF('Input|Costs&Benefits'!$G56=Nominal,1,U$13)*IF($D32=Shared,JGN_share,1)) -> 0 | V32: =IF($D32=NA,0,SUMIFS('Input|Costs&Benefits'!$K56:$BR56,'Input|Costs&Benefits'!$K$3:$BR$3,V$4)*IF('Input|Costs&Benefits'!$G56=Nominal,1,V$13)*IF($D32=Shared,JGN_share,1)) -> 0 | W32: =IF($D32=NA,0,SUMIFS('Input|Costs&Benefits'!$K56:$BR56,'Input|Costs&Benefits'!$K$3:$BR$3,W$4)*IF('Input|Costs&Benefits'!$G56=Nominal,1,W$13)*IF($D32=Shared,JGN_share,1)) -> 0 | X32: =IF($D32=NA,0,SUMIFS('Input|Costs&Benefits'!$K56:$BR56,'Input|Costs&Benefits'!$K$3:$BR$3,X$4)*IF('Input|Costs&Benefits'!$G56=Nominal,1,X$13)*IF($D32=Shared,JGN_share,1)) -> 0 | Y32: =IF($D32=NA,0,SUMIFS('Input|Costs&Benefits'!$K56:$BR56,'Input|Costs&Benefits'!$K$3:$BR$3,Y$4)*IF('Input|Costs&Benefits'!$G56=Nominal,1,Y$13)*IF($D32=Shared,JGN_share,1)) -> 0 | Z32: =IF($D32=NA,0,SUMIFS('Input|Costs&Benefits'!$K56:$BR56,'Input|Costs&Benefits'!$K$3:$BR$3,Z$4)*IF('Input|Costs&Benefits'!$G56=Nominal,1,Z$13)*IF($D32=Shared,JGN_share,1)) -> 0 | AA32: =IF($D32=NA,0,SUMIFS('Input|Costs&Benefits'!$K56:$BR56,'Input|Costs&Benefits'!$K$3:$BR$3,AA$4)*IF('Input|Costs&Benefits'!$G56=Nominal,1,AA$13)*IF($D32=Shared,JGN_share,1)) -> 0 | AB32: =IF($D32=NA,0,SUMIFS('Input|Costs&Benefits'!$K56:$BR56,'Input|Costs&Benefits'!$K$3:$BR$3,AB$4)*IF('Input|Costs&Benefits'!$G56=Nominal,1,AB$13)*IF($D32=Shared,JGN_share,1)) -> 0 | AC32: =IF($D32=NA,0,SUMIFS('Input|Costs&Benefits'!$K56:$BR56,'Input|Costs&Benefits'!$K$3:$BR$3,AC$4)*IF('Input|Costs&Benefits'!$G56=Nominal,1,AC$13)*IF($D32=Shared,JGN_share,1)) -> 0 | AD32: =IF($D32=NA,0,SUMIFS('Input|Costs&Benefits'!$K56:$BR56,'Input|Costs&Benefits'!$K$3:$BR$3,AD$4)*IF('Input|Costs&Benefits'!$G56=Nominal,1,AD$13)*IF($D32=Shared,JGN_share,1)) -> 0 | AE32: =IF($D32=NA,0,SUMIFS('Input|Costs&Benefits'!$K56:$BR56,'Input|Costs&Benefits'!$K$3:$BR$3,AE$4)*IF('Input|Costs&Benefits'!$G56=Nominal,1,AE$13)*IF($D32=Shared,JGN_share,1)) -> 0 | AF32: =IF($D32=NA,0,SUMIFS('Input|Costs&Benefits'!$K56:$BR56,'Input|Costs&Benefits'!$K$3:$BR$3,AF$4)*IF('Input|Costs&Benefits'!$G56=Nominal,1,AF$13)*IF($D32=Shared,JGN_share,1)) -> 0 | AG32: =IF($D32=NA,0,SUMIFS('Input|Costs&Benefits'!$K56:$BR56,'Input|Costs&Benefits'!$K$3:$BR$3,AG$4)*IF('Input|Costs&Benefits'!$G56=Nominal,1,AG$13)*IF($D32=Shared,JGN_share,1)) -> 0 | AH32: =IF($D32=NA,0,SUMIFS('Input|Costs&Benefits'!$K56:$BR56,'Input|Costs&Benefits'!$K$3:$BR$3,AH$4)*IF('Input|Costs&Benefits'!$G56=Nominal,1,AH$13)*IF($D32=Shared,JGN_share,1)) -> 0 | AI32: =IF($D32=NA,0,SUMIFS('Input|Costs&Benefits'!$K56:$BR56,'Input|Costs&Benefits'!$K$3:$BR$3,AI$4)*IF('Input|Costs&Benefits'!$G56=Nominal,1,AI$13)*IF($D32=Shared,JGN_share,1)) -> 0 | AJ32: =IF($D32=NA,0,SUMIFS('Input|Costs&Benefits'!$K56:$BR56,'Input|Costs&Benefits'!$K$3:$BR$3,AJ$4)*IF('Input|Costs&Benefits'!$G56=Nominal,1,AJ$13)*IF($D32=Shared,JGN_share,1)) -> 0 | AK32: =IF($D32=NA,0,SUMIFS('Input|Costs&Benefits'!$K56:$BR56,'Input|Costs&Benefits'!$K$3:$BR$3,AK$4)*IF('Input|Costs&Benefits'!$G56=Nominal,1,AK$13)*IF($D32=Shared,JGN_share,1)) -> 0 | AL32: =IF($D32=NA,0,SUMIFS('Input|Costs&Benefits'!$K56:$BR56,'Input|Costs&Benefits'!$K$3:$BR$3,AL$4)*IF('Input|Costs&Benefits'!$G56=Nominal,1,AL$13)*IF($D32=Shared,JGN_share,1)) -> 0 | AM32: =IF($D32=NA,0,SUMIFS('Input|Costs&Benefits'!$K56:$BR56,'Input|Costs&Benefits'!$K$3:$BR$3,AM$4)*IF('Input|Costs&Benefits'!$G56=Nominal,1,AM$13)*IF($D32=Shared,JGN_share,1)) -> 0 | AN32: =IF($D32=NA,0,SUMIFS('Input|Costs&Benefits'!$K56:$BR56,'Input|Costs&Benefits'!$K$3:$BR$3,AN$4)*IF('Input|Costs&Benefits'!$G56=Nominal,1,AN$13)*IF($D32=Shared,JGN_share,1)) -> 0 | AO32: =IF($D32=NA,0,SUMIFS('Input|Costs&Benefits'!$K56:$BR56,'Input|Costs&Benefits'!$K$3:$BR$3,AO$4)*IF('Input|Costs&Benefits'!$G56=Nominal,1,AO$13)*IF($D32=Shared,JGN_share,1)) -> 0 | AP32: =IF($D32=NA,0,SUMIFS('Input|Costs&Benefits'!$K56:$BR56,'Input|Costs&Benefits'!$K$3:$BR$3,AP$4)*IF('Input|Costs&Benefits'!$G56=Nominal,1,AP$13)*IF($D32=Shared,JGN_share,1)) -> 0 | AQ32: =IF($D32=NA,0,SUMIFS('Input|Costs&Benefits'!$K56:$BR56,'Input|Costs&Benefits'!$K$3:$BR$3,AQ$4)*IF('Input|Costs&Benefits'!$G56=Nominal,1,AQ$13)*IF($D32=Shared,JGN_share,1)) -> 0 | AR32: =IF($D32=NA,0,SUMIFS('Input|Costs&Benefits'!$K56:$BR56,'Input|Costs&Benefits'!$K$3:$BR$3,AR$4)*IF('Input|Costs&Benefits'!$G56=Nominal,1,AR$13)*IF($D32=Shared,JGN_share,1)) -> 0 | AS32: =IF($D32=NA,0,SUMIFS('Input|Costs&Benefits'!$K56:$BR56,'Input|Costs&Benefits'!$K$3:$BR$3,AS$4)*IF('Input|Costs&Benefits'!$G56=Nominal,1,AS$13)*IF($D32=Shared,JGN_share,1)) -> 0 | AT32: =IF($D32=NA,0,SUMIFS('Input|Costs&Benefits'!$K56:$BR56,'Input|Costs&Benefits'!$K$3:$BR$3,AT$4)*IF('Input|Costs&Benefits'!$G56=Nominal,1,AT$13)*IF($D32=Shared,JGN_share,1)) -> 0 | AU32: =IF($D32=NA,0,SUMIFS('Input|Costs&Benefits'!$K56:$BR56,'Input|Costs&Benefits'!$K$3:$BR$3,AU$4)*IF('Input|Costs&Benefits'!$G56=Nominal,1,AU$13)*IF($D32=Shared,JGN_share,1)) -> 0 | AV32: =IF($D32=NA,0,SUMIFS('Input|Costs&Benefits'!$K56:$BR56,'Input|Costs&Benefits'!$K$3:$BR$3,AV$4)*IF('Input|Costs&Benefits'!$G56=Nominal,1,AV$13)*IF($D32=Shared,JGN_share,1)) -> 0 | AW32: =IF($D32=NA,0,SUMIFS('Input|Costs&Benefits'!$K56:$BR56,'Input|Costs&Benefits'!$K$3:$BR$3,AW$4)*IF('Input|Costs&Benefits'!$G56=Nominal,1,AW$13)*IF($D32=Shared,JGN_share,1)) -> 0 | AX32: =IF($D32=NA,0,SUMIFS('Input|Costs&Benefits'!$K56:$BR56,'Input|Costs&Benefits'!$K$3:$BR$3,AX$4)*IF('Input|Costs&Benefits'!$G56=Nominal,1,AX$13)*IF($D32=Shared,JGN_share,1)) -> 0 | AY32: =IF($D32=NA,0,SUMIFS('Input|Costs&Benefits'!$K56:$BR56,'Input|Costs&Benefits'!$K$3:$BR$3,AY$4)*IF('Input|Costs&Benefits'!$G56=Nominal,1,AY$13)*IF($D32=Shared,JGN_share,1)) -> 0 | AZ32: =IF($D32=NA,0,SUMIFS('Input|Costs&Benefits'!$K56:$BR56,'Input|Costs&Benefits'!$K$3:$BR$3,AZ$4)*IF('Input|Costs&Benefits'!$G56=Nominal,1,AZ$13)*IF($D32=Shared,JGN_share,1)) -> 0 | BA32: =IF($D32=NA,0,SUMIFS('Input|Costs&Benefits'!$K56:$BR56,'Input|Costs&Benefits'!$K$3:$BR$3,BA$4)*IF('Input|Costs&Benefits'!$G56=Nominal,1,BA$13)*IF($D32=Shared,JGN_share,1)) -> 0 | BB32: =IF($D32=NA,0,SUMIFS('Input|Costs&Benefits'!$K56:$BR56,'Input|Costs&Benefits'!$K$3:$BR$3,BB$4)*IF('Input|Costs&Benefits'!$G56=Nominal,1,BB$13)*IF($D32=Shared,JGN_share,1)) -> 0 | BC32: =IF($D32=NA,0,SUMIFS('Input|Costs&Benefits'!$K56:$BR56,'Input|Costs&Benefits'!$K$3:$BR$3,BC$4)*IF('Input|Costs&Benefits'!$G56=Nominal,1,BC$13)*IF($D32=Shared,JGN_share,1)) -> 0 | BD32: =IF($D32=NA,0,SUMIFS('Input|Costs&Benefits'!$K56:$BR56,'Input|Costs&Benefits'!$K$3:$BR$3,BD$4)*IF('Input|Costs&Benefits'!$G56=Nominal,1,BD$13)*IF($D32=Shared,JGN_share,1)) -> 0 | BE32: =IF($D32=NA,0,SUMIFS('Input|Costs&Benefits'!$K56:$BR56,'Input|Costs&Benefits'!$K$3:$BR$3,BE$4)*IF('Input|Costs&Benefits'!$G56=Nominal,1,BE$13)*IF($D32=Shared,JGN_share,1)) -> 0 | BF32: =IF($D32=NA,0,SUMIFS('Input|Costs&Benefits'!$K56:$BR56,'Input|Costs&Benefits'!$K$3:$BR$3,BF$4)*IF('Input|Costs&Benefits'!$G56=Nominal,1,BF$13)*IF($D32=Shared,JGN_share,1)) -> 0 | BG32: =IF($D32=NA,0,SUMIFS('Input|Costs&Benefits'!$K56:$BR56,'Input|Costs&Benefits'!$K$3:$BR$3,BG$4)*IF('Input|Costs&Benefits'!$G56=Nominal,1,BG$13)*IF($D32=Shared,JGN_share,1)) -> 0 | BH32: =IF($D32=NA,0,SUMIFS('Input|Costs&Benefits'!$K56:$BR56,'Input|Costs&Benefits'!$K$3:$BR$3,BH$4)*IF('Input|Costs&Benefits'!$G56=Nominal,1,BH$13)*IF($D32=Shared,JGN_share,1)) -> 0 | BI32: =IF($D32=NA,0,SUMIFS('Input|Costs&Benefits'!$K56:$BR56,'Input|Costs&Benefits'!$K$3:$BR$3,BI$4)*IF('Input|Costs&Benefits'!$G56=Nominal,1,BI$13)*IF($D32=Shared,JGN_share,1)) -> 0 | BJ32: =IF($D32=NA,0,SUMIFS('Input|Costs&Benefits'!$K56:$BR56,'Input|Costs&Benefits'!$K$3:$BR$3,BJ$4)*IF('Input|Costs&Benefits'!$G56=Nominal,1,BJ$13)*IF($D32=Shared,JGN_share,1)) -> 0 | BK32: =IF($D32=NA,0,SUMIFS('Input|Costs&Benefits'!$K56:$BR56,'Input|Costs&Benefits'!$K$3:$BR$3,BK$4)*IF('Input|Costs&Benefits'!$G56=Nominal,1,BK$13)*IF($D32=Shared,JGN_share,1)) -> 0 | BL32: =IF($D32=NA,0,SUMIFS('Input|Costs&Benefits'!$K56:$BR56,'Input|Costs&Benefits'!$K$3:$BR$3,BL$4)*IF('Input|Costs&Benefits'!$G56=Nominal,1,BL$13)*IF($D32=Shared,JGN_share,1)) -> 0 | BM32: =IF($D32=NA,0,SUMIFS('Input|Costs&Benefits'!$K56:$BR56,'Input|Costs&Benefits'!$K$3:$BR$3,BM$4)*IF('Input|Costs&Benefits'!$G56=Nominal,1,BM$13)*IF($D32=Shared,JGN_share,1)) -> 0 | BN32: =IF($D32=NA,0,SUMIFS('Input|Costs&Benefits'!$K56:$BR56,'Input|Costs&Benefits'!$K$3:$BR$3,BN$4)*IF('Input|Costs&Benefits'!$G56=Nominal,1,BN$13)*IF($D32=Shared,JGN_share,1)) -> 0 | BO32: =IF($D32=NA,0,SUMIFS('Input|Costs&Benefits'!$K56:$BR56,'Input|Costs&Benefits'!$K$3:$BR$3,BO$4)*IF('Input|Costs&Benefits'!$G56=Nominal,1,BO$13)*IF($D32=Shared,JGN_share,1)) -> 0 | BP32: =IF($D32=NA,0,SUMIFS('Input|Costs&Benefits'!$K56:$BR56,'Input|Costs&Benefits'!$K$3:$BR$3,BP$4)*IF('Input|Costs&Benefits'!$G56=Nominal,1,BP$13)*IF($D32=Shared,JGN_share,1)) -> 0 | BQ32: =IF($D32=NA,0,SUMIFS('Input|Costs&Benefits'!$K56:$BR56,'Input|Costs&Benefits'!$K$3:$BR$3,BQ$4)*IF('Input|Costs&Benefits'!$G56=Nominal,1,BQ$13)*IF($D32=Shared,JGN_share,1)) -> 0 | BR32: =IF($D32=NA,0,SUMIFS('Input|Costs&Benefits'!$K56:$BR56,'Input|Costs&Benefits'!$K$3:$BR$3,BR$4)*IF('Input|Costs&Benefits'!$G56=Nominal,1,BR$13)*IF($D32=Shared,JGN_share,1)) -> 0
D33: =IF(AND('Input|Costs&Benefits'!H57=JGN,OR(Proj_Type=JGN,Proj_Type=Shared)),JGN,IF('Input|Costs&Benefits'!H57=Shared,Shared,NA)) -> n/a | E33: Input|Costs&Benefits | F33: =dollar_unit -> $000 | G33: =Lookup!$G$147 -> Nominal | H33: =Mid_year -> Mid-year | I33: ='Input|Costs&Benefits'!I57 -> [Select from list] | K33: =IF($D33=NA,0,SUMIFS('Input|Costs&Benefits'!$K57:$BR57,'Input|Costs&Benefits'!$K$3:$BR$3,K$4)*IF('Input|Costs&Benefits'!$G57=Nominal,1,K$13)*IF($D33=Shared,JGN_share,1)) -> 0 | L33: =IF($D33=NA,0,SUMIFS('Input|Costs&Benefits'!$K57:$BR57,'Input|Costs&Benefits'!$K$3:$BR$3,L$4)*IF('Input|Costs&Benefits'!$G57=Nominal,1,L$13)*IF($D33=Shared,JGN_share,1)) -> 0 | M33: =IF($D33=NA,0,SUMIFS('Input|Costs&Benefits'!$K57:$BR57,'Input|Costs&Benefits'!$K$3:$BR$3,M$4)*IF('Input|Costs&Benefits'!$G57=Nominal,1,M$13)*IF($D33=Shared,JGN_share,1)) -> 0 | N33: =IF($D33=NA,0,SUMIFS('Input|Costs&Benefits'!$K57:$BR57,'Input|Costs&Benefits'!$K$3:$BR$3,N$4)*IF('Input|Costs&Benefits'!$G57=Nominal,1,N$13)*IF($D33=Shared,JGN_share,1)) -> 0 | O33: =IF($D33=NA,0,SUMIFS('Input|Costs&Benefits'!$K57:$BR57,'Input|Costs&Benefits'!$K$3:$BR$3,O$4)*IF('Input|Costs&Benefits'!$G57=Nominal,1,O$13)*IF($D33=Shared,JGN_share,1)) -> 0 | P33: =IF($D33=NA,0,SUMIFS('Input|Costs&Benefits'!$K57:$BR57,'Input|Costs&Benefits'!$K$3:$BR$3,P$4)*IF('Input|Costs&Benefits'!$G57=Nominal,1,P$13)*IF($D33=Shared,JGN_share,1)) -> 0 | Q33: =IF($D33=NA,0,SUMIFS('Input|Costs&Benefits'!$K57:$BR57,'Input|Costs&Benefits'!$K$3:$BR$3,Q$4)*IF('Input|Costs&Benefits'!$G57=Nominal,1,Q$13)*IF($D33=Shared,JGN_share,1)) -> 0 | R33: =IF($D33=NA,0,SUMIFS('Input|Costs&Benefits'!$K57:$BR57,'Input|Costs&Benefits'!$K$3:$BR$3,R$4)*IF('Input|Costs&Benefits'!$G57=Nominal,1,R$13)*IF($D33=Shared,JGN_share,1)) -> 0 | S33: =IF($D33=NA,0,SUMIFS('Input|Costs&Benefits'!$K57:$BR57,'Input|Costs&Benefits'!$K$3:$BR$3,S$4)*IF('Input|Costs&Benefits'!$G57=Nominal,1,S$13)*IF($D33=Shared,JGN_share,1)) -> 0 | T33: =IF($D33=NA,0,SUMIFS('Input|Costs&Benefits'!$K57:$BR57,'Input|Costs&Benefits'!$K$3:$BR$3,T$4)*IF('Input|Costs&Benefits'!$G57=Nominal,1,T$13)*IF($D33=Shared,JGN_share,1)) -> 0 | U33: =IF($D33=NA,0,SUMIFS('Input|Costs&Benefits'!$K57:$BR57,'Input|Costs&Benefits'!$K$3:$BR$3,U$4)*IF('Input|Costs&Benefits'!$G57=Nominal,1,U$13)*IF($D33=Shared,JGN_share,1)) -> 0 | V33: =IF($D33=NA,0,SUMIFS('Input|Costs&Benefits'!$K57:$BR57,'Input|Costs&Benefits'!$K$3:$BR$3,V$4)*IF('Input|Costs&Benefits'!$G57=Nominal,1,V$13)*IF($D33=Shared,JGN_share,1)) -> 0 | W33: =IF($D33=NA,0,SUMIFS('Input|Costs&Benefits'!$K57:$BR57,'Input|Costs&Benefits'!$K$3:$BR$3,W$4)*IF('Input|Costs&Benefits'!$G57=Nominal,1,W$13)*IF($D33=Shared,JGN_share,1)) -> 0 | X33: =IF($D33=NA,0,SUMIFS('Input|Costs&Benefits'!$K57:$BR57,'Input|Costs&Benefits'!$K$3:$BR$3,X$4)*IF('Input|Costs&Benefits'!$G57=Nominal,1,X$13)*IF($D33=Shared,JGN_share,1)) -> 0 | Y33: =IF($D33=NA,0,SUMIFS('Input|Costs&Benefits'!$K57:$BR57,'Input|Costs&Benefits'!$K$3:$BR$3,Y$4)*IF('Input|Costs&Benefits'!$G57=Nominal,1,Y$13)*IF($D33=Shared,JGN_share,1)) -> 0 | Z33: =IF($D33=NA,0,SUMIFS('Input|Costs&Benefits'!$K57:$BR57,'Input|Costs&Benefits'!$K$3:$BR$3,Z$4)*IF('Input|Costs&Benefits'!$G57=Nominal,1,Z$13)*IF($D33=Shared,JGN_share,1)) -> 0 | AA33: =IF($D33=NA,0,SUMIFS('Input|Costs&Benefits'!$K57:$BR57,'Input|Costs&Benefits'!$K$3:$BR$3,AA$4)*IF('Input|Costs&Benefits'!$G57=Nominal,1,AA$13)*IF($D33=Shared,JGN_share,1)) -> 0 | AB33: =IF($D33=NA,0,SUMIFS('Input|Costs&Benefits'!$K57:$BR57,'Input|Costs&Benefits'!$K$3:$BR$3,AB$4)*IF('Input|Costs&Benefits'!$G57=Nominal,1,AB$13)*IF($D33=Shared,JGN_share,1)) -> 0 | AC33: =IF($D33=NA,0,SUMIFS('Input|Costs&Benefits'!$K57:$BR57,'Input|Costs&Benefits'!$K$3:$BR$3,AC$4)*IF('Input|Costs&Benefits'!$G57=Nominal,1,AC$13)*IF($D33=Shared,JGN_share,1)) -> 0 | AD33: =IF($D33=NA,0,SUMIFS('Input|Costs&Benefits'!$K57:$BR57,'Input|Costs&Benefits'!$K$3:$BR$3,AD$4)*IF('Input|Costs&Benefits'!$G57=Nominal,1,AD$13)*IF($D33=Shared,JGN_share,1)) -> 0 | AE33: =IF($D33=NA,0,SUMIFS('Input|Costs&Benefits'!$K57:$BR57,'Input|Costs&Benefits'!$K$3:$BR$3,AE$4)*IF('Input|Costs&Benefits'!$G57=Nominal,1,AE$13)*IF($D33=Shared,JGN_share,1)) -> 0 | AF33: =IF($D33=NA,0,SUMIFS('Input|Costs&Benefits'!$K57:$BR57,'Input|Costs&Benefits'!$K$3:$BR$3,AF$4)*IF('Input|Costs&Benefits'!$G57=Nominal,1,AF$13)*IF($D33=Shared,JGN_share,1)) -> 0 | AG33: =IF($D33=NA,0,SUMIFS('Input|Costs&Benefits'!$K57:$BR57,'Input|Costs&Benefits'!$K$3:$BR$3,AG$4)*IF('Input|Costs&Benefits'!$G57=Nominal,1,AG$13)*IF($D33=Shared,JGN_share,1)) -> 0 | AH33: =IF($D33=NA,0,SUMIFS('Input|Costs&Benefits'!$K57:$BR57,'Input|Costs&Benefits'!$K$3:$BR$3,AH$4)*IF('Input|Costs&Benefits'!$G57=Nominal,1,AH$13)*IF($D33=Shared,JGN_share,1)) -> 0 | AI33: =IF($D33=NA,0,SUMIFS('Input|Costs&Benefits'!$K57:$BR57,'Input|Costs&Benefits'!$K$3:$BR$3,AI$4)*IF('Input|Costs&Benefits'!$G57=Nominal,1,AI$13)*IF($D33=Shared,JGN_share,1)) -> 0 | AJ33: =IF($D33=NA,0,SUMIFS('Input|Costs&Benefits'!$K57:$BR57,'Input|Costs&Benefits'!$K$3:$BR$3,AJ$4)*IF('Input|Costs&Benefits'!$G57=Nominal,1,AJ$13)*IF($D33=Shared,JGN_share,1)) -> 0 | AK33: =IF($D33=NA,0,SUMIFS('Input|Costs&Benefits'!$K57:$BR57,'Input|Costs&Benefits'!$K$3:$BR$3,AK$4)*IF('Input|Costs&Benefits'!$G57=Nominal,1,AK$13)*IF($D33=Shared,JGN_share,1)) -> 0 | AL33: =IF($D33=NA,0,SUMIFS('Input|Costs&Benefits'!$K57:$BR57,'Input|Costs&Benefits'!$K$3:$BR$3,AL$4)*IF('Input|Costs&Benefits'!$G57=Nominal,1,AL$13)*IF($D33=Shared,JGN_share,1)) -> 0 | AM33: =IF($D33=NA,0,SUMIFS('Input|Costs&Benefits'!$K57:$BR57,'Input|Costs&Benefits'!$K$3:$BR$3,AM$4)*IF('Input|Costs&Benefits'!$G57=Nominal,1,AM$13)*IF($D33=Shared,JGN_share,1)) -> 0 | AN33: =IF($D33=NA,0,SUMIFS('Input|Costs&Benefits'!$K57:$BR57,'Input|Costs&Benefits'!$K$3:$BR$3,AN$4)*IF('Input|Costs&Benefits'!$G57=Nominal,1,AN$13)*IF($D33=Shared,JGN_share,1)) -> 0 | AO33: =IF($D33=NA,0,SUMIFS('Input|Costs&Benefits'!$K57:$BR57,'Input|Costs&Benefits'!$K$3:$BR$3,AO$4)*IF('Input|Costs&Benefits'!$G57=Nominal,1,AO$13)*IF($D33=Shared,JGN_share,1)) -> 0 | AP33: =IF($D33=NA,0,SUMIFS('Input|Costs&Benefits'!$K57:$BR57,'Input|Costs&Benefits'!$K$3:$BR$3,AP$4)*IF('Input|Costs&Benefits'!$G57=Nominal,1,AP$13)*IF($D33=Shared,JGN_share,1)) -> 0 | AQ33: =IF($D33=NA,0,SUMIFS('Input|Costs&Benefits'!$K57:$BR57,'Input|Costs&Benefits'!$K$3:$BR$3,AQ$4)*IF('Input|Costs&Benefits'!$G57=Nominal,1,AQ$13)*IF($D33=Shared,JGN_share,1)) -> 0 | AR33: =IF($D33=NA,0,SUMIFS('Input|Costs&Benefits'!$K57:$BR57,'Input|Costs&Benefits'!$K$3:$BR$3,AR$4)*IF('Input|Costs&Benefits'!$G57=Nominal,1,AR$13)*IF($D33=Shared,JGN_share,1)) -> 0 | AS33: =IF($D33=NA,0,SUMIFS('Input|Costs&Benefits'!$K57:$BR57,'Input|Costs&Benefits'!$K$3:$BR$3,AS$4)*IF('Input|Costs&Benefits'!$G57=Nominal,1,AS$13)*IF($D33=Shared,JGN_share,1)) -> 0 | AT33: =IF($D33=NA,0,SUMIFS('Input|Costs&Benefits'!$K57:$BR57,'Input|Costs&Benefits'!$K$3:$BR$3,AT$4)*IF('Input|Costs&Benefits'!$G57=Nominal,1,AT$13)*IF($D33=Shared,JGN_share,1)) -> 0 | AU33: =IF($D33=NA,0,SUMIFS('Input|Costs&Benefits'!$K57:$BR57,'Input|Costs&Benefits'!$K$3:$BR$3,AU$4)*IF('Input|Costs&Benefits'!$G57=Nominal,1,AU$13)*IF($D33=Shared,JGN_share,1)) -> 0 | AV33: =IF($D33=NA,0,SUMIFS('Input|Costs&Benefits'!$K57:$BR57,'Input|Costs&Benefits'!$K$3:$BR$3,AV$4)*IF('Input|Costs&Benefits'!$G57=Nominal,1,AV$13)*IF($D33=Shared,JGN_share,1)) -> 0 | AW33: =IF($D33=NA,0,SUMIFS('Input|Costs&Benefits'!$K57:$BR57,'Input|Costs&Benefits'!$K$3:$BR$3,AW$4)*IF('Input|Costs&Benefits'!$G57=Nominal,1,AW$13)*IF($D33=Shared,JGN_share,1)) -> 0 | AX33: =IF($D33=NA,0,SUMIFS('Input|Costs&Benefits'!$K57:$BR57,'Input|Costs&Benefits'!$K$3:$BR$3,AX$4)*IF('Input|Costs&Benefits'!$G57=Nominal,1,AX$13)*IF($D33=Shared,JGN_share,1)) -> 0 | AY33: =IF($D33=NA,0,SUMIFS('Input|Costs&Benefits'!$K57:$BR57,'Input|Costs&Benefits'!$K$3:$BR$3,AY$4)*IF('Input|Costs&Benefits'!$G57=Nominal,1,AY$13)*IF($D33=Shared,JGN_share,1)) -> 0 | AZ33: =IF($D33=NA,0,SUMIFS('Input|Costs&Benefits'!$K57:$BR57,'Input|Costs&Benefits'!$K$3:$BR$3,AZ$4)*IF('Input|Costs&Benefits'!$G57=Nominal,1,AZ$13)*IF($D33=Shared,JGN_share,1)) -> 0 | BA33: =IF($D33=NA,0,SUMIFS('Input|Costs&Benefits'!$K57:$BR57,'Input|Costs&Benefits'!$K$3:$BR$3,BA$4)*IF('Input|Costs&Benefits'!$G57=Nominal,1,BA$13)*IF($D33=Shared,JGN_share,1)) -> 0 | BB33: =IF($D33=NA,0,SUMIFS('Input|Costs&Benefits'!$K57:$BR57,'Input|Costs&Benefits'!$K$3:$BR$3,BB$4)*IF('Input|Costs&Benefits'!$G57=Nominal,1,BB$13)*IF($D33=Shared,JGN_share,1)) -> 0 | BC33: =IF($D33=NA,0,SUMIFS('Input|Costs&Benefits'!$K57:$BR57,'Input|Costs&Benefits'!$K$3:$BR$3,BC$4)*IF('Input|Costs&Benefits'!$G57=Nominal,1,BC$13)*IF($D33=Shared,JGN_share,1)) -> 0 | BD33: =IF($D33=NA,0,SUMIFS('Input|Costs&Benefits'!$K57:$BR57,'Input|Costs&Benefits'!$K$3:$BR$3,BD$4)*IF('Input|Costs&Benefits'!$G57=Nominal,1,BD$13)*IF($D33=Shared,JGN_share,1)) -> 0 | BE33: =IF($D33=NA,0,SUMIFS('Input|Costs&Benefits'!$K57:$BR57,'Input|Costs&Benefits'!$K$3:$BR$3,BE$4)*IF('Input|Costs&Benefits'!$G57=Nominal,1,BE$13)*IF($D33=Shared,JGN_share,1)) -> 0 | BF33: =IF($D33=NA,0,SUMIFS('Input|Costs&Benefits'!$K57:$BR57,'Input|Costs&Benefits'!$K$3:$BR$3,BF$4)*IF('Input|Costs&Benefits'!$G57=Nominal,1,BF$13)*IF($D33=Shared,JGN_share,1)) -> 0 | BG33: =IF($D33=NA,0,SUMIFS('Input|Costs&Benefits'!$K57:$BR57,'Input|Costs&Benefits'!$K$3:$BR$3,BG$4)*IF('Input|Costs&Benefits'!$G57=Nominal,1,BG$13)*IF($D33=Shared,JGN_share,1)) -> 0 | BH33: =IF($D33=NA,0,SUMIFS('Input|Costs&Benefits'!$K57:$BR57,'Input|Costs&Benefits'!$K$3:$BR$3,BH$4)*IF('Input|Costs&Benefits'!$G57=Nominal,1,BH$13)*IF($D33=Shared,JGN_share,1)) -> 0 | BI33: =IF($D33=NA,0,SUMIFS('Input|Costs&Benefits'!$K57:$BR57,'Input|Costs&Benefits'!$K$3:$BR$3,BI$4)*IF('Input|Costs&Benefits'!$G57=Nominal,1,BI$13)*IF($D33=Shared,JGN_share,1)) -> 0 | BJ33: =IF($D33=NA,0,SUMIFS('Input|Costs&Benefits'!$K57:$BR57,'Input|Costs&Benefits'!$K$3:$BR$3,BJ$4)*IF('Input|Costs&Benefits'!$G57=Nominal,1,BJ$13)*IF($D33=Shared,JGN_share,1)) -> 0 | BK33: =IF($D33=NA,0,SUMIFS('Input|Costs&Benefits'!$K57:$BR57,'Input|Costs&Benefits'!$K$3:$BR$3,BK$4)*IF('Input|Costs&Benefits'!$G57=Nominal,1,BK$13)*IF($D33=Shared,JGN_share,1)) -> 0 | BL33: =IF($D33=NA,0,SUMIFS('Input|Costs&Benefits'!$K57:$BR57,'Input|Costs&Benefits'!$K$3:$BR$3,BL$4)*IF('Input|Costs&Benefits'!$G57=Nominal,1,BL$13)*IF($D33=Shared,JGN_share,1)) -> 0 | BM33: =IF($D33=NA,0,SUMIFS('Input|Costs&Benefits'!$K57:$BR57,'Input|Costs&Benefits'!$K$3:$BR$3,BM$4)*IF('Input|Costs&Benefits'!$G57=Nominal,1,BM$13)*IF($D33=Shared,JGN_share,1)) -> 0 | BN33: =IF($D33=NA,0,SUMIFS('Input|Costs&Benefits'!$K57:$BR57,'Input|Costs&Benefits'!$K$3:$BR$3,BN$4)*IF('Input|Costs&Benefits'!$G57=Nominal,1,BN$13)*IF($D33=Shared,JGN_share,1)) -> 0 | BO33: =IF($D33=NA,0,SUMIFS('Input|Costs&Benefits'!$K57:$BR57,'Input|Costs&Benefits'!$K$3:$BR$3,BO$4)*IF('Input|Costs&Benefits'!$G57=Nominal,1,BO$13)*IF($D33=Shared,JGN_share,1)) -> 0 | BP33: =IF($D33=NA,0,SUMIFS('Input|Costs&Benefits'!$K57:$BR57,'Input|Costs&Benefits'!$K$3:$BR$3,BP$4)*IF('Input|Costs&Benefits'!$G57=Nominal,1,BP$13)*IF($D33=Shared,JGN_share,1)) -> 0 | BQ33: =IF($D33=NA,0,SUMIFS('Input|Costs&Benefits'!$K57:$BR57,'Input|Costs&Benefits'!$K$3:$BR$3,BQ$4)*IF('Input|Costs&Benefits'!$G57=Nominal,1,BQ$13)*IF($D33=Shared,JGN_share,1)) -> 0 | BR33: =IF($D33=NA,0,SUMIFS('Input|Costs&Benefits'!$K57:$BR57,'Input|Costs&Benefits'!$K$3:$BR$3,BR$4)*IF('Input|Costs&Benefits'!$G57=Nominal,1,BR$13)*IF($D33=Shared,JGN_share,1)) -> 0
D34: =IF(AND('Input|Costs&Benefits'!H58=JGN,OR(Proj_Type=JGN,Proj_Type=Shared)),JGN,IF('Input|Costs&Benefits'!H58=Shared,Shared,NA)) -> n/a | E34: Input|Costs&Benefits | F34: =dollar_unit -> $000 | G34: =Lookup!$G$147 -> Nominal | H34: =Mid_year -> Mid-year | I34: ='Input|Costs&Benefits'!I58 -> [Select from list] | K34: =IF($D34=NA,0,SUMIFS('Input|Costs&Benefits'!$K58:$BR58,'Input|Costs&Benefits'!$K$3:$BR$3,K$4)*IF('Input|Costs&Benefits'!$G58=Nominal,1,K$13)*IF($D34=Shared,JGN_share,1)) -> 0 | L34: =IF($D34=NA,0,SUMIFS('Input|Costs&Benefits'!$K58:$BR58,'Input|Costs&Benefits'!$K$3:$BR$3,L$4)*IF('Input|Costs&Benefits'!$G58=Nominal,1,L$13)*IF($D34=Shared,JGN_share,1)) -> 0 | M34: =IF($D34=NA,0,SUMIFS('Input|Costs&Benefits'!$K58:$BR58,'Input|Costs&Benefits'!$K$3:$BR$3,M$4)*IF('Input|Costs&Benefits'!$G58=Nominal,1,M$13)*IF($D34=Shared,JGN_share,1)) -> 0 | N34: =IF($D34=NA,0,SUMIFS('Input|Costs&Benefits'!$K58:$BR58,'Input|Costs&Benefits'!$K$3:$BR$3,N$4)*IF('Input|Costs&Benefits'!$G58=Nominal,1,N$13)*IF($D34=Shared,JGN_share,1)) -> 0 | O34: =IF($D34=NA,0,SUMIFS('Input|Costs&Benefits'!$K58:$BR58,'Input|Costs&Benefits'!$K$3:$BR$3,O$4)*IF('Input|Costs&Benefits'!$G58=Nominal,1,O$13)*IF($D34=Shared,JGN_share,1)) -> 0 | P34: =IF($D34=NA,0,SUMIFS('Input|Costs&Benefits'!$K58:$BR58,'Input|Costs&Benefits'!$K$3:$BR$3,P$4)*IF('Input|Costs&Benefits'!$G58=Nominal,1,P$13)*IF($D34=Shared,JGN_share,1)) -> 0 | Q34: =IF($D34=NA,0,SUMIFS('Input|Costs&Benefits'!$K58:$BR58,'Input|Costs&Benefits'!$K$3:$BR$3,Q$4)*IF('Input|Costs&Benefits'!$G58=Nominal,1,Q$13)*IF($D34=Shared,JGN_share,1)) -> 0 | R34: =IF($D34=NA,0,SUMIFS('Input|Costs&Benefits'!$K58:$BR58,'Input|Costs&Benefits'!$K$3:$BR$3,R$4)*IF('Input|Costs&Benefits'!$G58=Nominal,1,R$13)*IF($D34=Shared,JGN_share,1)) -> 0 | S34: =IF($D34=NA,0,SUMIFS('Input|Costs&Benefits'!$K58:$BR58,'Input|Costs&Benefits'!$K$3:$BR$3,S$4)*IF('Input|Costs&Benefits'!$G58=Nominal,1,S$13)*IF($D34=Shared,JGN_share,1)) -> 0 | T34: =IF($D34=NA,0,SUMIFS('Input|Costs&Benefits'!$K58:$BR58,'Input|Costs&Benefits'!$K$3:$BR$3,T$4)*IF('Input|Costs&Benefits'!$G58=Nominal,1,T$13)*IF($D34=Shared,JGN_share,1)) -> 0 | U34: =IF($D34=NA,0,SUMIFS('Input|Costs&Benefits'!$K58:$BR58,'Input|Costs&Benefits'!$K$3:$BR$3,U$4)*IF('Input|Costs&Benefits'!$G58=Nominal,1,U$13)*IF($D34=Shared,JGN_share,1)) -> 0 | V34: =IF($D34=NA,0,SUMIFS('Input|Costs&Benefits'!$K58:$BR58,'Input|Costs&Benefits'!$K$3:$BR$3,V$4)*IF('Input|Costs&Benefits'!$G58=Nominal,1,V$13)*IF($D34=Shared,JGN_share,1)) -> 0 | W34: =IF($D34=NA,0,SUMIFS('Input|Costs&Benefits'!$K58:$BR58,'Input|Costs&Benefits'!$K$3:$BR$3,W$4)*IF('Input|Costs&Benefits'!$G58=Nominal,1,W$13)*IF($D34=Shared,JGN_share,1)) -> 0 | X34: =IF($D34=NA,0,SUMIFS('Input|Costs&Benefits'!$K58:$BR58,'Input|Costs&Benefits'!$K$3:$BR$3,X$4)*IF('Input|Costs&Benefits'!$G58=Nominal,1,X$13)*IF($D34=Shared,JGN_share,1)) -> 0 | Y34: =IF($D34=NA,0,SUMIFS('Input|Costs&Benefits'!$K58:$BR58,'Input|Costs&Benefits'!$K$3:$BR$3,Y$4)*IF('Input|Costs&Benefits'!$G58=Nominal,1,Y$13)*IF($D34=Shared,JGN_share,1)) -> 0 | Z34: =IF($D34=NA,0,SUMIFS('Input|Costs&Benefits'!$K58:$BR58,'Input|Costs&Benefits'!$K$3:$BR$3,Z$4)*IF('Input|Costs&Benefits'!$G58=Nominal,1,Z$13)*IF($D34=Shared,JGN_share,1)) -> 0 | AA34: =IF($D34=NA,0,SUMIFS('Input|Costs&Benefits'!$K58:$BR58,'Input|Costs&Benefits'!$K$3:$BR$3,AA$4)*IF('Input|Costs&Benefits'!$G58=Nominal,1,AA$13)*IF($D34=Shared,JGN_share,1)) -> 0 | AB34: =IF($D34=NA,0,SUMIFS('Input|Costs&Benefits'!$K58:$BR58,'Input|Costs&Benefits'!$K$3:$BR$3,AB$4)*IF('Input|Costs&Benefits'!$G58=Nominal,1,AB$13)*IF($D34=Shared,JGN_share,1)) -> 0 | AC34: =IF($D34=NA,0,SUMIFS('Input|Costs&Benefits'!$K58:$BR58,'Input|Costs&Benefits'!$K$3:$BR$3,AC$4)*IF('Input|Costs&Benefits'!$G58=Nominal,1,AC$13)*IF($D34=Shared,JGN_share,1)) -> 0 | AD34: =IF($D34=NA,0,SUMIFS('Input|Costs&Benefits'!$K58:$BR58,'Input|Costs&Benefits'!$K$3:$BR$3,AD$4)*IF('Input|Costs&Benefits'!$G58=Nominal,1,AD$13)*IF($D34=Shared,JGN_share,1)) -> 0 | AE34: =IF($D34=NA,0,SUMIFS('Input|Costs&Benefits'!$K58:$BR58,'Input|Costs&Benefits'!$K$3:$BR$3,AE$4)*IF('Input|Costs&Benefits'!$G58=Nominal,1,AE$13)*IF($D34=Shared,JGN_share,1)) -> 0 | AF34: =IF($D34=NA,0,SUMIFS('Input|Costs&Benefits'!$K58:$BR58,'Input|Costs&Benefits'!$K$3:$BR$3,AF$4)*IF('Input|Costs&Benefits'!$G58=Nominal,1,AF$13)*IF($D34=Shared,JGN_share,1)) -> 0 | AG34: =IF($D34=NA,0,SUMIFS('Input|Costs&Benefits'!$K58:$BR58,'Input|Costs&Benefits'!$K$3:$BR$3,AG$4)*IF('Input|Costs&Benefits'!$G58=Nominal,1,AG$13)*IF($D34=Shared,JGN_share,1)) -> 0 | AH34: =IF($D34=NA,0,SUMIFS('Input|Costs&Benefits'!$K58:$BR58,'Input|Costs&Benefits'!$K$3:$BR$3,AH$4)*IF('Input|Costs&Benefits'!$G58=Nominal,1,AH$13)*IF($D34=Shared,JGN_share,1)) -> 0 | AI34: =IF($D34=NA,0,SUMIFS('Input|Costs&Benefits'!$K58:$BR58,'Input|Costs&Benefits'!$K$3:$BR$3,AI$4)*IF('Input|Costs&Benefits'!$G58=Nominal,1,AI$13)*IF($D34=Shared,JGN_share,1)) -> 0 | AJ34: =IF($D34=NA,0,SUMIFS('Input|Costs&Benefits'!$K58:$BR58,'Input|Costs&Benefits'!$K$3:$BR$3,AJ$4)*IF('Input|Costs&Benefits'!$G58=Nominal,1,AJ$13)*IF($D34=Shared,JGN_share,1)) -> 0 | AK34: =IF($D34=NA,0,SUMIFS('Input|Costs&Benefits'!$K58:$BR58,'Input|Costs&Benefits'!$K$3:$BR$3,AK$4)*IF('Input|Costs&Benefits'!$G58=Nominal,1,AK$13)*IF($D34=Shared,JGN_share,1)) -> 0 | AL34: =IF($D34=NA,0,SUMIFS('Input|Costs&Benefits'!$K58:$BR58,'Input|Costs&Benefits'!$K$3:$BR$3,AL$4)*IF('Input|Costs&Benefits'!$G58=Nominal,1,AL$13)*IF($D34=Shared,JGN_share,1)) -> 0 | AM34: =IF($D34=NA,0,SUMIFS('Input|Costs&Benefits'!$K58:$BR58,'Input|Costs&Benefits'!$K$3:$BR$3,AM$4)*IF('Input|Costs&Benefits'!$G58=Nominal,1,AM$13)*IF($D34=Shared,JGN_share,1)) -> 0 | AN34: =IF($D34=NA,0,SUMIFS('Input|Costs&Benefits'!$K58:$BR58,'Input|Costs&Benefits'!$K$3:$BR$3,AN$4)*IF('Input|Costs&Benefits'!$G58=Nominal,1,AN$13)*IF($D34=Shared,JGN_share,1)) -> 0 | AO34: =IF($D34=NA,0,SUMIFS('Input|Costs&Benefits'!$K58:$BR58,'Input|Costs&Benefits'!$K$3:$BR$3,AO$4)*IF('Input|Costs&Benefits'!$G58=Nominal,1,AO$13)*IF($D34=Shared,JGN_share,1)) -> 0 | AP34: =IF($D34=NA,0,SUMIFS('Input|Costs&Benefits'!$K58:$BR58,'Input|Costs&Benefits'!$K$3:$BR$3,AP$4)*IF('Input|Costs&Benefits'!$G58=Nominal,1,AP$13)*IF($D34=Shared,JGN_share,1)) -> 0 | AQ34: =IF($D34=NA,0,SUMIFS('Input|Costs&Benefits'!$K58:$BR58,'Input|Costs&Benefits'!$K$3:$BR$3,AQ$4)*IF('Input|Costs&Benefits'!$G58=Nominal,1,AQ$13)*IF($D34=Shared,JGN_share,1)) -> 0 | AR34: =IF($D34=NA,0,SUMIFS('Input|Costs&Benefits'!$K58:$BR58,'Input|Costs&Benefits'!$K$3:$BR$3,AR$4)*IF('Input|Costs&Benefits'!$G58=Nominal,1,AR$13)*IF($D34=Shared,JGN_share,1)) -> 0 | AS34: =IF($D34=NA,0,SUMIFS('Input|Costs&Benefits'!$K58:$BR58,'Input|Costs&Benefits'!$K$3:$BR$3,AS$4)*IF('Input|Costs&Benefits'!$G58=Nominal,1,AS$13)*IF($D34=Shared,JGN_share,1)) -> 0 | AT34: =IF($D34=NA,0,SUMIFS('Input|Costs&Benefits'!$K58:$BR58,'Input|Costs&Benefits'!$K$3:$BR$3,AT$4)*IF('Input|Costs&Benefits'!$G58=Nominal,1,AT$13)*IF($D34=Shared,JGN_share,1)) -> 0 | AU34: =IF($D34=NA,0,SUMIFS('Input|Costs&Benefits'!$K58:$BR58,'Input|Costs&Benefits'!$K$3:$BR$3,AU$4)*IF('Input|Costs&Benefits'!$G58=Nominal,1,AU$13)*IF($D34=Shared,JGN_share,1)) -> 0 | AV34: =IF($D34=NA,0,SUMIFS('Input|Costs&Benefits'!$K58:$BR58,'Input|Costs&Benefits'!$K$3:$BR$3,AV$4)*IF('Input|Costs&Benefits'!$G58=Nominal,1,AV$13)*IF($D34=Shared,JGN_share,1)) -> 0 | AW34: =IF($D34=NA,0,SUMIFS('Input|Costs&Benefits'!$K58:$BR58,'Input|Costs&Benefits'!$K$3:$BR$3,AW$4)*IF('Input|Costs&Benefits'!$G58=Nominal,1,AW$13)*IF($D34=Shared,JGN_share,1)) -> 0 | AX34: =IF($D34=NA,0,SUMIFS('Input|Costs&Benefits'!$K58:$BR58,'Input|Costs&Benefits'!$K$3:$BR$3,AX$4)*IF('Input|Costs&Benefits'!$G58=Nominal,1,AX$13)*IF($D34=Shared,JGN_share,1)) -> 0 | AY34: =IF($D34=NA,0,SUMIFS('Input|Costs&Benefits'!$K58:$BR58,'Input|Costs&Benefits'!$K$3:$BR$3,AY$4)*IF('Input|Costs&Benefits'!$G58=Nominal,1,AY$13)*IF($D34=Shared,JGN_share,1)) -> 0 | AZ34: =IF($D34=NA,0,SUMIFS('Input|Costs&Benefits'!$K58:$BR58,'Input|Costs&Benefits'!$K$3:$BR$3,AZ$4)*IF('Input|Costs&Benefits'!$G58=Nominal,1,AZ$13)*IF($D34=Shared,JGN_share,1)) -> 0 | BA34: =IF($D34=NA,0,SUMIFS('Input|Costs&Benefits'!$K58:$BR58,'Input|Costs&Benefits'!$K$3:$BR$3,BA$4)*IF('Input|Costs&Benefits'!$G58=Nominal,1,BA$13)*IF($D34=Shared,JGN_share,1)) -> 0 | BB34: =IF($D34=NA,0,SUMIFS('Input|Costs&Benefits'!$K58:$BR58,'Input|Costs&Benefits'!$K$3:$BR$3,BB$4)*IF('Input|Costs&Benefits'!$G58=Nominal,1,BB$13)*IF($D34=Shared,JGN_share,1)) -> 0 | BC34: =IF($D34=NA,0,SUMIFS('Input|Costs&Benefits'!$K58:$BR58,'Input|Costs&Benefits'!$K$3:$BR$3,BC$4)*IF('Input|Costs&Benefits'!$G58=Nominal,1,BC$13)*IF($D34=Shared,JGN_share,1)) -> 0 | BD34: =IF($D34=NA,0,SUMIFS('Input|Costs&Benefits'!$K58:$BR58,'Input|Costs&Benefits'!$K$3:$BR$3,BD$4)*IF('Input|Costs&Benefits'!$G58=Nominal,1,BD$13)*IF($D34=Shared,JGN_share,1)) -> 0 | BE34: =IF($D34=NA,0,SUMIFS('Input|Costs&Benefits'!$K58:$BR58,'Input|Costs&Benefits'!$K$3:$BR$3,BE$4)*IF('Input|Costs&Benefits'!$G58=Nominal,1,BE$13)*IF($D34=Shared,JGN_share,1)) -> 0 | BF34: =IF($D34=NA,0,SUMIFS('Input|Costs&Benefits'!$K58:$BR58,'Input|Costs&Benefits'!$K$3:$BR$3,BF$4)*IF('Input|Costs&Benefits'!$G58=Nominal,1,BF$13)*IF($D34=Shared,JGN_share,1)) -> 0 | BG34: =IF($D34=NA,0,SUMIFS('Input|Costs&Benefits'!$K58:$BR58,'Input|Costs&Benefits'!$K$3:$BR$3,BG$4)*IF('Input|Costs&Benefits'!$G58=Nominal,1,BG$13)*IF($D34=Shared,JGN_share,1)) -> 0 | BH34: =IF($D34=NA,0,SUMIFS('Input|Costs&Benefits'!$K58:$BR58,'Input|Costs&Benefits'!$K$3:$BR$3,BH$4)*IF('Input|Costs&Benefits'!$G58=Nominal,1,BH$13)*IF($D34=Shared,JGN_share,1)) -> 0 | BI34: =IF($D34=NA,0,SUMIFS('Input|Costs&Benefits'!$K58:$BR58,'Input|Costs&Benefits'!$K$3:$BR$3,BI$4)*IF('Input|Costs&Benefits'!$G58=Nominal,1,BI$13)*IF($D34=Shared,JGN_share,1)) -> 0 | BJ34: =IF($D34=NA,0,SUMIFS('Input|Costs&Benefits'!$K58:$BR58,'Input|Costs&Benefits'!$K$3:$BR$3,BJ$4)*IF('Input|Costs&Benefits'!$G58=Nominal,1,BJ$13)*IF($D34=Shared,JGN_share,1)) -> 0 | BK34: =IF($D34=NA,0,SUMIFS('Input|Costs&Benefits'!$K58:$BR58,'Input|Costs&Benefits'!$K$3:$BR$3,BK$4)*IF('Input|Costs&Benefits'!$G58=Nominal,1,BK$13)*IF($D34=Shared,JGN_share,1)) -> 0 | BL34: =IF($D34=NA,0,SUMIFS('Input|Costs&Benefits'!$K58:$BR58,'Input|Costs&Benefits'!$K$3:$BR$3,BL$4)*IF('Input|Costs&Benefits'!$G58=Nominal,1,BL$13)*IF($D34=Shared,JGN_share,1)) -> 0 | BM34: =IF($D34=NA,0,SUMIFS('Input|Costs&Benefits'!$K58:$BR58,'Input|Costs&Benefits'!$K$3:$BR$3,BM$4)*IF('Input|Costs&Benefits'!$G58=Nominal,1,BM$13)*IF($D34=Shared,JGN_share,1)) -> 0 | BN34: =IF($D34=NA,0,SUMIFS('Input|Costs&Benefits'!$K58:$BR58,'Input|Costs&Benefits'!$K$3:$BR$3,BN$4)*IF('Input|Costs&Benefits'!$G58=Nominal,1,BN$13)*IF($D34=Shared,JGN_share,1)) -> 0 | BO34: =IF($D34=NA,0,SUMIFS('Input|Costs&Benefits'!$K58:$BR58,'Input|Costs&Benefits'!$K$3:$BR$3,BO$4)*IF('Input|Costs&Benefits'!$G58=Nominal,1,BO$13)*IF($D34=Shared,JGN_share,1)) -> 0 | BP34: =IF($D34=NA,0,SUMIFS('Input|Costs&Benefits'!$K58:$BR58,'Input|Costs&Benefits'!$K$3:$BR$3,BP$4)*IF('Input|Costs&Benefits'!$G58=Nominal,1,BP$13)*IF($D34=Shared,JGN_share,1)) -> 0 | BQ34: =IF($D34=NA,0,SUMIFS('Input|Costs&Benefits'!$K58:$BR58,'Input|Costs&Benefits'!$K$3:$BR$3,BQ$4)*IF('Input|Costs&Benefits'!$G58=Nominal,1,BQ$13)*IF($D34=Shared,JGN_share,1)) -> 0 | BR34: =IF($D34=NA,0,SUMIFS('Input|Costs&Benefits'!$K58:$BR58,'Input|Costs&Benefits'!$K$3:$BR$3,BR$4)*IF('Input|Costs&Benefits'!$G58=Nominal,1,BR$13)*IF($D34=Shared,JGN_share,1)) -> 0
D35: =IF(AND('Input|Costs&Benefits'!H59=JGN,OR(Proj_Type=JGN,Proj_Type=Shared)),JGN,IF('Input|Costs&Benefits'!H59=Shared,Shared,NA)) -> n/a | E35: Input|Costs&Benefits | F35: =dollar_unit -> $000 | G35: =Lookup!$G$147 -> Nominal | H35: =Mid_year -> Mid-year | I35: ='Input|Costs&Benefits'!I59 -> [Select from list] | K35: =IF($D35=NA,0,SUMIFS('Input|Costs&Benefits'!$K59:$BR59,'Input|Costs&Benefits'!$K$3:$BR$3,K$4)*IF('Input|Costs&Benefits'!$G59=Nominal,1,K$13)*IF($D35=Shared,JGN_share,1)) -> 0 | L35: =IF($D35=NA,0,SUMIFS('Input|Costs&Benefits'!$K59:$BR59,'Input|Costs&Benefits'!$K$3:$BR$3,L$4)*IF('Input|Costs&Benefits'!$G59=Nominal,1,L$13)*IF($D35=Shared,JGN_share,1)) -> 0 | M35: =IF($D35=NA,0,SUMIFS('Input|Costs&Benefits'!$K59:$BR59,'Input|Costs&Benefits'!$K$3:$BR$3,M$4)*IF('Input|Costs&Benefits'!$G59=Nominal,1,M$13)*IF($D35=Shared,JGN_share,1)) -> 0 | N35: =IF($D35=NA,0,SUMIFS('Input|Costs&Benefits'!$K59:$BR59,'Input|Costs&Benefits'!$K$3:$BR$3,N$4)*IF('Input|Costs&Benefits'!$G59=Nominal,1,N$13)*IF($D35=Shared,JGN_share,1)) -> 0 | O35: =IF($D35=NA,0,SUMIFS('Input|Costs&Benefits'!$K59:$BR59,'Input|Costs&Benefits'!$K$3:$BR$3,O$4)*IF('Input|Costs&Benefits'!$G59=Nominal,1,O$13)*IF($D35=Shared,JGN_share,1)) -> 0 | P35: =IF($D35=NA,0,SUMIFS('Input|Costs&Benefits'!$K59:$BR59,'Input|Costs&Benefits'!$K$3:$BR$3,P$4)*IF('Input|Costs&Benefits'!$G59=Nominal,1,P$13)*IF($D35=Shared,JGN_share,1)) -> 0 | Q35: =IF($D35=NA,0,SUMIFS('Input|Costs&Benefits'!$K59:$BR59,'Input|Costs&Benefits'!$K$3:$BR$3,Q$4)*IF('Input|Costs&Benefits'!$G59=Nominal,1,Q$13)*IF($D35=Shared,JGN_share,1)) -> 0 | R35: =IF($D35=NA,0,SUMIFS('Input|Costs&Benefits'!$K59:$BR59,'Input|Costs&Benefits'!$K$3:$BR$3,R$4)*IF('Input|Costs&Benefits'!$G59=Nominal,1,R$13)*IF($D35=Shared,JGN_share,1)) -> 0 | S35: =IF($D35=NA,0,SUMIFS('Input|Costs&Benefits'!$K59:$BR59,'Input|Costs&Benefits'!$K$3:$BR$3,S$4)*IF('Input|Costs&Benefits'!$G59=Nominal,1,S$13)*IF($D35=Shared,JGN_share,1)) -> 0 | T35: =IF($D35=NA,0,SUMIFS('Input|Costs&Benefits'!$K59:$BR59,'Input|Costs&Benefits'!$K$3:$BR$3,T$4)*IF('Input|Costs&Benefits'!$G59=Nominal,1,T$13)*IF($D35=Shared,JGN_share,1)) -> 0 | U35: =IF($D35=NA,0,SUMIFS('Input|Costs&Benefits'!$K59:$BR59,'Input|Costs&Benefits'!$K$3:$BR$3,U$4)*IF('Input|Costs&Benefits'!$G59=Nominal,1,U$13)*IF($D35=Shared,JGN_share,1)) -> 0 | V35: =IF($D35=NA,0,SUMIFS('Input|Costs&Benefits'!$K59:$BR59,'Input|Costs&Benefits'!$K$3:$BR$3,V$4)*IF('Input|Costs&Benefits'!$G59=Nominal,1,V$13)*IF($D35=Shared,JGN_share,1)) -> 0 | W35: =IF($D35=NA,0,SUMIFS('Input|Costs&Benefits'!$K59:$BR59,'Input|Costs&Benefits'!$K$3:$BR$3,W$4)*IF('Input|Costs&Benefits'!$G59=Nominal,1,W$13)*IF($D35=Shared,JGN_share,1)) -> 0 | X35: =IF($D35=NA,0,SUMIFS('Input|Costs&Benefits'!$K59:$BR59,'Input|Costs&Benefits'!$K$3:$BR$3,X$4)*IF('Input|Costs&Benefits'!$G59=Nominal,1,X$13)*IF($D35=Shared,JGN_share,1)) -> 0 | Y35: =IF($D35=NA,0,SUMIFS('Input|Costs&Benefits'!$K59:$BR59,'Input|Costs&Benefits'!$K$3:$BR$3,Y$4)*IF('Input|Costs&Benefits'!$G59=Nominal,1,Y$13)*IF($D35=Shared,JGN_share,1)) -> 0 | Z35: =IF($D35=NA,0,SUMIFS('Input|Costs&Benefits'!$K59:$BR59,'Input|Costs&Benefits'!$K$3:$BR$3,Z$4)*IF('Input|Costs&Benefits'!$G59=Nominal,1,Z$13)*IF($D35=Shared,JGN_share,1)) -> 0 | AA35: =IF($D35=NA,0,SUMIFS('Input|Costs&Benefits'!$K59:$BR59,'Input|Costs&Benefits'!$K$3:$BR$3,AA$4)*IF('Input|Costs&Benefits'!$G59=Nominal,1,AA$13)*IF($D35=Shared,JGN_share,1)) -> 0 | AB35: =IF($D35=NA,0,SUMIFS('Input|Costs&Benefits'!$K59:$BR59,'Input|Costs&Benefits'!$K$3:$BR$3,AB$4)*IF('Input|Costs&Benefits'!$G59=Nominal,1,AB$13)*IF($D35=Shared,JGN_share,1)) -> 0 | AC35: =IF($D35=NA,0,SUMIFS('Input|Costs&Benefits'!$K59:$BR59,'Input|Costs&Benefits'!$K$3:$BR$3,AC$4)*IF('Input|Costs&Benefits'!$G59=Nominal,1,AC$13)*IF($D35=Shared,JGN_share,1)) -> 0 | AD35: =IF($D35=NA,0,SUMIFS('Input|Costs&Benefits'!$K59:$BR59,'Input|Costs&Benefits'!$K$3:$BR$3,AD$4)*IF('Input|Costs&Benefits'!$G59=Nominal,1,AD$13)*IF($D35=Shared,JGN_share,1)) -> 0 | AE35: =IF($D35=NA,0,SUMIFS('Input|Costs&Benefits'!$K59:$BR59,'Input|Costs&Benefits'!$K$3:$BR$3,AE$4)*IF('Input|Costs&Benefits'!$G59=Nominal,1,AE$13)*IF($D35=Shared,JGN_share,1)) -> 0 | AF35: =IF($D35=NA,0,SUMIFS('Input|Costs&Benefits'!$K59:$BR59,'Input|Costs&Benefits'!$K$3:$BR$3,AF$4)*IF('Input|Costs&Benefits'!$G59=Nominal,1,AF$13)*IF($D35=Shared,JGN_share,1)) -> 0 | AG35: =IF($D35=NA,0,SUMIFS('Input|Costs&Benefits'!$K59:$BR59,'Input|Costs&Benefits'!$K$3:$BR$3,AG$4)*IF('Input|Costs&Benefits'!$G59=Nominal,1,AG$13)*IF($D35=Shared,JGN_share,1)) -> 0 | AH35: =IF($D35=NA,0,SUMIFS('Input|Costs&Benefits'!$K59:$BR59,'Input|Costs&Benefits'!$K$3:$BR$3,AH$4)*IF('Input|Costs&Benefits'!$G59=Nominal,1,AH$13)*IF($D35=Shared,JGN_share,1)) -> 0 | AI35: =IF($D35=NA,0,SUMIFS('Input|Costs&Benefits'!$K59:$BR59,'Input|Costs&Benefits'!$K$3:$BR$3,AI$4)*IF('Input|Costs&Benefits'!$G59=Nominal,1,AI$13)*IF($D35=Shared,JGN_share,1)) -> 0 | AJ35: =IF($D35=NA,0,SUMIFS('Input|Costs&Benefits'!$K59:$BR59,'Input|Costs&Benefits'!$K$3:$BR$3,AJ$4)*IF('Input|Costs&Benefits'!$G59=Nominal,1,AJ$13)*IF($D35=Shared,JGN_share,1)) -> 0 | AK35: =IF($D35=NA,0,SUMIFS('Input|Costs&Benefits'!$K59:$BR59,'Input|Costs&Benefits'!$K$3:$BR$3,AK$4)*IF('Input|Costs&Benefits'!$G59=Nominal,1,AK$13)*IF($D35=Shared,JGN_share,1)) -> 0 | AL35: =IF($D35=NA,0,SUMIFS('Input|Costs&Benefits'!$K59:$BR59,'Input|Costs&Benefits'!$K$3:$BR$3,AL$4)*IF('Input|Costs&Benefits'!$G59=Nominal,1,AL$13)*IF($D35=Shared,JGN_share,1)) -> 0 | AM35: =IF($D35=NA,0,SUMIFS('Input|Costs&Benefits'!$K59:$BR59,'Input|Costs&Benefits'!$K$3:$BR$3,AM$4)*IF('Input|Costs&Benefits'!$G59=Nominal,1,AM$13)*IF($D35=Shared,JGN_share,1)) -> 0 | AN35: =IF($D35=NA,0,SUMIFS('Input|Costs&Benefits'!$K59:$BR59,'Input|Costs&Benefits'!$K$3:$BR$3,AN$4)*IF('Input|Costs&Benefits'!$G59=Nominal,1,AN$13)*IF($D35=Shared,JGN_share,1)) -> 0 | AO35: =IF($D35=NA,0,SUMIFS('Input|Costs&Benefits'!$K59:$BR59,'Input|Costs&Benefits'!$K$3:$BR$3,AO$4)*IF('Input|Costs&Benefits'!$G59=Nominal,1,AO$13)*IF($D35=Shared,JGN_share,1)) -> 0 | AP35: =IF($D35=NA,0,SUMIFS('Input|Costs&Benefits'!$K59:$BR59,'Input|Costs&Benefits'!$K$3:$BR$3,AP$4)*IF('Input|Costs&Benefits'!$G59=Nominal,1,AP$13)*IF($D35=Shared,JGN_share,1)) -> 0 | AQ35: =IF($D35=NA,0,SUMIFS('Input|Costs&Benefits'!$K59:$BR59,'Input|Costs&Benefits'!$K$3:$BR$3,AQ$4)*IF('Input|Costs&Benefits'!$G59=Nominal,1,AQ$13)*IF($D35=Shared,JGN_share,1)) -> 0 | AR35: =IF($D35=NA,0,SUMIFS('Input|Costs&Benefits'!$K59:$BR59,'Input|Costs&Benefits'!$K$3:$BR$3,AR$4)*IF('Input|Costs&Benefits'!$G59=Nominal,1,AR$13)*IF($D35=Shared,JGN_share,1)) -> 0 | AS35: =IF($D35=NA,0,SUMIFS('Input|Costs&Benefits'!$K59:$BR59,'Input|Costs&Benefits'!$K$3:$BR$3,AS$4)*IF('Input|Costs&Benefits'!$G59=Nominal,1,AS$13)*IF($D35=Shared,JGN_share,1)) -> 0 | AT35: =IF($D35=NA,0,SUMIFS('Input|Costs&Benefits'!$K59:$BR59,'Input|Costs&Benefits'!$K$3:$BR$3,AT$4)*IF('Input|Costs&Benefits'!$G59=Nominal,1,AT$13)*IF($D35=Shared,JGN_share,1)) -> 0 | AU35: =IF($D35=NA,0,SUMIFS('Input|Costs&Benefits'!$K59:$BR59,'Input|Costs&Benefits'!$K$3:$BR$3,AU$4)*IF('Input|Costs&Benefits'!$G59=Nominal,1,AU$13)*IF($D35=Shared,JGN_share,1)) -> 0 | AV35: =IF($D35=NA,0,SUMIFS('Input|Costs&Benefits'!$K59:$BR59,'Input|Costs&Benefits'!$K$3:$BR$3,AV$4)*IF('Input|Costs&Benefits'!$G59=Nominal,1,AV$13)*IF($D35=Shared,JGN_share,1)) -> 0 | AW35: =IF($D35=NA,0,SUMIFS('Input|Costs&Benefits'!$K59:$BR59,'Input|Costs&Benefits'!$K$3:$BR$3,AW$4)*IF('Input|Costs&Benefits'!$G59=Nominal,1,AW$13)*IF($D35=Shared,JGN_share,1)) -> 0 | AX35: =IF($D35=NA,0,SUMIFS('Input|Costs&Benefits'!$K59:$BR59,'Input|Costs&Benefits'!$K$3:$BR$3,AX$4)*IF('Input|Costs&Benefits'!$G59=Nominal,1,AX$13)*IF($D35=Shared,JGN_share,1)) -> 0 | AY35: =IF($D35=NA,0,SUMIFS('Input|Costs&Benefits'!$K59:$BR59,'Input|Costs&Benefits'!$K$3:$BR$3,AY$4)*IF('Input|Costs&Benefits'!$G59=Nominal,1,AY$13)*IF($D35=Shared,JGN_share,1)) -> 0 | AZ35: =IF($D35=NA,0,SUMIFS('Input|Costs&Benefits'!$K59:$BR59,'Input|Costs&Benefits'!$K$3:$BR$3,AZ$4)*IF('Input|Costs&Benefits'!$G59=Nominal,1,AZ$13)*IF($D35=Shared,JGN_share,1)) -> 0 | BA35: =IF($D35=NA,0,SUMIFS('Input|Costs&Benefits'!$K59:$BR59,'Input|Costs&Benefits'!$K$3:$BR$3,BA$4)*IF('Input|Costs&Benefits'!$G59=Nominal,1,BA$13)*IF($D35=Shared,JGN_share,1)) -> 0 | BB35: =IF($D35=NA,0,SUMIFS('Input|Costs&Benefits'!$K59:$BR59,'Input|Costs&Benefits'!$K$3:$BR$3,BB$4)*IF('Input|Costs&Benefits'!$G59=Nominal,1,BB$13)*IF($D35=Shared,JGN_share,1)) -> 0 | BC35: =IF($D35=NA,0,SUMIFS('Input|Costs&Benefits'!$K59:$BR59,'Input|Costs&Benefits'!$K$3:$BR$3,BC$4)*IF('Input|Costs&Benefits'!$G59=Nominal,1,BC$13)*IF($D35=Shared,JGN_share,1)) -> 0 | BD35: =IF($D35=NA,0,SUMIFS('Input|Costs&Benefits'!$K59:$BR59,'Input|Costs&Benefits'!$K$3:$BR$3,BD$4)*IF('Input|Costs&Benefits'!$G59=Nominal,1,BD$13)*IF($D35=Shared,JGN_share,1)) -> 0 | BE35: =IF($D35=NA,0,SUMIFS('Input|Costs&Benefits'!$K59:$BR59,'Input|Costs&Benefits'!$K$3:$BR$3,BE$4)*IF('Input|Costs&Benefits'!$G59=Nominal,1,BE$13)*IF($D35=Shared,JGN_share,1)) -> 0 | BF35: =IF($D35=NA,0,SUMIFS('Input|Costs&Benefits'!$K59:$BR59,'Input|Costs&Benefits'!$K$3:$BR$3,BF$4)*IF('Input|Costs&Benefits'!$G59=Nominal,1,BF$13)*IF($D35=Shared,JGN_share,1)) -> 0 | BG35: =IF($D35=NA,0,SUMIFS('Input|Costs&Benefits'!$K59:$BR59,'Input|Costs&Benefits'!$K$3:$BR$3,BG$4)*IF('Input|Costs&Benefits'!$G59=Nominal,1,BG$13)*IF($D35=Shared,JGN_share,1)) -> 0 | BH35: =IF($D35=NA,0,SUMIFS('Input|Costs&Benefits'!$K59:$BR59,'Input|Costs&Benefits'!$K$3:$BR$3,BH$4)*IF('Input|Costs&Benefits'!$G59=Nominal,1,BH$13)*IF($D35=Shared,JGN_share,1)) -> 0 | BI35: =IF($D35=NA,0,SUMIFS('Input|Costs&Benefits'!$K59:$BR59,'Input|Costs&Benefits'!$K$3:$BR$3,BI$4)*IF('Input|Costs&Benefits'!$G59=Nominal,1,BI$13)*IF($D35=Shared,JGN_share,1)) -> 0 | BJ35: =IF($D35=NA,0,SUMIFS('Input|Costs&Benefits'!$K59:$BR59,'Input|Costs&Benefits'!$K$3:$BR$3,BJ$4)*IF('Input|Costs&Benefits'!$G59=Nominal,1,BJ$13)*IF($D35=Shared,JGN_share,1)) -> 0 | BK35: =IF($D35=NA,0,SUMIFS('Input|Costs&Benefits'!$K59:$BR59,'Input|Costs&Benefits'!$K$3:$BR$3,BK$4)*IF('Input|Costs&Benefits'!$G59=Nominal,1,BK$13)*IF($D35=Shared,JGN_share,1)) -> 0 | BL35: =IF($D35=NA,0,SUMIFS('Input|Costs&Benefits'!$K59:$BR59,'Input|Costs&Benefits'!$K$3:$BR$3,BL$4)*IF('Input|Costs&Benefits'!$G59=Nominal,1,BL$13)*IF($D35=Shared,JGN_share,1)) -> 0 | BM35: =IF($D35=NA,0,SUMIFS('Input|Costs&Benefits'!$K59:$BR59,'Input|Costs&Benefits'!$K$3:$BR$3,BM$4)*IF('Input|Costs&Benefits'!$G59=Nominal,1,BM$13)*IF($D35=Shared,JGN_share,1)) -> 0 | BN35: =IF($D35=NA,0,SUMIFS('Input|Costs&Benefits'!$K59:$BR59,'Input|Costs&Benefits'!$K$3:$BR$3,BN$4)*IF('Input|Costs&Benefits'!$G59=Nominal,1,BN$13)*IF($D35=Shared,JGN_share,1)) -> 0 | BO35: =IF($D35=NA,0,SUMIFS('Input|Costs&Benefits'!$K59:$BR59,'Input|Costs&Benefits'!$K$3:$BR$3,BO$4)*IF('Input|Costs&Benefits'!$G59=Nominal,1,BO$13)*IF($D35=Shared,JGN_share,1)) -> 0 | BP35: =IF($D35=NA,0,SUMIFS('Input|Costs&Benefits'!$K59:$BR59,'Input|Costs&Benefits'!$K$3:$BR$3,BP$4)*IF('Input|Costs&Benefits'!$G59=Nominal,1,BP$13)*IF($D35=Shared,JGN_share,1)) -> 0 | BQ35: =IF($D35=NA,0,SUMIFS('Input|Costs&Benefits'!$K59:$BR59,'Input|Costs&Benefits'!$K$3:$BR$3,BQ$4)*IF('Input|Costs&Benefits'!$G59=Nominal,1,BQ$13)*IF($D35=Shared,JGN_share,1)) -> 0 | BR35: =IF($D35=NA,0,SUMIFS('Input|Costs&Benefits'!$K59:$BR59,'Input|Costs&Benefits'!$K$3:$BR$3,BR$4)*IF('Input|Costs&Benefits'!$G59=Nominal,1,BR$13)*IF($D35=Shared,JGN_share,1)) -> 0
D36: =IF(AND('Input|Costs&Benefits'!H60=JGN,OR(Proj_Type=JGN,Proj_Type=Shared)),JGN,IF('Input|Costs&Benefits'!H60=Shared,Shared,NA)) -> n/a | E36: Input|Costs&Benefits | F36: =dollar_unit -> $000 | G36: =Lookup!$G$147 -> Nominal | H36: =Mid_year -> Mid-year | I36: ='Input|Costs&Benefits'!I60 -> [Select from list] | K36: =IF($D36=NA,0,SUMIFS('Input|Costs&Benefits'!$K60:$BR60,'Input|Costs&Benefits'!$K$3:$BR$3,K$4)*IF('Input|Costs&Benefits'!$G60=Nominal,1,K$13)*IF($D36=Shared,JGN_share,1)) -> 0 | L36: =IF($D36=NA,0,SUMIFS('Input|Costs&Benefits'!$K60:$BR60,'Input|Costs&Benefits'!$K$3:$BR$3,L$4)*IF('Input|Costs&Benefits'!$G60=Nominal,1,L$13)*IF($D36=Shared,JGN_share,1)) -> 0 | M36: =IF($D36=NA,0,SUMIFS('Input|Costs&Benefits'!$K60:$BR60,'Input|Costs&Benefits'!$K$3:$BR$3,M$4)*IF('Input|Costs&Benefits'!$G60=Nominal,1,M$13)*IF($D36=Shared,JGN_share,1)) -> 0 | N36: =IF($D36=NA,0,SUMIFS('Input|Costs&Benefits'!$K60:$BR60,'Input|Costs&Benefits'!$K$3:$BR$3,N$4)*IF('Input|Costs&Benefits'!$G60=Nominal,1,N$13)*IF($D36=Shared,JGN_share,1)) -> 0 | O36: =IF($D36=NA,0,SUMIFS('Input|Costs&Benefits'!$K60:$BR60,'Input|Costs&Benefits'!$K$3:$BR$3,O$4)*IF('Input|Costs&Benefits'!$G60=Nominal,1,O$13)*IF($D36=Shared,JGN_share,1)) -> 0 | P36: =IF($D36=NA,0,SUMIFS('Input|Costs&Benefits'!$K60:$BR60,'Input|Costs&Benefits'!$K$3:$BR$3,P$4)*IF('Input|Costs&Benefits'!$G60=Nominal,1,P$13)*IF($D36=Shared,JGN_share,1)) -> 0 | Q36: =IF($D36=NA,0,SUMIFS('Input|Costs&Benefits'!$K60:$BR60,'Input|Costs&Benefits'!$K$3:$BR$3,Q$4)*IF('Input|Costs&Benefits'!$G60=Nominal,1,Q$13)*IF($D36=Shared,JGN_share,1)) -> 0 | R36: =IF($D36=NA,0,SUMIFS('Input|Costs&Benefits'!$K60:$BR60,'Input|Costs&Benefits'!$K$3:$BR$3,R$4)*IF('Input|Costs&Benefits'!$G60=Nominal,1,R$13)*IF($D36=Shared,JGN_share,1)) -> 0 | S36: =IF($D36=NA,0,SUMIFS('Input|Costs&Benefits'!$K60:$BR60,'Input|Costs&Benefits'!$K$3:$BR$3,S$4)*IF('Input|Costs&Benefits'!$G60=Nominal,1,S$13)*IF($D36=Shared,JGN_share,1)) -> 0 | T36: =IF($D36=NA,0,SUMIFS('Input|Costs&Benefits'!$K60:$BR60,'Input|Costs&Benefits'!$K$3:$BR$3,T$4)*IF('Input|Costs&Benefits'!$G60=Nominal,1,T$13)*IF($D36=Shared,JGN_share,1)) -> 0 | U36: =IF($D36=NA,0,SUMIFS('Input|Costs&Benefits'!$K60:$BR60,'Input|Costs&Benefits'!$K$3:$BR$3,U$4)*IF('Input|Costs&Benefits'!$G60=Nominal,1,U$13)*IF($D36=Shared,JGN_share,1)) -> 0 | V36: =IF($D36=NA,0,SUMIFS('Input|Costs&Benefits'!$K60:$BR60,'Input|Costs&Benefits'!$K$3:$BR$3,V$4)*IF('Input|Costs&Benefits'!$G60=Nominal,1,V$13)*IF($D36=Shared,JGN_share,1)) -> 0 | W36: =IF($D36=NA,0,SUMIFS('Input|Costs&Benefits'!$K60:$BR60,'Input|Costs&Benefits'!$K$3:$BR$3,W$4)*IF('Input|Costs&Benefits'!$G60=Nominal,1,W$13)*IF($D36=Shared,JGN_share,1)) -> 0 | X36: =IF($D36=NA,0,SUMIFS('Input|Costs&Benefits'!$K60:$BR60,'Input|Costs&Benefits'!$K$3:$BR$3,X$4)*IF('Input|Costs&Benefits'!$G60=Nominal,1,X$13)*IF($D36=Shared,JGN_share,1)) -> 0 | Y36: =IF($D36=NA,0,SUMIFS('Input|Costs&Benefits'!$K60:$BR60,'Input|Costs&Benefits'!$K$3:$BR$3,Y$4)*IF('Input|Costs&Benefits'!$G60=Nominal,1,Y$13)*IF($D36=Shared,JGN_share,1)) -> 0 | Z36: =IF($D36=NA,0,SUMIFS('Input|Costs&Benefits'!$K60:$BR60,'Input|Costs&Benefits'!$K$3:$BR$3,Z$4)*IF('Input|Costs&Benefits'!$G60=Nominal,1,Z$13)*IF($D36=Shared,JGN_share,1)) -> 0 | AA36: =IF($D36=NA,0,SUMIFS('Input|Costs&Benefits'!$K60:$BR60,'Input|Costs&Benefits'!$K$3:$BR$3,AA$4)*IF('Input|Costs&Benefits'!$G60=Nominal,1,AA$13)*IF($D36=Shared,JGN_share,1)) -> 0 | AB36: =IF($D36=NA,0,SUMIFS('Input|Costs&Benefits'!$K60:$BR60,'Input|Costs&Benefits'!$K$3:$BR$3,AB$4)*IF('Input|Costs&Benefits'!$G60=Nominal,1,AB$13)*IF($D36=Shared,JGN_share,1)) -> 0 | AC36: =IF($D36=NA,0,SUMIFS('Input|Costs&Benefits'!$K60:$BR60,'Input|Costs&Benefits'!$K$3:$BR$3,AC$4)*IF('Input|Costs&Benefits'!$G60=Nominal,1,AC$13)*IF($D36=Shared,JGN_share,1)) -> 0 | AD36: =IF($D36=NA,0,SUMIFS('Input|Costs&Benefits'!$K60:$BR60,'Input|Costs&Benefits'!$K$3:$BR$3,AD$4)*IF('Input|Costs&Benefits'!$G60=Nominal,1,AD$13)*IF($D36=Shared,JGN_share,1)) -> 0 | AE36: =IF($D36=NA,0,SUMIFS('Input|Costs&Benefits'!$K60:$BR60,'Input|Costs&Benefits'!$K$3:$BR$3,AE$4)*IF('Input|Costs&Benefits'!$G60=Nominal,1,AE$13)*IF($D36=Shared,JGN_share,1)) -> 0 | AF36: =IF($D36=NA,0,SUMIFS('Input|Costs&Benefits'!$K60:$BR60,'Input|Costs&Benefits'!$K$3:$BR$3,AF$4)*IF('Input|Costs&Benefits'!$G60=Nominal,1,AF$13)*IF($D36=Shared,JGN_share,1)) -> 0 | AG36: =IF($D36=NA,0,SUMIFS('Input|Costs&Benefits'!$K60:$BR60,'Input|Costs&Benefits'!$K$3:$BR$3,AG$4)*IF('Input|Costs&Benefits'!$G60=Nominal,1,AG$13)*IF($D36=Shared,JGN_share,1)) -> 0 | AH36: =IF($D36=NA,0,SUMIFS('Input|Costs&Benefits'!$K60:$BR60,'Input|Costs&Benefits'!$K$3:$BR$3,AH$4)*IF('Input|Costs&Benefits'!$G60=Nominal,1,AH$13)*IF($D36=Shared,JGN_share,1)) -> 0 | AI36: =IF($D36=NA,0,SUMIFS('Input|Costs&Benefits'!$K60:$BR60,'Input|Costs&Benefits'!$K$3:$BR$3,AI$4)*IF('Input|Costs&Benefits'!$G60=Nominal,1,AI$13)*IF($D36=Shared,JGN_share,1)) -> 0 | AJ36: =IF($D36=NA,0,SUMIFS('Input|Costs&Benefits'!$K60:$BR60,'Input|Costs&Benefits'!$K$3:$BR$3,AJ$4)*IF('Input|Costs&Benefits'!$G60=Nominal,1,AJ$13)*IF($D36=Shared,JGN_share,1)) -> 0 | AK36: =IF($D36=NA,0,SUMIFS('Input|Costs&Benefits'!$K60:$BR60,'Input|Costs&Benefits'!$K$3:$BR$3,AK$4)*IF('Input|Costs&Benefits'!$G60=Nominal,1,AK$13)*IF($D36=Shared,JGN_share,1)) -> 0 | AL36: =IF($D36=NA,0,SUMIFS('Input|Costs&Benefits'!$K60:$BR60,'Input|Costs&Benefits'!$K$3:$BR$3,AL$4)*IF('Input|Costs&Benefits'!$G60=Nominal,1,AL$13)*IF($D36=Shared,JGN_share,1)) -> 0 | AM36: =IF($D36=NA,0,SUMIFS('Input|Costs&Benefits'!$K60:$BR60,'Input|Costs&Benefits'!$K$3:$BR$3,AM$4)*IF('Input|Costs&Benefits'!$G60=Nominal,1,AM$13)*IF($D36=Shared,JGN_share,1)) -> 0 | AN36: =IF($D36=NA,0,SUMIFS('Input|Costs&Benefits'!$K60:$BR60,'Input|Costs&Benefits'!$K$3:$BR$3,AN$4)*IF('Input|Costs&Benefits'!$G60=Nominal,1,AN$13)*IF($D36=Shared,JGN_share,1)) -> 0 | AO36: =IF($D36=NA,0,SUMIFS('Input|Costs&Benefits'!$K60:$BR60,'Input|Costs&Benefits'!$K$3:$BR$3,AO$4)*IF('Input|Costs&Benefits'!$G60=Nominal,1,AO$13)*IF($D36=Shared,JGN_share,1)) -> 0 | AP36: =IF($D36=NA,0,SUMIFS('Input|Costs&Benefits'!$K60:$BR60,'Input|Costs&Benefits'!$K$3:$BR$3,AP$4)*IF('Input|Costs&Benefits'!$G60=Nominal,1,AP$13)*IF($D36=Shared,JGN_share,1)) -> 0 | AQ36: =IF($D36=NA,0,SUMIFS('Input|Costs&Benefits'!$K60:$BR60,'Input|Costs&Benefits'!$K$3:$BR$3,AQ$4)*IF('Input|Costs&Benefits'!$G60=Nominal,1,AQ$13)*IF($D36=Shared,JGN_share,1)) -> 0 | AR36: =IF($D36=NA,0,SUMIFS('Input|Costs&Benefits'!$K60:$BR60,'Input|Costs&Benefits'!$K$3:$BR$3,AR$4)*IF('Input|Costs&Benefits'!$G60=Nominal,1,AR$13)*IF($D36=Shared,JGN_share,1)) -> 0 | AS36: =IF($D36=NA,0,SUMIFS('Input|Costs&Benefits'!$K60:$BR60,'Input|Costs&Benefits'!$K$3:$BR$3,AS$4)*IF('Input|Costs&Benefits'!$G60=Nominal,1,AS$13)*IF($D36=Shared,JGN_share,1)) -> 0 | AT36: =IF($D36=NA,0,SUMIFS('Input|Costs&Benefits'!$K60:$BR60,'Input|Costs&Benefits'!$K$3:$BR$3,AT$4)*IF('Input|Costs&Benefits'!$G60=Nominal,1,AT$13)*IF($D36=Shared,JGN_share,1)) -> 0 | AU36: =IF($D36=NA,0,SUMIFS('Input|Costs&Benefits'!$K60:$BR60,'Input|Costs&Benefits'!$K$3:$BR$3,AU$4)*IF('Input|Costs&Benefits'!$G60=Nominal,1,AU$13)*IF($D36=Shared,JGN_share,1)) -> 0 | AV36: =IF($D36=NA,0,SUMIFS('Input|Costs&Benefits'!$K60:$BR60,'Input|Costs&Benefits'!$K$3:$BR$3,AV$4)*IF('Input|Costs&Benefits'!$G60=Nominal,1,AV$13)*IF($D36=Shared,JGN_share,1)) -> 0 | AW36: =IF($D36=NA,0,SUMIFS('Input|Costs&Benefits'!$K60:$BR60,'Input|Costs&Benefits'!$K$3:$BR$3,AW$4)*IF('Input|Costs&Benefits'!$G60=Nominal,1,AW$13)*IF($D36=Shared,JGN_share,1)) -> 0 | AX36: =IF($D36=NA,0,SUMIFS('Input|Costs&Benefits'!$K60:$BR60,'Input|Costs&Benefits'!$K$3:$BR$3,AX$4)*IF('Input|Costs&Benefits'!$G60=Nominal,1,AX$13)*IF($D36=Shared,JGN_share,1)) -> 0 | AY36: =IF($D36=NA,0,SUMIFS('Input|Costs&Benefits'!$K60:$BR60,'Input|Costs&Benefits'!$K$3:$BR$3,AY$4)*IF('Input|Costs&Benefits'!$G60=Nominal,1,AY$13)*IF($D36=Shared,JGN_share,1)) -> 0 | AZ36: =IF($D36=NA,0,SUMIFS('Input|Costs&Benefits'!$K60:$BR60,'Input|Costs&Benefits'!$K$3:$BR$3,AZ$4)*IF('Input|Costs&Benefits'!$G60=Nominal,1,AZ$13)*IF($D36=Shared,JGN_share,1)) -> 0 | BA36: =IF($D36=NA,0,SUMIFS('Input|Costs&Benefits'!$K60:$BR60,'Input|Costs&Benefits'!$K$3:$BR$3,BA$4)*IF('Input|Costs&Benefits'!$G60=Nominal,1,BA$13)*IF($D36=Shared,JGN_share,1)) -> 0 | BB36: =IF($D36=NA,0,SUMIFS('Input|Costs&Benefits'!$K60:$BR60,'Input|Costs&Benefits'!$K$3:$BR$3,BB$4)*IF('Input|Costs&Benefits'!$G60=Nominal,1,BB$13)*IF($D36=Shared,JGN_share,1)) -> 0 | BC36: =IF($D36=NA,0,SUMIFS('Input|Costs&Benefits'!$K60:$BR60,'Input|Costs&Benefits'!$K$3:$BR$3,BC$4)*IF('Input|Costs&Benefits'!$G60=Nominal,1,BC$13)*IF($D36=Shared,JGN_share,1)) -> 0 | BD36: =IF($D36=NA,0,SUMIFS('Input|Costs&Benefits'!$K60:$BR60,'Input|Costs&Benefits'!$K$3:$BR$3,BD$4)*IF('Input|Costs&Benefits'!$G60=Nominal,1,BD$13)*IF($D36=Shared,JGN_share,1)) -> 0 | BE36: =IF($D36=NA,0,SUMIFS('Input|Costs&Benefits'!$K60:$BR60,'Input|Costs&Benefits'!$K$3:$BR$3,BE$4)*IF('Input|Costs&Benefits'!$G60=Nominal,1,BE$13)*IF($D36=Shared,JGN_share,1)) -> 0 | BF36: =IF($D36=NA,0,SUMIFS('Input|Costs&Benefits'!$K60:$BR60,'Input|Costs&Benefits'!$K$3:$BR$3,BF$4)*IF('Input|Costs&Benefits'!$G60=Nominal,1,BF$13)*IF($D36=Shared,JGN_share,1)) -> 0 | BG36: =IF($D36=NA,0,SUMIFS('Input|Costs&Benefits'!$K60:$BR60,'Input|Costs&Benefits'!$K$3:$BR$3,BG$4)*IF('Input|Costs&Benefits'!$G60=Nominal,1,BG$13)*IF($D36=Shared,JGN_share,1)) -> 0 | BH36: =IF($D36=NA,0,SUMIFS('Input|Costs&Benefits'!$K60:$BR60,'Input|Costs&Benefits'!$K$3:$BR$3,BH$4)*IF('Input|Costs&Benefits'!$G60=Nominal,1,BH$13)*IF($D36=Shared,JGN_share,1)) -> 0 | BI36: =IF($D36=NA,0,SUMIFS('Input|Costs&Benefits'!$K60:$BR60,'Input|Costs&Benefits'!$K$3:$BR$3,BI$4)*IF('Input|Costs&Benefits'!$G60=Nominal,1,BI$13)*IF($D36=Shared,JGN_share,1)) -> 0 | BJ36: =IF($D36=NA,0,SUMIFS('Input|Costs&Benefits'!$K60:$BR60,'Input|Costs&Benefits'!$K$3:$BR$3,BJ$4)*IF('Input|Costs&Benefits'!$G60=Nominal,1,BJ$13)*IF($D36=Shared,JGN_share,1)) -> 0 | BK36: =IF($D36=NA,0,SUMIFS('Input|Costs&Benefits'!$K60:$BR60,'Input|Costs&Benefits'!$K$3:$BR$3,BK$4)*IF('Input|Costs&Benefits'!$G60=Nominal,1,BK$13)*IF($D36=Shared,JGN_share,1)) -> 0 | BL36: =IF($D36=NA,0,SUMIFS('Input|Costs&Benefits'!$K60:$BR60,'Input|Costs&Benefits'!$K$3:$BR$3,BL$4)*IF('Input|Costs&Benefits'!$G60=Nominal,1,BL$13)*IF($D36=Shared,JGN_share,1)) -> 0 | BM36: =IF($D36=NA,0,SUMIFS('Input|Costs&Benefits'!$K60:$BR60,'Input|Costs&Benefits'!$K$3:$BR$3,BM$4)*IF('Input|Costs&Benefits'!$G60=Nominal,1,BM$13)*IF($D36=Shared,JGN_share,1)) -> 0 | BN36: =IF($D36=NA,0,SUMIFS('Input|Costs&Benefits'!$K60:$BR60,'Input|Costs&Benefits'!$K$3:$BR$3,BN$4)*IF('Input|Costs&Benefits'!$G60=Nominal,1,BN$13)*IF($D36=Shared,JGN_share,1)) -> 0 | BO36: =IF($D36=NA,0,SUMIFS('Input|Costs&Benefits'!$K60:$BR60,'Input|Costs&Benefits'!$K$3:$BR$3,BO$4)*IF('Input|Costs&Benefits'!$G60=Nominal,1,BO$13)*IF($D36=Shared,JGN_share,1)) -> 0 | BP36: =IF($D36=NA,0,SUMIFS('Input|Costs&Benefits'!$K60:$BR60,'Input|Costs&Benefits'!$K$3:$BR$3,BP$4)*IF('Input|Costs&Benefits'!$G60=Nominal,1,BP$13)*IF($D36=Shared,JGN_share,1)) -> 0 | BQ36: =IF($D36=NA,0,SUMIFS('Input|Costs&Benefits'!$K60:$BR60,'Input|Costs&Benefits'!$K$3:$BR$3,BQ$4)*IF('Input|Costs&Benefits'!$G60=Nominal,1,BQ$13)*IF($D36=Shared,JGN_share,1)) -> 0 | BR36: =IF($D36=NA,0,SUMIFS('Input|Costs&Benefits'!$K60:$BR60,'Input|Costs&Benefits'!$K$3:$BR$3,BR$4)*IF('Input|Costs&Benefits'!$G60=Nominal,1,BR$13)*IF($D36=Shared,JGN_share,1)) -> 0
D38: ="Total "&I38&" "&D30 -> Total Ongoing Opex | E38: Calculated | F38: =dollar_unit -> $000 | G38: =Nominal -> Nominal | H38: =Mid_year -> Mid-year | I38: =Ongoing_Opex -> Ongoing | K38: =SUMIF($I32:$I36,$I38,K32:K36) -> 0 | L38: =SUMIF($I32:$I36,$I38,L32:L36) -> 0 | M38: 0 | N38: 0 | O38: 0 | P38: 0 | Q38: 0 | R38: 0 | S38: 0 | T38: 0 | U38: 0 | V38: 0 | W38: 0 | X38: 0 | Y38: 0 | Z38: 0 | AA38: 0 | AB38: 0 | AC38: 0 | AD38: 0 | AE38: 0 | AF38: 0 | AG38: 0 | AH38: 0 | AI38: 0 | AJ38: 0 | AK38: 0 | AL38: 0 | AM38: 0 | AN38: 0 | AO38: 0 | AP38: 0 | AQ38: 0 | AR38: 0 | AS38: 0 | AT38: 0 | AU38: 0 | AV38: 0 | AW38: 0 | AX38: 0 | AY38: 0 | AZ38: 0 | BA38: 0 | BB38: 0 | BC38: 0 | BD38: 0 | BE38: 0 | BF38: 0 | BG38: 0 | BH38: 0 | BI38: 0 | BJ38: 0 | BK38: 0 | BL38: 0 | BM38: 0 | BN38: 0 | BO38: 0 | BP38: 0 | BQ38: 0 | BR38: 0
D39: ="Total "&I39&" "&D30 -> Total Project cost (one-off) Opex | E39: Calculated | F39: =dollar_unit -> $000 | G39: =Nominal -> Nominal | H39: =Mid_year -> Mid-year | I39: =Oneoff_Opex -> Project cost (one-off) | K39: =SUMIF($I32:$I36,$I39,K32:K36) -> 0 | L39: =SUMIF($I32:$I36,$I39,L32:L36) -> 0 | M39: 0 | N39: 0 | O39: 0 | P39: 0 | Q39: 0 | R39: 0 | S39: 0 | T39: 0 | U39: 0 | V39: 0 | W39: 0 | X39: 0 | Y39: 0 | Z39: 0 | AA39: 0 | AB39: 0 | AC39: 0 | AD39: 0 | AE39: 0 | AF39: 0 | AG39: 0 | AH39: 0 | AI39: 0 | AJ39: 0 | AK39: 0 | AL39: 0 | AM39: 0 | AN39: 0 | AO39: 0 | AP39: 0 | AQ39: 0 | AR39: 0 | AS39: 0 | AT39: 0 | AU39: 0 | AV39: 0 | AW39: 0 | AX39: 0 | AY39: 0 | AZ39: 0 | BA39: 0 | BB39: 0 | BC39: 0 | BD39: 0 | BE39: 0 | BF39: 0 | BG39: 0 | BH39: 0 | BI39: 0 | BJ39: 0 | BK39: 0 | BL39: 0 | BM39: 0 | BN39: 0 | BO39: 0 | BP39: 0 | BQ39: 0 | BR39: 0
A41: =IF(SUM(K41:BR41)<>0,1,0) -> 0 | D41: Check - errors | K41: =IF(OR(ISERROR(K39),ISERROR(K38)),1,0) -> 0 | L41: =IF(OR(ISERROR(L39),ISERROR(L38)),1,0) -> 0 | M41: 0 | N41: 0 | O41: 0 | P41: 0 | Q41: 0 | R41: 0 | S41: 0 | T41: 0 | U41: 0 | V41: 0 | W41: 0 | X41: 0 | Y41: 0 | Z41: 0 | AA41: 0 | AB41: 0 | AC41: 0 | AD41: 0 | AE41: 0 | AF41: 0 | AG41: 0 | AH41: 0 | AI41: 0 | AJ41: 0 | AK41: 0 | AL41: 0 | AM41: 0 | AN41: 0 | AO41: 0 | AP41: 0 | AQ41: 0 | AR41: 0 | AS41: 0 | AT41: 0 | AU41: 0 | AV41: 0 | AW41: 0 | AX41: 0 | AY41: 0 | AZ41: 0 | BA41: 0 | BB41: 0 | BC41: 0 | BD41: 0 | BE41: 0 | BF41: 0 | BG41: 0 | BH41: 0 | BI41: 0 | BJ41: 0 | BK41: 0 | BL41: 0 | BM41: 0 | BN41: 0 | BO41: 0 | BP41: 0 | BQ41: 0 | BR41: 0
D43: Gross capex by asset class | E43: =E$4 -> Source | F43: =F$4 -> Unit | G43: =G$4 -> Basis | H43: =H$4 -> Timing | K43: =K$10 -> FY24 | L43: =L$10 -> FY25 | M43: FY26 | N43: FY27 | O43: FY28 | P43: FY29 | Q43: FY30 | R43: FY31 | S43: FY32 | T43: FY33 | U43: FY34 | V43: FY35 | W43: FY36 | X43: FY37 | Y43: FY38 | Z43: FY39 | AA43: FY40 | AB43: FY41 | AC43: FY42 | AD43: FY43 | AE43: FY44 | AF43: FY45 | AG43: FY46 | AH43: FY47 | AI43: FY48 | AJ43: FY49 | AK43: FY50 | AL43: FY51 | AM43: FY52 | AN43: FY53 | AO43: FY54 | AP43: FY55 | AQ43: FY56 | AR43: FY57 | AS43: FY58 | AT43: FY59 | AU43: FY60 | AV43: FY61 | AW43: FY62 | AX43: FY63 | AY43: FY64 | AZ43: FY65 | BA43: FY66 | BB43: FY67 | BC43: FY68 | BD43: FY69 | BE43: FY70 | BF43: FY71 | BG43: FY72 | BH43: FY73 | BI43: FY74 | BJ43: FY75 | BK43: FY76 | BL43: FY77 | BM43: FY78 | BN43: FY79 | BO43: FY80 | BP43: FY81 | BQ43: FY82 | BR43: FY83
D45: =IF(AND(LEFT('Input|Costs&Benefits'!I111,3)=JGN,OR(Proj_Type=JGN,Proj_Type=Shared)),'Input|Costs&Benefits'!I111,NA) -> n/a | E45: Input|Costs&Benefits | F45: =dollar_unit -> $000 | G45: =Lookup!$G$148 -> Real 2024 | H45: =End_of_year -> End-year | K45: =IF($D45=NA,0,SUMIFS('Input|Costs&Benefits'!$K111:$BR111,'Input|Costs&Benefits'!$K$3:$BR$3,K$4)*IF('Input|Costs&Benefits'!$G111=$G45,1,K$14)) -> 0 | L45: =IF($D45=NA,0,SUMIFS('Input|Costs&Benefits'!$K111:$BR111,'Input|Costs&Benefits'!$K$3:$BR$3,L$4)*IF('Input|Costs&Benefits'!$G111=$G45,1,L$14)) -> 0 | M45: =IF($D45=NA,0,SUMIFS('Input|Costs&Benefits'!$K111:$BR111,'Input|Costs&Benefits'!$K$3:$BR$3,M$4)*IF('Input|Costs&Benefits'!$G111=$G45,1,M$14)) -> 0 | N45: =IF($D45=NA,0,SUMIFS('Input|Costs&Benefits'!$K111:$BR111,'Input|Costs&Benefits'!$K$3:$BR$3,N$4)*IF('Input|Costs&Benefits'!$G111=$G45,1,N$14)) -> 0 | O45: =IF($D45=NA,0,SUMIFS('Input|Costs&Benefits'!$K111:$BR111,'Input|Costs&Benefits'!$K$3:$BR$3,O$4)*IF('Input|Costs&Benefits'!$G111=$G45,1,O$14)) -> 0 | P45: =IF($D45=NA,0,SUMIFS('Input|Costs&Benefits'!$K111:$BR111,'Input|Costs&Benefits'!$K$3:$BR$3,P$4)*IF('Input|Costs&Benefits'!$G111=$G45,1,P$14)) -> 0 | Q45: =IF($D45=NA,0,SUMIFS('Input|Costs&Benefits'!$K111:$BR111,'Input|Costs&Benefits'!$K$3:$BR$3,Q$4)*IF('Input|Costs&Benefits'!$G111=$G45,1,Q$14)) -> 0 | R45: =IF($D45=NA,0,SUMIFS('Input|Costs&Benefits'!$K111:$BR111,'Input|Costs&Benefits'!$K$3:$BR$3,R$4)*IF('Input|Costs&Benefits'!$G111=$G45,1,R$14)) -> 0 | S45: =IF($D45=NA,0,SUMIFS('Input|Costs&Benefits'!$K111:$BR111,'Input|Costs&Benefits'!$K$3:$BR$3,S$4)*IF('Input|Costs&Benefits'!$G111=$G45,1,S$14)) -> 0 | T45: =IF($D45=NA,0,SUMIFS('Input|Costs&Benefits'!$K111:$BR111,'Input|Costs&Benefits'!$K$3:$BR$3,T$4)*IF('Input|Costs&Benefits'!$G111=$G45,1,T$14)) -> 0 | U45: =IF($D45=NA,0,SUMIFS('Input|Costs&Benefits'!$K111:$BR111,'Input|Costs&Benefits'!$K$3:$BR$3,U$4)*IF('Input|Costs&Benefits'!$G111=$G45,1,U$14)) -> 0 | V45: =IF($D45=NA,0,SUMIFS('Input|Costs&Benefits'!$K111:$BR111,'Input|Costs&Benefits'!$K$3:$BR$3,V$4)*IF('Input|Costs&Benefits'!$G111=$G45,1,V$14)) -> 0 | W45: =IF($D45=NA,0,SUMIFS('Input|Costs&Benefits'!$K111:$BR111,'Input|Costs&Benefits'!$K$3:$BR$3,W$4)*IF('Input|Costs&Benefits'!$G111=$G45,1,W$14)) -> 0 | X45: =IF($D45=NA,0,SUMIFS('Input|Costs&Benefits'!$K111:$BR111,'Input|Costs&Benefits'!$K$3:$BR$3,X$4)*IF('Input|Costs&Benefits'!$G111=$G45,1,X$14)) -> 0 | Y45: =IF($D45=NA,0,SUMIFS('Input|Costs&Benefits'!$K111:$BR111,'Input|Costs&Benefits'!$K$3:$BR$3,Y$4)*IF('Input|Costs&Benefits'!$G111=$G45,1,Y$14)) -> 0 | Z45: =IF($D45=NA,0,SUMIFS('Input|Costs&Benefits'!$K111:$BR111,'Input|Costs&Benefits'!$K$3:$BR$3,Z$4)*IF('Input|Costs&Benefits'!$G111=$G45,1,Z$14)) -> 0 | AA45: =IF($D45=NA,0,SUMIFS('Input|Costs&Benefits'!$K111:$BR111,'Input|Costs&Benefits'!$K$3:$BR$3,AA$4)*IF('Input|Costs&Benefits'!$G111=$G45,1,AA$14)) -> 0 | AB45: =IF($D45=NA,0,SUMIFS('Input|Costs&Benefits'!$K111:$BR111,'Input|Costs&Benefits'!$K$3:$BR$3,AB$4)*IF('Input|Costs&Benefits'!$G111=$G45,1,AB$14)) -> 0 | AC45: =IF($D45=NA,0,SUMIFS('Input|Costs&Benefits'!$K111:$BR111,'Input|Costs&Benefits'!$K$3:$BR$3,AC$4)*IF('Input|Costs&Benefits'!$G111=$G45,1,AC$14)) -> 0 | AD45: =IF($D45=NA,0,SUMIFS('Input|Costs&Benefits'!$K111:$BR111,'Input|Costs&Benefits'!$K$3:$BR$3,AD$4)*IF('Input|Costs&Benefits'!$G111=$G45,1,AD$14)) -> 0 | AE45: =IF($D45=NA,0,SUMIFS('Input|Costs&Benefits'!$K111:$BR111,'Input|Costs&Benefits'!$K$3:$BR$3,AE$4)*IF('Input|Costs&Benefits'!$G111=$G45,1,AE$14)) -> 0 | AF45: =IF($D45=NA,0,SUMIFS('Input|Costs&Benefits'!$K111:$BR111,'Input|Costs&Benefits'!$K$3:$BR$3,AF$4)*IF('Input|Costs&Benefits'!$G111=$G45,1,AF$14)) -> 0 | AG45: =IF($D45=NA,0,SUMIFS('Input|Costs&Benefits'!$K111:$BR111,'Input|Costs&Benefits'!$K$3:$BR$3,AG$4)*IF('Input|Costs&Benefits'!$G111=$G45,1,AG$14)) -> 0 | AH45: =IF($D45=NA,0,SUMIFS('Input|Costs&Benefits'!$K111:$BR111,'Input|Costs&Benefits'!$K$3:$BR$3,AH$4)*IF('Input|Costs&Benefits'!$G111=$G45,1,AH$14)) -> 0 | AI45: =IF($D45=NA,0,SUMIFS('Input|Costs&Benefits'!$K111:$BR111,'Input|Costs&Benefits'!$K$3:$BR$3,AI$4)*IF('Input|Costs&Benefits'!$G111=$G45,1,AI$14)) -> 0 | AJ45: =IF($D45=NA,0,SUMIFS('Input|Costs&Benefits'!$K111:$BR111,'Input|Costs&Benefits'!$K$3:$BR$3,AJ$4)*IF('Input|Costs&Benefits'!$G111=$G45,1,AJ$14)) -> 0 | AK45: =IF($D45=NA,0,SUMIFS('Input|Costs&Benefits'!$K111:$BR111,'Input|Costs&Benefits'!$K$3:$BR$3,AK$4)*IF('Input|Costs&Benefits'!$G111=$G45,1,AK$14)) -> 0 | AL45: =IF($D45=NA,0,SUMIFS('Input|Costs&Benefits'!$K111:$BR111,'Input|Costs&Benefits'!$K$3:$BR$3,AL$4)*IF('Input|Costs&Benefits'!$G111=$G45,1,AL$14)) -> 0 | AM45: =IF($D45=NA,0,SUMIFS('Input|Costs&Benefits'!$K111:$BR111,'Input|Costs&Benefits'!$K$3:$BR$3,AM$4)*IF('Input|Costs&Benefits'!$G111=$G45,1,AM$14)) -> 0 | AN45: =IF($D45=NA,0,SUMIFS('Input|Costs&Benefits'!$K111:$BR111,'Input|Costs&Benefits'!$K$3:$BR$3,AN$4)*IF('Input|Costs&Benefits'!$G111=$G45,1,AN$14)) -> 0 | AO45: =IF($D45=NA,0,SUMIFS('Input|Costs&Benefits'!$K111:$BR111,'Input|Costs&Benefits'!$K$3:$BR$3,AO$4)*IF('Input|Costs&Benefits'!$G111=$G45,1,AO$14)) -> 0 | AP45: =IF($D45=NA,0,SUMIFS('Input|Costs&Benefits'!$K111:$BR111,'Input|Costs&Benefits'!$K$3:$BR$3,AP$4)*IF('Input|Costs&Benefits'!$G111=$G45,1,AP$14)) -> 0 | AQ45: =IF($D45=NA,0,SUMIFS('Input|Costs&Benefits'!$K111:$BR111,'Input|Costs&Benefits'!$K$3:$BR$3,AQ$4)*IF('Input|Costs&Benefits'!$G111=$G45,1,AQ$14)) -> 0 | AR45: =IF($D45=NA,0,SUMIFS('Input|Costs&Benefits'!$K111:$BR111,'Input|Costs&Benefits'!$K$3:$BR$3,AR$4)*IF('Input|Costs&Benefits'!$G111=$G45,1,AR$14)) -> 0 | AS45: =IF($D45=NA,0,SUMIFS('Input|Costs&Benefits'!$K111:$BR111,'Input|Costs&Benefits'!$K$3:$BR$3,AS$4)*IF('Input|Costs&Benefits'!$G111=$G45,1,AS$14)) -> 0 | AT45: =IF($D45=NA,0,SUMIFS('Input|Costs&Benefits'!$K111:$BR111,'Input|Costs&Benefits'!$K$3:$BR$3,AT$4)*IF('Input|Costs&Benefits'!$G111=$G45,1,AT$14)) -> 0 | AU45: =IF($D45=NA,0,SUMIFS('Input|Costs&Benefits'!$K111:$BR111,'Input|Costs&Benefits'!$K$3:$BR$3,AU$4)*IF('Input|Costs&Benefits'!$G111=$G45,1,AU$14)) -> 0 | AV45: =IF($D45=NA,0,SUMIFS('Input|Costs&Benefits'!$K111:$BR111,'Input|Costs&Benefits'!$K$3:$BR$3,AV$4)*IF('Input|Costs&Benefits'!$G111=$G45,1,AV$14)) -> 0 | AW45: =IF($D45=NA,0,SUMIFS('Input|Costs&Benefits'!$K111:$BR111,'Input|Costs&Benefits'!$K$3:$BR$3,AW$4)*IF('Input|Costs&Benefits'!$G111=$G45,1,AW$14)) -> 0 | AX45: =IF($D45=NA,0,SUMIFS('Input|Costs&Benefits'!$K111:$BR111,'Input|Costs&Benefits'!$K$3:$BR$3,AX$4)*IF('Input|Costs&Benefits'!$G111=$G45,1,AX$14)) -> 0 | AY45: =IF($D45=NA,0,SUMIFS('Input|Costs&Benefits'!$K111:$BR111,'Input|Costs&Benefits'!$K$3:$BR$3,AY$4)*IF('Input|Costs&Benefits'!$G111=$G45,1,AY$14)) -> 0 | AZ45: =IF($D45=NA,0,SUMIFS('Input|Costs&Benefits'!$K111:$BR111,'Input|Costs&Benefits'!$K$3:$BR$3,AZ$4)*IF('Input|Costs&Benefits'!$G111=$G45,1,AZ$14)) -> 0 | BA45: =IF($D45=NA,0,SUMIFS('Input|Costs&Benefits'!$K111:$BR111,'Input|Costs&Benefits'!$K$3:$BR$3,BA$4)*IF('Input|Costs&Benefits'!$G111=$G45,1,BA$14)) -> 0 | BB45: =IF($D45=NA,0,SUMIFS('Input|Costs&Benefits'!$K111:$BR111,'Input|Costs&Benefits'!$K$3:$BR$3,BB$4)*IF('Input|Costs&Benefits'!$G111=$G45,1,BB$14)) -> 0 | BC45: =IF($D45=NA,0,SUMIFS('Input|Costs&Benefits'!$K111:$BR111,'Input|Costs&Benefits'!$K$3:$BR$3,BC$4)*IF('Input|Costs&Benefits'!$G111=$G45,1,BC$14)) -> 0 | BD45: =IF($D45=NA,0,SUMIFS('Input|Costs&Benefits'!$K111:$BR111,'Input|Costs&Benefits'!$K$3:$BR$3,BD$4)*IF('Input|Costs&Benefits'!$G111=$G45,1,BD$14)) -> 0 | BE45: =IF($D45=NA,0,SUMIFS('Input|Costs&Benefits'!$K111:$BR111,'Input|Costs&Benefits'!$K$3:$BR$3,BE$4)*IF('Input|Costs&Benefits'!$G111=$G45,1,BE$14)) -> 0 | BF45: =IF($D45=NA,0,SUMIFS('Input|Costs&Benefits'!$K111:$BR111,'Input|Costs&Benefits'!$K$3:$BR$3,BF$4)*IF('Input|Costs&Benefits'!$G111=$G45,1,BF$14)) -> 0 | BG45: =IF($D45=NA,0,SUMIFS('Input|Costs&Benefits'!$K111:$BR111,'Input|Costs&Benefits'!$K$3:$BR$3,BG$4)*IF('Input|Costs&Benefits'!$G111=$G45,1,BG$14)) -> 0 | BH45: =IF($D45=NA,0,SUMIFS('Input|Costs&Benefits'!$K111:$BR111,'Input|Costs&Benefits'!$K$3:$BR$3,BH$4)*IF('Input|Costs&Benefits'!$G111=$G45,1,BH$14)) -> 0 | BI45: =IF($D45=NA,0,SUMIFS('Input|Costs&Benefits'!$K111:$BR111,'Input|Costs&Benefits'!$K$3:$BR$3,BI$4)*IF('Input|Costs&Benefits'!$G111=$G45,1,BI$14)) -> 0 | BJ45: =IF($D45=NA,0,SUMIFS('Input|Costs&Benefits'!$K111:$BR111,'Input|Costs&Benefits'!$K$3:$BR$3,BJ$4)*IF('Input|Costs&Benefits'!$G111=$G45,1,BJ$14)) -> 0 | BK45: =IF($D45=NA,0,SUMIFS('Input|Costs&Benefits'!$K111:$BR111,'Input|Costs&Benefits'!$K$3:$BR$3,BK$4)*IF('Input|Costs&Benefits'!$G111=$G45,1,BK$14)) -> 0 | BL45: =IF($D45=NA,0,SUMIFS('Input|Costs&Benefits'!$K111:$BR111,'Input|Costs&Benefits'!$K$3:$BR$3,BL$4)*IF('Input|Costs&Benefits'!$G111=$G45,1,BL$14)) -> 0 | BM45: =IF($D45=NA,0,SUMIFS('Input|Costs&Benefits'!$K111:$BR111,'Input|Costs&Benefits'!$K$3:$BR$3,BM$4)*IF('Input|Costs&Benefits'!$G111=$G45,1,BM$14)) -> 0 | BN45: =IF($D45=NA,0,SUMIFS('Input|Costs&Benefits'!$K111:$BR111,'Input|Costs&Benefits'!$K$3:$BR$3,BN$4)*IF('Input|Costs&Benefits'!$G111=$G45,1,BN$14)) -> 0 | BO45: =IF($D45=NA,0,SUMIFS('Input|Costs&Benefits'!$K111:$BR111,'Input|Costs&Benefits'!$K$3:$BR$3,BO$4)*IF('Input|Costs&Benefits'!$G111=$G45,1,BO$14)) -> 0 | BP45: =IF($D45=NA,0,SUMIFS('Input|Costs&Benefits'!$K111:$BR111,'Input|Costs&Benefits'!$K$3:$BR$3,BP$4)*IF('Input|Costs&Benefits'!$G111=$G45,1,BP$14)) -> 0 | BQ45: =IF($D45=NA,0,SUMIFS('Input|Costs&Benefits'!$K111:$BR111,'Input|Costs&Benefits'!$K$3:$BR$3,BQ$4)*IF('Input|Costs&Benefits'!$G111=$G45,1,BQ$14)) -> 0 | BR45: =IF($D45=NA,0,SUMIFS('Input|Costs&Benefits'!$K111:$BR111,'Input|Costs&Benefits'!$K$3:$BR$3,BR$4)*IF('Input|Costs&Benefits'!$G111=$G45,1,BR$14)) -> 0
D46: =IF(AND(LEFT('Input|Costs&Benefits'!I112,3)=JGN,OR(Proj_Type=JGN,Proj_Type=Shared)),'Input|Costs&Benefits'!I112,NA) -> n/a | E46: Input|Costs&Benefits | F46: $000 | G46: =G45 -> Real 2024 | H46: End-year | K46: =IF($D46=NA,0,SUMIFS('Input|Costs&Benefits'!$K112:$BR112,'Input|Costs&Benefits'!$K$3:$BR$3,K$4)*IF('Input|Costs&Benefits'!$G112=$G46,1,K$14)) -> 0 | L46: =IF($D46=NA,0,SUMIFS('Input|Costs&Benefits'!$K112:$BR112,'Input|Costs&Benefits'!$K$3:$BR$3,L$4)*IF('Input|Costs&Benefits'!$G112=$G46,1,L$14)) -> 0 | M46: =IF($D46=NA,0,SUMIFS('Input|Costs&Benefits'!$K112:$BR112,'Input|Costs&Benefits'!$K$3:$BR$3,M$4)*IF('Input|Costs&Benefits'!$G112=$G46,1,M$14)) -> 0 | N46: =IF($D46=NA,0,SUMIFS('Input|Costs&Benefits'!$K112:$BR112,'Input|Costs&Benefits'!$K$3:$BR$3,N$4)*IF('Input|Costs&Benefits'!$G112=$G46,1,N$14)) -> 0 | O46: =IF($D46=NA,0,SUMIFS('Input|Costs&Benefits'!$K112:$BR112,'Input|Costs&Benefits'!$K$3:$BR$3,O$4)*IF('Input|Costs&Benefits'!$G112=$G46,1,O$14)) -> 0 | P46: =IF($D46=NA,0,SUMIFS('Input|Costs&Benefits'!$K112:$BR112,'Input|Costs&Benefits'!$K$3:$BR$3,P$4)*IF('Input|Costs&Benefits'!$G112=$G46,1,P$14)) -> 0 | Q46: =IF($D46=NA,0,SUMIFS('Input|Costs&Benefits'!$K112:$BR112,'Input|Costs&Benefits'!$K$3:$BR$3,Q$4)*IF('Input|Costs&Benefits'!$G112=$G46,1,Q$14)) -> 0 | R46: =IF($D46=NA,0,SUMIFS('Input|Costs&Benefits'!$K112:$BR112,'Input|Costs&Benefits'!$K$3:$BR$3,R$4)*IF('Input|Costs&Benefits'!$G112=$G46,1,R$14)) -> 0 | S46: =IF($D46=NA,0,SUMIFS('Input|Costs&Benefits'!$K112:$BR112,'Input|Costs&Benefits'!$K$3:$BR$3,S$4)*IF('Input|Costs&Benefits'!$G112=$G46,1,S$14)) -> 0 | T46: =IF($D46=NA,0,SUMIFS('Input|Costs&Benefits'!$K112:$BR112,'Input|Costs&Benefits'!$K$3:$BR$3,T$4)*IF('Input|Costs&Benefits'!$G112=$G46,1,T$14)) -> 0 | U46: =IF($D46=NA,0,SUMIFS('Input|Costs&Benefits'!$K112:$BR112,'Input|Costs&Benefits'!$K$3:$BR$3,U$4)*IF('Input|Costs&Benefits'!$G112=$G46,1,U$14)) -> 0 | V46: =IF($D46=NA,0,SUMIFS('Input|Costs&Benefits'!$K112:$BR112,'Input|Costs&Benefits'!$K$3:$BR$3,V$4)*IF('Input|Costs&Benefits'!$G112=$G46,1,V$14)) -> 0 | W46: =IF($D46=NA,0,SUMIFS('Input|Costs&Benefits'!$K112:$BR112,'Input|Costs&Benefits'!$K$3:$BR$3,W$4)*IF('Input|Costs&Benefits'!$G112=$G46,1,W$14)) -> 0 | X46: =IF($D46=NA,0,SUMIFS('Input|Costs&Benefits'!$K112:$BR112,'Input|Costs&Benefits'!$K$3:$BR$3,X$4)*IF('Input|Costs&Benefits'!$G112=$G46,1,X$14)) -> 0 | Y46: =IF($D46=NA,0,SUMIFS('Input|Costs&Benefits'!$K112:$BR112,'Input|Costs&Benefits'!$K$3:$BR$3,Y$4)*IF('Input|Costs&Benefits'!$G112=$G46,1,Y$14)) -> 0 | Z46: =IF($D46=NA,0,SUMIFS('Input|Costs&Benefits'!$K112:$BR112,'Input|Costs&Benefits'!$K$3:$BR$3,Z$4)*IF('Input|Costs&Benefits'!$G112=$G46,1,Z$14)) -> 0 | AA46: =IF($D46=NA,0,SUMIFS('Input|Costs&Benefits'!$K112:$BR112,'Input|Costs&Benefits'!$K$3:$BR$3,AA$4)*IF('Input|Costs&Benefits'!$G112=$G46,1,AA$14)) -> 0 | AB46: =IF($D46=NA,0,SUMIFS('Input|Costs&Benefits'!$K112:$BR112,'Input|Costs&Benefits'!$K$3:$BR$3,AB$4)*IF('Input|Costs&Benefits'!$G112=$G46,1,AB$14)) -> 0 | AC46: =IF($D46=NA,0,SUMIFS('Input|Costs&Benefits'!$K112:$BR112,'Input|Costs&Benefits'!$K$3:$BR$3,AC$4)*IF('Input|Costs&Benefits'!$G112=$G46,1,AC$14)) -> 0 | AD46: =IF($D46=NA,0,SUMIFS('Input|Costs&Benefits'!$K112:$BR112,'Input|Costs&Benefits'!$K$3:$BR$3,AD$4)*IF('Input|Costs&Benefits'!$G112=$G46,1,AD$14)) -> 0 | AE46: =IF($D46=NA,0,SUMIFS('Input|Costs&Benefits'!$K112:$BR112,'Input|Costs&Benefits'!$K$3:$BR$3,AE$4)*IF('Input|Costs&Benefits'!$G112=$G46,1,AE$14)) -> 0 | AF46: =IF($D46=NA,0,SUMIFS('Input|Costs&Benefits'!$K112:$BR112,'Input|Costs&Benefits'!$K$3:$BR$3,AF$4)*IF('Input|Costs&Benefits'!$G112=$G46,1,AF$14)) -> 0 | AG46: =IF($D46=NA,0,SUMIFS('Input|Costs&Benefits'!$K112:$BR112,'Input|Costs&Benefits'!$K$3:$BR$3,AG$4)*IF('Input|Costs&Benefits'!$G112=$G46,1,AG$14)) -> 0 | AH46: =IF($D46=NA,0,SUMIFS('Input|Costs&Benefits'!$K112:$BR112,'Input|Costs&Benefits'!$K$3:$BR$3,AH$4)*IF('Input|Costs&Benefits'!$G112=$G46,1,AH$14)) -> 0 | AI46: =IF($D46=NA,0,SUMIFS('Input|Costs&Benefits'!$K112:$BR112,'Input|Costs&Benefits'!$K$3:$BR$3,AI$4)*IF('Input|Costs&Benefits'!$G112=$G46,1,AI$14)) -> 0 | AJ46: =IF($D46=NA,0,SUMIFS('Input|Costs&Benefits'!$K112:$BR112,'Input|Costs&Benefits'!$K$3:$BR$3,AJ$4)*IF('Input|Costs&Benefits'!$G112=$G46,1,AJ$14)) -> 0 | AK46: =IF($D46=NA,0,SUMIFS('Input|Costs&Benefits'!$K112:$BR112,'Input|Costs&Benefits'!$K$3:$BR$3,AK$4)*IF('Input|Costs&Benefits'!$G112=$G46,1,AK$14)) -> 0 | AL46: =IF($D46=NA,0,SUMIFS('Input|Costs&Benefits'!$K112:$BR112,'Input|Costs&Benefits'!$K$3:$BR$3,AL$4)*IF('Input|Costs&Benefits'!$G112=$G46,1,AL$14)) -> 0 | AM46: =IF($D46=NA,0,SUMIFS('Input|Costs&Benefits'!$K112:$BR112,'Input|Costs&Benefits'!$K$3:$BR$3,AM$4)*IF('Input|Costs&Benefits'!$G112=$G46,1,AM$14)) -> 0 | AN46: =IF($D46=NA,0,SUMIFS('Input|Costs&Benefits'!$K112:$BR112,'Input|Costs&Benefits'!$K$3:$BR$3,AN$4)*IF('Input|Costs&Benefits'!$G112=$G46,1,AN$14)) -> 0 | AO46: =IF($D46=NA,0,SUMIFS('Input|Costs&Benefits'!$K112:$BR112,'Input|Costs&Benefits'!$K$3:$BR$3,AO$4)*IF('Input|Costs&Benefits'!$G112=$G46,1,AO$14)) -> 0 | AP46: =IF($D46=NA,0,SUMIFS('Input|Costs&Benefits'!$K112:$BR112,'Input|Costs&Benefits'!$K$3:$BR$3,AP$4)*IF('Input|Costs&Benefits'!$G112=$G46,1,AP$14)) -> 0 | AQ46: =IF($D46=NA,0,SUMIFS('Input|Costs&Benefits'!$K112:$BR112,'Input|Costs&Benefits'!$K$3:$BR$3,AQ$4)*IF('Input|Costs&Benefits'!$G112=$G46,1,AQ$14)) -> 0 | AR46: =IF($D46=NA,0,SUMIFS('Input|Costs&Benefits'!$K112:$BR112,'Input|Costs&Benefits'!$K$3:$BR$3,AR$4)*IF('Input|Costs&Benefits'!$G112=$G46,1,AR$14)) -> 0 | AS46: =IF($D46=NA,0,SUMIFS('Input|Costs&Benefits'!$K112:$BR112,'Input|Costs&Benefits'!$K$3:$BR$3,AS$4)*IF('Input|Costs&Benefits'!$G112=$G46,1,AS$14)) -> 0 | AT46: =IF($D46=NA,0,SUMIFS('Input|Costs&Benefits'!$K112:$BR112,'Input|Costs&Benefits'!$K$3:$BR$3,AT$4)*IF('Input|Costs&Benefits'!$G112=$G46,1,AT$14)) -> 0 | AU46: =IF($D46=NA,0,SUMIFS('Input|Costs&Benefits'!$K112:$BR112,'Input|Costs&Benefits'!$K$3:$BR$3,AU$4)*IF('Input|Costs&Benefits'!$G112=$G46,1,AU$14)) -> 0 | AV46: =IF($D46=NA,0,SUMIFS('Input|Costs&Benefits'!$K112:$BR112,'Input|Costs&Benefits'!$K$3:$BR$3,AV$4)*IF('Input|Costs&Benefits'!$G112=$G46,1,AV$14)) -> 0 | AW46: =IF($D46=NA,0,SUMIFS('Input|Costs&Benefits'!$K112:$BR112,'Input|Costs&Benefits'!$K$3:$BR$3,AW$4)*IF('Input|Costs&Benefits'!$G112=$G46,1,AW$14)) -> 0 | AX46: =IF($D46=NA,0,SUMIFS('Input|Costs&Benefits'!$K112:$BR112,'Input|Costs&Benefits'!$K$3:$BR$3,AX$4)*IF('Input|Costs&Benefits'!$G112=$G46,1,AX$14)) -> 0 | AY46: =IF($D46=NA,0,SUMIFS('Input|Costs&Benefits'!$K112:$BR112,'Input|Costs&Benefits'!$K$3:$BR$3,AY$4)*IF('Input|Costs&Benefits'!$G112=$G46,1,AY$14)) -> 0 | AZ46: =IF($D46=NA,0,SUMIFS('Input|Costs&Benefits'!$K112:$BR112,'Input|Costs&Benefits'!$K$3:$BR$3,AZ$4)*IF('Input|Costs&Benefits'!$G112=$G46,1,AZ$14)) -> 0 | BA46: =IF($D46=NA,0,SUMIFS('Input|Costs&Benefits'!$K112:$BR112,'Input|Costs&Benefits'!$K$3:$BR$3,BA$4)*IF('Input|Costs&Benefits'!$G112=$G46,1,BA$14)) -> 0 | BB46: =IF($D46=NA,0,SUMIFS('Input|Costs&Benefits'!$K112:$BR112,'Input|Costs&Benefits'!$K$3:$BR$3,BB$4)*IF('Input|Costs&Benefits'!$G112=$G46,1,BB$14)) -> 0 | BC46: =IF($D46=NA,0,SUMIFS('Input|Costs&Benefits'!$K112:$BR112,'Input|Costs&Benefits'!$K$3:$BR$3,BC$4)*IF('Input|Costs&Benefits'!$G112=$G46,1,BC$14)) -> 0 | BD46: =IF($D46=NA,0,SUMIFS('Input|Costs&Benefits'!$K112:$BR112,'Input|Costs&Benefits'!$K$3:$BR$3,BD$4)*IF('Input|Costs&Benefits'!$G112=$G46,1,BD$14)) -> 0 | BE46: =IF($D46=NA,0,SUMIFS('Input|Costs&Benefits'!$K112:$BR112,'Input|Costs&Benefits'!$K$3:$BR$3,BE$4)*IF('Input|Costs&Benefits'!$G112=$G46,1,BE$14)) -> 0 | BF46: =IF($D46=NA,0,SUMIFS('Input|Costs&Benefits'!$K112:$BR112,'Input|Costs&Benefits'!$K$3:$BR$3,BF$4)*IF('Input|Costs&Benefits'!$G112=$G46,1,BF$14)) -> 0 | BG46: =IF($D46=NA,0,SUMIFS('Input|Costs&Benefits'!$K112:$BR112,'Input|Costs&Benefits'!$K$3:$BR$3,BG$4)*IF('Input|Costs&Benefits'!$G112=$G46,1,BG$14)) -> 0 | BH46: =IF($D46=NA,0,SUMIFS('Input|Costs&Benefits'!$K112:$BR112,'Input|Costs&Benefits'!$K$3:$BR$3,BH$4)*IF('Input|Costs&Benefits'!$G112=$G46,1,BH$14)) -> 0 | BI46: =IF($D46=NA,0,SUMIFS('Input|Costs&Benefits'!$K112:$BR112,'Input|Costs&Benefits'!$K$3:$BR$3,BI$4)*IF('Input|Costs&Benefits'!$G112=$G46,1,BI$14)) -> 0 | BJ46: =IF($D46=NA,0,SUMIFS('Input|Costs&Benefits'!$K112:$BR112,'Input|Costs&Benefits'!$K$3:$BR$3,BJ$4)*IF('Input|Costs&Benefits'!$G112=$G46,1,BJ$14)) -> 0 | BK46: =IF($D46=NA,0,SUMIFS('Input|Costs&Benefits'!$K112:$BR112,'Input|Costs&Benefits'!$K$3:$BR$3,BK$4)*IF('Input|Costs&Benefits'!$G112=$G46,1,BK$14)) -> 0 | BL46: =IF($D46=NA,0,SUMIFS('Input|Costs&Benefits'!$K112:$BR112,'Input|Costs&Benefits'!$K$3:$BR$3,BL$4)*IF('Input|Costs&Benefits'!$G112=$G46,1,BL$14)) -> 0 | BM46: =IF($D46=NA,0,SUMIFS('Input|Costs&Benefits'!$K112:$BR112,'Input|Costs&Benefits'!$K$3:$BR$3,BM$4)*IF('Input|Costs&Benefits'!$G112=$G46,1,BM$14)) -> 0 | BN46: =IF($D46=NA,0,SUMIFS('Input|Costs&Benefits'!$K112:$BR112,'Input|Costs&Benefits'!$K$3:$BR$3,BN$4)*IF('Input|Costs&Benefits'!$G112=$G46,1,BN$14)) -> 0 | BO46: =IF($D46=NA,0,SUMIFS('Input|Costs&Benefits'!$K112:$BR112,'Input|Costs&Benefits'!$K$3:$BR$3,BO$4)*IF('Input|Costs&Benefits'!$G112=$G46,1,BO$14)) -> 0 | BP46: =IF($D46=NA,0,SUMIFS('Input|Costs&Benefits'!$K112:$BR112,'Input|Costs&Benefits'!$K$3:$BR$3,BP$4)*IF('Input|Costs&Benefits'!$G112=$G46,1,BP$14)) -> 0 | BQ46: =IF($D46=NA,0,SUMIFS('Input|Costs&Benefits'!$K112:$BR112,'Input|Costs&Benefits'!$K$3:$BR$3,BQ$4)*IF('Input|Costs&Benefits'!$G112=$G46,1,BQ$14)) -> 0 | BR46: =IF($D46=NA,0,SUMIFS('Input|Costs&Benefits'!$K112:$BR112,'Input|Costs&Benefits'!$K$3:$BR$3,BR$4)*IF('Input|Costs&Benefits'!$G112=$G46,1,BR$14)) -> 0
D47: =IF(AND(LEFT('Input|Costs&Benefits'!I113,3)=JGN,OR(Proj_Type=JGN,Proj_Type=Shared)),'Input|Costs&Benefits'!I113,NA) -> n/a | E47: Input|Costs&Benefits | F47: $000 | G47: Real 2024 | H47: End-year | K47: =IF($D47=NA,0,SUMIFS('Input|Costs&Benefits'!$K113:$BR113,'Input|Costs&Benefits'!$K$3:$BR$3,K$4)*IF('Input|Costs&Benefits'!$G113=$G47,1,K$14)) -> 0 | L47: =IF($D47=NA,0,SUMIFS('Input|Costs&Benefits'!$K113:$BR113,'Input|Costs&Benefits'!$K$3:$BR$3,L$4)*IF('Input|Costs&Benefits'!$G113=$G47,1,L$14)) -> 0 | M47: =IF($D47=NA,0,SUMIFS('Input|Costs&Benefits'!$K113:$BR113,'Input|Costs&Benefits'!$K$3:$BR$3,M$4)*IF('Input|Costs&Benefits'!$G113=$G47,1,M$14)) -> 0 | N47: =IF($D47=NA,0,SUMIFS('Input|Costs&Benefits'!$K113:$BR113,'Input|Costs&Benefits'!$K$3:$BR$3,N$4)*IF('Input|Costs&Benefits'!$G113=$G47,1,N$14)) -> 0 | O47: =IF($D47=NA,0,SUMIFS('Input|Costs&Benefits'!$K113:$BR113,'Input|Costs&Benefits'!$K$3:$BR$3,O$4)*IF('Input|Costs&Benefits'!$G113=$G47,1,O$14)) -> 0 | P47: =IF($D47=NA,0,SUMIFS('Input|Costs&Benefits'!$K113:$BR113,'Input|Costs&Benefits'!$K$3:$BR$3,P$4)*IF('Input|Costs&Benefits'!$G113=$G47,1,P$14)) -> 0 | Q47: =IF($D47=NA,0,SUMIFS('Input|Costs&Benefits'!$K113:$BR113,'Input|Costs&Benefits'!$K$3:$BR$3,Q$4)*IF('Input|Costs&Benefits'!$G113=$G47,1,Q$14)) -> 0 | R47: =IF($D47=NA,0,SUMIFS('Input|Costs&Benefits'!$K113:$BR113,'Input|Costs&Benefits'!$K$3:$BR$3,R$4)*IF('Input|Costs&Benefits'!$G113=$G47,1,R$14)) -> 0 | S47: =IF($D47=NA,0,SUMIFS('Input|Costs&Benefits'!$K113:$BR113,'Input|Costs&Benefits'!$K$3:$BR$3,S$4)*IF('Input|Costs&Benefits'!$G113=$G47,1,S$14)) -> 0 | T47: =IF($D47=NA,0,SUMIFS('Input|Costs&Benefits'!$K113:$BR113,'Input|Costs&Benefits'!$K$3:$BR$3,T$4)*IF('Input|Costs&Benefits'!$G113=$G47,1,T$14)) -> 0 | U47: =IF($D47=NA,0,SUMIFS('Input|Costs&Benefits'!$K113:$BR113,'Input|Costs&Benefits'!$K$3:$BR$3,U$4)*IF('Input|Costs&Benefits'!$G113=$G47,1,U$14)) -> 0 | V47: =IF($D47=NA,0,SUMIFS('Input|Costs&Benefits'!$K113:$BR113,'Input|Costs&Benefits'!$K$3:$BR$3,V$4)*IF('Input|Costs&Benefits'!$G113=$G47,1,V$14)) -> 0 | W47: =IF($D47=NA,0,SUMIFS('Input|Costs&Benefits'!$K113:$BR113,'Input|Costs&Benefits'!$K$3:$BR$3,W$4)*IF('Input|Costs&Benefits'!$G113=$G47,1,W$14)) -> 0 | X47: =IF($D47=NA,0,SUMIFS('Input|Costs&Benefits'!$K113:$BR113,'Input|Costs&Benefits'!$K$3:$BR$3,X$4)*IF('Input|Costs&Benefits'!$G113=$G47,1,X$14)) -> 0 | Y47: =IF($D47=NA,0,SUMIFS('Input|Costs&Benefits'!$K113:$BR113,'Input|Costs&Benefits'!$K$3:$BR$3,Y$4)*IF('Input|Costs&Benefits'!$G113=$G47,1,Y$14)) -> 0 | Z47: =IF($D47=NA,0,SUMIFS('Input|Costs&Benefits'!$K113:$BR113,'Input|Costs&Benefits'!$K$3:$BR$3,Z$4)*IF('Input|Costs&Benefits'!$G113=$G47,1,Z$14)) -> 0 | AA47: =IF($D47=NA,0,SUMIFS('Input|Costs&Benefits'!$K113:$BR113,'Input|Costs&Benefits'!$K$3:$BR$3,AA$4)*IF('Input|Costs&Benefits'!$G113=$G47,1,AA$14)) -> 0 | AB47: =IF($D47=NA,0,SUMIFS('Input|Costs&Benefits'!$K113:$BR113,'Input|Costs&Benefits'!$K$3:$BR$3,AB$4)*IF('Input|Costs&Benefits'!$G113=$G47,1,AB$14)) -> 0 | AC47: =IF($D47=NA,0,SUMIFS('Input|Costs&Benefits'!$K113:$BR113,'Input|Costs&Benefits'!$K$3:$BR$3,AC$4)*IF('Input|Costs&Benefits'!$G113=$G47,1,AC$14)) -> 0 | AD47: =IF($D47=NA,0,SUMIFS('Input|Costs&Benefits'!$K113:$BR113,'Input|Costs&Benefits'!$K$3:$BR$3,AD$4)*IF('Input|Costs&Benefits'!$G113=$G47,1,AD$14)) -> 0 | AE47: =IF($D47=NA,0,SUMIFS('Input|Costs&Benefits'!$K113:$BR113,'Input|Costs&Benefits'!$K$3:$BR$3,AE$4)*IF('Input|Costs&Benefits'!$G113=$G47,1,AE$14)) -> 0 | AF47: =IF($D47=NA,0,SUMIFS('Input|Costs&Benefits'!$K113:$BR113,'Input|Costs&Benefits'!$K$3:$BR$3,AF$4)*IF('Input|Costs&Benefits'!$G113=$G47,1,AF$14)) -> 0 | AG47: =IF($D47=NA,0,SUMIFS('Input|Costs&Benefits'!$K113:$BR113,'Input|Costs&Benefits'!$K$3:$BR$3,AG$4)*IF('Input|Costs&Benefits'!$G113=$G47,1,AG$14)) -> 0 | AH47: =IF($D47=NA,0,SUMIFS('Input|Costs&Benefits'!$K113:$BR113,'Input|Costs&Benefits'!$K$3:$BR$3,AH$4)*IF('Input|Costs&Benefits'!$G113=$G47,1,AH$14)) -> 0 | AI47: =IF($D47=NA,0,SUMIFS('Input|Costs&Benefits'!$K113:$BR113,'Input|Costs&Benefits'!$K$3:$BR$3,AI$4)*IF('Input|Costs&Benefits'!$G113=$G47,1,AI$14)) -> 0 | AJ47: =IF($D47=NA,0,SUMIFS('Input|Costs&Benefits'!$K113:$BR113,'Input|Costs&Benefits'!$K$3:$BR$3,AJ$4)*IF('Input|Costs&Benefits'!$G113=$G47,1,AJ$14)) -> 0 | AK47: =IF($D47=NA,0,SUMIFS('Input|Costs&Benefits'!$K113:$BR113,'Input|Costs&Benefits'!$K$3:$BR$3,AK$4)*IF('Input|Costs&Benefits'!$G113=$G47,1,AK$14)) -> 0 | AL47: =IF($D47=NA,0,SUMIFS('Input|Costs&Benefits'!$K113:$BR113,'Input|Costs&Benefits'!$K$3:$BR$3,AL$4)*IF('Input|Costs&Benefits'!$G113=$G47,1,AL$14)) -> 0 | AM47: =IF($D47=NA,0,SUMIFS('Input|Costs&Benefits'!$K113:$BR113,'Input|Costs&Benefits'!$K$3:$BR$3,AM$4)*IF('Input|Costs&Benefits'!$G113=$G47,1,AM$14)) -> 0 | AN47: =IF($D47=NA,0,SUMIFS('Input|Costs&Benefits'!$K113:$BR113,'Input|Costs&Benefits'!$K$3:$BR$3,AN$4)*IF('Input|Costs&Benefits'!$G113=$G47,1,AN$14)) -> 0 | AO47: =IF($D47=NA,0,SUMIFS('Input|Costs&Benefits'!$K113:$BR113,'Input|Costs&Benefits'!$K$3:$BR$3,AO$4)*IF('Input|Costs&Benefits'!$G113=$G47,1,AO$14)) -> 0 | AP47: =IF($D47=NA,0,SUMIFS('Input|Costs&Benefits'!$K113:$BR113,'Input|Costs&Benefits'!$K$3:$BR$3,AP$4)*IF('Input|Costs&Benefits'!$G113=$G47,1,AP$14)) -> 0 | AQ47: =IF($D47=NA,0,SUMIFS('Input|Costs&Benefits'!$K113:$BR113,'Input|Costs&Benefits'!$K$3:$BR$3,AQ$4)*IF('Input|Costs&Benefits'!$G113=$G47,1,AQ$14)) -> 0 | AR47: =IF($D47=NA,0,SUMIFS('Input|Costs&Benefits'!$K113:$BR113,'Input|Costs&Benefits'!$K$3:$BR$3,AR$4)*IF('Input|Costs&Benefits'!$G113=$G47,1,AR$14)) -> 0 | AS47: =IF($D47=NA,0,SUMIFS('Input|Costs&Benefits'!$K113:$BR113,'Input|Costs&Benefits'!$K$3:$BR$3,AS$4)*IF('Input|Costs&Benefits'!$G113=$G47,1,AS$14)) -> 0 | AT47: =IF($D47=NA,0,SUMIFS('Input|Costs&Benefits'!$K113:$BR113,'Input|Costs&Benefits'!$K$3:$BR$3,AT$4)*IF('Input|Costs&Benefits'!$G113=$G47,1,AT$14)) -> 0 | AU47: =IF($D47=NA,0,SUMIFS('Input|Costs&Benefits'!$K113:$BR113,'Input|Costs&Benefits'!$K$3:$BR$3,AU$4)*IF('Input|Costs&Benefits'!$G113=$G47,1,AU$14)) -> 0 | AV47: =IF($D47=NA,0,SUMIFS('Input|Costs&Benefits'!$K113:$BR113,'Input|Costs&Benefits'!$K$3:$BR$3,AV$4)*IF('Input|Costs&Benefits'!$G113=$G47,1,AV$14)) -> 0 | AW47: =IF($D47=NA,0,SUMIFS('Input|Costs&Benefits'!$K113:$BR113,'Input|Costs&Benefits'!$K$3:$BR$3,AW$4)*IF('Input|Costs&Benefits'!$G113=$G47,1,AW$14)) -> 0 | AX47: =IF($D47=NA,0,SUMIFS('Input|Costs&Benefits'!$K113:$BR113,'Input|Costs&Benefits'!$K$3:$BR$3,AX$4)*IF('Input|Costs&Benefits'!$G113=$G47,1,AX$14)) -> 0 | AY47: =IF($D47=NA,0,SUMIFS('Input|Costs&Benefits'!$K113:$BR113,'Input|Costs&Benefits'!$K$3:$BR$3,AY$4)*IF('Input|Costs&Benefits'!$G113=$G47,1,AY$14)) -> 0 | AZ47: =IF($D47=NA,0,SUMIFS('Input|Costs&Benefits'!$K113:$BR113,'Input|Costs&Benefits'!$K$3:$BR$3,AZ$4)*IF('Input|Costs&Benefits'!$G113=$G47,1,AZ$14)) -> 0 | BA47: =IF($D47=NA,0,SUMIFS('Input|Costs&Benefits'!$K113:$BR113,'Input|Costs&Benefits'!$K$3:$BR$3,BA$4)*IF('Input|Costs&Benefits'!$G113=$G47,1,BA$14)) -> 0 | BB47: =IF($D47=NA,0,SUMIFS('Input|Costs&Benefits'!$K113:$BR113,'Input|Costs&Benefits'!$K$3:$BR$3,BB$4)*IF('Input|Costs&Benefits'!$G113=$G47,1,BB$14)) -> 0 | BC47: =IF($D47=NA,0,SUMIFS('Input|Costs&Benefits'!$K113:$BR113,'Input|Costs&Benefits'!$K$3:$BR$3,BC$4)*IF('Input|Costs&Benefits'!$G113=$G47,1,BC$14)) -> 0 | BD47: =IF($D47=NA,0,SUMIFS('Input|Costs&Benefits'!$K113:$BR113,'Input|Costs&Benefits'!$K$3:$BR$3,BD$4)*IF('Input|Costs&Benefits'!$G113=$G47,1,BD$14)) -> 0 | BE47: =IF($D47=NA,0,SUMIFS('Input|Costs&Benefits'!$K113:$BR113,'Input|Costs&Benefits'!$K$3:$BR$3,BE$4)*IF('Input|Costs&Benefits'!$G113=$G47,1,BE$14)) -> 0 | BF47: =IF($D47=NA,0,SUMIFS('Input|Costs&Benefits'!$K113:$BR113,'Input|Costs&Benefits'!$K$3:$BR$3,BF$4)*IF('Input|Costs&Benefits'!$G113=$G47,1,BF$14)) -> 0 | BG47: =IF($D47=NA,0,SUMIFS('Input|Costs&Benefits'!$K113:$BR113,'Input|Costs&Benefits'!$K$3:$BR$3,BG$4)*IF('Input|Costs&Benefits'!$G113=$G47,1,BG$14)) -> 0 | BH47: =IF($D47=NA,0,SUMIFS('Input|Costs&Benefits'!$K113:$BR113,'Input|Costs&Benefits'!$K$3:$BR$3,BH$4)*IF('Input|Costs&Benefits'!$G113=$G47,1,BH$14)) -> 0 | BI47: =IF($D47=NA,0,SUMIFS('Input|Costs&Benefits'!$K113:$BR113,'Input|Costs&Benefits'!$K$3:$BR$3,BI$4)*IF('Input|Costs&Benefits'!$G113=$G47,1,BI$14)) -> 0 | BJ47: =IF($D47=NA,0,SUMIFS('Input|Costs&Benefits'!$K113:$BR113,'Input|Costs&Benefits'!$K$3:$BR$3,BJ$4)*IF('Input|Costs&Benefits'!$G113=$G47,1,BJ$14)) -> 0 | BK47: =IF($D47=NA,0,SUMIFS('Input|Costs&Benefits'!$K113:$BR113,'Input|Costs&Benefits'!$K$3:$BR$3,BK$4)*IF('Input|Costs&Benefits'!$G113=$G47,1,BK$14)) -> 0 | BL47: =IF($D47=NA,0,SUMIFS('Input|Costs&Benefits'!$K113:$BR113,'Input|Costs&Benefits'!$K$3:$BR$3,BL$4)*IF('Input|Costs&Benefits'!$G113=$G47,1,BL$14)) -> 0 | BM47: =IF($D47=NA,0,SUMIFS('Input|Costs&Benefits'!$K113:$BR113,'Input|Costs&Benefits'!$K$3:$BR$3,BM$4)*IF('Input|Costs&Benefits'!$G113=$G47,1,BM$14)) -> 0 | BN47: =IF($D47=NA,0,SUMIFS('Input|Costs&Benefits'!$K113:$BR113,'Input|Costs&Benefits'!$K$3:$BR$3,BN$4)*IF('Input|Costs&Benefits'!$G113=$G47,1,BN$14)) -> 0 | BO47: =IF($D47=NA,0,SUMIFS('Input|Costs&Benefits'!$K113:$BR113,'Input|Costs&Benefits'!$K$3:$BR$3,BO$4)*IF('Input|Costs&Benefits'!$G113=$G47,1,BO$14)) -> 0 | BP47: =IF($D47=NA,0,SUMIFS('Input|Costs&Benefits'!$K113:$BR113,'Input|Costs&Benefits'!$K$3:$BR$3,BP$4)*IF('Input|Costs&Benefits'!$G113=$G47,1,BP$14)) -> 0 | BQ47: =IF($D47=NA,0,SUMIFS('Input|Costs&Benefits'!$K113:$BR113,'Input|Costs&Benefits'!$K$3:$BR$3,BQ$4)*IF('Input|Costs&Benefits'!$G113=$G47,1,BQ$14)) -> 0 | BR47: =IF($D47=NA,0,SUMIFS('Input|Costs&Benefits'!$K113:$BR113,'Input|Costs&Benefits'!$K$3:$BR$3,BR$4)*IF('Input|Costs&Benefits'!$G113=$G47,1,BR$14)) -> 0
D48: =IF(AND(LEFT('Input|Costs&Benefits'!I114,3)=JGN,OR(Proj_Type=JGN,Proj_Type=Shared)),'Input|Costs&Benefits'!I114,NA) -> n/a | E48: Input|Costs&Benefits | F48: $000 | G48: Real 2024 | H48: End-year | K48: =IF($D48=NA,0,SUMIFS('Input|Costs&Benefits'!$K114:$BR114,'Input|Costs&Benefits'!$K$3:$BR$3,K$4)*IF('Input|Costs&Benefits'!$G114=$G48,1,K$14)) -> 0 | L48: =IF($D48=NA,0,SUMIFS('Input|Costs&Benefits'!$K114:$BR114,'Input|Costs&Benefits'!$K$3:$BR$3,L$4)*IF('Input|Costs&Benefits'!$G114=$G48,1,L$14)) -> 0 | M48: =IF($D48=NA,0,SUMIFS('Input|Costs&Benefits'!$K114:$BR114,'Input|Costs&Benefits'!$K$3:$BR$3,M$4)*IF('Input|Costs&Benefits'!$G114=$G48,1,M$14)) -> 0 | N48: =IF($D48=NA,0,SUMIFS('Input|Costs&Benefits'!$K114:$BR114,'Input|Costs&Benefits'!$K$3:$BR$3,N$4)*IF('Input|Costs&Benefits'!$G114=$G48,1,N$14)) -> 0 | O48: =IF($D48=NA,0,SUMIFS('Input|Costs&Benefits'!$K114:$BR114,'Input|Costs&Benefits'!$K$3:$BR$3,O$4)*IF('Input|Costs&Benefits'!$G114=$G48,1,O$14)) -> 0 | P48: =IF($D48=NA,0,SUMIFS('Input|Costs&Benefits'!$K114:$BR114,'Input|Costs&Benefits'!$K$3:$BR$3,P$4)*IF('Input|Costs&Benefits'!$G114=$G48,1,P$14)) -> 0 | Q48: =IF($D48=NA,0,SUMIFS('Input|Costs&Benefits'!$K114:$BR114,'Input|Costs&Benefits'!$K$3:$BR$3,Q$4)*IF('Input|Costs&Benefits'!$G114=$G48,1,Q$14)) -> 0 | R48: =IF($D48=NA,0,SUMIFS('Input|Costs&Benefits'!$K114:$BR114,'Input|Costs&Benefits'!$K$3:$BR$3,R$4)*IF('Input|Costs&Benefits'!$G114=$G48,1,R$14)) -> 0 | S48: =IF($D48=NA,0,SUMIFS('Input|Costs&Benefits'!$K114:$BR114,'Input|Costs&Benefits'!$K$3:$BR$3,S$4)*IF('Input|Costs&Benefits'!$G114=$G48,1,S$14)) -> 0 | T48: =IF($D48=NA,0,SUMIFS('Input|Costs&Benefits'!$K114:$BR114,'Input|Costs&Benefits'!$K$3:$BR$3,T$4)*IF('Input|Costs&Benefits'!$G114=$G48,1,T$14)) -> 0 | U48: =IF($D48=NA,0,SUMIFS('Input|Costs&Benefits'!$K114:$BR114,'Input|Costs&Benefits'!$K$3:$BR$3,U$4)*IF('Input|Costs&Benefits'!$G114=$G48,1,U$14)) -> 0 | V48: =IF($D48=NA,0,SUMIFS('Input|Costs&Benefits'!$K114:$BR114,'Input|Costs&Benefits'!$K$3:$BR$3,V$4)*IF('Input|Costs&Benefits'!$G114=$G48,1,V$14)) -> 0 | W48: =IF($D48=NA,0,SUMIFS('Input|Costs&Benefits'!$K114:$BR114,'Input|Costs&Benefits'!$K$3:$BR$3,W$4)*IF('Input|Costs&Benefits'!$G114=$G48,1,W$14)) -> 0 | X48: =IF($D48=NA,0,SUMIFS('Input|Costs&Benefits'!$K114:$BR114,'Input|Costs&Benefits'!$K$3:$BR$3,X$4)*IF('Input|Costs&Benefits'!$G114=$G48,1,X$14)) -> 0 | Y48: =IF($D48=NA,0,SUMIFS('Input|Costs&Benefits'!$K114:$BR114,'Input|Costs&Benefits'!$K$3:$BR$3,Y$4)*IF('Input|Costs&Benefits'!$G114=$G48,1,Y$14)) -> 0 | Z48: =IF($D48=NA,0,SUMIFS('Input|Costs&Benefits'!$K114:$BR114,'Input|Costs&Benefits'!$K$3:$BR$3,Z$4)*IF('Input|Costs&Benefits'!$G114=$G48,1,Z$14)) -> 0 | AA48: =IF($D48=NA,0,SUMIFS('Input|Costs&Benefits'!$K114:$BR114,'Input|Costs&Benefits'!$K$3:$BR$3,AA$4)*IF('Input|Costs&Benefits'!$G114=$G48,1,AA$14)) -> 0 | AB48: =IF($D48=NA,0,SUMIFS('Input|Costs&Benefits'!$K114:$BR114,'Input|Costs&Benefits'!$K$3:$BR$3,AB$4)*IF('Input|Costs&Benefits'!$G114=$G48,1,AB$14)) -> 0 | AC48: =IF($D48=NA,0,SUMIFS('Input|Costs&Benefits'!$K114:$BR114,'Input|Costs&Benefits'!$K$3:$BR$3,AC$4)*IF('Input|Costs&Benefits'!$G114=$G48,1,AC$14)) -> 0 | AD48: =IF($D48=NA,0,SUMIFS('Input|Costs&Benefits'!$K114:$BR114,'Input|Costs&Benefits'!$K$3:$BR$3,AD$4)*IF('Input|Costs&Benefits'!$G114=$G48,1,AD$14)) -> 0 | AE48: =IF($D48=NA,0,SUMIFS('Input|Costs&Benefits'!$K114:$BR114,'Input|Costs&Benefits'!$K$3:$BR$3,AE$4)*IF('Input|Costs&Benefits'!$G114=$G48,1,AE$14)) -> 0 | AF48: =IF($D48=NA,0,SUMIFS('Input|Costs&Benefits'!$K114:$BR114,'Input|Costs&Benefits'!$K$3:$BR$3,AF$4)*IF('Input|Costs&Benefits'!$G114=$G48,1,AF$14)) -> 0 | AG48: =IF($D48=NA,0,SUMIFS('Input|Costs&Benefits'!$K114:$BR114,'Input|Costs&Benefits'!$K$3:$BR$3,AG$4)*IF('Input|Costs&Benefits'!$G114=$G48,1,AG$14)) -> 0 | AH48: =IF($D48=NA,0,SUMIFS('Input|Costs&Benefits'!$K114:$BR114,'Input|Costs&Benefits'!$K$3:$BR$3,AH$4)*IF('Input|Costs&Benefits'!$G114=$G48,1,AH$14)) -> 0 | AI48: =IF($D48=NA,0,SUMIFS('Input|Costs&Benefits'!$K114:$BR114,'Input|Costs&Benefits'!$K$3:$BR$3,AI$4)*IF('Input|Costs&Benefits'!$G114=$G48,1,AI$14)) -> 0 | AJ48: =IF($D48=NA,0,SUMIFS('Input|Costs&Benefits'!$K114:$BR114,'Input|Costs&Benefits'!$K$3:$BR$3,AJ$4)*IF('Input|Costs&Benefits'!$G114=$G48,1,AJ$14)) -> 0 | AK48: =IF($D48=NA,0,SUMIFS('Input|Costs&Benefits'!$K114:$BR114,'Input|Costs&Benefits'!$K$3:$BR$3,AK$4)*IF('Input|Costs&Benefits'!$G114=$G48,1,AK$14)) -> 0 | AL48: =IF($D48=NA,0,SUMIFS('Input|Costs&Benefits'!$K114:$BR114,'Input|Costs&Benefits'!$K$3:$BR$3,AL$4)*IF('Input|Costs&Benefits'!$G114=$G48,1,AL$14)) -> 0 | AM48: =IF($D48=NA,0,SUMIFS('Input|Costs&Benefits'!$K114:$BR114,'Input|Costs&Benefits'!$K$3:$BR$3,AM$4)*IF('Input|Costs&Benefits'!$G114=$G48,1,AM$14)) -> 0 | AN48: =IF($D48=NA,0,SUMIFS('Input|Costs&Benefits'!$K114:$BR114,'Input|Costs&Benefits'!$K$3:$BR$3,AN$4)*IF('Input|Costs&Benefits'!$G114=$G48,1,AN$14)) -> 0 | AO48: =IF($D48=NA,0,SUMIFS('Input|Costs&Benefits'!$K114:$BR114,'Input|Costs&Benefits'!$K$3:$BR$3,AO$4)*IF('Input|Costs&Benefits'!$G114=$G48,1,AO$14)) -> 0 | AP48: =IF($D48=NA,0,SUMIFS('Input|Costs&Benefits'!$K114:$BR114,'Input|Costs&Benefits'!$K$3:$BR$3,AP$4)*IF('Input|Costs&Benefits'!$G114=$G48,1,AP$14)) -> 0 | AQ48: =IF($D48=NA,0,SUMIFS('Input|Costs&Benefits'!$K114:$BR114,'Input|Costs&Benefits'!$K$3:$BR$3,AQ$4)*IF('Input|Costs&Benefits'!$G114=$G48,1,AQ$14)) -> 0 | AR48: =IF($D48=NA,0,SUMIFS('Input|Costs&Benefits'!$K114:$BR114,'Input|Costs&Benefits'!$K$3:$BR$3,AR$4)*IF('Input|Costs&Benefits'!$G114=$G48,1,AR$14)) -> 0 | AS48: =IF($D48=NA,0,SUMIFS('Input|Costs&Benefits'!$K114:$BR114,'Input|Costs&Benefits'!$K$3:$BR$3,AS$4)*IF('Input|Costs&Benefits'!$G114=$G48,1,AS$14)) -> 0 | AT48: =IF($D48=NA,0,SUMIFS('Input|Costs&Benefits'!$K114:$BR114,'Input|Costs&Benefits'!$K$3:$BR$3,AT$4)*IF('Input|Costs&Benefits'!$G114=$G48,1,AT$14)) -> 0 | AU48: =IF($D48=NA,0,SUMIFS('Input|Costs&Benefits'!$K114:$BR114,'Input|Costs&Benefits'!$K$3:$BR$3,AU$4)*IF('Input|Costs&Benefits'!$G114=$G48,1,AU$14)) -> 0 | AV48: =IF($D48=NA,0,SUMIFS('Input|Costs&Benefits'!$K114:$BR114,'Input|Costs&Benefits'!$K$3:$BR$3,AV$4)*IF('Input|Costs&Benefits'!$G114=$G48,1,AV$14)) -> 0 | AW48: =IF($D48=NA,0,SUMIFS('Input|Costs&Benefits'!$K114:$BR114,'Input|Costs&Benefits'!$K$3:$BR$3,AW$4)*IF('Input|Costs&Benefits'!$G114=$G48,1,AW$14)) -> 0 | AX48: =IF($D48=NA,0,SUMIFS('Input|Costs&Benefits'!$K114:$BR114,'Input|Costs&Benefits'!$K$3:$BR$3,AX$4)*IF('Input|Costs&Benefits'!$G114=$G48,1,AX$14)) -> 0 | AY48: =IF($D48=NA,0,SUMIFS('Input|Costs&Benefits'!$K114:$BR114,'Input|Costs&Benefits'!$K$3:$BR$3,AY$4)*IF('Input|Costs&Benefits'!$G114=$G48,1,AY$14)) -> 0 | AZ48: =IF($D48=NA,0,SUMIFS('Input|Costs&Benefits'!$K114:$BR114,'Input|Costs&Benefits'!$K$3:$BR$3,AZ$4)*IF('Input|Costs&Benefits'!$G114=$G48,1,AZ$14)) -> 0 | BA48: =IF($D48=NA,0,SUMIFS('Input|Costs&Benefits'!$K114:$BR114,'Input|Costs&Benefits'!$K$3:$BR$3,BA$4)*IF('Input|Costs&Benefits'!$G114=$G48,1,BA$14)) -> 0 | BB48: =IF($D48=NA,0,SUMIFS('Input|Costs&Benefits'!$K114:$BR114,'Input|Costs&Benefits'!$K$3:$BR$3,BB$4)*IF('Input|Costs&Benefits'!$G114=$G48,1,BB$14)) -> 0 | BC48: =IF($D48=NA,0,SUMIFS('Input|Costs&Benefits'!$K114:$BR114,'Input|Costs&Benefits'!$K$3:$BR$3,BC$4)*IF('Input|Costs&Benefits'!$G114=$G48,1,BC$14)) -> 0 | BD48: =IF($D48=NA,0,SUMIFS('Input|Costs&Benefits'!$K114:$BR114,'Input|Costs&Benefits'!$K$3:$BR$3,BD$4)*IF('Input|Costs&Benefits'!$G114=$G48,1,BD$14)) -> 0 | BE48: =IF($D48=NA,0,SUMIFS('Input|Costs&Benefits'!$K114:$BR114,'Input|Costs&Benefits'!$K$3:$BR$3,BE$4)*IF('Input|Costs&Benefits'!$G114=$G48,1,BE$14)) -> 0 | BF48: =IF($D48=NA,0,SUMIFS('Input|Costs&Benefits'!$K114:$BR114,'Input|Costs&Benefits'!$K$3:$BR$3,BF$4)*IF('Input|Costs&Benefits'!$G114=$G48,1,BF$14)) -> 0 | BG48: =IF($D48=NA,0,SUMIFS('Input|Costs&Benefits'!$K114:$BR114,'Input|Costs&Benefits'!$K$3:$BR$3,BG$4)*IF('Input|Costs&Benefits'!$G114=$G48,1,BG$14)) -> 0 | BH48: =IF($D48=NA,0,SUMIFS('Input|Costs&Benefits'!$K114:$BR114,'Input|Costs&Benefits'!$K$3:$BR$3,BH$4)*IF('Input|Costs&Benefits'!$G114=$G48,1,BH$14)) -> 0 | BI48: =IF($D48=NA,0,SUMIFS('Input|Costs&Benefits'!$K114:$BR114,'Input|Costs&Benefits'!$K$3:$BR$3,BI$4)*IF('Input|Costs&Benefits'!$G114=$G48,1,BI$14)) -> 0 | BJ48: =IF($D48=NA,0,SUMIFS('Input|Costs&Benefits'!$K114:$BR114,'Input|Costs&Benefits'!$K$3:$BR$3,BJ$4)*IF('Input|Costs&Benefits'!$G114=$G48,1,BJ$14)) -> 0 | BK48: =IF($D48=NA,0,SUMIFS('Input|Costs&Benefits'!$K114:$BR114,'Input|Costs&Benefits'!$K$3:$BR$3,BK$4)*IF('Input|Costs&Benefits'!$G114=$G48,1,BK$14)) -> 0 | BL48: =IF($D48=NA,0,SUMIFS('Input|Costs&Benefits'!$K114:$BR114,'Input|Costs&Benefits'!$K$3:$BR$3,BL$4)*IF('Input|Costs&Benefits'!$G114=$G48,1,BL$14)) -> 0 | BM48: =IF($D48=NA,0,SUMIFS('Input|Costs&Benefits'!$K114:$BR114,'Input|Costs&Benefits'!$K$3:$BR$3,BM$4)*IF('Input|Costs&Benefits'!$G114=$G48,1,BM$14)) -> 0 | BN48: =IF($D48=NA,0,SUMIFS('Input|Costs&Benefits'!$K114:$BR114,'Input|Costs&Benefits'!$K$3:$BR$3,BN$4)*IF('Input|Costs&Benefits'!$G114=$G48,1,BN$14)) -> 0 | BO48: =IF($D48=NA,0,SUMIFS('Input|Costs&Benefits'!$K114:$BR114,'Input|Costs&Benefits'!$K$3:$BR$3,BO$4)*IF('Input|Costs&Benefits'!$G114=$G48,1,BO$14)) -> 0 | BP48: =IF($D48=NA,0,SUMIFS('Input|Costs&Benefits'!$K114:$BR114,'Input|Costs&Benefits'!$K$3:$BR$3,BP$4)*IF('Input|Costs&Benefits'!$G114=$G48,1,BP$14)) -> 0 | BQ48: =IF($D48=NA,0,SUMIFS('Input|Costs&Benefits'!$K114:$BR114,'Input|Costs&Benefits'!$K$3:$BR$3,BQ$4)*IF('Input|Costs&Benefits'!$G114=$G48,1,BQ$14)) -> 0 | BR48: =IF($D48=NA,0,SUMIFS('Input|Costs&Benefits'!$K114:$BR114,'Input|Costs&Benefits'!$K$3:$BR$3,BR$4)*IF('Input|Costs&Benefits'!$G114=$G48,1,BR$14)) -> 0
